Workbook

Sheet PI vs x
A1: Measurement | B1: Hall
A2: Type | B2: Off-axis
A4: Project | B4: ='10 y=-0.2'!B5 -> 504314
A5: PS serial no | B5: ='10 y=-0.2'!B7 -> 2410085
A7: Measurement date | B7: =LEFT('10 y=-0.2'!B4,10) -> 30-07-2024
C11: Nominal gap [mm] | D11: Encoder [counts] | E11: Encoder [mm] | F11: PI [T^2mm^3] | G11: y [mm] | H11: Encoder value at 10 mm gap:
B12: ='PI vs x'!$C$12 & "mm gap" -> 10mm gap | C12: ='10 y=-0.2'!B48 -> 10 | D12: ='10 y=-0.2'!$B$50 -> 20.0357 | E12: =D12-$H$12+10 -> 9.99935 | F12: ='10 y=-0.2'!$K$3 -> 10467.56921 | G12: -0.2 | H12: 20.03635
C13: =C12 -> 10 | D13: ='10 y=-0.1'!$B$50 -> 20.0357 | E13: =D13-$H$12+10 -> 9.99935 | F13: ='10 y=-0.1'!$K$3 -> 10464.56997 | G13: -0.1
C14: =C13 -> 10 | D14: ='10 y=0'!$B$50 -> 20.0357 | E14: 9.99935 | F14: ='10 y=0'!$K$3 -> 10464.88426 | G14: 0
C15: 10 | D15: ='10 y=0.1'!$B$50 -> 20.0357 | E15: 9.99935 | F15: ='10 y=0.1'!$K$3 -> 10465.49085 | G15: 0.1
C16: 10 | D16: ='10 y=0.2'!$B$50 -> 20.0357 | E16: 9.99935 | F16: ='10 y=0.2'!$K$3 -> 10467.17487 | G16: 0.2
B17: ='PI vs x'!$C$17 & "mm gap" -> mm gap

Sheet 10 y=-0.2
A1: =IF('DF raw data'!A1="","",'DF raw data'!A1) -> Number of header lines | B1: =IF('DF raw data'!B1="","",'DF raw data'!B1) -> 54 | C1: =IF('DF raw data'!C1="","",'DF raw data'!C1) ->  | D1: =IF('DF raw data'!D1="","",'DF raw data'!D1) ->  | F1: T_coeff | G1: -0.00073 | H1: /degC | J1: IBy total | K1: =J1262*1000 -> -8.148435864 | L1: muTm | M1: =L1262*1000 -> 25.51769286 | R1: DF ref | S1: 1
A2: =IF('DF raw data'!A2="","",'DF raw data'!A2) -> Measured by | B2: =IF('DF raw data'!B2="","",'DF raw data'!B2) -> Danfysik | C2: =IF('DF raw data'!C2="","",'DF raw data'!C2) ->  | D2: =IF('DF raw data'!D2="","",'DF raw data'!D2) ->  | F2: Tcorr | G2: 20 | H2: degC | J2: JBy total | K2: =K1262 -> -13.85611738 | L2: muTm^2 | M2: =M1262 -> 11.82453816
A3: =IF('DF raw data'!A3="","",'DF raw data'!A3) -> Operator | B3: =IF('DF raw data'!B3="","",'DF raw data'!B3) -> PMHA | C3: =IF('DF raw data'!C3="","",'DF raw data'!C3) ->  | D3: =IF('DF raw data'!D3="","",'DF raw data'!D3) ->  | F3: Step | G3: =A63-A62 -> 0.5 | H3: mm | J3: PI total | K3: =N1262 -> 10467.56921 | L3: T^2mm^3
A4: =IF('DF raw data'!A4="","",'DF raw data'!A4) -> Data-time | B4: =IF('DF raw data'!B4="","",'DF raw data'!B4) -> 30-07-2024, 10:16:20 | C4: =IF('DF raw data'!C4="","",'DF raw data'!C4) ->  | D4: =IF('DF raw data'!D4="","",'DF raw data'!D4) -> 
A5: =IF('DF raw data'!A5="","",'DF raw data'!A5) -> Project | B5: =IF('DF raw data'!B5="","",'DF raw data'!B5) -> 504314 | C5: =IF('DF raw data'!C5="","",'DF raw data'!C5) ->  | D5: =IF('DF raw data'!D5="","",'DF raw data'!D5) -> 
A6: =IF('DF raw data'!A6="","",'DF raw data'!A6) -> Magnet type | B6: =IF('DF raw data'!B6="","",'DF raw data'!B6) -> Dipole | C6: =IF('DF raw data'!C6="","",'DF raw data'!C6) ->  | D6: =IF('DF raw data'!D6="","",'DF raw data'!D6) -> 
A7: =IF('DF raw data'!A7="","",'DF raw data'!A7) -> Magnet nr. | B7: =IF('DF raw data'!B7="","",'DF raw data'!B7) -> 2410085 | C7: =IF('DF raw data'!C7="","",'DF raw data'!C7) ->  | D7: =IF('DF raw data'!D7="","",'DF raw data'!D7) -> 
A8: =IF('DF raw data'!A8="","",'DF raw data'!A8) -> Meas. number | B8: =IF('DF raw data'!B8="","",'DF raw data'!B8) -> 152 | C8: =IF('DF raw data'!C8="","",'DF raw data'!C8) ->  | D8: =IF('DF raw data'!D8="","",'DF raw data'!D8) -> 
A9: =IF('DF raw data'!A9="","",'DF raw data'!A9) -> Add. info | B9: =IF('DF raw data'!B9="","",'DF raw data'!B9) -> Y-alignment scan 1) | C9: =IF('DF raw data'!C9="","",'DF raw data'!C9) ->  | D9: =IF('DF raw data'!D9="","",'DF raw data'!D9) -> 
A10: =IF('DF raw data'!A10="","",'DF raw data'!A10) -> Device | B10: =IF('DF raw data'!B10="","",'DF raw data'!B10) -> (HAL) HALL-PROBE | C10: =IF('DF raw data'!C10="","",'DF raw data'!C10) ->  | D10: =IF('DF raw data'!D10="","",'DF raw data'!D10) -> 
A11: =IF('DF raw data'!A11="","",'DF raw data'!A11) -> Goal | B11: =IF('DF raw data'!B11="","",'DF raw data'!B11) -> (AXI) AXis Integral (Line, EFB) | C11: =IF('DF raw data'!C11="","",'DF raw data'!C11) ->  | D11: =IF('DF raw data'!D11="","",'DF raw data'!D11) -> 
A12: =IF('DF raw data'!A12="","",'DF raw data'!A12) -> Power supply mode | B12: =IF('DF raw data'!B12="","",'DF raw data'!B12) -> (PM) Permanent Magnet (no MPS in use) | C12: =IF('DF raw data'!C12="","",'DF raw data'!C12) ->  | D12: =IF('DF raw data'!D12="","",'DF raw data'!D12) -> 
A13: =IF('DF raw data'!A13="","",'DF raw data'!A13) -> Data format | B13: =IF('DF raw data'!B13="","",'DF raw data'!B13) -> Raw data text file | C13: =IF('DF raw data'!C13="","",'DF raw data'!C13) ->  | D13: =IF('DF raw data'!D13="","",'DF raw data'!D13) -> 
A14: =IF('DF raw data'!A14="","",'DF raw data'!A14) -> Direction of the pos. x-axis | B14: =IF('DF raw data'!B14="","",'DF raw data'!B14) -> See test program | C14: =IF('DF raw data'!C14="","",'DF raw data'!C14) ->  | D14: =IF('DF raw data'!D14="","",'DF raw data'!D14) -> 
A15: =IF('DF raw data'!A15="","",'DF raw data'!A15) -> Direction of the pos. y-axis | B15: =IF('DF raw data'!B15="","",'DF raw data'!B15) -> Vertical up | C15: =IF('DF raw data'!C15="","",'DF raw data'!C15) ->  | D15: =IF('DF raw data'!D15="","",'DF raw data'!D15) -> 
A16: =IF('DF raw data'!A16="","",'DF raw data'!A16) -> Direction of the pos. z-axis | B16: =IF('DF raw data'!B16="","",'DF raw data'!B16) -> See test program | C16: =IF('DF raw data'!C16="","",'DF raw data'!C16) ->  | D16: =IF('DF raw data'!D16="","",'DF raw data'!D16) -> 
A17: =IF('DF raw data'!A17="","",'DF raw data'!A17) -> Mapper type | B17: =IF('DF raw data'!B17="","",'DF raw data'!B17) -> Precision Hall Mapper | C17: =IF('DF raw data'!C17="","",'DF raw data'!C17) ->  | D17: =IF('DF raw data'!D17="","",'DF raw data'!D17) -> 
A18: =IF('DF raw data'!A18="","",'DF raw data'!A18) -> Mapper Danfysik Reg. Number | B18: =IF('DF raw data'!B18="","",'DF raw data'!B18) -> 2033-D (mapper 1) | C18: =IF('DF raw data'!C18="","",'DF raw data'!C18) ->  | D18: =IF('DF raw data'!D18="","",'DF raw data'!D18) -> 
A19: =IF('DF raw data'!A19="","",'DF raw data'!A19) -> Measurement consept | B19: =IF('DF raw data'!B19="","",'DF raw data'!B19) -> Square line grid | C19: =IF('DF raw data'!C19="","",'DF raw data'!C19) ->  | D19: =IF('DF raw data'!D19="","",'DF raw data'!D19) -> 
A20: =IF('DF raw data'!A20="","",'DF raw data'!A20) -> Mode | B20: =IF('DF raw data'!B20="","",'DF raw data'!B20) -> On-the-fly measurement | C20: =IF('DF raw data'!C20="","",'DF raw data'!C20) ->  | D20: =IF('DF raw data'!D20="","",'DF raw data'!D20) -> 
A21: =IF('DF raw data'!A21="","",'DF raw data'!A21) ->  | B21: =IF('DF raw data'!B21="","",'DF raw data'!B21) ->  | C21: =IF('DF raw data'!C21="","",'DF raw data'!C21) ->  | D21: =IF('DF raw data'!D21="","",'DF raw data'!D21) -> 
A22: =IF('DF raw data'!A22="","",'DF raw data'!A22) -> Probe Name | B22: =IF('DF raw data'!B22="","",'DF raw data'!B22) -> ID12_By | C22: =IF('DF raw data'!C22="","",'DF raw data'!C22) ->  | D22: =IF('DF raw data'!D22="","",'DF raw data'!D22) -> 
A23: =IF('DF raw data'!A23="","",'DF raw data'!A23) -> Probe Type | B23: =IF('DF raw data'!B23="","",'DF raw data'!B23) -> DF_ID_3D_Bxyz | C23: =IF('DF raw data'!C23="","",'DF raw data'!C23) ->  | D23: =IF('DF raw data'!D23="","",'DF raw data'!D23) -> 
A24: =IF('DF raw data'!A24="","",'DF raw data'!A24) -> Probe Danfysik Reg. Number | B24: =IF('DF raw data'!B24="","",'DF raw data'!B24) -> 2277 | C24: =IF('DF raw data'!C24="","",'DF raw data'!C24) ->  | D24: =IF('DF raw data'!D24="","",'DF raw data'!D24) -> 
A25: =IF('DF raw data'!A25="","",'DF raw data'!A25) -> Probe Axis | B25: =IF('DF raw data'!B25="","",'DF raw data'!B25) -> By | C25: =IF('DF raw data'!C25="","",'DF raw data'!C25) ->  | D25: =IF('DF raw data'!D25="","",'DF raw data'!D25) -> 
A26: =IF('DF raw data'!A26="","",'DF raw data'!A26) -> Probe Current Supply | B26: =IF('DF raw data'!B26="","",'DF raw data'!B26) -> 1825-D | C26: =IF('DF raw data'!C26="","",'DF raw data'!C26) ->  | D26: =IF('DF raw data'!D26="","",'DF raw data'!D26) -> 
A27: =IF('DF raw data'!A27="","",'DF raw data'!A27) -> Probe Gain Correction | B27: =IF('DF raw data'!B27="","",'DF raw data'!B27) -> 0.99612 | C27: =IF('DF raw data'!C27="","",'DF raw data'!C27) ->  | D27: =IF('DF raw data'!D27="","",'DF raw data'!D27) -> 
A28: =IF('DF raw data'!A28="","",'DF raw data'!A28) -> Probe Offset Correction | B28: =IF('DF raw data'!B28="","",'DF raw data'!B28) -> 0.0027538 | C28: =IF('DF raw data'!C28="","",'DF raw data'!C28) ->  | D28: =IF('DF raw data'!D28="","",'DF raw data'!D28) -> 
A29: =IF('DF raw data'!A29="","",'DF raw data'!A29) -> DVM Number | B29: =IF('DF raw data'!B29="","",'DF raw data'!B29) -> 2 | C29: =IF('DF raw data'!C29="","",'DF raw data'!C29) ->  | D29: =IF('DF raw data'!D29="","",'DF raw data'!D29) -> 
A30: =IF('DF raw data'!A30="","",'DF raw data'!A30) -> DVM Type | B30: =IF('DF raw data'!B30="","",'DF raw data'!B30) -> K2701 | C30: =IF('DF raw data'!C30="","",'DF raw data'!C30) ->  | D30: =IF('DF raw data'!D30="","",'DF raw data'!D30) -> 
A31: =IF('DF raw data'!A31="","",'DF raw data'!A31) -> DVM Danfysik Reg. Number | B31: =IF('DF raw data'!B31="","",'DF raw data'!B31) -> 1743-D | C31: =IF('DF raw data'!C31="","",'DF raw data'!C31) ->  | D31: =IF('DF raw data'!D31="","",'DF raw data'!D31) -> 
A32: =IF('DF raw data'!A32="","",'DF raw data'!A32) -> Probe Name | B32: =IF('DF raw data'!B32="","",'DF raw data'!B32) -> ID12_Bx | C32: =IF('DF raw data'!C32="","",'DF raw data'!C32) ->  | D32: =IF('DF raw data'!D32="","",'DF raw data'!D32) -> 
A33: =IF('DF raw data'!A33="","",'DF raw data'!A33) -> Probe Type | B33: =IF('DF raw data'!B33="","",'DF raw data'!B33) -> DF_ID_3D_Bxyz | C33: =IF('DF raw data'!C33="","",'DF raw data'!C33) ->  | D33: =IF('DF raw data'!D33="","",'DF raw data'!D33) -> 
A34: =IF('DF raw data'!A34="","",'DF raw data'!A34) -> Probe Danfysik Reg. Number | B34: =IF('DF raw data'!B34="","",'DF raw data'!B34) -> 2277 | C34: =IF('DF raw data'!C34="","",'DF raw data'!C34) ->  | D34: =IF('DF raw data'!D34="","",'DF raw data'!D34) -> 
A35: =IF('DF raw data'!A35="","",'DF raw data'!A35) -> Probe Axis | B35: =IF('DF raw data'!B35="","",'DF raw data'!B35) -> Bx | C35: =IF('DF raw data'!C35="","",'DF raw data'!C35) ->  | D35: =IF('DF raw data'!D35="","",'DF raw data'!D35) -> 
A36: =IF('DF raw data'!A36="","",'DF raw data'!A36) -> Probe Current Supply | B36: =IF('DF raw data'!B36="","",'DF raw data'!B36) -> 1825-D | C36: =IF('DF raw data'!C36="","",'DF raw data'!C36) ->  | D36: =IF('DF raw data'!D36="","",'DF raw data'!D36) -> 
A37: =IF('DF raw data'!A37="","",'DF raw data'!A37) -> Probe Gain Correction | B37: =IF('DF raw data'!B37="","",'DF raw data'!B37) -> 1 | C37: =IF('DF raw data'!C37="","",'DF raw data'!C37) ->  | D37: =IF('DF raw data'!D37="","",'DF raw data'!D37) -> 
A38: =IF('DF raw data'!A38="","",'DF raw data'!A38) -> Probe Offset Correction | B38: =IF('DF raw data'!B38="","",'DF raw data'!B38) -> -0.17579 | C38: =IF('DF raw data'!C38="","",'DF raw data'!C38) ->  | D38: =IF('DF raw data'!D38="","",'DF raw data'!D38) -> 
A39: =IF('DF raw data'!A39="","",'DF raw data'!A39) -> DVM Number | B39: =IF('DF raw data'!B39="","",'DF raw data'!B39) -> 3 | C39: =IF('DF raw data'!C39="","",'DF raw data'!C39) ->  | D39: =IF('DF raw data'!D39="","",'DF raw data'!D39) -> 
A40: =IF('DF raw data'!A40="","",'DF raw data'!A40) -> DVM Type | B40: =IF('DF raw data'!B40="","",'DF raw data'!B40) -> K2701 | C40: =IF('DF raw data'!C40="","",'DF raw data'!C40) ->  | D40: =IF('DF raw data'!D40="","",'DF raw data'!D40) -> 
A41: =IF('DF raw data'!A41="","",'DF raw data'!A41) -> DVM Danfysik Reg. Number | B41: =IF('DF raw data'!B41="","",'DF raw data'!B41) -> 1744-D | C41: =IF('DF raw data'!C41="","",'DF raw data'!C41) ->  | D41: =IF('DF raw data'!D41="","",'DF raw data'!D41) -> 
A42: =IF('DF raw data'!A42="","",'DF raw data'!A42) -> Probe Name | B42: =IF('DF raw data'!B42="","",'DF raw data'!B42) -> ID12_Bz | C42: =IF('DF raw data'!C42="","",'DF raw data'!C42) ->  | D42: =IF('DF raw data'!D42="","",'DF raw data'!D42) -> 
A43: =IF('DF raw data'!A43="","",'DF raw data'!A43) -> Probe Type | B43: =IF('DF raw data'!B43="","",'DF raw data'!B43) -> DF_ID_3D_Bxyz | C43: =IF('DF raw data'!C43="","",'DF raw data'!C43) ->  | D43: =IF('DF raw data'!D43="","",'DF raw data'!D43) -> 
A44: =IF('DF raw data'!A44="","",'DF raw data'!A44) -> Probe Danfysik Reg. Number | B44: =IF('DF raw data'!B44="","",'DF raw data'!B44) -> 2277 | C44: =IF('DF raw data'!C44="","",'DF raw data'!C44) ->  | D44: =IF('DF raw data'!D44="","",'DF raw data'!D44) -> 
A45: =IF('DF raw data'!A45="","",'DF raw data'!A45) -> Probe Axis | B45: =IF('DF raw data'!B45="","",'DF raw data'!B45) -> Bz | C45: =IF('DF raw data'!C45="","",'DF raw data'!C45) ->  | D45: =IF('DF raw data'!D45="","",'DF raw data'!D45) -> 
A46: =IF('DF raw data'!A46="","",'DF raw data'!A46) -> Probe Current Supply | B46: =IF('DF raw data'!B46="","",'DF raw data'!B46) -> 1825-D | C46: =IF('DF raw data'!C46="","",'DF raw data'!C46) ->  | D46: =IF('DF raw data'!D46="","",'DF raw data'!D46) -> 
A47: =IF('DF raw data'!A47="","",'DF raw data'!A47) -> Probe Gain Correction | B47: =IF('DF raw data'!B47="","",'DF raw data'!B47) -> 1 | C47: =IF('DF raw data'!C47="","",'DF raw data'!C47) ->  | D47: =IF('DF raw data'!D47="","",'DF raw data'!D47) -> 
A48: =IF('DF raw data'!A53="","",'DF raw data'!A53) -> PS-Gap: | B48: =IF('DF raw data'!B53="","",'DF raw data'!B53) -> 10 | C48: =IF('DF raw data'!C53="","",'DF raw data'!C53) ->  | D48: =IF('DF raw data'!D53="","",'DF raw data'!D53) -> 
A49: =IF('DF raw data'!A54="","",'DF raw data'!A54) -> PS-Temperature: | B49: =IF('DF raw data'!B54="","",'DF raw data'!B54) -> 26.1 | C49: =IF('DF raw data'!C54="","",'DF raw data'!C54) ->  | D49: =IF('DF raw data'!D54="","",'DF raw data'!D54) -> 
A50: =IF('DF raw data'!A55="","",'DF raw data'!A55) -> PS-Encoder: | B50: =IF('DF raw data'!B55="","",'DF raw data'!B55) -> 20.0357 | C50: =IF('DF raw data'!C55="","",'DF raw data'!C55) ->  | D50: =IF('DF raw data'!D55="","",'DF raw data'!D55) -> 
A51: =IF('DF raw data'!A56="","",'DF raw data'!A56) ->  | B51: =IF('DF raw data'!B56="","",'DF raw data'!B56) ->  | C51: =IF('DF raw data'!C56="","",'DF raw data'!C56) ->  | D51: =IF('DF raw data'!D56="","",'DF raw data'!D56) -> 
A52: =IF('DF raw data'!A57="","",'DF raw data'!A57) -> Monitor-Index | B52: =IF('DF raw data'!B57="","",'DF raw data'!B57) -> [1,1,4] | C52: =IF('DF raw data'!C57="","",'DF raw data'!C57) ->  | D52: =IF('DF raw data'!D57="","",'DF raw data'!D57) -> 
A53: =IF('DF raw data'!A58="","",'DF raw data'!A58) ->  | B53: =IF('DF raw data'!B58="","",'DF raw data'!B58) ->  | C53: =IF('DF raw data'!C58="","",'DF raw data'!C58) ->  | D53: =IF('DF raw data'!D58="","",'DF raw data'!D58) -> 
A54: =IF('DF raw data'!A59="","",'DF raw data'!A59) -> Time [s] | B54: =IF('DF raw data'!B59="","",'DF raw data'!B59) -> Y [mm] | C54: =IF('DF raw data'!C59="","",'DF raw data'!C59) -> X [mm] | D54: =IF('DF raw data'!D59="","",'DF raw data'!D59) -> Nominal current [A]
A55: =IF('DF raw data'!A60="","",'DF raw data'!A60) ->  | B55: =IF('DF raw data'!B60="","",'DF raw data'!B60) ->  | C55: =IF('DF raw data'!C60="","",'DF raw data'!C60) ->  | D55: =IF('DF raw data'!D60="","",'DF raw data'!D60) -> 
A56: =IF('DF raw data'!A61="","",'DF raw data'!A61) -> 208 | B56: =IF('DF raw data'!B61="","",'DF raw data'!B61) -> 30.96 | C56: =IF('DF raw data'!C61="","",'DF raw data'!C61) -> 301.8 | D56: =IF('DF raw data'!D61="","",'DF raw data'!D61) -> 0
A57: =IF('DF raw data'!A62="","",'DF raw data'!A62) ->  | B57: =IF('DF raw data'!B62="","",'DF raw data'!B62) ->  | C57: =IF('DF raw data'!C62="","",'DF raw data'!C62) ->  | D57: =IF('DF raw data'!D62="","",'DF raw data'!D62) -> 
A58: =IF('DF raw data'!A63="","",'DF raw data'!A63) -> Measurement-Index | B58: =IF('DF raw data'!B63="","",'DF raw data'!B63) -> [1,1,1201,2] | C58: =IF('DF raw data'!C63="","",'DF raw data'!C63) ->  | D58: =IF('DF raw data'!D63="","",'DF raw data'!D63) -> 
A59: =IF('DF raw data'!A64="","",'DF raw data'!A64) ->  | B59: =IF('DF raw data'!B64="","",'DF raw data'!B64) ->  | C59: =IF('DF raw data'!C64="","",'DF raw data'!C64) ->  | D59: =IF('DF raw data'!D64="","",'DF raw data'!D64) -> 
A60: =IF('DF raw data'!A65="","",'DF raw data'!A65) -> Z [mm] | B60: =IF('DF raw data'!B65="","",'DF raw data'!B65) -> By [T] | C60: =IF('DF raw data'!C65="","",'DF raw data'!C65) -> Bx [T] | D60: =IF('DF raw data'!D65="","",'DF raw data'!D65) -> Bz [T] | F60: By_corr | G60: Bx_corr | H60: Bz_corr | J60: Iy | K60: Jy | L60: Ix | M60: Jx | N60: PI
A62: =IF('DF raw data'!A67="","",'DF raw data'!A67) -> -300 | B62: =IF('DF raw data'!B67="","",'DF raw data'!B67) -> -1.7487e-05 | C62: =IF('DF raw data'!C67="","",'DF raw data'!C67) -> 8.20421e-05 | D62: =IF('DF raw data'!D67="","",'DF raw data'!D67) -> -2.11305e-05 | F62: =(1-$G$1*($B$49))*B62 -> -1.782017981e-05 | G62: =(1-$G$1*($B$49-$G$2))*C62 -> 8.240743347e-05 | H62: =(1-$G$1*($B$49-$G$2))*D62 -> -2.122459412e-05 | J62: =F62*$G$3 -> -8.910089906e-06 | K62: =J62*$G$3 -> -4.455044953e-06 | L62: =G62*$G$3 -> 4.120371674e-05 | M62: =L62*$G$3 -> 2.060185837e-05 | N62: =(J62^2+L62^2)*$G$3 -> 8.885679875e-10
A63: =IF('DF raw data'!A68="","",'DF raw data'!A68) -> -299.5 | B63: =IF('DF raw data'!B68="","",'DF raw data'!B68) -> -1.22291e-05 | C63: =IF('DF raw data'!C68="","",'DF raw data'!C68) -> 7.95342e-05 | D63: =IF('DF raw data'!D68="","",'DF raw data'!D68) -> -2.14211e-05 | F63: =(1-$G$1*($B$49-$G$2))*B63 -> -1.228355618e-05 | G63: =(1-$G$1*($B$49-$G$2))*C63 -> 7.988836579e-05 | H63: -2.151648816e-05 | J63: =F63*$G$3+J62 -> -1.5051868e-05 | K63: =J63*$G$3+K62 -> -1.198097895e-05 | L63: =G63*$G$3+L62 -> 8.114789963e-05 | M63: =L63*$G$3+M62 -> 6.117580818e-05 | N63: =(J63^2+L63^2)*$G$3+N62 -> 4.29433816e-09
A64: =IF('DF raw data'!A69="","",'DF raw data'!A69) -> -299 | B64: =IF('DF raw data'!B69="","",'DF raw data'!B69) -> -1.65887e-05 | C64: =IF('DF raw data'!C69="","",'DF raw data'!C69) -> 8.05327e-05 | D64: =IF('DF raw data'!D69="","",'DF raw data'!D69) -> -2.22286e-05 | F64: =(1-$G$1*($B$49-$G$2))*B64 -> -1.666256948e-05 | G64: 8.089131211e-05 | H64: -2.232758396e-05 | J64: =F64*$G$3+J63 -> -2.338315274e-05 | K64: =J64*$G$3+K63 -> -2.367255532e-05 | L64: =G64*$G$3+L63 -> 0.0001215935557 | M64: =L64*$G$3+M63 -> 0.000121972586 | N64: =(J64^2+L64^2)*$G$3+N63 -> 1.196022047e-08
A65: =IF('DF raw data'!A70="","",'DF raw data'!A70) -> -298.5 | B65: =IF('DF raw data'!B70="","",'DF raw data'!B70) -> -1.01119e-05 | C65: =IF('DF raw data'!C70="","",'DF raw data'!C70) -> 8.43631e-05 | D65: =IF('DF raw data'!D70="","",'DF raw data'!D70) -> -2.335e-05 | F65: -1.015692829e-05 | G65: 8.473876888e-05 | H65: -2.345397755e-05 | J65: -2.846161688e-05 | K65: -3.790336376e-05 | L65: 0.0001639629401 | M65: 0.0002039540561 | N65: 2.580717515e-08
A66: =IF('DF raw data'!A71="","",'DF raw data'!A71) -> -298 | B66: =IF('DF raw data'!B71="","",'DF raw data'!B71) -> -2.61418e-05 | C66: =IF('DF raw data'!C71="","",'DF raw data'!C71) -> 7.67709e-05 | D66: =IF('DF raw data'!D71="","",'DF raw data'!D71) -> -2.37186e-05 | F66: -2.625820944e-05 | G66: 7.711276082e-05 | H66: -2.382421893e-05 | J66: -4.15907216e-05 | K66: -5.869872456e-05 | L66: 0.0002025193205 | M66: 0.0003052137164 | N66: 4.717910681e-08
A67: =IF('DF raw data'!A72="","",'DF raw data'!A72) -> -297.5 | B67: =IF('DF raw data'!B72="","",'DF raw data'!B72) -> -3.30671e-05 | C67: =IF('DF raw data'!C72="","",'DF raw data'!C72) -> 6.28383e-05 | D67: =IF('DF raw data'!D72="","",'DF raw data'!D72) -> -2.28681e-05 | F67: -3.32143478e-05 | G67: 6.311811895e-05 | H67: -2.296993165e-05 | J67: -5.81978955e-05 | K67: -8.779767231e-05 | L67: 0.00023407838 | M67: 0.0004222529064 | N67: 7.626894833e-08
A68: =IF('DF raw data'!A73="","",'DF raw data'!A73) -> -297 | B68: =IF('DF raw data'!B73="","",'DF raw data'!B73) -> -3.01827e-05 | C68: =IF('DF raw data'!C73="","",'DF raw data'!C73) -> 6.25327e-05 | D68: =IF('DF raw data'!D73="","",'DF raw data'!D73) -> -2.17198e-05 | F68: -3.031710356e-05 | G68: 6.281115811e-05 | H68: -2.181651827e-05 | J68: -7.335644728e-05 | K68: -0.000124475896 | L68: 0.0002654839591 | M68: 0.0005549948859 | N68: 1.142003988e-07
A69: =IF('DF raw data'!A74="","",'DF raw data'!A74) -> -296.5 | B69: =IF('DF raw data'!B74="","",'DF raw data'!B74) -> -2.85157e-05 | C69: =IF('DF raw data'!C74="","",'DF raw data'!C74) -> 7.75686e-05 | D69: =IF('DF raw data'!D74="","",'DF raw data'!D74) -> -2.11877e-05 | F69: -2.864268041e-05 | G69: 7.791401298e-05 | H69: -2.128204883e-05 | J69: -8.767778749e-05 | K69: -0.0001683147897 | L69: 0.0003044409656 | M69: 0.0007072153687 | N69: 1.643862467e-07
A70: =IF('DF raw data'!A75="","",'DF raw data'!A75) -> -296 | B70: =IF('DF raw data'!B75="","",'DF raw data'!B75) -> -2.58226e-05 | C70: =IF('DF raw data'!C75="","",'DF raw data'!C75) -> 7.39622e-05 | D70: =IF('DF raw data'!D75="","",'DF raw data'!D75) -> -2.12683e-05 | F70: -2.593758804e-05 | G70: 7.429155368e-05 | H70: -2.136300774e-05 | J70: -0.0001006465815 | K70: -0.0002186380804 | L70: 0.0003415867424 | M70: 0.0008780087399 | N70: 2.277918652e-07
A71: =IF('DF raw data'!A76="","",'DF raw data'!A76) -> -295.5 | B71: =IF('DF raw data'!B76="","",'DF raw data'!B76) -> -2.21676e-05 | C71: =IF('DF raw data'!C76="","",'DF raw data'!C76) -> 7.02857e-05 | D71: =IF('DF raw data'!D76="","",'DF raw data'!D76) -> -2.15597e-05 | F71: -2.226631232e-05 | G71: 7.059868222e-05 | H71: -2.165570534e-05 | J71: -0.0001117797377 | K71: -0.0002745279493 | L71: 0.0003768860835 | M71: 0.001066451782 | N71: 3.050607801e-07
A72: =IF('DF raw data'!A77="","",'DF raw data'!A77) -> -295 | B72: =IF('DF raw data'!B77="","",'DF raw data'!B77) -> -2.61431e-05 | C72: =IF('DF raw data'!C77="","",'DF raw data'!C77) -> 6.50867e-05 | D72: =IF('DF raw data'!D77="","",'DF raw data'!D77) -> -2.16138e-05 | F72: -2.625951522e-05 | G72: 6.537653108e-05 | H72: -2.171004625e-05 | J72: -0.0001249094953 | K72: -0.0003369826969 | L72: 0.000409574349 | M72: 0.001271238956 | N72: 3.967375448e-07
A73: =IF('DF raw data'!A78="","",'DF raw data'!A78) -> -294.5 | B73: =IF('DF raw data'!B78="","",'DF raw data'!B78) -> -2.27448e-05 | C73: =IF('DF raw data'!C78="","",'DF raw data'!C78) -> 7.55624e-05 | D73: =IF('DF raw data'!D78="","",'DF raw data'!D78) -> -2.15153e-05 | F73: -2.284608259e-05 | G73: 7.589887937e-05 | H73: -2.161110763e-05 | J73: -0.0001363325366 | K73: -0.0004051489652 | L73: 0.0004475237887 | M73: 0.001495000851 | N73: 5.061695958e-07
A74: =IF('DF raw data'!A79="","",'DF raw data'!A79) -> -294 | B74: =IF('DF raw data'!B79="","",'DF raw data'!B79) -> -2.12698e-05 | C74: =IF('DF raw data'!C79="","",'DF raw data'!C79) -> 8.22425e-05 | D74: =IF('DF raw data'!D79="","",'DF raw data'!D79) -> -2.17193e-05 | F74: -2.136451442e-05 | G74: 8.260872585e-05 | H74: -2.181601604e-05 | J74: -0.0001470147938 | K74: -0.0004786563621 | L74: 0.0004888281517 | M74: 0.001739414926 | N74: 6.364527515e-07
A75: =IF('DF raw data'!A80="","",'DF raw data'!A80) -> -293.5 | B75: =IF('DF raw data'!B80="","",'DF raw data'!B80) -> -2.00514e-05 | C75: =IF('DF raw data'!C80="","",'DF raw data'!C80) -> 8.30456e-05 | D75: =IF('DF raw data'!D80="","",'DF raw data'!D80) -> -2.21695e-05 | F75: -2.014068888e-05 | G75: 8.341540206e-05 | H75: -2.226822078e-05 | J75: -0.0001570851382 | K75: -0.0005571989312 | L75: 0.0005305358527 | M75: 0.002004682853 | N75: 7.895247673e-07
A76: =IF('DF raw data'!A81="","",'DF raw data'!A81) -> -293 | B76: =IF('DF raw data'!B81="","",'DF raw data'!B81) -> -2.40268e-05 | C76: =IF('DF raw data'!C81="","",'DF raw data'!C81) -> 9.11243e-05 | D76: =IF('DF raw data'!D81="","",'DF raw data'!D81) -> -2.21061e-05 | F76: -2.413379134e-05 | G76: 9.153007651e-05 | H76: -2.220453846e-05 | J76: -0.0001691520339 | K76: -0.0006417749482 | L76: 0.0005763008909 | M76: 0.002292833298 | N76: 9.69892331e-07
A77: =IF('DF raw data'!A82="","",'DF raw data'!A82) -> -292.5 | B77: =IF('DF raw data'!B82="","",'DF raw data'!B82) -> -2.92851e-05 | C77: =IF('DF raw data'!C82="","",'DF raw data'!C82) -> 8.8473e-05 | D77: =IF('DF raw data'!D82="","",'DF raw data'!D82) -> -2.1642e-05 | F77: -2.941550655e-05 | G77: 8.886697027e-05 | H77: -2.173837183e-05 | J77: -0.0001838597872 | K77: -0.0007337048417 | L77: 0.0006207343761 | M77: 0.002603200486 | N77: 1.179450125e-06
A78: =IF('DF raw data'!A83="","",'DF raw data'!A83) -> -292 | B78: =IF('DF raw data'!B83="","",'DF raw data'!B83) -> -1.57555e-05 | C78: =IF('DF raw data'!C83="","",'DF raw data'!C83) -> 8.09563e-05 | D78: =IF('DF raw data'!D83="","",'DF raw data'!D83) -> -2.18622e-05 | F78: -1.582565924e-05 | G78: 8.13167984e-05 | H78: -2.195955238e-05 | J78: -0.0001917726168 | K78: -0.0008295911501 | L78: 0.0006613927753 | M78: 0.002933896874 | N78: 1.416558694e-06
A79: =IF('DF raw data'!A84="","",'DF raw data'!A84) -> -291.5 | B79: =IF('DF raw data'!B84="","",'DF raw data'!B84) -> -2.31361e-05 | C79: =IF('DF raw data'!C84="","",'DF raw data'!C84) -> 7.21949e-05 | D79: =IF('DF raw data'!D84="","",'DF raw data'!D84) -> -1.13879e-05 | F79: -2.323912505e-05 | G79: 7.251638389e-05 | H79: -1.143861032e-05 | J79: -0.0002033921793 | K79: -0.0009312872398 | L79: 0.0006976509672 | M79: 0.003282722357 | N79: 1.68060132e-06
A80: =IF('DF raw data'!A85="","",'DF raw data'!A85) -> -291 | B80: =IF('DF raw data'!B85="","",'DF raw data'!B85) -> -3.03032e-05 | C80: =IF('DF raw data'!C85="","",'DF raw data'!C85) -> 6.85027e-05 | D80: =IF('DF raw data'!D85="","",'DF raw data'!D85) -> -3.35625e-05 | F80: -3.043814015e-05 | G80: 6.880774252e-05 | H80: -3.371195381e-05 | J80: -0.0002186112494 | K80: -0.001040592865 | L80: 0.0007320548385 | M80: 0.003648749777 | N80: 1.972448902e-06
A81: =IF('DF raw data'!A86="","",'DF raw data'!A86) -> -290.5 | B81: =IF('DF raw data'!B86="","",'DF raw data'!B86) -> -2.33802e-05 | C81: =IF('DF raw data'!C86="","",'DF raw data'!C86) -> 7.55311e-05 | D81: =IF('DF raw data'!D86="","",'DF raw data'!D86) -> -3.04453e-05 | F81: -2.348431203e-05 | G81: 7.586743999e-05 | H81: -3.058087292e-05 | J81: -0.0002303534054 | K81: -0.001155769567 | L81: 0.0007699885585 | M81: 0.004033744056 | N81: 2.295421438e-06
A82: =IF('DF raw data'!A87="","",'DF raw data'!A87) -> -290 | B82: =IF('DF raw data'!B87="","",'DF raw data'!B87) -> -1.99826e-05 | C82: =IF('DF raw data'!C87="","",'DF raw data'!C87) -> 8.36954e-05 | D82: =IF('DF raw data'!D87="","",'DF raw data'!D87) -> -2.91597e-05 | F82: -2.007158252e-05 | G82: 8.406809562e-05 | H82: -2.928954814e-05 | J82: -0.0002403891967 | K82: -0.001275964166 | L82: 0.0008120226063 | M82: 0.004439755359 | N82: 2.654005277e-06
A83: =IF('DF raw data'!A88="","",'DF raw data'!A88) -> -289.5 | B83: =IF('DF raw data'!B88="","",'DF raw data'!B88) -> -2.48002e-05 | C83: =IF('DF raw data'!C88="","",'DF raw data'!C88) -> 8.79033e-05 | D83: =IF('DF raw data'!D88="","",'DF raw data'!D88) -> -1.59072e-05 | F83: -2.491063529e-05 | G83: 8.829473339e-05 | H83: -1.597803476e-05 | J83: -0.0002528445143 | K83: -0.001402386423 | L83: 0.000856169973 | M83: 0.004867840346 | N83: 3.052483963e-06
A84: =IF('DF raw data'!A89="","",'DF raw data'!A89) -> -289 | B84: =IF('DF raw data'!B89="","",'DF raw data'!B89) -> -2.83863e-05 | C84: =IF('DF raw data'!C89="","",'DF raw data'!C89) -> 8.5524e-05 | D84: =IF('DF raw data'!D89="","",'DF raw data'!D89) -> -2.30212e-05 | F84: -2.851270419e-05 | G84: 8.590483837e-05 | H84: -2.31237134e-05 | J84: -0.0002671008664 | K84: -0.001535936856 | L84: 0.0008991223922 | M84: 0.005317401542 | N84: 3.492365937e-06
A85: =IF('DF raw data'!A90="","",'DF raw data'!A90) -> -288.5 | B85: =IF('DF raw data'!B90="","",'DF raw data'!B90) -> -3.68509e-05 | C85: =IF('DF raw data'!C90="","",'DF raw data'!C90) -> 7.6194e-05 | D85: =IF('DF raw data'!D90="","",'DF raw data'!D90) -> -2.18453e-05 | F85: -3.701499706e-05 | G85: 7.653329188e-05 | H85: -2.194257712e-05 | J85: -0.0002856083649 | K85: -0.001678741038 | L85: 0.0009373890381 | M85: 0.005786096061 | N85: 3.972501111e-06
A86: =IF('DF raw data'!A91="","",'DF raw data'!A91) -> -288 | B86: =IF('DF raw data'!B91="","",'DF raw data'!B91) -> -1.26846e-05 | C86: =IF('DF raw data'!C91="","",'DF raw data'!C91) -> 7.38376e-05 | D86: =IF('DF raw data'!D91="","",'DF raw data'!D91) -> -1.11022e-05 | F86: -1.274108452e-05 | G86: 7.416639883e-05 | H86: -1.11516381e-05 | J86: -0.0002919789072 | K86: -0.001824730492 | L86: 0.0009744722375 | M86: 0.006273332179 | N86: 4.489925023e-06
A87: =IF('DF raw data'!A92="","",'DF raw data'!A92) -> -287.5 | B87: =IF('DF raw data'!B92="","",'DF raw data'!B92) -> -3.018e-05 | C87: =IF('DF raw data'!C92="","",'DF raw data'!C92) -> 8.56312e-05 | D87: =IF('DF raw data'!D92="","",'DF raw data'!D92) -> -2.5918e-05 | F87: -3.031439154e-05 | G87: 8.601251573e-05 | H87: -2.603341285e-05 | J87: -0.000307136103 | K87: -0.001978298543 | L87: 0.001017478495 | M87: 0.006782071427 | N87: 5.05472256e-06
A88: =IF('DF raw data'!A93="","",'DF raw data'!A93) -> -287 | B88: =IF('DF raw data'!B93="","",'DF raw data'!B93) -> -2.42905e-05 | C88: =IF('DF raw data'!C93="","",'DF raw data'!C93) -> 8.54977e-05 | D88: =IF('DF raw data'!D93="","",'DF raw data'!D93) -> -1.0913e-05 | F88: -2.43986656e-05 | G88: 8.587842126e-05 | H88: -1.096159559e-05 | J88: -0.0003193354358 | K88: -0.002137966261 | L88: 0.001060417706 | M88: 0.00731228028 | N88: 5.667952976e-06
A89: =IF('DF raw data'!A94="","",'DF raw data'!A94) -> -286.5 | B89: =IF('DF raw data'!B94="","",'DF raw data'!B94) -> -1.51739e-05 | C89: =IF('DF raw data'!C94="","",'DF raw data'!C94) -> 7.69688e-05 | D89: =IF('DF raw data'!D94="","",'DF raw data'!D94) -> -2.87664e-05 | F89: -1.524146938e-05 | G89: 7.731154207e-05 | H89: -2.889449678e-05 | J89: -0.0003269561705 | K89: -0.002301444347 | L89: 0.001099073477 | M89: 0.007861817019 | N89: 6.325384399e-06
A90: =IF('DF raw data'!A95="","",'DF raw data'!A95) -> -286 | B90: =IF('DF raw data'!B95="","",'DF raw data'!B95) -> -1.47923e-05 | C90: =IF('DF raw data'!C95="","",'DF raw data'!C95) -> 7.84862e-05 | D90: =IF('DF raw data'!D95="","",'DF raw data'!D95) -> -2.38511e-05 | F90: -1.485817011e-05 | G90: 7.883569905e-05 | H90: -2.395730895e-05 | J90: -0.0003343852555 | K90: -0.002468636974 | L90: 0.001138491327 | M90: 0.008431062682 | N90: 7.029372399e-06
A91: =IF('DF raw data'!A96="","",'DF raw data'!A96) -> -285.5 | B91: =IF('DF raw data'!B96="","",'DF raw data'!B96) -> -2.56938e-05 | C91: =IF('DF raw data'!C96="","",'DF raw data'!C96) -> 7.88061e-05 | D91: =IF('DF raw data'!D96="","",'DF raw data'!D96) -> -2.23084e-05 | F91: -2.580821449e-05 | G91: 7.915702356e-05 | H91: -2.240773931e-05 | J91: -0.0003472893628 | K91: -0.002642281656 | L91: 0.001178069838 | M91: 0.009020097601 | N91: 7.783601621e-06
A92: =IF('DF raw data'!A97="","",'DF raw data'!A97) -> -285 | B92: =IF('DF raw data'!B97="","",'DF raw data'!B97) -> -1.4213e-05 | C92: =IF('DF raw data'!C97="","",'DF raw data'!C97) -> 7.79607e-05 | D92: =IF('DF raw data'!D97="","",'DF raw data'!D97) -> -2.7543e-05 | F92: -1.427629049e-05 | G92: 7.8307859e-05 | H92: -2.766564898e-05 | J92: -0.000354427508 | K92: -0.00281949541 | L92: 0.001217223768 | M92: 0.009628709485 | N92: 8.587227901e-06
A93: =IF('DF raw data'!A98="","",'DF raw data'!A98) -> -284.5 | B93: =IF('DF raw data'!B98="","",'DF raw data'!B98) -> -3.4926e-05 | C93: =IF('DF raw data'!C98="","",'DF raw data'!C98) -> 7.22258e-05 | D93: =IF('DF raw data'!D98="","",'DF raw data'!D98) -> -2.3992e-05 | F93: -3.508152548e-05 | G93: 7.254742149e-05 | H93: -2.409883638e-05 | J93: -0.0003719682707 | K93: -0.003005479545 | L93: 0.001253497479 | M93: 0.01025545822 | N93: 9.442036063e-06
A94: =IF('DF raw data'!A99="","",'DF raw data'!A99) -> -284 | B94: =IF('DF raw data'!B99="","",'DF raw data'!B99) -> -1.97951e-05 | C94: =IF('DF raw data'!C99="","",'DF raw data'!C99) -> 7.168e-05 | D94: =IF('DF raw data'!D99="","",'DF raw data'!D99) -> -2.19874e-05 | F94: -1.988324758e-05 | G94: 7.199919104e-05 | H94: -2.208530989e-05 | J94: -0.0003819098945 | K94: -0.003196434492 | L94: 0.001289497074 | M94: 0.01090020676 | N94: 1.0346365e-05
A95: =IF('DF raw data'!A100="","",'DF raw data'!A100) -> -283.5 | B95: =IF('DF raw data'!B100="","",'DF raw data'!B100) -> -1.94761e-05 | C95: =IF('DF raw data'!C100="","",'DF raw data'!C100) -> 7.66326e-05 | D95: =IF('DF raw data'!D100="","",'DF raw data'!D100) -> -1.93052e-05 | F95: -1.956282707e-05 | G95: 7.697384497e-05 | H95: -1.939116606e-05 | J95: -0.0003916913081 | K95: -0.003392280146 | L95: 0.001327983997 | M95: 0.01156419876 | N95: 1.130484679e-05
A96: =IF('DF raw data'!A101="","",'DF raw data'!A101) -> -283 | B96: =IF('DF raw data'!B101="","",'DF raw data'!B101) -> -2.48641e-05 | C96: =IF('DF raw data'!C101="","",'DF raw data'!C101) -> 7.45219e-05 | D96: =IF('DF raw data'!D101="","",'DF raw data'!D101) -> -1.6479e-05 | F96: -2.497481984e-05 | G96: 7.485374602e-05 | H96: -1.655238099e-05 | J96: -0.000404178718 | K96: -0.003594369505 | L96: 0.00136541087 | M96: 0.01224690419 | N96: 1.231870043e-05
A97: =IF('DF raw data'!A102="","",'DF raw data'!A102) -> -282.5 | B97: =IF('DF raw data'!B102="","",'DF raw data'!B102) -> -1.95394e-05 | C97: =IF('DF raw data'!C102="","",'DF raw data'!C102) -> 7.08003e-05 | D97: =IF('DF raw data'!D102="","",'DF raw data'!D102) -> -2.07377e-05 | F97: -1.962640895e-05 | G97: 7.111557374e-05 | H97: -2.083004498e-05 | J97: -0.0004139919225 | K97: -0.003801365467 | L97: 0.001400968656 | M97: 0.01294738852 | N97: 1.338575167e-05
A98: =IF('DF raw data'!A103="","",'DF raw data'!A103) -> -282 | B98: =IF('DF raw data'!B103="","",'DF raw data'!B103) -> -1.89065e-05 | C98: =IF('DF raw data'!C103="","",'DF raw data'!C103) -> 7.5982e-05 | D98: =IF('DF raw data'!D103="","",'DF raw data'!D103) -> -7.93237e-06 | F98: -1.899069064e-05 | G98: 7.632034785e-05 | H98: -7.967692844e-06 | J98: -0.0004234872678 | K98: -0.004013109101 | L98: 0.00143912883 | M98: 0.01366695294 | N98: 1.45109683e-05
A99: =IF('DF raw data'!A104="","",'DF raw data'!A104) -> -281.5 | B99: =IF('DF raw data'!B104="","",'DF raw data'!B104) -> -1.86989e-05 | C99: =IF('DF raw data'!C104="","",'DF raw data'!C104) -> 8.26033e-05 | D99: =IF('DF raw data'!D104="","",'DF raw data'!D104) -> -3.12046e-05 | F99: -1.87821662e-05 | G99: 8.297113249e-05 | H99: -3.134355408e-05 | J99: -0.0004328783509 | K99: -0.004229548276 | L99: 0.001480614397 | M99: 0.01440726014 | N99: 1.570076963e-05
A100: =IF('DF raw data'!A105="","",'DF raw data'!A105) -> -281 | B100: =IF('DF raw data'!B105="","",'DF raw data'!B105) -> -2.62049e-05 | C100: =IF('DF raw data'!C105="","",'DF raw data'!C105) -> 8.04695e-05 | D100: =IF('DF raw data'!D105="","",'DF raw data'!D105) -> -2.51024e-05 | F100: -2.632159042e-05 | G100: 8.082783068e-05 | H100: -2.521418099e-05 | J100: -0.0004460391461 | K100: -0.004452567849 | L100: 0.001521028312 | M100: 0.01516777429 | N100: 1.695700865e-05
A101: =IF('DF raw data'!A106="","",'DF raw data'!A106) -> -280.5 | B101: =IF('DF raw data'!B106="","",'DF raw data'!B106) -> -1.84495e-05 | C101: =IF('DF raw data'!C106="","",'DF raw data'!C106) -> 7.24011e-05 | D101: =IF('DF raw data'!D106="","",'DF raw data'!D106) -> -2.03509e-05 | F101: -1.853165562e-05 | G101: 7.27235021e-05 | H101: -2.044152256e-05 | J101: -0.0004553049739 | K101: -0.004680220336 | L101: 0.001557390063 | M101: 0.01594646932 | N101: 1.827339186e-05
A102: =IF('DF raw data'!A107="","",'DF raw data'!A107) -> -280 | B102: =IF('DF raw data'!B107="","",'DF raw data'!B107) -> -1.52433e-05 | C102: =IF('DF raw data'!C107="","",'DF raw data'!C107) -> 6.44434e-05 | D102: =IF('DF raw data'!D107="","",'DF raw data'!D107) -> -2.0711e-05 | F102: -1.531117841e-05 | G102: 6.473036646e-05 | H102: -2.080322608e-05 | J102: -0.0004629605631 | K102: -0.004911700618 | L102: 0.001589755246 | M102: 0.01674134695 | N102: 1.964421898e-05
A103: =IF('DF raw data'!A108="","",'DF raw data'!A108) -> -279.5 | B103: =IF('DF raw data'!B108="","",'DF raw data'!B108) -> -1.70314e-05 | C103: =IF('DF raw data'!C108="","",'DF raw data'!C108) -> 7.60586e-05 | D103: =IF('DF raw data'!D108="","",'DF raw data'!D108) -> -3.19752e-05 | F103: -1.710724082e-05 | G103: 7.639728895e-05 | H103: -3.211758557e-05 | J103: -0.0004715141835 | K103: -0.005147457709 | L103: 0.001627953891 | M103: 0.01755532389 | N103: 2.108049873e-05
A104: =IF('DF raw data'!A109="","",'DF raw data'!A109) -> -279 | B104: =IF('DF raw data'!B109="","",'DF raw data'!B109) -> -3.19776e-05 | C104: =IF('DF raw data'!C109="","",'DF raw data'!C109) -> 8.24661e-05 | D104: =IF('DF raw data'!D109="","",'DF raw data'!D109) -> -2.23836e-05 | F104: -3.211999625e-05 | G104: 8.283332154e-05 | H104: -2.248327417e-05 | J104: -0.0004875741817 | K104: -0.0053912448 | L104: 0.001669370552 | M104: 0.01839000917 | N104: 2.259276204e-05
A105: =IF('DF raw data'!A110="","",'DF raw data'!A110) -> -278.5 | B105: =IF('DF raw data'!B110="","",'DF raw data'!B110) -> -1.60798e-05 | C105: =IF('DF raw data'!C110="","",'DF raw data'!C110) -> 8.47011e-05 | D105: =IF('DF raw data'!D110="","",'DF raw data'!D110) -> -1.5996e-05 | F105: -1.615140335e-05 | G105: 8.5078274e-05 | H105: -1.606723019e-05 | J105: -0.0004956498833 | K105: -0.005639069742 | L105: 0.001711909689 | M105: 0.01924596401 | N105: 2.418091383e-05
A106: =IF('DF raw data'!A111="","",'DF raw data'!A111) -> -278 | B106: =IF('DF raw data'!B111="","",'DF raw data'!B111) -> -2.25482e-05 | C106: =IF('DF raw data'!C111="","",'DF raw data'!C111) -> 7.55162e-05 | D106: =IF('DF raw data'!D111="","",'DF raw data'!D111) -> -2.78504e-05 | F106: -2.264860713e-05 | G106: 7.585247364e-05 | H106: -2.797441783e-05 | J106: -0.0005069741869 | K106: -0.005892556835 | L106: 0.001749835925 | M106: 0.02012088198 | N106: 2.584038813e-05
A107: =IF('DF raw data'!A112="","",'DF raw data'!A112) -> -277.5 | B107: =IF('DF raw data'!B112="","",'DF raw data'!B112) -> -2.4853e-05 | C107: =IF('DF raw data'!C112="","",'DF raw data'!C112) -> 6.4529e-05 | D107: =IF('DF raw data'!D112="","",'DF raw data'!D112) -> -3.37049e-05 | F107: -2.496367041e-05 | G107: 6.481634764e-05 | H107: -3.385498792e-05 | J107: -0.0005194560221 | K107: -0.006152284846 | L107: 0.001782244099 | M107: 0.02101200402 | N107: 2.756350242e-05
A108: =IF('DF raw data'!A113="","",'DF raw data'!A113) -> -277 | B108: =IF('DF raw data'!B113="","",'DF raw data'!B113) -> -2.36396e-05 | C108: =IF('DF raw data'!C113="","",'DF raw data'!C113) -> 6.38962e-05 | D108: =IF('DF raw data'!D113="","",'DF raw data'!D113) -> -2.6005e-05 | F108: -2.374486714e-05 | G108: 6.418072978e-05 | H108: -2.612080026e-05 | J108: -0.0005313284557 | K108: -0.006417949074 | L108: 0.001814334464 | M108: 0.02191917126 | N108: 2.935056216e-05
A109: =IF('DF raw data'!A114="","",'DF raw data'!A114) -> -276.5 | B109: =IF('DF raw data'!B114="","",'DF raw data'!B114) -> -2.49852e-05 | C109: =IF('DF raw data'!C114="","",'DF raw data'!C114) -> 7.2637e-05 | D109: =IF('DF raw data'!D114="","",'DF raw data'!D114) -> -2.75306e-05 | F109: -2.50964591e-05 | G109: 7.296045256e-05 | H109: -2.765319376e-05 | J109: -0.0005438766852 | K109: -0.006689887417 | L109: 0.00185081469 | M109: 0.0228445786 | N109: 3.121122059e-05
A110: =IF('DF raw data'!A115="","",'DF raw data'!A115) -> -276 | B110: =IF('DF raw data'!B115="","",'DF raw data'!B115) -> -2.84538e-05 | C110: =IF('DF raw data'!C115="","",'DF raw data'!C115) -> 8.12706e-05 | D110: =IF('DF raw data'!D115="","",'DF raw data'!D115) -> -1.80594e-05 | F110: -2.858050477e-05 | G110: 8.163249798e-05 | H110: -1.813981851e-05 | J110: -0.0005581669376 | K110: -0.006968970886 | L110: 0.001891630939 | M110: 0.02379039407 | N110: 3.315612956e-05
A111: =IF('DF raw data'!A116="","",'DF raw data'!A116) -> -275.5 | B111: =IF('DF raw data'!B116="","",'DF raw data'!B116) -> -2.07587e-05 | C111: =IF('DF raw data'!C116="","",'DF raw data'!C116) -> 7.80475e-05 | D111: =IF('DF raw data'!D116="","",'DF raw data'!D116) -> -1.89583e-05 | F111: -2.085113849e-05 | G111: 7.839504552e-05 | H111: -1.904272131e-05 | J111: -0.0005685925068 | K111: -0.007253267139 | L111: 0.001930828462 | M111: 0.0247558083 | N111: 3.518182756e-05
A112: =IF('DF raw data'!A117="","",'DF raw data'!A117) -> -275 | B112: =IF('DF raw data'!B117="","",'DF raw data'!B117) -> -2.91546e-05 | C112: =IF('DF raw data'!C117="","",'DF raw data'!C117) -> 7.46419e-05 | D112: =IF('DF raw data'!D117="","",'DF raw data'!D117) -> -2.52476e-05 | F112: -2.928442543e-05 | G112: 7.497428038e-05 | H112: -2.536002756e-05 | J112: -0.0005832347196 | K112: -0.007544884499 | L112: 0.001968315602 | M112: 0.0257399661 | N112: 3.728904208e-05
A113: =IF('DF raw data'!A118="","",'DF raw data'!A118) -> -274.5 | B113: =IF('DF raw data'!B118="","",'DF raw data'!B118) -> -2.96724e-05 | C113: =IF('DF raw data'!C118="","",'DF raw data'!C118) -> 7.64069e-05 | D113: =IF('DF raw data'!D118="","",'DF raw data'!D118) -> -1.76603e-05 | F113: -2.98045312e-05 | G113: 7.674713993e-05 | H113: -1.773894132e-05 | J113: -0.0005981369852 | K113: -0.007843952991 | L113: 0.002006689172 | M113: 0.02674331069 | N113: 3.948132672e-05
A114: =IF('DF raw data'!A119="","",'DF raw data'!A119) -> -274 | B114: =IF('DF raw data'!B119="","",'DF raw data'!B119) -> -1.94132e-05 | C114: =IF('DF raw data'!C119="","",'DF raw data'!C119) -> 8.71202e-05 | D114: =IF('DF raw data'!D119="","",'DF raw data'!D119) -> -1.75945e-05 | F114: -1.949964698e-05 | G114: 8.750814625e-05 | H114: -1.767284831e-05 | J114: -0.0006078868087 | K114: -0.008147896396 | L114: 0.002050443245 | M114: 0.02776853231 | N114: 4.176824866e-05
A115: =IF('DF raw data'!A120="","",'DF raw data'!A120) -> -273.5 | B115: =IF('DF raw data'!B120="","",'DF raw data'!B120) -> -1.96026e-05 | C115: =IF('DF raw data'!C120="","",'DF raw data'!C120) -> 8.29426e-05 | D115: =IF('DF raw data'!D120="","",'DF raw data'!D120) -> -2.19299e-05 | F115: -1.968989038e-05 | G115: 8.33119434e-05 | H115: -2.202755384e-05 | J115: -0.0006177317538 | K115: -0.008456762273 | L115: 0.002092099217 | M115: 0.02881458192 | N115: 4.414748449e-05
A116: =IF('DF raw data'!A121="","",'DF raw data'!A121) -> -273 | B116: =IF('DF raw data'!B121="","",'DF raw data'!B121) -> -1.94747e-05 | C116: =IF('DF raw data'!C121="","",'DF raw data'!C121) -> 8.00289e-05 | D116: =IF('DF raw data'!D121="","",'DF raw data'!D121) -> -2.14767e-05 | F116: -1.956142084e-05 | G116: 8.038526869e-05 | H116: -2.157233575e-05 | J116: -0.0006275124643 | K116: -0.008770518505 | L116: 0.002132291851 | M116: 0.02988072785 | N116: 4.66177047e-05
A117: =IF('DF raw data'!A122="","",'DF raw data'!A122) -> -272.5 | B117: =IF('DF raw data'!B122="","",'DF raw data'!B122) -> -1.81265e-05 | C117: =IF('DF raw data'!C122="","",'DF raw data'!C122) -> 7.57237e-05 | D117: =IF('DF raw data'!D122="","",'DF raw data'!D122) -> -2.38886e-05 | F117: -1.82072173e-05 | G117: 7.606089764e-05 | H117: -2.399497594e-05 | J117: -0.0006366160729 | K117: -0.009088826541 | L117: 0.0021703223 | M117: 0.030965889 | N117: 4.917549416e-05
A118: =IF('DF raw data'!A123="","",'DF raw data'!A123) -> -272 | B118: =IF('DF raw data'!B123="","",'DF raw data'!B123) -> -3.19098e-05 | C118: =IF('DF raw data'!C123="","",'DF raw data'!C123) -> 7.03697e-05 | D118: =IF('DF raw data'!D123="","",'DF raw data'!D123) -> -2.7931e-05 | F118: -3.205189434e-05 | G118: 7.068305627e-05 | H118: -2.805537674e-05 | J118: -0.0006526420201 | K118: -0.009415147551 | L118: 0.002205663828 | M118: 0.03206872091 | N118: 5.182094142e-05
A119: =IF('DF raw data'!A124="","",'DF raw data'!A124) -> -271.5 | B119: =IF('DF raw data'!B124="","",'DF raw data'!B124) -> -2.40843e-05 | C119: =IF('DF raw data'!C124="","",'DF raw data'!C124) -> 7.81651e-05 | D119: =IF('DF raw data'!D124="","",'DF raw data'!D124) -> -3.26432e-05 | F119: -2.419154739e-05 | G119: 7.851316919e-05 | H119: -3.278856017e-05 | J119: -0.0006647377938 | K119: -0.009747516448 | L119: 0.002244920413 | M119: 0.03319118112 | N119: 5.456171342e-05
A120: =IF('DF raw data'!A125="","",'DF raw data'!A125) -> -271 | B120: =IF('DF raw data'!B125="","",'DF raw data'!B125) -> -2.84434e-05 | C120: =IF('DF raw data'!C125="","",'DF raw data'!C125) -> 7.437e-05 | D120: =IF('DF raw data'!D125="","",'DF raw data'!D125) -> -3.40226e-05 | F120: -2.857005846e-05 | G120: 7.470116961e-05 | H120: -3.417410264e-05 | J120: -0.000679022823 | K120: -0.01008702786 | L120: 0.002282270998 | M120: 0.03433231662 | N120: 5.739662987e-05
A121: =IF('DF raw data'!A126="","",'DF raw data'!A126) -> -270.5 | B121: =IF('DF raw data'!B126="","",'DF raw data'!B126) -> -1.73555e-05 | C121: =IF('DF raw data'!C126="","",'DF raw data'!C126) -> 7.51661e-05 | D121: =IF('DF raw data'!D126="","",'DF raw data'!D126) -> -2.63305e-05 | F121: -1.743278404e-05 | G121: 7.550081464e-05 | H121: -2.644774972e-05 | J121: -0.000687739215 | K121: -0.01043089747 | L121: 0.002320021405 | M121: 0.03549232732 | N121: 6.032437215e-05
A122: =IF('DF raw data'!A127="","",'DF raw data'!A127) -> -270 | B122: =IF('DF raw data'!B127="","",'DF raw data'!B127) -> -6.26845e-06 | C122: =IF('DF raw data'!C127="","",'DF raw data'!C127) -> 7.65014e-05 | D122: =IF('DF raw data'!D127="","",'DF raw data'!D127) -> -1.76768e-05 | F122: -6.296363408e-06 | G122: 7.684206073e-05 | H122: -1.775551479e-05 | J122: -0.0006908873967 | K122: -0.01077634117 | L122: 0.002358442435 | M122: 0.03667154854 | N122: 6.33441602e-05
A123: =IF('DF raw data'!A128="","",'DF raw data'!A128) -> -269.5 | B123: =IF('DF raw data'!B128="","",'DF raw data'!B128) -> -2.51893e-05 | C123: =IF('DF raw data'!C128="","",'DF raw data'!C128) -> 7.74301e-05 | D123: =IF('DF raw data'!D128="","",'DF raw data'!D128) -> -9.33474e-06 | F123: -2.530146795e-05 | G123: 7.777489624e-05 | H123: -9.376307597e-06 | J123: -0.0007035381307 | K123: -0.01112811023 | L123: 0.002397329884 | M123: 0.03787021348 | N123: 6.646523844e-05
A124: =IF('DF raw data'!A129="","",'DF raw data'!A129) -> -269 | B124: =IF('DF raw data'!B129="","",'DF raw data'!B129) -> -1.20371e-05 | C124: =IF('DF raw data'!C129="","",'DF raw data'!C129) -> 7.46218e-05 | D124: =IF('DF raw data'!D129="","",'DF raw data'!D129) -> -2.07427e-05 | F124: -1.209070121e-05 | G124: 7.495409088e-05 | H124: -2.083506724e-05 | J124: -0.0007095834813 | K124: -0.01148290197 | L124: 0.002434806929 | M124: 0.03908761694 | N124: 6.968113519e-05
A125: =IF('DF raw data'!A130="","",'DF raw data'!A130) -> -268.5 | B125: =IF('DF raw data'!B130="","",'DF raw data'!B130) -> -3.20429e-05 | C125: =IF('DF raw data'!C130="","",'DF raw data'!C130) -> 7.2385e-05 | D125: =IF('DF raw data'!D130="","",'DF raw data'!D130) -> -2.04827e-05 | F125: -3.218558703e-05 | G125: 7.270733041e-05 | H125: -2.057390946e-05 | J125: -0.0007256762748 | K125: -0.01184574011 | L125: 0.002471160594 | M125: 0.04032319724 | N125: 7.299775556e-05
A126: =IF('DF raw data'!A131="","",'DF raw data'!A131) -> -268 | B126: =IF('DF raw data'!B131="","",'DF raw data'!B131) -> -2.72949e-05 | C126: =IF('DF raw data'!C131="","",'DF raw data'!C131) -> 7.32775e-05 | D126: =IF('DF raw data'!D131="","",'DF raw data'!D131) -> -2.53441e-05 | F126: -2.741644419e-05 | G126: 7.360380471e-05 | H126: -2.545695728e-05 | J126: -0.0007393844969 | K126: -0.01221543236 | L126: 0.002507962497 | M126: 0.04157717849 | N126: 7.641603822e-05
A127: =IF('DF raw data'!A132="","",'DF raw data'!A132) -> -267.5 | B127: =IF('DF raw data'!B132="","",'DF raw data'!B132) -> -1.25447e-05 | C127: =IF('DF raw data'!C132="","",'DF raw data'!C132) -> 7.88386e-05 | D127: =IF('DF raw data'!D132="","",'DF raw data'!D132) -> -2.90862e-05 | F127: -1.260056155e-05 | G127: 7.918966829e-05 | H127: -2.921572085e-05 | J127: -0.0007456847777 | K127: -0.01258827475 | L127: 0.002547557331 | M127: 0.04285095715 | N127: 7.993908529e-05
A128: =IF('DF raw data'!A133="","",'DF raw data'!A133) -> -267 | B128: =IF('DF raw data'!B133="","",'DF raw data'!B133) -> -1.82525e-05 | C128: =IF('DF raw data'!C133="","",'DF raw data'!C133) -> 7.89058e-05 | D128: =IF('DF raw data'!D133="","",'DF raw data'!D133) -> -2.73087e-05 | F128: =(1-$G$1*($B$49-$G$2))*B128 -> -1.833377838e-05 | G128: 7.925716753e-05 | H128: -2.743030564e-05 | J128: =F128*$G$3+J127 -> -0.0007548516669 | K128: =J128*$G$3+K127 -> -0.01296570058 | L128: =G128*$G$3+L127 -> 0.002587185914 | M128: =L128*$G$3+M127 -> 0.04414455011 | N128: =(J128^2+L128^2)*$G$3+N127 -> 8.357075129e-05
A129: =IF('DF raw data'!A134="","",'DF raw data'!A134) -> -266.5 | B129: =IF('DF raw data'!B134="","",'DF raw data'!B134) -> -1.47304e-05 | C129: =IF('DF raw data'!C134="","",'DF raw data'!C134) -> 7.66365e-05 | D129: =IF('DF raw data'!D134="","",'DF raw data'!D134) -> -2.06593e-05 | F129: -1.479599447e-05 | G129: 7.697776233e-05 | H129: -2.075129586e-05 | J129: -0.0007622496641 | K129: -0.01334682541 | L129: 0.002625674796 | M129: 0.04545738751 | N129: 8.730834763e-05
A130: =IF('DF raw data'!A135="","",'DF raw data'!A135) -> -266 | B130: =IF('DF raw data'!B135="","",'DF raw data'!B135) -> -2.09577e-05 | C130: =IF('DF raw data'!C135="","",'DF raw data'!C135) -> 8.17954e-05 | D130: =IF('DF raw data'!D135="","",'DF raw data'!D135) -> -8.8769e-06 | F130: -2.105102464e-05 | G130: 8.215963492e-05 | H130: -8.916428836e-06 | J130: -0.0007727751764 | K130: -0.013733213 | L130: 0.002666754613 | M130: 0.04679076482 | N130: 9.116272845e-05
A131: =IF('DF raw data'!A136="","",'DF raw data'!A136) -> -265.5 | B131: =IF('DF raw data'!B136="","",'DF raw data'!B136) -> -3.27468e-05 | C131: =IF('DF raw data'!C136="","",'DF raw data'!C136) -> 7.13376e-05 | D131: =IF('DF raw data'!D136="","",'DF raw data'!D136) -> -2.28207e-05 | F131: -3.28926215e-05 | G131: 7.165526633e-05 | H131: -2.292232058e-05 | J131: -0.0007892214872 | K131: -0.01412782374 | L131: 0.002702582246 | M131: 0.04814205594 | N131: 9.512613912e-05
A132: =IF('DF raw data'!A137="","",'DF raw data'!A137) -> -265 | B132: =IF('DF raw data'!B137="","",'DF raw data'!B137) -> -1.48528e-05 | C132: =IF('DF raw data'!C137="","",'DF raw data'!C137) -> 6.86885e-05 | D132: =IF('DF raw data'!D137="","",'DF raw data'!D137) -> -2.97662e-05 | F132: -1.491893952e-05 | G132: 6.899436989e-05 | H132: -2.989874889e-05 | J132: -0.000796680957 | K132: -0.01452616422 | L132: 0.002737079431 | M132: 0.04951059565 | N132: 9.91892913e-05
A133: =IF('DF raw data'!A138="","",'DF raw data'!A138) -> -264.5 | B133: =IF('DF raw data'!B138="","",'DF raw data'!B138) -> -2.02392e-05 | C133: =IF('DF raw data'!C138="","",'DF raw data'!C138) -> 7.81062e-05 | D133: =IF('DF raw data'!D138="","",'DF raw data'!D138) -> -2.91333e-05 | F133: -2.032932516e-05 | G133: 7.845400691e-05 | H133: -2.926303058e-05 | J133: -0.0008068456195 | K133: -0.01492958703 | L133: 0.002776306435 | M133: 0.05089874887 | N133: 0.0001033687299
A134: =IF('DF raw data'!A139="","",'DF raw data'!A139) -> -264 | B134: =IF('DF raw data'!B139="","",'DF raw data'!B139) -> -3.19136e-05 | C134: =IF('DF raw data'!C139="","",'DF raw data'!C139) -> 8.41257e-05 | D134: =IF('DF raw data'!D139="","",'DF raw data'!D139) -> -2.21345e-05 | F134: -3.205571126e-05 | G134: 8.450031174e-05 | H134: -2.223306493e-05 | J134: -0.0008228734752 | K134: -0.01534102377 | L134: 0.002818556591 | M134: 0.05230802717 | N134: 0.0001076794209
A135: =IF('DF raw data'!A140="","",'DF raw data'!A140) -> -263.5 | B135: =IF('DF raw data'!B140="","",'DF raw data'!B140) -> -2.52406e-05 | C135: =IF('DF raw data'!C140="","",'DF raw data'!C140) -> 8.21782e-05 | D135: =IF('DF raw data'!D140="","",'DF raw data'!D140) -> -2.92446e-05 | F135: -2.535299639e-05 | G135: 8.254413952e-05 | H135: -2.93748262e-05 | J135: -0.0008355499734 | K135: -0.01575879876 | L135: 0.00285982866 | M135: 0.0537379415 | N135: 0.0001121178028
A136: =IF('DF raw data'!A141="","",'DF raw data'!A141) -> -263 | B136: =IF('DF raw data'!B141="","",'DF raw data'!B141) -> -1.84432e-05 | C136: =IF('DF raw data'!C141="","",'DF raw data'!C141) -> 8.39689e-05 | D136: =IF('DF raw data'!D141="","",'DF raw data'!D141) -> -3.00587e-05 | F136: -1.852532757e-05 | G136: 8.434281351e-05 | H136: -3.019255139e-05 | J136: -0.0008448126371 | K136: -0.01618120507 | L136: 0.002902000067 | M136: 0.05518894153 | N136: 0.0001166854592
A137: =IF('DF raw data'!A142="","",'DF raw data'!A142) -> -262.5 | B137: =IF('DF raw data'!B142="","",'DF raw data'!B142) -> -2.74885e-05 | C137: =IF('DF raw data'!C142="","",'DF raw data'!C142) -> 7.94995e-05 | D137: =IF('DF raw data'!D142="","",'DF raw data'!D142) -> -2.33509e-05 | F137: -2.761090629e-05 | G137: 7.985351127e-05 | H137: -2.345488156e-05 | J137: -0.0008586180903 | K137: -0.01661051412 | L137: 0.002941926823 | M137: 0.05665990494 | N137: 0.0001213815384
A138: =IF('DF raw data'!A143="","",'DF raw data'!A143) -> -262 | B138: =IF('DF raw data'!B143="","",'DF raw data'!B143) -> -1.81215e-05 | C138: =IF('DF raw data'!C143="","",'DF raw data'!C143) -> 7.33372e-05 | D138: =IF('DF raw data'!D143="","",'DF raw data'!D143) -> -3.16518e-05 | F138: -1.820219504e-05 | G138: 7.366377055e-05 | H138: -3.179274547e-05 | J138: -0.0008677191878 | K138: -0.01704437371 | L138: 0.002978758708 | M138: 0.0581492843 | N138: 0.0001261945084
A139: =IF('DF raw data'!A144="","",'DF raw data'!A144) -> -261.5 | B139: =IF('DF raw data'!B144="","",'DF raw data'!B144) -> -5.42972e-06 | C139: =IF('DF raw data'!C144="","",'DF raw data'!C144) -> 6.90858e-05 | D139: =IF('DF raw data'!D144="","",'DF raw data'!D144) -> -2.54854e-05 | F139: -5.453898543e-06 | G139: 6.939343907e-05 | H139: -2.559888649e-05 | J139: -0.0008704461371 | K139: -0.01747959678 | L139: 0.003013455427 | M139: 0.05965601201 | N139: 0.0001311138035
A140: =IF('DF raw data'!A145="","",'DF raw data'!A145) -> -261 | B140: =IF('DF raw data'!B145="","",'DF raw data'!B145) -> -2.59458e-05 | C140: =IF('DF raw data'!C145="","",'DF raw data'!C145) -> 6.85582e-05 | D140: =IF('DF raw data'!D145="","",'DF raw data'!D145) -> -2.92293e-05 | F140: -2.606133665e-05 | G140: 6.886348966e-05 | H140: -2.935945807e-05 | J140: -0.0008834768054 | K140: -0.01792133518 | L140: 0.003047887172 | M140: 0.0611799556 | N140: 0.0001361488772
A141: =IF('DF raw data'!A146="","",'DF raw data'!A146) -> -260.5 | B141: =IF('DF raw data'!B146="","",'DF raw data'!B146) -> -1.31877e-05 | C141: =IF('DF raw data'!C146="","",'DF raw data'!C146) -> 6.66393e-05 | D141: =IF('DF raw data'!D146="","",'DF raw data'!D146) -> -2.67014e-05 | F141: -1.324642483e-05 | G141: 6.69360448e-05 | H141: -2.682030133e-05 | J141: -0.0008901000178 | K141: -0.01836638519 | L141: 0.003081355195 | M141: 0.06272063319 | N141: 0.0001412923912
A142: =IF('DF raw data'!A147="","",'DF raw data'!A147) -> -260 | B142: =IF('DF raw data'!B147="","",'DF raw data'!B147) -> -2.29304e-05 | C142: =IF('DF raw data'!C147="","",'DF raw data'!C147) -> 6.78934e-05 | D142: =IF('DF raw data'!D147="","",'DF raw data'!D147) -> -3.17911e-05 | F142: -2.303250907e-05 | G142: 6.819572931e-05 | H142: -3.193266577e-05 | J142: -0.0009016162724 | K142: -0.01881719333 | L142: 0.003115453059 | M142: 0.06427835972 | N142: 0.000146551871
A143: =IF('DF raw data'!A148="","",'DF raw data'!A148) -> -259.5 | B143: =IF('DF raw data'!B148="","",'DF raw data'!B148) -> -2.00484e-05 | C143: =IF('DF raw data'!C148="","",'DF raw data'!C148) -> 6.78037e-05 | D143: =IF('DF raw data'!D148="","",'DF raw data'!D148) -> -2.68649e-05 | F143: -2.013767553e-05 | G143: 6.810562988e-05 | H143: -2.69845294e-05 | J143: -0.0009116851101 | K143: -0.01927303589 | L143: 0.003149505874 | M143: 0.06585311266 | N143: 0.0001519271495
A144: =IF('DF raw data'!A149="","",'DF raw data'!A149) -> -259 | B144: =IF('DF raw data'!B149="","",'DF raw data'!B149) -> -2.38914e-05 | C144: =IF('DF raw data'!C149="","",'DF raw data'!C149) -> 6.68266e-05 | D144: =IF('DF raw data'!D149="","",'DF raw data'!D149) -> -3.32755e-05 | F144: -2.39977884e-05 | G144: 6.712417885e-05 | H144: -3.34236758e-05 | J144: -0.0009236840043 | K144: -0.01973487789 | L144: 0.003183067964 | M144: 0.06744464664 | N144: 0.0001574197064
A145: =IF('DF raw data'!A150="","",'DF raw data'!A150) -> -258.5 | B145: =IF('DF raw data'!B150="","",'DF raw data'!B150) -> -2.7865e-05 | C145: =IF('DF raw data'!C150="","",'DF raw data'!C150) -> 6.61886e-05 | D145: =IF('DF raw data'!D150="","",'DF raw data'!D150) -> -3.60157e-05 | F145: -2.798908285e-05 | G145: 6.648333784e-05 | H145: -3.617607791e-05 | J145: -0.0009376785457 | K145: -0.02020371716 | L145: 0.003216309633 | M145: 0.06905280146 | N145: 0.0001630316507
A146: =IF('DF raw data'!A151="","",'DF raw data'!A151) -> -258 | B146: =IF('DF raw data'!B151="","",'DF raw data'!B151) -> -3.03107e-05 | C146: =IF('DF raw data'!C151="","",'DF raw data'!C151) -> 6.72625e-05 | D146: =IF('DF raw data'!D151="","",'DF raw data'!D151) -> -2.22322e-05 | F146: -3.044567355e-05 | G146: 6.756201991e-05 | H146: -2.233119999e-05 | J146: -0.0009529013825 | K146: -0.02068016785 | L146: 0.003250090643 | M146: 0.07067784678 | N146: 0.0001687672059
A147: =IF('DF raw data'!A152="","",'DF raw data'!A152) -> -257.5 | B147: =IF('DF raw data'!B152="","",'DF raw data'!B152) -> -2.59489e-05 | C147: =IF('DF raw data'!C152="","",'DF raw data'!C152) -> 6.92252e-05 | D147: =IF('DF raw data'!D152="","",'DF raw data'!D152) -> -2.43955e-05 | F147: -2.606445045e-05 | G147: 6.953345982e-05 | H147: -2.450413316e-05 | J147: -0.0009659336077 | K147: -0.02116313466 | L147: 0.003284857373 | M147: 0.07232027547 | N147: 0.0001746288637
A148: =IF('DF raw data'!A153="","",'DF raw data'!A153) -> -257 | B148: =IF('DF raw data'!B153="","",'DF raw data'!B153) -> -2.71678e-05 | C148: =IF('DF raw data'!C153="","",'DF raw data'!C153) -> 6.35789e-05 | D148: =IF('DF raw data'!D153="","",'DF raw data'!D153) -> -2.37384e-05 | F148: -2.728877821e-05 | G148: 6.386201684e-05 | H148: -2.38441071e-05 | J148: -0.0009795779968 | K148: -0.02165292365 | L148: 0.003316788381 | M148: 0.07397866966 | N148: 0.0001806091928
A149: =IF('DF raw data'!A154="","",'DF raw data'!A154) -> -256.5 | B149: =IF('DF raw data'!B154="","",'DF raw data'!B154) -> -2.04373e-05 | C149: =IF('DF raw data'!C154="","",'DF raw data'!C154) -> 6.92208e-05 | D149: =IF('DF raw data'!D154="","",'DF raw data'!D154) -> -2.03734e-05 | F149: -2.05283073e-05 | G149: 6.952904022e-05 | H149: -2.046412275e-05 | J149: -0.0009898421505 | K149: -0.02214784473 | L149: 0.003351552901 | M149: 0.07565444611 | N149: 0.00018671554
A150: =IF('DF raw data'!A155="","",'DF raw data'!A155) -> -256 | B150: =IF('DF raw data'!B155="","",'DF raw data'!B155) -> -1.18403e-05 | C150: =IF('DF raw data'!C155="","",'DF raw data'!C155) -> 7.26443e-05 | D150: =IF('DF raw data'!D155="","",'DF raw data'!D155) -> -2.78616e-05 | F150: -1.189302486e-05 | G150: 7.296778507e-05 | H150: -2.79856677e-05 | J150: -0.0009957886629 | K150: -0.02264573906 | L150: 0.003388036794 | M150: 0.0773484645 | N150: 0.0001929507342
A151: =IF('DF raw data'!A156="","",'DF raw data'!A156) -> -255.5 | B151: =IF('DF raw data'!B156="","",'DF raw data'!B156) -> -2.24907e-05 | C151: =IF('DF raw data'!C156="","",'DF raw data'!C156) -> 7.08124e-05 | D151: =IF('DF raw data'!D156="","",'DF raw data'!D156) -> -1.79048e-05 | F151: -2.259085109e-05 | G151: 7.112772762e-05 | H151: -1.798453007e-05 | J151: -0.001007084088 | K151: -0.0231492811 | L151: 0.003423600657 | M151: 0.07906026483 | N151: 0.0001993183641
A152: =IF('DF raw data'!A157="","",'DF raw data'!A157) -> -255 | B152: =IF('DF raw data'!B157="","",'DF raw data'!B157) -> -1.13243e-05 | C152: =IF('DF raw data'!C157="","",'DF raw data'!C157) -> 8.07011e-05 | D152: =IF('DF raw data'!D157="","",'DF raw data'!D157) -> -3.26093e-05 | F152: -1.137472711e-05 | G152: 8.1060462e-05 | H152: -3.275450921e-05 | J152: -0.001012771452 | K152: -0.02365566683 | L152: 0.003464130888 | M152: 0.08079233028 | N152: 0.0002058313185
A153: =IF('DF raw data'!A158="","",'DF raw data'!A158) -> -254.5 | B153: =IF('DF raw data'!B158="","",'DF raw data'!B158) -> -1.93428e-05 | C153: =IF('DF raw data'!C158="","",'DF raw data'!C158) -> 8.0707e-05 | D153: =IF('DF raw data'!D158="","",'DF raw data'!D158) -> -2.71406e-05 | F153: -1.942893349e-05 | G153: 8.106638827e-05 | H153: -2.726145709e-05 | J153: -0.001022485919 | K153: -0.02416690979 | L153: 0.003504664083 | M153: 0.08254466232 | N153: 0.0002124953924
A154: =IF('DF raw data'!A159="","",'DF raw data'!A159) -> -254 | B154: =IF('DF raw data'!B159="","",'DF raw data'!B159) -> -3.12682e-05 | C154: =IF('DF raw data'!C159="","",'DF raw data'!C159) -> 6.91343e-05 | D154: =IF('DF raw data'!D159="","",'DF raw data'!D159) -> -2.86681e-05 | F154: -3.140743729e-05 | G154: 6.944215504e-05 | H154: -2.879575905e-05 | J154: -0.001038189637 | K154: -0.02468600461 | L154: 0.00353938516 | M154: 0.0843143549 | N154: 0.0002192979349
A155: =IF('DF raw data'!A160="","",'DF raw data'!A160) -> -253.5 | B155: =IF('DF raw data'!B160="","",'DF raw data'!B160) -> -3.03119e-05 | C155: =IF('DF raw data'!C160="","",'DF raw data'!C160) -> 6.33698e-05 | D155: =IF('DF raw data'!D160="","",'DF raw data'!D160) -> -2.03083e-05 | F155: -3.044687889e-05 | G155: 6.365198572e-05 | H155: -2.039873286e-05 | J155: -0.001053413077 | K155: -0.02521271115 | L155: 0.003571211153 | M155: 0.08609996047 | N155: 0.000226229549
A156: =IF('DF raw data'!A161="","",'DF raw data'!A161) -> -253 | B156: =IF('DF raw data'!B161="","",'DF raw data'!B161) -> -2.64593e-05 | C156: =IF('DF raw data'!C161="","",'DF raw data'!C161) -> 7.06456e-05 | D156: =IF('DF raw data'!D161="","",'DF raw data'!D161) -> -2.84245e-05 | F156: -2.657712326e-05 | G156: 7.096018486e-05 | H156: -2.85510743e-05 | J156: -0.001066701638 | K156: -0.02574606197 | L156: 0.003606691245 | M156: 0.0879033061 | N156: 0.0002333025861
A157: =IF('DF raw data'!A162="","",'DF raw data'!A162) -> -252.5 | B157: =IF('DF raw data'!B162="","",'DF raw data'!B162) -> -1.89564e-05 | C157: =IF('DF raw data'!C162="","",'DF raw data'!C162) -> 7.18162e-05 | D157: =IF('DF raw data'!D162="","",'DF raw data'!D162) -> -2.97083e-05 | F157: -1.904081285e-05 | G157: 7.213599754e-05 | H157: -2.984059106e-05 | J157: -0.001076222045 | K157: -0.02628417299 | L157: 0.003642759244 | M157: 0.08972468572 | N157: 0.0002405165605
A158: =IF('DF raw data'!A163="","",'DF raw data'!A163) -> -252 | B158: =IF('DF raw data'!B163="","",'DF raw data'!B163) -> -2.73534e-05 | C158: =IF('DF raw data'!C163="","",'DF raw data'!C163) -> 6.67679e-05 | D158: =IF('DF raw data'!D163="","",'DF raw data'!D163) -> -3.39346e-05 | F158: -2.747520469e-05 | G158: 6.706521746e-05 | H158: -3.408571077e-05 | J158: -0.001089959647 | K158: -0.02682915281 | L158: 0.003676291853 | M158: 0.09156283164 | N158: 0.0002478681274
A159: =IF('DF raw data'!A164="","",'DF raw data'!A164) -> -251.5 | B159: =IF('DF raw data'!B164="","",'DF raw data'!B164) -> -3.69769e-05 | C159: =IF('DF raw data'!C164="","",'DF raw data'!C164) -> 6.64346e-05 | D159: =IF('DF raw data'!D164="","",'DF raw data'!D164) -> -2.55389e-05 | F159: -3.714155814e-05 | G159: 6.673043327e-05 | H159: -2.565262472e-05 | J159: -0.001108530426 | K159: -0.02738341803 | L159: 0.003709657069 | M159: 0.09341766018 | N159: 0.000255363325
A160: =IF('DF raw data'!A165="","",'DF raw data'!A165) -> -251 | B160: =IF('DF raw data'!B165="","",'DF raw data'!B165) -> -3.22926e-05 | C160: =IF('DF raw data'!C165="","",'DF raw data'!C165) -> 6.25888e-05 | D160: =IF('DF raw data'!D165="","",'DF raw data'!D165) -> -3.09304e-05 | F160: -3.243639895e-05 | G160: 6.286750793e-05 | H160: -3.106813307e-05 | J160: -0.001124748626 | K160: -0.02794579234 | L160: 0.003741090823 | M160: 0.09528820559 | N160: 0.000262993735
A161: =IF('DF raw data'!A166="","",'DF raw data'!A166) -> -250.5 | B161: =IF('DF raw data'!B166="","",'DF raw data'!B166) -> -1.89609e-05 | C161: =IF('DF raw data'!C166="","",'DF raw data'!C166) -> 6.32568e-05 | D161: =IF('DF raw data'!D166="","",'DF raw data'!D166) -> -2.27666e-05 | F161: -1.904533289e-05 | G161: 6.353848253e-05 | H161: -2.286797967e-05 | J161: -0.001134271292 | K161: -0.02851292798 | L161: 0.003772860065 | M161: 0.09717463562 | N161: 0.0002707542572
A162: =IF('DF raw data'!A167="","",'DF raw data'!A167) -> -250 | B162: =IF('DF raw data'!B167="","",'DF raw data'!B167) -> -9.09284e-06 | C162: =IF('DF raw data'!C167="","",'DF raw data'!C167) -> 7.2126e-05 | D162: =IF('DF raw data'!D167="","",'DF raw data'!D167) -> -1.28142e-05 | F162: -9.133330417e-06 | G162: 7.244717708e-05 | H162: -1.287126163e-05 | J162: -0.001138837957 | K162: -0.02908234696 | L162: 0.003809083653 | M162: 0.09907917745 | N162: 0.0002786572923
A163: =IF('DF raw data'!A168="","",'DF raw data'!A168) -> -249.5 | B163: =IF('DF raw data'!B168="","",'DF raw data'!B168) -> -2.07626e-05 | C163: =IF('DF raw data'!C168="","",'DF raw data'!C168) -> 7.5577e-05 | D163: =IF('DF raw data'!D168="","",'DF raw data'!D168) -> -1.30083e-05 | F163: -2.085505586e-05 | G163: 7.591354438e-05 | H163: -1.306622596e-05 | J163: -0.001149265485 | K163: -0.02965697971 | L163: 0.003847040425 | M163: 0.1010026977 | N163: 0.0002867175579
A164: =IF('DF raw data'!A169="","",'DF raw data'!A169) -> -249 | B164: =IF('DF raw data'!B169="","",'DF raw data'!B169) -> -2.20339e-05 | C164: =IF('DF raw data'!C169="","",'DF raw data'!C169) -> 7.49476e-05 | D164: =IF('DF raw data'!D169="","",'DF raw data'!D169) -> -3.00446e-05 | F164: -2.213201696e-05 | G164: 7.528134166e-05 | H164: -3.01783886e-05 | J164: -0.001160331494 | K164: -0.03023714545 | L164: 0.003884681096 | M164: 0.1029450382 | N164: 0.0002949361161
A165: =IF('DF raw data'!A170="","",'DF raw data'!A170) -> -248.5 | B165: =IF('DF raw data'!B170="","",'DF raw data'!B170) -> -2.2745e-05 | C165: =IF('DF raw data'!C170="","",'DF raw data'!C170) -> 7.80643e-05 | D165: =IF('DF raw data'!D170="","",'DF raw data'!D170) -> -2.13772e-05 | F165: -2.284628349e-05 | G165: 7.841192033e-05 | H165: -2.147239267e-05 | J165: -0.001171754636 | K165: -0.03082302277 | L165: 0.003923887056 | M165: 0.1049069817 | N165: 0.0003033210654
A166: =IF('DF raw data'!A171="","",'DF raw data'!A171) -> -248 | B166: =IF('DF raw data'!B171="","",'DF raw data'!B171) -> -8.31437e-06 | C166: =IF('DF raw data'!C171="","",'DF raw data'!C171) -> 7.92133e-05 | D166: =IF('DF raw data'!D171="","",'DF raw data'!D171) -> -2.67676e-05 | F166: -8.35139389e-06 | G166: 7.956603682e-05 | H166: -2.688679612e-05 | J166: -0.001175930333 | K166: -0.03141098794 | L166: 0.003963670075 | M166: 0.1068888168 | N166: 0.0003118678117
A167: =IF('DF raw data'!A172="","",'DF raw data'!A172) -> -247.5 | B167: =IF('DF raw data'!B172="","",'DF raw data'!B172) -> -7.80572e-06 | C167: =IF('DF raw data'!C172="","",'DF raw data'!C172) -> 7.84264e-05 | D167: =IF('DF raw data'!D172="","",'DF raw data'!D172) -> -2.01331e-05 | F167: -7.840478871e-06 | G167: 7.877563276e-05 | H167: -2.022275269e-05 | J167: -0.001179850572 | K167: -0.03200091322 | L167: 0.004003057891 | M167: 0.1088903457 | N167: 0.0003205760716
A168: =IF('DF raw data'!A173="","",'DF raw data'!A173) -> -247 | B168: =IF('DF raw data'!B173="","",'DF raw data'!B173) -> -9.53237e-06 | C168: =IF('DF raw data'!C173="","",'DF raw data'!C173) -> 8.13432e-05 | D168: =IF('DF raw data'!D173="","",'DF raw data'!D173) -> -2.73635e-05 | F168: -9.574817644e-06 | G168: 8.170542127e-05 | H168: -2.748534967e-05 | J168: -0.001184637981 | K168: -0.03259323221 | L168: 0.004043910602 | M168: 0.110912301 | N168: 0.0003294543617
A169: =IF('DF raw data'!A174="","",'DF raw data'!A174) -> -246.5 | B169: =IF('DF raw data'!B174="","",'DF raw data'!B174) -> -2.34433e-05 | C169: =IF('DF raw data'!C174="","",'DF raw data'!C174) -> 7.88522e-05 | D169: =IF('DF raw data'!D174="","",'DF raw data'!D174) -> -3.18982e-05 | F169: -2.354769301e-05 | G169: 7.920332885e-05 | H169: -3.204024268e-05 | J169: -0.001196411827 | K169: -0.03319143813 | L169: 0.004083512266 | M169: 0.1129540572 | N169: 0.0003385075985
A170: =IF('DF raw data'!A175="","",'DF raw data'!A175) -> -246 | B170: =IF('DF raw data'!B175="","",'DF raw data'!B175) -> -2.17157e-05 | C170: =IF('DF raw data'!C175="","",'DF raw data'!C175) -> 7.15853e-05 | D170: =IF('DF raw data'!D175="","",'DF raw data'!D175) -> -2.65427e-05 | F170: -2.181240001e-05 | G170: 7.190406934e-05 | H170: -2.666089464e-05 | J170: -0.001207318027 | K170: -0.03379509714 | L170: 0.004119464301 | M170: 0.1150137893 | N170: 0.0003477214
A171: =IF('DF raw data'!A176="","",'DF raw data'!A176) -> -245.5 | B171: =IF('DF raw data'!B176="","",'DF raw data'!B176) -> -3.0692e-05 | C171: =IF('DF raw data'!C176="","",'DF raw data'!C176) -> 7.27115e-05 | D171: =IF('DF raw data'!D176="","",'DF raw data'!D176) -> -2.75354e-05 | F171: -3.082867148e-05 | G171: 7.303528431e-05 | H171: -2.765801514e-05 | J171: -0.001222732363 | K171: -0.03440646332 | L171: 0.004155981943 | M171: 0.1170917803 | N171: 0.0003571050302
A172: =IF('DF raw data'!A177="","",'DF raw data'!A177) -> -245 | B172: =IF('DF raw data'!B177="","",'DF raw data'!B177) -> -2.89692e-05 | C172: =IF('DF raw data'!C177="","",'DF raw data'!C177) -> 6.84211e-05 | D172: =IF('DF raw data'!D177="","",'DF raw data'!D177) -> -1.43063e-05 | F172: -2.909819985e-05 | G172: 6.872577916e-05 | H172: -1.437000595e-05 | J172: -0.001237281463 | K172: -0.03502510405 | L172: 0.004190344833 | M172: 0.1191869527 | N172: 0.0003666499578
A173: =IF('DF raw data'!A178="","",'DF raw data'!A178) -> -244.5 | B173: =IF('DF raw data'!B178="","",'DF raw data'!B178) -> -1.37076e-05 | C173: =IF('DF raw data'!C178="","",'DF raw data'!C178) -> 6.51952e-05 | D173: =IF('DF raw data'!D178="","",'DF raw data'!D178) -> -1.59318e-05 | F173: -1.376863994e-05 | G173: 6.548551423e-05 | H173: -1.600274431e-05 | J173: -0.001244165783 | K173: -0.03564718695 | L173: 0.00422308759 | M173: 0.1212984965 | N173: 0.0003763411664
A174: =IF('DF raw data'!A179="","",'DF raw data'!A179) -> -244 | B174: =IF('DF raw data'!B179="","",'DF raw data'!B179) -> -2.41546e-05 | C174: =IF('DF raw data'!C179="","",'DF raw data'!C179) -> 6.61311e-05 | D174: =IF('DF raw data'!D179="","",'DF raw data'!D179) -> -2.29258e-05 | F174: -2.426216043e-05 | G174: 6.642558179e-05 | H174: -2.302788859e-05 | J174: -0.001256296863 | K174: -0.03627533538 | L174: 0.004256300381 | M174: 0.1234266467 | N174: 0.0003861883538
A175: =IF('DF raw data'!A180="","",'DF raw data'!A180) -> -243.5 | B175: =IF('DF raw data'!B180="","",'DF raw data'!B180) -> -2.15201e-05 | C175: =IF('DF raw data'!C180="","",'DF raw data'!C180) -> 7.03284e-05 | D175: =IF('DF raw data'!D180="","",'DF raw data'!D180) -> -3.1349e-05 | F175: -2.161592901e-05 | G175: 7.064157237e-05 | H175: -3.14885971e-05 | J175: -0.001267104828 | K175: -0.03690888779 | L175: 0.004291621167 | M175: 0.1255724573 | N175: 0.0003962001373
A176: =IF('DF raw data'!A181="","",'DF raw data'!A181) -> -243 | B176: =IF('DF raw data'!B181="","",'DF raw data'!B181) -> -2.06291e-05 | C176: =IF('DF raw data'!C181="","",'DF raw data'!C181) -> 6.9902e-05 | D176: =IF('DF raw data'!D181="","",'DF raw data'!D181) -> -2.11993e-05 | F176: -2.072096138e-05 | G176: 7.021327361e-05 | H176: -2.129370048e-05 | J176: -0.001277465308 | K176: -0.03754762044 | L176: 0.004326727804 | M176: 0.1277358212 | N176: 0.0004063763828
A177: =IF('DF raw data'!A182="","",'DF raw data'!A182) -> -242.5 | B177: =IF('DF raw data'!B182="","",'DF raw data'!B182) -> -1.86395e-05 | C177: =IF('DF raw data'!C182="","",'DF raw data'!C182) -> 7.31306e-05 | D177: =IF('DF raw data'!D182="","",'DF raw data'!D182) -> -2.43488e-05 | F177: -1.872250169e-05 | G177: 7.345625056e-05 | H177: -2.445722521e-05 | J177: -0.001286826559 | K177: -0.03819103372 | L177: 0.004363455929 | M177: 0.1299175491 | N177: 0.0004167242179
A178: =IF('DF raw data'!A183="","",'DF raw data'!A183) -> -242 | B178: =IF('DF raw data'!B183="","",'DF raw data'!B183) -> -2.98604e-05 | C178: =IF('DF raw data'!C183="","",'DF raw data'!C183) -> 6.99485e-05 | D178: =IF('DF raw data'!D183="","",'DF raw data'!D183) -> -2.43542e-05 | F178: -2.999336836e-05 | G178: 7.025998067e-05 | H178: -2.446264925e-05 | J178: -0.001301823243 | K178: -0.03884194535 | L178: 0.004398585919 | M178: 0.1321168421 | N178: 0.0004272453688
A179: =IF('DF raw data'!A184="","",'DF raw data'!A184) -> -241.5 | B179: =IF('DF raw data'!B184="","",'DF raw data'!B184) -> -2.02411e-05 | C179: =IF('DF raw data'!C184="","",'DF raw data'!C184) -> 7.09798e-05 | D179: =IF('DF raw data'!D184="","",'DF raw data'!D184) -> -2.62569e-05 | F179: -2.033123362e-05 | G179: 7.129587305e-05 | H179: -2.637382198e-05 | J179: -0.00131198886 | K179: -0.03949793978 | L179: 0.004434233856 | M179: 0.134333959 | N179: 0.0004379372412
A180: =IF('DF raw data'!A185="","",'DF raw data'!A185) -> -241 | B180: =IF('DF raw data'!B185="","",'DF raw data'!B185) -> -2.38371e-05 | C180: =IF('DF raw data'!C185="","",'DF raw data'!C185) -> 8.19789e-05 | D180: =IF('DF raw data'!D185="","",'DF raw data'!D185) -> -1.83397e-05 | F180: -2.394324661e-05 | G180: 8.234395204e-05 | H180: -1.842136668e-05 | J180: -0.001323960484 | K180: -0.04015992002 | L180: 0.004475405832 | M180: 0.1365716619 | N180: 0.0004488283055
A181: =IF('DF raw data'!A186="","",'DF raw data'!A186) -> -240.5 | B181: =IF('DF raw data'!B186="","",'DF raw data'!B186) -> -1.4987e-05 | C181: =IF('DF raw data'!C186="","",'DF raw data'!C186) -> 8.0192e-05 | D181: =IF('DF raw data'!D186="","",'DF raw data'!D186) -> -2.06081e-05 | F181: -1.505373711e-05 | G181: 8.054909498e-05 | H181: -2.069986787e-05 | J181: -0.001331487352 | K181: -0.04082566369 | L181: 0.004515680379 | M181: 0.1388295021 | N181: 0.0004599104195
A182: =IF('DF raw data'!A187="","",'DF raw data'!A187) -> -240 | B182: =IF('DF raw data'!B187="","",'DF raw data'!B187) -> -1.56257e-05 | C182: =IF('DF raw data'!C187="","",'DF raw data'!C187) -> 7.83422e-05 | D182: =IF('DF raw data'!D187="","",'DF raw data'!D187) -> -2.4472e-05 | F182: -1.569528124e-05 | G182: 7.869105782e-05 | H182: -2.458097382e-05 | J182: -0.001339334993 | K182: -0.04149533119 | L182: 0.004555025908 | M182: 0.1411070151 | N182: 0.0004711814591
A183: =IF('DF raw data'!A188="","",'DF raw data'!A188) -> -239.5 | B183: =IF('DF raw data'!B188="","",'DF raw data'!B188) -> -2.76068e-05 | C183: =IF('DF raw data'!C188="","",'DF raw data'!C188) -> 6.99346e-05 | D183: =IF('DF raw data'!D188="","",'DF raw data'!D188) -> -3.86998e-05 | F183: -2.772973308e-05 | G183: 7.024601877e-05 | H183: -3.887213021e-05 | J183: -0.001353199859 | K183: -0.04217193112 | L183: 0.004590148918 | M183: 0.1434020895 | N183: 0.0004826317676
A184: =IF('DF raw data'!A189="","",'DF raw data'!A189) -> -239 | B184: =IF('DF raw data'!B189="","",'DF raw data'!B189) -> -2.23589e-05 | C184: =IF('DF raw data'!C189="","",'DF raw data'!C189) -> 7.54542e-05 | D184: =IF('DF raw data'!D189="","",'DF raw data'!D189) -> -2.35442e-05 | F184: -2.245846418e-05 | G184: 7.579019755e-05 | H184: -2.364904232e-05 | J184: -0.001364429091 | K184: -0.04285414567 | L184: 0.004628044016 | M184: 0.1457161115 | N184: 0.0004942719966
A185: =IF('DF raw data'!A190="","",'DF raw data'!A190) -> -238.5 | B185: =IF('DF raw data'!B190="","",'DF raw data'!B190) -> -1.68391e-05 | C185: =IF('DF raw data'!C190="","",'DF raw data'!C190) -> 7.35382e-05 | D185: =IF('DF raw data'!D190="","",'DF raw data'!D190) -> -3.17439e-05 | F185: -1.691408451e-05 | G185: 7.38656656e-05 | H185: -3.188525559e-05 | J185: -0.001372886134 | K185: -0.04354058873 | L185: 0.004664976849 | M185: 0.1480486 | N185: 0.0005060954093
A186: =IF('DF raw data'!A191="","",'DF raw data'!A191) -> -238 | B186: =IF('DF raw data'!B191="","",'DF raw data'!B191) -> -2.26166e-05 | C186: =IF('DF raw data'!C191="","",'DF raw data'!C191) -> 7.1199e-05 | D186: =IF('DF raw data'!D191="","",'DF raw data'!D191) -> -2.16759e-05 | F186: -2.271731172e-05 | G186: 7.151604915e-05 | H186: -2.177242278e-05 | J186: -0.001384244789 | K186: -0.04423271113 | L186: 0.004700734874 | M186: 0.1503989674 | N186: 0.0005181019303
A187: =IF('DF raw data'!A192="","",'DF raw data'!A192) -> -237.5 | B187: =IF('DF raw data'!B192="","",'DF raw data'!B192) -> -2.72332e-05 | C187: =IF('DF raw data'!C192="","",'DF raw data'!C192) -> 6.59031e-05 | D187: =IF('DF raw data'!D192="","",'DF raw data'!D192) -> -2.15684e-05 | F187: -2.735446944e-05 | G187: 6.61965665e-05 | H187: -2.166444409e-05 | J187: -0.001397922024 | K187: -0.04493167214 | L187: 0.004733833157 | M187: 0.152765884 | N187: 0.0005302836115
A188: =IF('DF raw data'!A193="","",'DF raw data'!A193) -> -237 | B188: =IF('DF raw data'!B193="","",'DF raw data'!B193) -> -2.12037e-05 | C188: =IF('DF raw data'!C193="","",'DF raw data'!C193) -> 7.06935e-05 | D188: =IF('DF raw data'!D193="","",'DF raw data'!D193) -> -2.51906e-05 | F188: -2.129812008e-05 | G188: 7.100829816e-05 | H188: -2.530277374e-05 | J188: -0.001408571084 | K188: -0.04563595768 | L188: 0.004769337306 | M188: 0.1551505526 | N188: 0.0005426489369
A189: =IF('DF raw data'!A194="","",'DF raw data'!A194) -> -236.5 | B189: =IF('DF raw data'!B194="","",'DF raw data'!B194) -> -2.8833e-05 | C189: =IF('DF raw data'!C194="","",'DF raw data'!C194) -> 6.65995e-05 | D189: =IF('DF raw data'!D194="","",'DF raw data'!D194) -> -2.6735e-05 | F189: -2.896139335e-05 | G189: 6.689606757e-05 | H189: -2.685405096e-05 | J189: -0.001423051781 | K189: -0.04634748357 | L189: 0.00480278534 | M189: 0.1575519453 | N189: 0.0005551948486
A190: =IF('DF raw data'!A195="","",'DF raw data'!A195) -> -236 | B190: =IF('DF raw data'!B195="","",'DF raw data'!B195) -> -2.06891e-05 | C190: =IF('DF raw data'!C195="","",'DF raw data'!C195) -> 6.75694e-05 | D190: =IF('DF raw data'!D195="","",'DF raw data'!D195) -> -2.77876e-05 | F190: -2.078122856e-05 | G190: 6.787028654e-05 | H190: -2.791133818e-05 | J190: -0.001433442395 | K190: -0.04706420477 | L190: 0.004836720483 | M190: 0.1599703055 | N190: 0.0005679191597
A191: =IF('DF raw data'!A196="","",'DF raw data'!A196) -> -235.5 | B191: =IF('DF raw data'!B196="","",'DF raw data'!B196) -> -1.95337e-05 | C191: =IF('DF raw data'!C196="","",'DF raw data'!C196) -> 6.97491e-05 | D191: =IF('DF raw data'!D196="","",'DF raw data'!D196) -> -2.96144e-05 | F191: -1.962068357e-05 | G191: 7.005969274e-05 | H191: -2.974627292e-05 | J191: -0.001443252737 | K191: -0.04778583114 | L191: 0.00487175033 | M191: 0.1624061807 | N191: 0.0005808276245
A192: =IF('DF raw data'!A197="","",'DF raw data'!A197) -> -235 | B192: =IF('DF raw data'!B197="","",'DF raw data'!B197) -> -1.97944e-05 | C192: =IF('DF raw data'!C197="","",'DF raw data'!C197) -> 6.60723e-05 | D192: =IF('DF raw data'!D197="","",'DF raw data'!D197) -> -2.31555e-05 | F192: =(1-$G$1*($B$49-$G$2))*B192 -> -1.988254446e-05 | G192: 6.636651995e-05 | H192: -2.325861144e-05 | J192: =F192*$G$3+J191 -> -0.001453194009 | K192: =J192*$G$3+K191 -> -0.04851242814 | L192: =G192*$G$3+L191 -> 0.00490493359 | M192: =L192*$G$3+M191 -> 0.1648586475 | N192: =(J192^2+L192^2)*$G$3+N191 -> 0.0005939126977
A193: =IF('DF raw data'!A198="","",'DF raw data'!A198) -> -234.5 | B193: =IF('DF raw data'!B198="","",'DF raw data'!B198) -> -2.33789e-05 | C193: =IF('DF raw data'!C198="","",'DF raw data'!C198) -> 7.13965e-05 | D193: =IF('DF raw data'!D198="","",'DF raw data'!D198) -> -3.26219e-05 | F193: -2.348300624e-05 | G193: 7.171442861e-05 | H193: -3.276716532e-05 | J193: -0.001464935512 | K193: -0.0492448959 | L193: 0.004940790804 | M193: 0.1673290429 | N193: 0.0006071914226
A194: =IF('DF raw data'!A199="","",'DF raw data'!A199) -> -234 | B194: =IF('DF raw data'!B199="","",'DF raw data'!B199) -> -1.99838e-05 | C194: =IF('DF raw data'!C199="","",'DF raw data'!C199) -> 7.65826e-05 | D194: =IF('DF raw data'!D199="","",'DF raw data'!D199) -> -2.75534e-05 | F194: -2.007278786e-05 | G194: 7.692362232e-05 | H194: -2.767609529e-05 | J194: -0.001474971906 | K194: -0.04998238185 | L194: 0.004979252615 | M194: 0.1698186692 | N194: 0.000620675672
A195: =IF('DF raw data'!A200="","",'DF raw data'!A200) -> -233.5 | B195: =IF('DF raw data'!B200="","",'DF raw data'!B200) -> -1.85116e-05 | C195: =IF('DF raw data'!C200="","",'DF raw data'!C200) -> 7.44407e-05 | D195: =IF('DF raw data'!D200="","",'DF raw data'!D200) -> -2.37522e-05 | F195: -1.859403215e-05 | G195: 7.477218444e-05 | H195: -2.385796855e-05 | J195: -0.001484268922 | K195: -0.05072451631 | L195: 0.005016638707 | M195: 0.1723269886 | N195: 0.000634360531
A196: =IF('DF raw data'!A201="","",'DF raw data'!A201) -> -233 | B196: =IF('DF raw data'!B201="","",'DF raw data'!B201) -> -1.96633e-05 | C196: =IF('DF raw data'!C201="","",'DF raw data'!C201) -> 7.66038e-05 | D196: =IF('DF raw data'!D201="","",'DF raw data'!D201) -> -2.75628e-05 | F196: -1.975086067e-05 | G196: 7.694491672e-05 | H196: -2.768553715e-05 | J196: -0.001494144353 | K196: -0.05147158849 | L196: 0.005055111166 | M196: 0.1748545442 | N196: 0.0006482538392
A197: =IF('DF raw data'!A202="","",'DF raw data'!A202) -> -232.5 | B197: =IF('DF raw data'!B202="","",'DF raw data'!B202) -> -2.47928e-05 | C197: =IF('DF raw data'!C202="","",'DF raw data'!C202) -> 7.45969e-05 | D197: =IF('DF raw data'!D202="","",'DF raw data'!D202) -> -2.76411e-05 | F197: -2.490320234e-05 | G197: 7.492908e-05 | H197: -2.776418582e-05 | J197: -0.001506595954 | K197: -0.05222488647 | L197: 0.005092575706 | M197: 0.177400832 | N197: 0.0006623559185
A198: =IF('DF raw data'!A203="","",'DF raw data'!A203) -> -232 | B198: =IF('DF raw data'!B203="","",'DF raw data'!B203) -> -2.77448e-05 | C198: =IF('DF raw data'!C203="","",'DF raw data'!C203) -> 8.06335e-05 | D198: =IF('DF raw data'!D203="","",'DF raw data'!D203) -> -2.37223e-05 | F198: -2.786834759e-05 | G198: 8.099256098e-05 | H198: -2.38279354e-05 | J198: -0.001520530128 | K198: -0.05298515153 | L198: 0.005133071986 | M198: 0.179967368 | N198: 0.0006766861385
A199: =IF('DF raw data'!A204="","",'DF raw data'!A204) -> -231.5 | B199: =IF('DF raw data'!B204="","",'DF raw data'!B204) -> -2.31292e-05 | C199: =IF('DF raw data'!C204="","",'DF raw data'!C204) -> 8.23869e-05 | D199: =IF('DF raw data'!D204="","",'DF raw data'!D204) -> -2.22015e-05 | F199: -2.323219433e-05 | G199: 8.275376887e-05 | H199: -2.230036328e-05 | J199: -0.001532146225 | K199: -0.05375122464 | L199: 0.00517444887 | M199: 0.1825545924 | N199: 0.000691247335
A200: =IF('DF raw data'!A205="","",'DF raw data'!A205) -> -231 | B200: =IF('DF raw data'!B205="","",'DF raw data'!B205) -> -2.58818e-05 | C200: =IF('DF raw data'!C205="","",'DF raw data'!C205) -> 7.47927e-05 | D200: =IF('DF raw data'!D205="","",'DF raw data'!D205) -> -2.93816e-05 | F200: -2.599705166e-05 | G200: 7.512575189e-05 | H200: -2.951243626e-05 | J200: -0.001545144751 | K200: -0.05452379702 | L200: 0.005212011746 | M200: 0.1851605983 | N200: 0.0007060236044
A201: =IF('DF raw data'!A206="","",'DF raw data'!A206) -> -230.5 | B201: =IF('DF raw data'!B206="","",'DF raw data'!B206) -> -2.20356e-05 | C201: =IF('DF raw data'!C206="","",'DF raw data'!C206) -> 6.41372e-05 | D201: =IF('DF raw data'!D206="","",'DF raw data'!D206) -> -2.74955e-05 | F201: -2.213372453e-05 | G201: 6.442280295e-05 | H201: -2.761793746e-05 | J201: -0.001556211613 | K201: -0.05530190282 | L201: 0.005244223148 | M201: 0.1877827099 | N201: 0.0007209854399
... 1061 more rows

Sheet 10 y=-0.1
A1: =IF('DF raw data'!E1="","",'DF raw data'!E1) -> Number of header lines | B1: =IF('DF raw data'!F1="","",'DF raw data'!F1) -> 54 | C1: =IF('DF raw data'!G1="","",'DF raw data'!G1) ->  | D1: =IF('DF raw data'!H1="","",'DF raw data'!H1) ->  | F1: T_coeff | G1: -0.00073 | H1: /degC | J1: IBy total | K1: =J1262*1000 -> -10.667466 | L1: muTm | M1: =L1262*1000 -> -12.44716741 | R1: DF ref | S1: ='10 y=-0.2'!S1 -> 1
A2: =IF('DF raw data'!E2="","",'DF raw data'!E2) -> Measured by | B2: =IF('DF raw data'!F2="","",'DF raw data'!F2) -> Danfysik | C2: =IF('DF raw data'!G2="","",'DF raw data'!G2) ->  | D2: =IF('DF raw data'!H2="","",'DF raw data'!H2) ->  | F2: Tcorr | G2: 20 | H2: degC | J2: JBy total | K2: =K1262 -> -14.62270077 | L2: muTm^2 | M2: =M1262 -> 0.4262589069
A3: =IF('DF raw data'!E3="","",'DF raw data'!E3) -> Operator | B3: =IF('DF raw data'!F3="","",'DF raw data'!F3) -> PMHA | C3: =IF('DF raw data'!G3="","",'DF raw data'!G3) ->  | D3: =IF('DF raw data'!H3="","",'DF raw data'!H3) ->  | F3: Step | G3: =A63-A62 -> 0.5 | H3: mm | J3: PI total | K3: =N1262 -> 10464.56997 | L3: T^2mm^3
A4: =IF('DF raw data'!E4="","",'DF raw data'!E4) -> Data-time | B4: =IF('DF raw data'!F4="","",'DF raw data'!F4) -> 30-07-2024, 10:19:47 | C4: =IF('DF raw data'!G4="","",'DF raw data'!G4) ->  | D4: =IF('DF raw data'!H4="","",'DF raw data'!H4) -> 
A5: =IF('DF raw data'!E5="","",'DF raw data'!E5) -> Project | B5: =IF('DF raw data'!F5="","",'DF raw data'!F5) -> 504314 | C5: =IF('DF raw data'!G5="","",'DF raw data'!G5) ->  | D5: =IF('DF raw data'!H5="","",'DF raw data'!H5) -> 
A6: =IF('DF raw data'!E6="","",'DF raw data'!E6) -> Magnet type | B6: =IF('DF raw data'!F6="","",'DF raw data'!F6) -> Dipole | C6: =IF('DF raw data'!G6="","",'DF raw data'!G6) ->  | D6: =IF('DF raw data'!H6="","",'DF raw data'!H6) -> 
A7: =IF('DF raw data'!E7="","",'DF raw data'!E7) -> Magnet nr. | B7: =IF('DF raw data'!F7="","",'DF raw data'!F7) -> 2410085 | C7: =IF('DF raw data'!G7="","",'DF raw data'!G7) ->  | D7: =IF('DF raw data'!H7="","",'DF raw data'!H7) -> 
A8: =IF('DF raw data'!E8="","",'DF raw data'!E8) -> Meas. number | B8: =IF('DF raw data'!F8="","",'DF raw data'!F8) -> 153 | C8: =IF('DF raw data'!G8="","",'DF raw data'!G8) ->  | D8: =IF('DF raw data'!H8="","",'DF raw data'!H8) -> 
A9: =IF('DF raw data'!E9="","",'DF raw data'!E9) -> Add. info | B9: =IF('DF raw data'!F9="","",'DF raw data'!F9) -> Y-alignment scan 2) | C9: =IF('DF raw data'!G9="","",'DF raw data'!G9) ->  | D9: =IF('DF raw data'!H9="","",'DF raw data'!H9) -> 
A10: =IF('DF raw data'!E10="","",'DF raw data'!E10) -> Device | B10: =IF('DF raw data'!F10="","",'DF raw data'!F10) -> (HAL) HALL-PROBE | C10: =IF('DF raw data'!G10="","",'DF raw data'!G10) ->  | D10: =IF('DF raw data'!H10="","",'DF raw data'!H10) -> 
A11: =IF('DF raw data'!E11="","",'DF raw data'!E11) -> Goal | B11: =IF('DF raw data'!F11="","",'DF raw data'!F11) -> (AXI) AXis Integral (Line, EFB) | C11: =IF('DF raw data'!G11="","",'DF raw data'!G11) ->  | D11: =IF('DF raw data'!H11="","",'DF raw data'!H11) -> 
A12: =IF('DF raw data'!E12="","",'DF raw data'!E12) -> Power supply mode | B12: =IF('DF raw data'!F12="","",'DF raw data'!F12) -> (PM) Permanent Magnet (no MPS in use) | C12: =IF('DF raw data'!G12="","",'DF raw data'!G12) ->  | D12: =IF('DF raw data'!H12="","",'DF raw data'!H12) -> 
A13: =IF('DF raw data'!E13="","",'DF raw data'!E13) -> Data format | B13: =IF('DF raw data'!F13="","",'DF raw data'!F13) -> Raw data text file | C13: =IF('DF raw data'!G13="","",'DF raw data'!G13) ->  | D13: =IF('DF raw data'!H13="","",'DF raw data'!H13) -> 
A14: =IF('DF raw data'!E14="","",'DF raw data'!E14) -> Direction of the pos. x-axis | B14: =IF('DF raw data'!F14="","",'DF raw data'!F14) -> See test program | C14: =IF('DF raw data'!G14="","",'DF raw data'!G14) ->  | D14: =IF('DF raw data'!H14="","",'DF raw data'!H14) -> 
A15: =IF('DF raw data'!E15="","",'DF raw data'!E15) -> Direction of the pos. y-axis | B15: =IF('DF raw data'!F15="","",'DF raw data'!F15) -> Vertical up | C15: =IF('DF raw data'!G15="","",'DF raw data'!G15) ->  | D15: =IF('DF raw data'!H15="","",'DF raw data'!H15) -> 
A16: =IF('DF raw data'!E16="","",'DF raw data'!E16) -> Direction of the pos. z-axis | B16: =IF('DF raw data'!F16="","",'DF raw data'!F16) -> See test program | C16: =IF('DF raw data'!G16="","",'DF raw data'!G16) ->  | D16: =IF('DF raw data'!H16="","",'DF raw data'!H16) -> 
A17: =IF('DF raw data'!E17="","",'DF raw data'!E17) -> Mapper type | B17: =IF('DF raw data'!F17="","",'DF raw data'!F17) -> Precision Hall Mapper | C17: =IF('DF raw data'!G17="","",'DF raw data'!G17) ->  | D17: =IF('DF raw data'!H17="","",'DF raw data'!H17) -> 
A18: =IF('DF raw data'!E18="","",'DF raw data'!E18) -> Mapper Danfysik Reg. Number | B18: =IF('DF raw data'!F18="","",'DF raw data'!F18) -> 2033-D (mapper 1) | C18: =IF('DF raw data'!G18="","",'DF raw data'!G18) ->  | D18: =IF('DF raw data'!H18="","",'DF raw data'!H18) -> 
A19: =IF('DF raw data'!E19="","",'DF raw data'!E19) -> Measurement consept | B19: =IF('DF raw data'!F19="","",'DF raw data'!F19) -> Square line grid | C19: =IF('DF raw data'!G19="","",'DF raw data'!G19) ->  | D19: =IF('DF raw data'!H19="","",'DF raw data'!H19) -> 
A20: =IF('DF raw data'!E20="","",'DF raw data'!E20) -> Mode | B20: =IF('DF raw data'!F20="","",'DF raw data'!F20) -> On-the-fly measurement | C20: =IF('DF raw data'!G20="","",'DF raw data'!G20) ->  | D20: =IF('DF raw data'!H20="","",'DF raw data'!H20) -> 
A21: =IF('DF raw data'!E21="","",'DF raw data'!E21) ->  | B21: =IF('DF raw data'!F21="","",'DF raw data'!F21) ->  | C21: =IF('DF raw data'!G21="","",'DF raw data'!G21) ->  | D21: =IF('DF raw data'!H21="","",'DF raw data'!H21) -> 
A22: =IF('DF raw data'!E22="","",'DF raw data'!E22) -> Probe Name | B22: =IF('DF raw data'!F22="","",'DF raw data'!F22) -> ID12_By | C22: =IF('DF raw data'!G22="","",'DF raw data'!G22) ->  | D22: =IF('DF raw data'!H22="","",'DF raw data'!H22) -> 
A23: =IF('DF raw data'!E23="","",'DF raw data'!E23) -> Probe Type | B23: =IF('DF raw data'!F23="","",'DF raw data'!F23) -> DF_ID_3D_Bxyz | C23: =IF('DF raw data'!G23="","",'DF raw data'!G23) ->  | D23: =IF('DF raw data'!H23="","",'DF raw data'!H23) -> 
A24: =IF('DF raw data'!E24="","",'DF raw data'!E24) -> Probe Danfysik Reg. Number | B24: =IF('DF raw data'!F24="","",'DF raw data'!F24) -> 2277 | C24: =IF('DF raw data'!G24="","",'DF raw data'!G24) ->  | D24: =IF('DF raw data'!H24="","",'DF raw data'!H24) -> 
A25: =IF('DF raw data'!E25="","",'DF raw data'!E25) -> Probe Axis | B25: =IF('DF raw data'!F25="","",'DF raw data'!F25) -> By | C25: =IF('DF raw data'!G25="","",'DF raw data'!G25) ->  | D25: =IF('DF raw data'!H25="","",'DF raw data'!H25) -> 
A26: =IF('DF raw data'!E26="","",'DF raw data'!E26) -> Probe Current Supply | B26: =IF('DF raw data'!F26="","",'DF raw data'!F26) -> 1825-D | C26: =IF('DF raw data'!G26="","",'DF raw data'!G26) ->  | D26: =IF('DF raw data'!H26="","",'DF raw data'!H26) -> 
A27: =IF('DF raw data'!E27="","",'DF raw data'!E27) -> Probe Gain Correction | B27: =IF('DF raw data'!F27="","",'DF raw data'!F27) -> 0.99612 | C27: =IF('DF raw data'!G27="","",'DF raw data'!G27) ->  | D27: =IF('DF raw data'!H27="","",'DF raw data'!H27) -> 
A28: =IF('DF raw data'!E28="","",'DF raw data'!E28) -> Probe Offset Correction | B28: =IF('DF raw data'!F28="","",'DF raw data'!F28) -> 0.0027538 | C28: =IF('DF raw data'!G28="","",'DF raw data'!G28) ->  | D28: =IF('DF raw data'!H28="","",'DF raw data'!H28) -> 
A29: =IF('DF raw data'!E29="","",'DF raw data'!E29) -> DVM Number | B29: =IF('DF raw data'!F29="","",'DF raw data'!F29) -> 2 | C29: =IF('DF raw data'!G29="","",'DF raw data'!G29) ->  | D29: =IF('DF raw data'!H29="","",'DF raw data'!H29) -> 
A30: =IF('DF raw data'!E30="","",'DF raw data'!E30) -> DVM Type | B30: =IF('DF raw data'!F30="","",'DF raw data'!F30) -> K2701 | C30: =IF('DF raw data'!G30="","",'DF raw data'!G30) ->  | D30: =IF('DF raw data'!H30="","",'DF raw data'!H30) -> 
A31: =IF('DF raw data'!E31="","",'DF raw data'!E31) -> DVM Danfysik Reg. Number | B31: =IF('DF raw data'!F31="","",'DF raw data'!F31) -> 1743-D | C31: =IF('DF raw data'!G31="","",'DF raw data'!G31) ->  | D31: =IF('DF raw data'!H31="","",'DF raw data'!H31) -> 
A32: =IF('DF raw data'!E32="","",'DF raw data'!E32) -> Probe Name | B32: =IF('DF raw data'!F32="","",'DF raw data'!F32) -> ID12_Bx | C32: =IF('DF raw data'!G32="","",'DF raw data'!G32) ->  | D32: =IF('DF raw data'!H32="","",'DF raw data'!H32) -> 
A33: =IF('DF raw data'!E33="","",'DF raw data'!E33) -> Probe Type | B33: =IF('DF raw data'!F33="","",'DF raw data'!F33) -> DF_ID_3D_Bxyz | C33: =IF('DF raw data'!G33="","",'DF raw data'!G33) ->  | D33: =IF('DF raw data'!H33="","",'DF raw data'!H33) -> 
A34: =IF('DF raw data'!E34="","",'DF raw data'!E34) -> Probe Danfysik Reg. Number | B34: =IF('DF raw data'!F34="","",'DF raw data'!F34) -> 2277 | C34: =IF('DF raw data'!G34="","",'DF raw data'!G34) ->  | D34: =IF('DF raw data'!H34="","",'DF raw data'!H34) -> 
A35: =IF('DF raw data'!E35="","",'DF raw data'!E35) -> Probe Axis | B35: =IF('DF raw data'!F35="","",'DF raw data'!F35) -> Bx | C35: =IF('DF raw data'!G35="","",'DF raw data'!G35) ->  | D35: =IF('DF raw data'!H35="","",'DF raw data'!H35) -> 
A36: =IF('DF raw data'!E36="","",'DF raw data'!E36) -> Probe Current Supply | B36: =IF('DF raw data'!F36="","",'DF raw data'!F36) -> 1825-D | C36: =IF('DF raw data'!G36="","",'DF raw data'!G36) ->  | D36: =IF('DF raw data'!H36="","",'DF raw data'!H36) -> 
A37: =IF('DF raw data'!E37="","",'DF raw data'!E37) -> Probe Gain Correction | B37: =IF('DF raw data'!F37="","",'DF raw data'!F37) -> 1 | C37: =IF('DF raw data'!G37="","",'DF raw data'!G37) ->  | D37: =IF('DF raw data'!H37="","",'DF raw data'!H37) -> 
A38: =IF('DF raw data'!E38="","",'DF raw data'!E38) -> Probe Offset Correction | B38: =IF('DF raw data'!F38="","",'DF raw data'!F38) -> -0.17579 | C38: =IF('DF raw data'!G38="","",'DF raw data'!G38) ->  | D38: =IF('DF raw data'!H38="","",'DF raw data'!H38) -> 
A39: =IF('DF raw data'!E39="","",'DF raw data'!E39) -> DVM Number | B39: =IF('DF raw data'!F39="","",'DF raw data'!F39) -> 3 | C39: =IF('DF raw data'!G39="","",'DF raw data'!G39) ->  | D39: =IF('DF raw data'!H39="","",'DF raw data'!H39) -> 
A40: =IF('DF raw data'!E40="","",'DF raw data'!E40) -> DVM Type | B40: =IF('DF raw data'!F40="","",'DF raw data'!F40) -> K2701 | C40: =IF('DF raw data'!G40="","",'DF raw data'!G40) ->  | D40: =IF('DF raw data'!H40="","",'DF raw data'!H40) -> 
A41: =IF('DF raw data'!E41="","",'DF raw data'!E41) -> DVM Danfysik Reg. Number | B41: =IF('DF raw data'!F41="","",'DF raw data'!F41) -> 1744-D | C41: =IF('DF raw data'!G41="","",'DF raw data'!G41) ->  | D41: =IF('DF raw data'!H41="","",'DF raw data'!H41) -> 
A42: =IF('DF raw data'!E42="","",'DF raw data'!E42) -> Probe Name | B42: =IF('DF raw data'!F42="","",'DF raw data'!F42) -> ID12_Bz | C42: =IF('DF raw data'!G42="","",'DF raw data'!G42) ->  | D42: =IF('DF raw data'!H42="","",'DF raw data'!H42) -> 
A43: =IF('DF raw data'!E43="","",'DF raw data'!E43) -> Probe Type | B43: =IF('DF raw data'!F43="","",'DF raw data'!F43) -> DF_ID_3D_Bxyz | C43: =IF('DF raw data'!G43="","",'DF raw data'!G43) ->  | D43: =IF('DF raw data'!H43="","",'DF raw data'!H43) -> 
A44: =IF('DF raw data'!E44="","",'DF raw data'!E44) -> Probe Danfysik Reg. Number | B44: =IF('DF raw data'!F44="","",'DF raw data'!F44) -> 2277 | C44: =IF('DF raw data'!G44="","",'DF raw data'!G44) ->  | D44: =IF('DF raw data'!H44="","",'DF raw data'!H44) -> 
A45: =IF('DF raw data'!E45="","",'DF raw data'!E45) -> Probe Axis | B45: =IF('DF raw data'!F45="","",'DF raw data'!F45) -> Bz | C45: =IF('DF raw data'!G45="","",'DF raw data'!G45) ->  | D45: =IF('DF raw data'!H45="","",'DF raw data'!H45) -> 
A46: =IF('DF raw data'!E46="","",'DF raw data'!E46) -> Probe Current Supply | B46: =IF('DF raw data'!F46="","",'DF raw data'!F46) -> 1825-D | C46: =IF('DF raw data'!G46="","",'DF raw data'!G46) ->  | D46: =IF('DF raw data'!H46="","",'DF raw data'!H46) -> 
A47: =IF('DF raw data'!E47="","",'DF raw data'!E47) -> Probe Gain Correction | B47: =IF('DF raw data'!F47="","",'DF raw data'!F47) -> 1 | C47: =IF('DF raw data'!G47="","",'DF raw data'!G47) ->  | D47: =IF('DF raw data'!H47="","",'DF raw data'!H47) -> 
A48: =IF('DF raw data'!E53="","",'DF raw data'!E53) -> PS-Gap: | B48: =IF('DF raw data'!F53="","",'DF raw data'!F53) -> 10 | C48: =IF('DF raw data'!G53="","",'DF raw data'!G53) ->  | D48: =IF('DF raw data'!H53="","",'DF raw data'!H53) -> 
A49: =IF('DF raw data'!E54="","",'DF raw data'!E54) -> PS-Temperature: | B49: =IF('DF raw data'!F54="","",'DF raw data'!F54) -> 26.1 | C49: =IF('DF raw data'!G54="","",'DF raw data'!G54) ->  | D49: =IF('DF raw data'!H54="","",'DF raw data'!H54) -> 
A50: =IF('DF raw data'!E55="","",'DF raw data'!E55) -> PS-Encoder: | B50: =IF('DF raw data'!F55="","",'DF raw data'!F55) -> 20.0357 | C50: =IF('DF raw data'!G55="","",'DF raw data'!G55) ->  | D50: =IF('DF raw data'!H55="","",'DF raw data'!H55) -> 
A51: =IF('DF raw data'!E56="","",'DF raw data'!E56) ->  | B51: =IF('DF raw data'!F56="","",'DF raw data'!F56) ->  | C51: =IF('DF raw data'!G56="","",'DF raw data'!G56) ->  | D51: =IF('DF raw data'!H56="","",'DF raw data'!H56) -> 
A52: =IF('DF raw data'!E57="","",'DF raw data'!E57) -> Monitor-Index | B52: =IF('DF raw data'!F57="","",'DF raw data'!F57) -> [1,1,4] | C52: =IF('DF raw data'!G57="","",'DF raw data'!G57) ->  | D52: =IF('DF raw data'!H57="","",'DF raw data'!H57) -> 
A53: =IF('DF raw data'!E58="","",'DF raw data'!E58) ->  | B53: =IF('DF raw data'!F58="","",'DF raw data'!F58) ->  | C53: =IF('DF raw data'!G58="","",'DF raw data'!G58) ->  | D53: =IF('DF raw data'!H58="","",'DF raw data'!H58) -> 
A54: =IF('DF raw data'!E59="","",'DF raw data'!E59) -> Time [s] | B54: =IF('DF raw data'!F59="","",'DF raw data'!F59) -> Y [mm] | C54: =IF('DF raw data'!G59="","",'DF raw data'!G59) -> X [mm] | D54: =IF('DF raw data'!H59="","",'DF raw data'!H59) -> Nominal current [A]
A55: =IF('DF raw data'!E60="","",'DF raw data'!E60) ->  | B55: =IF('DF raw data'!F60="","",'DF raw data'!F60) ->  | C55: =IF('DF raw data'!G60="","",'DF raw data'!G60) ->  | D55: =IF('DF raw data'!H60="","",'DF raw data'!H60) -> 
A56: =IF('DF raw data'!E61="","",'DF raw data'!E61) -> 206.3 | B56: =IF('DF raw data'!F61="","",'DF raw data'!F61) -> 31.06 | C56: =IF('DF raw data'!G61="","",'DF raw data'!G61) -> 301.8 | D56: =IF('DF raw data'!H61="","",'DF raw data'!H61) -> 0
A57: =IF('DF raw data'!E62="","",'DF raw data'!E62) ->  | B57: =IF('DF raw data'!F62="","",'DF raw data'!F62) ->  | C57: =IF('DF raw data'!G62="","",'DF raw data'!G62) ->  | D57: =IF('DF raw data'!H62="","",'DF raw data'!H62) -> 
A58: =IF('DF raw data'!E63="","",'DF raw data'!E63) -> Measurement-Index | B58: =IF('DF raw data'!F63="","",'DF raw data'!F63) -> [1,1,1201,2] | C58: =IF('DF raw data'!G63="","",'DF raw data'!G63) ->  | D58: =IF('DF raw data'!H63="","",'DF raw data'!H63) -> 
A59: =IF('DF raw data'!E64="","",'DF raw data'!E64) ->  | B59: =IF('DF raw data'!F64="","",'DF raw data'!F64) ->  | C59: =IF('DF raw data'!G64="","",'DF raw data'!G64) ->  | D59: =IF('DF raw data'!H64="","",'DF raw data'!H64) -> 
A60: =IF('DF raw data'!E65="","",'DF raw data'!E65) -> Z [mm] | B60: By [T] | C60: Bx [T] | D60: Bz [T] | F60: By_corr | G60: Bx_corr | H60: Bz_corr | J60: Iy | K60: Jy | L60: Ix | M60: Jx | N60: PI
A62: =IF('DF raw data'!E67="","",'DF raw data'!E67) -> -300 | B62: =IF('DF raw data'!F67="","",'DF raw data'!F67) -> -1.92295e-05 | C62: =IF('DF raw data'!G67="","",'DF raw data'!G67) -> 1.38176e-05 | D62: =IF('DF raw data'!H67="","",'DF raw data'!H67) -> -2.7506e-05 | F62: =(1-$G$1*($B$49))*B62 -> -1.959587966e-05 | G62: =(1-$G$1*($B$49-$G$2))*C62 -> 1.387912977e-05 | H62: =(1-$G$1*($B$49-$G$2))*D62 -> -2.762848422e-05 | J62: =F62*$G$3 -> -9.797939832e-06 | K62: =J62*$G$3 -> -4.898969916e-06 | L62: =G62*$G$3 -> 6.939564886e-06 | M62: =L62*$G$3 -> 3.469782443e-06 | N62: =(J62^2+L62^2)*$G$3 -> 7.207859288e-11
A63: =IF('DF raw data'!E68="","",'DF raw data'!E68) -> -299.5 | B63: =IF('DF raw data'!F68="","",'DF raw data'!F68) -> -2.66684e-05 | C63: =IF('DF raw data'!G68="","",'DF raw data'!G68) -> 1.6119e-05 | D63: =IF('DF raw data'!H68="","",'DF raw data'!H68) -> -2.71028e-05 | F63: =(1-$G$1*($B$49-$G$2))*B63 -> -2.678715439e-05 | G63: =(1-$G$1*($B$49-$G$2))*C63 -> 1.619077791e-05 | H63: -2.722348877e-05 | J63: =F63*$G$3+J62 -> -2.319151702e-05 | K63: =J63*$G$3+K62 -> -1.649472843e-05 | L63: =G63*$G$3+L62 -> 1.503495384e-05 | M63: =L63*$G$3+M62 -> 1.098725936e-05 | N63: =(J63^2+L63^2)*$G$3+N62 -> 4.540267423e-10
A64: =IF('DF raw data'!E69="","",'DF raw data'!E69) -> -299 | B64: =IF('DF raw data'!F69="","",'DF raw data'!F69) -> -1.83323e-05 | C64: =IF('DF raw data'!G69="","",'DF raw data'!G69) -> 1.40166e-05 | D64: =IF('DF raw data'!H69="","",'DF raw data'!H69) -> -2.67895e-05 | F64: =(1-$G$1*($B$49-$G$2))*B64 -> -1.841393373e-05 | G64: 1.407901592e-05 | H64: -2.690879364e-05 | J64: =F64*$G$3+J63 -> -3.239848389e-05 | K64: =J64*$G$3+K63 -> -3.269397037e-05 | L64: =G64*$G$3+L63 -> 2.20744618e-05 | M64: =L64*$G$3+M63 -> 2.202449026e-05 | N64: =(J64^2+L64^2)*$G$3+N63 -> 1.222498553e-09
A65: =IF('DF raw data'!E70="","",'DF raw data'!E70) -> -298.5 | B65: =IF('DF raw data'!F70="","",'DF raw data'!F70) -> -2.09611e-05 | C65: =IF('DF raw data'!G70="","",'DF raw data'!G70) -> 1.54253e-05 | D65: =IF('DF raw data'!H70="","",'DF raw data'!H70) -> -2.72838e-05 | F65: -2.105443978e-05 | G65: 1.549398886e-05 | H65: -2.740529476e-05 | J65: -4.292570378e-05 | K65: -5.415682226e-05 | L65: 2.982145623e-05 | M65: 3.693521838e-05 | N65: 2.588466202e-09
A66: =IF('DF raw data'!E71="","",'DF raw data'!E71) -> -298 | B66: =IF('DF raw data'!F71="","",'DF raw data'!F71) -> -2.08325e-05 | C66: =IF('DF raw data'!G71="","",'DF raw data'!G71) -> 1.31725e-05 | D66: =IF('DF raw data'!H71="","",'DF raw data'!H71) -> -2.78726e-05 | F66: -2.092526712e-05 | G66: 1.323115714e-05 | H66: -2.799671669e-05 | J66: -5.338833734e-05 | K66: -8.085099093e-05 | L66: 3.64370348e-05 | M66: 5.515373578e-05 | N66: 4.677452236e-09
A67: =IF('DF raw data'!E72="","",'DF raw data'!E72) -> -297.5 | B67: =IF('DF raw data'!F72="","",'DF raw data'!F72) -> -3.30805e-05 | C67: =IF('DF raw data'!G72="","",'DF raw data'!G72) -> 7.27966e-06 | D67: =IF('DF raw data'!H72="","",'DF raw data'!H72) -> -2.74808e-05 | F67: -3.322780747e-05 | G67: 7.312076326e-06 | H67: -2.7603172e-05 | J67: -7.000224107e-05 | K67: -0.0001158521115 | L67: 4.009307296e-05 | M67: 7.520027226e-05 | N67: 7.931336364e-09
A68: =IF('DF raw data'!E73="","",'DF raw data'!E73) -> -297 | B68: =IF('DF raw data'!F73="","",'DF raw data'!F73) -> -3.01955e-05 | C68: =IF('DF raw data'!G73="","",'DF raw data'!G73) -> 1.27504e-05 | D68: =IF('DF raw data'!H73="","",'DF raw data'!H73) -> -2.64518e-05 | F68: -3.032996056e-05 | G68: 1.280717753e-05 | H68: -2.656958987e-05 | J68: -8.516722135e-05 | K68: -0.0001584357221 | L68: 4.649666173e-05 | M68: 9.844860313e-05 | N68: 1.263903394e-08
A69: =IF('DF raw data'!E74="","",'DF raw data'!E74) -> -296.5 | B69: =IF('DF raw data'!F74="","",'DF raw data'!F74) -> -2.62203e-05 | C69: =IF('DF raw data'!G74="","",'DF raw data'!G74) -> 2.00925e-05 | D69: =IF('DF raw data'!H74="","",'DF raw data'!H74) -> -2.57282e-05 | F69: -2.6337059e-05 | G69: 2.01819719e-05 | H69: -2.584276767e-05 | J69: -9.833575085e-05 | K69: -0.0002076035976 | L69: 5.658764768e-05 | M69: 0.000126742427 | N69: 1.907507482e-08
A70: =IF('DF raw data'!E75="","",'DF raw data'!E75) -> -296 | B70: =IF('DF raw data'!F75="","",'DF raw data'!F75) -> -2.29499e-05 | C70: =IF('DF raw data'!G75="","",'DF raw data'!G75) -> 2.1629e-05 | D70: =IF('DF raw data'!H75="","",'DF raw data'!H75) -> -2.57067e-05 | F70: -2.30520959e-05 | G70: 2.172531394e-05 | H70: -2.582117194e-05 | J70: -0.0001098617988 | K70: -0.000262534497 | L70: 6.745030465e-05 | M70: 0.0001604675793 | N70: 2.738465404e-08
A71: =IF('DF raw data'!E76="","",'DF raw data'!E76) -> -295.5 | B71: =IF('DF raw data'!F76="","",'DF raw data'!F76) -> -1.60883e-05 | C71: =IF('DF raw data'!G76="","",'DF raw data'!G76) -> 1.77899e-05 | D71: =IF('DF raw data'!H76="","",'DF raw data'!H76) -> -2.60836e-05 | F71: -1.61599412e-05 | G71: 1.786911842e-05 | H71: -2.619975027e-05 | J71: -0.0001179417694 | K71: -0.0003215053817 | L71: 7.638486386e-05 | M71: 0.0001986600112 | N71: 3.725710824e-08
A72: =IF('DF raw data'!E77="","",'DF raw data'!E77) -> -295 | B72: =IF('DF raw data'!F77="","",'DF raw data'!F77) -> -2.11539e-05 | C72: =IF('DF raw data'!G77="","",'DF raw data'!G77) -> 1.79216e-05 | D72: =IF('DF raw data'!H77="","",'DF raw data'!H77) -> -2.64323e-05 | F72: -2.124809832e-05 | G72: 1.800140488e-05 | H72: -2.655000303e-05 | J72: -0.0001285658186 | K72: -0.000385788291 | L72: 8.53855663e-05 | M72: 0.0002413527944 | N72: 4.916704055e-08
A73: =IF('DF raw data'!E78="","",'DF raw data'!E78) -> -294.5 | B73: =IF('DF raw data'!F78="","",'DF raw data'!F78) -> -1.28817e-05 | C73: =IF('DF raw data'!G78="","",'DF raw data'!G78) -> 1.61648e-05 | D73: =IF('DF raw data'!H78="","",'DF raw data'!H78) -> -2.67362e-05 | F73: -1.293906221e-05 | G73: 1.623678185e-05 | H73: -2.68552563e-05 | J73: -0.0001350353497 | K73: -0.0004533059658 | L73: 9.350395723e-05 | M73: 0.000288104773 | N73: 6.265580839e-08
A74: =IF('DF raw data'!E79="","",'DF raw data'!E79) -> -294 | B74: =IF('DF raw data'!F79="","",'DF raw data'!F79) -> -2.08331e-05 | C74: =IF('DF raw data'!G79="","",'DF raw data'!G79) -> 1.43325e-05 | D74: =IF('DF raw data'!H79="","",'DF raw data'!H79) -> -2.70133e-05 | F74: -2.092586979e-05 | G74: 1.439632262e-05 | H74: -2.713359022e-05 | J74: -0.0001454982846 | K74: -0.0005260551081 | L74: 0.0001007021185 | M74: 0.0003384558323 | N74: 7.831114214e-08
A75: =IF('DF raw data'!E80="","",'DF raw data'!E80) -> -293.5 | B75: =IF('DF raw data'!F80="","",'DF raw data'!F80) -> -1.52539e-05 | C75: =IF('DF raw data'!G80="","",'DF raw data'!G80) -> 1.46001e-05 | D75: =IF('DF raw data'!H80="","",'DF raw data'!H80) -> -2.74532e-05 | F75: -1.532182562e-05 | G75: 1.466511425e-05 | H75: -2.75754491e-05 | J75: -0.0001531591974 | K75: -0.0006026347068 | L75: 0.0001080346757 | M75: 0.0003924731701 | N75: 9.587575758e-08
A76: =IF('DF raw data'!E81="","",'DF raw data'!E81) -> -293 | B76: =IF('DF raw data'!F81="","",'DF raw data'!F81) -> -2.00633e-05 | C76: =IF('DF raw data'!G81="","",'DF raw data'!G81) -> 1.96259e-05 | D76: =IF('DF raw data'!H81="","",'DF raw data'!H81) -> -2.75634e-05 | F76: -2.015264187e-05 | G76: 1.971329413e-05 | H76: -2.768613982e-05 | J76: -0.0001632355183 | K76: -0.0006842524659 | L76: 0.0001178913227 | M76: 0.0004514188315 | N76: 1.161478568e-07
A77: =IF('DF raw data'!E82="","",'DF raw data'!E82) -> -292.5 | B77: =IF('DF raw data'!F82="","",'DF raw data'!F82) -> -3.07723e-05 | C77: =IF('DF raw data'!G82="","",'DF raw data'!G82) -> 1.38132e-05 | D77: =IF('DF raw data'!H82="","",'DF raw data'!H82) -> -2.7139e-05 | F77: -3.090932905e-05 | G77: 1.387471018e-05 | H77: -2.725984997e-05 | J77: -0.0001786901828 | K77: -0.0007735975573 | L77: 0.0001248286778 | M77: 0.0005138331704 | N77: 1.399040469e-07
A78: =IF('DF raw data'!E83="","",'DF raw data'!E83) -> -292 | B78: =IF('DF raw data'!F83="","",'DF raw data'!F83) -> -1.76265e-05 | C78: =IF('DF raw data'!G83="","",'DF raw data'!G83) -> 8.87869e-06 | D78: =IF('DF raw data'!H83="","",'DF raw data'!H83) -> -2.71813e-05 | F78: -1.77049908e-05 | G78: 8.918226807e-06 | H78: -2.730233833e-05 | J78: -0.0001875426782 | K78: -0.0008673688965 | L78: 0.0001292877912 | M78: 0.000578477066 | N78: 1.658478415e-07
A79: =IF('DF raw data'!E84="","",'DF raw data'!E84) -> -291.5 | B79: =IF('DF raw data'!F84="","",'DF raw data'!F84) -> -2.47377e-05 | C79: =IF('DF raw data'!G84="","",'DF raw data'!G84) -> 1.28082e-05 | D79: =IF('DF raw data'!H84="","",'DF raw data'!H84) -> -3.79392e-05 | F79: -2.484785698e-05 | G79: 1.286523491e-05 | H79: -3.810814326e-05 | J79: -0.0001999666067 | K79: -0.0009673521998 | L79: 0.0001357204087 | M79: 0.0006463372703 | N79: 1.95051178e-07
A80: =IF('DF raw data'!E85="","",'DF raw data'!E85) -> -291 | B80: =IF('DF raw data'!F85="","",'DF raw data'!F85) -> -3.28269e-05 | C80: =IF('DF raw data'!G85="","",'DF raw data'!G85) -> 9.12528e-06 | D80: =IF('DF raw data'!H85="","",'DF raw data'!H85) -> -2.30802e-05 | F80: -3.297307819e-05 | G80: 9.165914872e-06 | H80: -2.318297613e-05 | J80: -0.0002164531458 | K80: -0.001075578773 | L80: 0.0001403033661 | M80: 0.0007164889534 | N80: 2.283196775e-07
A81: =IF('DF raw data'!E86="","",'DF raw data'!E86) -> -290.5 | B81: =IF('DF raw data'!F86="","",'DF raw data'!F86) -> -3.22486e-05 | C81: =IF('DF raw data'!G86="","",'DF raw data'!G86) -> 1.37478e-05 | D81: =IF('DF raw data'!H86="","",'DF raw data'!H86) -> -2.50483e-05 | F81: -3.239220302e-05 | G81: 1.380901895e-05 | H81: -2.515984008e-05 | J81: -0.0002326492473 | K81: -0.001191903396 | L81: 0.0001472078756 | M81: 0.0007900928912 | N81: 2.662175929e-07
A82: =IF('DF raw data'!E87="","",'DF raw data'!E87) -> -290 | B82: =IF('DF raw data'!F87="","",'DF raw data'!F87) -> -3.66742e-05 | C82: =IF('DF raw data'!G87="","",'DF raw data'!G87) -> 2.30368e-05 | D82: =IF('DF raw data'!H87="","",'DF raw data'!H87) -> -2.32863e-05 | F82: -3.683751021e-05 | G82: 2.313938287e-05 | H82: -2.338999389e-05 | J82: -0.0002510680024 | K82: -0.001317437398 | L82: 0.000158777567 | M82: 0.0008694816747 | N82: 3.103403218e-07
A83: =IF('DF raw data'!E88="","",'DF raw data'!E88) -> -289.5 | B83: =IF('DF raw data'!F88="","",'DF raw data'!F88) -> -2.32055e-05 | C83: =IF('DF raw data'!G88="","",'DF raw data'!G88) -> 2.65407e-05 | D83: =IF('DF raw data'!H88="","",'DF raw data'!H88) -> -2.70934e-05 | F83: -2.330883409e-05 | G83: 2.665888574e-05 | H83: -2.721404691e-05 | J83: -0.0002627224195 | K83: -0.001448798607 | L83: 0.0001721070099 | M83: 0.0009555351796 | N83: 3.59662268e-07
A84: =IF('DF raw data'!E89="","",'DF raw data'!E89) -> -289 | B84: =IF('DF raw data'!F89="","",'DF raw data'!F89) -> -1.71121e-05 | C84: =IF('DF raw data'!G89="","",'DF raw data'!G89) -> 1.55702e-05 | D84: =IF('DF raw data'!H89="","",'DF raw data'!H89) -> -2.94967e-05 | F84: -1.718830018e-05 | G84: 1.56395341e-05 | H84: -2.962804881e-05 | J84: -0.0002713165696 | K84: -0.001584456892 | L84: 0.0001799267769 | M84: 0.001045498568 | N84: 4.12655431e-07
A85: =IF('DF raw data'!E90="","",'DF raw data'!E90) -> -288.5 | B85: =IF('DF raw data'!F90="","",'DF raw data'!F90) -> -2.5905e-05 | C85: =IF('DF raw data'!G90="","",'DF raw data'!G90) -> 2.29986e-05 | D85: =IF('DF raw data'!H90="","",'DF raw data'!H90) -> -1.77333e-05 | F85: -2.602035497e-05 | G85: 2.310101277e-05 | H85: -1.781226638e-05 | J85: -0.0002843267471 | K85: -0.001726620266 | L85: 0.0001914772833 | M85: 0.00114123721 | N85: 4.714080556e-07
A86: =IF('DF raw data'!E91="","",'DF raw data'!E91) -> -288 | B86: =IF('DF raw data'!F91="","",'DF raw data'!F91) -> -2.808e-05 | C86: =IF('DF raw data'!G91="","",'DF raw data'!G91) -> 2.29969e-05 | D86: =IF('DF raw data'!H91="","",'DF raw data'!H91) -> -2.57521e-05 | F86: -2.820504024e-05 | G86: 2.30993052e-05 | H86: -2.58667741e-05 | J86: -0.0002984292672 | K86: -0.001875834899 | L86: 0.0002030269359 | M86: 0.001242750678 | N86: 5.365480377e-07
A87: =IF('DF raw data'!E92="","",'DF raw data'!E92) -> -287.5 | B87: =IF('DF raw data'!F92="","",'DF raw data'!F92) -> -1.85877e-05 | C87: =IF('DF raw data'!G92="","",'DF raw data'!G92) -> 1.56398e-05 | D87: =IF('DF raw data'!H92="","",'DF raw data'!H92) -> -2.84305e-05 | F87: -1.867047103e-05 | G87: 1.570944403e-05 | H87: -2.855710102e-05 | J87: -0.0003077645027 | K87: -0.002029717151 | L87: 0.0002108816579 | M87: 0.001348191507 | N87: 6.061430691e-07
A88: =IF('DF raw data'!E93="","",'DF raw data'!E93) -> -287 | B88: =IF('DF raw data'!F93="","",'DF raw data'!F93) -> -2.87258e-05 | C88: =IF('DF raw data'!G93="","",'DF raw data'!G93) -> 4.73437e-06 | D88: =IF('DF raw data'!H93="","",'DF raw data'!H93) -> -1.87259e-05 | F88: -2.885371599e-05 | G88: 4.75545215e-06 | H88: -1.880928643e-05 | J88: -0.0003221913607 | K88: -0.002190812831 | L88: 0.000213259384 | M88: 0.001454821199 | N88: 6.80786488e-07
A89: =IF('DF raw data'!E94="","",'DF raw data'!E94) -> -286.5 | B89: =IF('DF raw data'!F94="","",'DF raw data'!F94) -> -2.94228e-05 | C89: =IF('DF raw data'!G94="","",'DF raw data'!G94) -> 1.40759e-05 | D89: =IF('DF raw data'!H94="","",'DF raw data'!H94) -> -3.13761e-05 | F89: -2.955381973e-05 | G89: 1.413857998e-05 | H89: -3.151581777e-05 | J89: -0.0003369682705 | K89: -0.002359296966 | L89: 0.000220328674 | M89: 0.001564985536 | N89: 7.618326579e-07
A90: =IF('DF raw data'!E95="","",'DF raw data'!E95) -> -286 | B90: =IF('DF raw data'!F95="","",'DF raw data'!F95) -> -2.62907e-05 | C90: =IF('DF raw data'!G95="","",'DF raw data'!G95) -> 2.2926e-05 | D90: =IF('DF raw data'!H95="","",'DF raw data'!H95) -> -1.62504e-05 | F90: -2.640777249e-05 | G90: 2.302808948e-05 | H90: -1.632276303e-05 | J90: -0.0003501721568 | K90: -0.002534383045 | L90: 0.0002318427187 | M90: 0.001680906895 | N90: 8.500184508e-07
A91: =IF('DF raw data'!E96="","",'DF raw data'!E96) -> -285.5 | B91: =IF('DF raw data'!F96="","",'DF raw data'!F96) -> -2.42298e-05 | C91: =IF('DF raw data'!G96="","",'DF raw data'!G96) -> 2.21402e-05 | D91: =IF('DF raw data'!H96="","",'DF raw data'!H96) -> -2.97261e-05 | F91: -2.43376953e-05 | G91: 2.223879031e-05 | H91: -2.985847032e-05 | J91: -0.0003623410044 | K91: -0.002715553547 | L91: 0.0002429621139 | M91: 0.001802387952 | N91: 9.451792469e-07
A92: =IF('DF raw data'!E97="","",'DF raw data'!E97) -> -285 | B92: =IF('DF raw data'!F97="","",'DF raw data'!F97) -> -2.91097e-05 | C92: =IF('DF raw data'!G97="","",'DF raw data'!G97) -> 1.64032e-05 | D92: =IF('DF raw data'!H97="","",'DF raw data'!H97) -> -2.01009e-05 | F92: -2.923932549e-05 | G92: 1.647624345e-05 | H92: -2.019040931e-05 | J92: -0.0003769606672 | K92: -0.00290403388 | L92: 0.0002512002356 | M92: 0.00192798807 | N92: 1.047779698e-06
A93: =IF('DF raw data'!E98="","",'DF raw data'!E98) -> -284.5 | B93: =IF('DF raw data'!F98="","",'DF raw data'!F98) -> -3.14744e-05 | C93: =IF('DF raw data'!G98="","",'DF raw data'!G98) -> 2.56311e-05 | D93: =IF('DF raw data'!H98="","",'DF raw data'!H98) -> -3.24608e-05 | F93: -3.16145555e-05 | G93: 2.574523529e-05 | H93: -3.260534794e-05 | J93: -0.0003927679449 | K93: -0.003100417853 | L93: 0.0002640728533 | M93: 0.002060024497 | N93: 1.159780264e-06
A94: =IF('DF raw data'!E99="","",'DF raw data'!E99) -> -284 | B94: =IF('DF raw data'!F99="","",'DF raw data'!F99) -> -2.37811e-05 | C94: =IF('DF raw data'!G99="","",'DF raw data'!G99) -> 3.00431e-05 | D94: =IF('DF raw data'!H99="","",'DF raw data'!H99) -> -2.95863e-05 | F94: -2.388699724e-05 | G94: 3.017688192e-05 | H94: -2.971804779e-05 | J94: -0.0004047114436 | K94: -0.003302773575 | L94: 0.0002791612942 | M94: 0.002199605144 | N94: 1.280641454e-06
A95: =IF('DF raw data'!E100="","",'DF raw data'!E100) -> -283.5 | B95: =IF('DF raw data'!F100="","",'DF raw data'!F100) -> -2.57673e-05 | C95: =IF('DF raw data'!G100="","",'DF raw data'!G100) -> 2.74133e-05 | D95: =IF('DF raw data'!H100="","",'DF raw data'!H100) -> -3.23181e-05 | F95: -2.588204179e-05 | G95: 2.753537142e-05 | H95: -3.24620125e-05 | J95: -0.0004176524645 | K95: -0.003511599807 | L95: 0.0002929289799 | M95: 0.002346069634 | N95: 1.410761938e-06
A96: =IF('DF raw data'!E101="","",'DF raw data'!E101) -> -283 | B96: =IF('DF raw data'!F101="","",'DF raw data'!F101) -> -2.30715e-05 | C96: =IF('DF raw data'!G101="","",'DF raw data'!G101) -> 2.38702e-05 | D96: =IF('DF raw data'!H101="","",'DF raw data'!H101) -> -3.5992e-05 | F96: -2.317423739e-05 | G96: 2.3976494e-05 | H96: -3.615227238e-05 | J96: -0.0004292395831 | K96: -0.003726219598 | L96: 0.0003049172269 | M96: 0.002498528247 | N96: 1.549372506e-06
A97: =IF('DF raw data'!E102="","",'DF raw data'!E102) -> -282.5 | B97: =IF('DF raw data'!F102="","",'DF raw data'!F102) -> -1.57028e-05 | C97: =IF('DF raw data'!G102="","",'DF raw data'!G102) -> 2.12242e-05 | D97: =IF('DF raw data'!H102="","",'DF raw data'!H102) -> -2.72942e-05 | F97: -1.577272457e-05 | G97: 2.131871136e-05 | H97: -2.741574107e-05 | J97: -0.0004371259454 | K97: -0.003944782571 | L97: 0.0003155765826 | M97: 0.002656316538 | N97: 1.694706342e-06
A98: =IF('DF raw data'!E103="","",'DF raw data'!E103) -> -282 | B98: =IF('DF raw data'!F103="","",'DF raw data'!F103) -> -2.22435e-05 | C98: =IF('DF raw data'!G103="","",'DF raw data'!G103) -> 1.77264e-05 | D98: =IF('DF raw data'!H103="","",'DF raw data'!H103) -> -2.74869e-05 | F98: -2.234255031e-05 | G98: 1.780533566e-05 | H98: -2.760929917e-05 | J98: -0.0004482972206 | K98: -0.004168931181 | L98: 0.0003244792505 | M98: 0.002818556164 | N98: 1.847834932e-06
A99: =IF('DF raw data'!E104="","",'DF raw data'!E104) -> -281.5 | B99: =IF('DF raw data'!F104="","",'DF raw data'!F104) -> -2.08322e-05 | C99: =IF('DF raw data'!G104="","",'DF raw data'!G104) -> 1.06541e-05 | D99: =IF('DF raw data'!H104="","",'DF raw data'!H104) -> -2.8479e-05 | F99: -2.092496579e-05 | G99: 1.070154271e-05 | H99: -2.860581699e-05 | J99: -0.0004587597035 | K99: -0.004398311033 | L99: 0.0003298300218 | M99: 0.002983471175 | N99: 2.007459087e-06
A100: =IF('DF raw data'!E105="","",'DF raw data'!E105) -> -281 | B100: =IF('DF raw data'!F105="","",'DF raw data'!F105) -> -3.18688e-05 | C100: =IF('DF raw data'!G105="","",'DF raw data'!G105) -> 1.61886e-05 | D100: =IF('DF raw data'!H105="","",'DF raw data'!H105) -> -1.75996e-05 | F100: -3.201071177e-05 | G100: 1.626068784e-05 | H100: -1.767797102e-05 | J100: -0.0004747650594 | K100: -0.004635693563 | L100: 0.0003379603657 | M100: 0.003152451357 | N100: 2.177268622e-06
A101: =IF('DF raw data'!E106="","",'DF raw data'!E106) -> -280.5 | B101: =IF('DF raw data'!F106="","",'DF raw data'!F106) -> -2.30162e-05 | C101: =IF('DF raw data'!G106="","",'DF raw data'!G106) -> 2.33058e-05 | D101: =IF('DF raw data'!H106="","",'DF raw data'!H106) -> -2.25595e-05 | F101: -2.311869114e-05 | G101: 2.340958073e-05 | H101: -2.265995745e-05 | J101: -0.0004863244049 | K101: -0.004878855765 | L101: 0.0003496651561 | M101: 0.003327283935 | N101: 2.356657196e-06
A102: =IF('DF raw data'!E107="","",'DF raw data'!E107) -> -280 | B102: =IF('DF raw data'!F107="","",'DF raw data'!F107) -> -2.56379e-05 | C102: =IF('DF raw data'!G107="","",'DF raw data'!G107) -> 1.99151e-05 | D102: =IF('DF raw data'!H107="","",'DF raw data'!H107) -> -3.40891e-05 | F102: -2.575206557e-05 | G102: 2.000378194e-05 | H102: -3.424089876e-05 | J102: -0.0004992004377 | K102: -0.005128455984 | L102: 0.0003596670471 | M102: 0.003507117459 | N102: 2.545937927e-06
A103: =IF('DF raw data'!E108="","",'DF raw data'!E108) -> -279.5 | B103: =IF('DF raw data'!F108="","",'DF raw data'!F108) -> -2.78862e-05 | C103: =IF('DF raw data'!G108="","",'DF raw data'!G108) -> 1.15234e-05 | D103: =IF('DF raw data'!H108="","",'DF raw data'!H108) -> -2.77975e-05 | F103: -2.801037725e-05 | G103: 1.15747137e-05 | H103: -2.792128227e-05 | J103: -0.0005132056263 | K103: -0.005385058797 | L103: 0.0003654544039 | M103: 0.003689844661 | N103: 2.744406395e-06
A104: =IF('DF raw data'!E109="","",'DF raw data'!E109) -> -279 | B104: =IF('DF raw data'!F109="","",'DF raw data'!F109) -> -2.48021e-05 | C104: =IF('DF raw data'!G109="","",'DF raw data'!G109) -> 1.02526e-05 | D104: =IF('DF raw data'!H109="","",'DF raw data'!H109) -> -3.73697e-05 | F104: -2.491254375e-05 | G104: 1.029825483e-05 | H104: -3.753610727e-05 | J104: -0.0005256618982 | K104: -0.005647889746 | L104: 0.0003706035313 | M104: 0.003875146427 | N104: 2.9512401e-06
A105: =IF('DF raw data'!E110="","",'DF raw data'!E110) -> -278.5 | B105: =IF('DF raw data'!F110="","",'DF raw data'!F110) -> -1.47886e-05 | C105: =IF('DF raw data'!G110="","",'DF raw data'!G110) -> 1.49285e-05 | D105: =IF('DF raw data'!H110="","",'DF raw data'!H110) -> -5.26342e-05 | F105: -1.485445364e-05 | G105: 1.499497661e-05 | H105: -5.286858009e-05 | J105: -0.000533089125 | K105: -0.005914434309 | L105: 0.0003781010196 | M105: 0.004064196936 | N105: 3.164812298e-06
A106: =IF('DF raw data'!E111="","",'DF raw data'!E111) -> -278 | B106: =IF('DF raw data'!F111="","",'DF raw data'!F111) -> -2.61552e-05 | C106: =IF('DF raw data'!G111="","",'DF raw data'!G111) -> 7.70712e-06 | D106: =IF('DF raw data'!H111="","",'DF raw data'!H111) -> -2.75844e-05 | F106: -2.627166911e-05 | G106: 7.741439805e-06 | H106: -2.770723333e-05 | J106: -0.0005462249596 | K106: -0.006187546789 | L106: 0.0003819717395 | M106: 0.004255182806 | N106: 3.386944356e-06
A107: =IF('DF raw data'!E112="","",'DF raw data'!E112) -> -277.5 | B107: =IF('DF raw data'!F112="","",'DF raw data'!F112) -> -2.89788e-05 | C107: =IF('DF raw data'!G112="","",'DF raw data'!G112) -> 2.69486e-06 | D107: =IF('DF raw data'!H112="","",'DF raw data'!H112) -> -2.4222e-05 | F107: -2.91078426e-05 | G107: 2.706860212e-06 | H107: -2.432986057e-05 | J107: -0.0005607788809 | K107: -0.006467936229 | L107: 0.0003833251696 | M107: 0.004446845391 | N107: 3.617649925e-06
A108: =IF('DF raw data'!E113="","",'DF raw data'!E113) -> -277 | B108: =IF('DF raw data'!F113="","",'DF raw data'!F113) -> -3.11599e-05 | C108: =IF('DF raw data'!G113="","",'DF raw data'!G113) -> 7.35e-06 | D108: =IF('DF raw data'!H113="","",'DF raw data'!H113) -> -2.28187e-05 | F108: -3.129865503e-05 | G108: 7.38272955e-06 | H108: -2.292031167e-05 | J108: -0.0005764282084 | K108: -0.006756150333 | L108: 0.0003870165344 | M108: 0.004640353658 | N108: 3.858675564e-06
A109: =IF('DF raw data'!E114="","",'DF raw data'!E114) -> -276.5 | B109: =IF('DF raw data'!F114="","",'DF raw data'!F114) -> -2.30723e-05 | C109: =IF('DF raw data'!G114="","",'DF raw data'!G114) -> 1.28493e-05 | D109: =IF('DF raw data'!H114="","",'DF raw data'!H114) -> -3.46881e-05 | F109: -2.317504095e-05 | G109: 1.290651793e-05 | H109: -3.484256611e-05 | J109: -0.0005880157289 | K109: -0.007050158198 | L109: 0.0003934697934 | M109: 0.004837088555 | N109: 4.108966052e-06
A110: =IF('DF raw data'!E115="","",'DF raw data'!E115) -> -276 | B110: =IF('DF raw data'!F115="","",'DF raw data'!F115) -> -2.25641e-05 | C110: =IF('DF raw data'!G115="","",'DF raw data'!G115) -> 1.02785e-05 | D110: =IF('DF raw data'!H115="","",'DF raw data'!H115) -> -2.74031e-05 | F110: -2.266457794e-05 | G110: 1.032427016e-05 | H110: -2.7525126e-05 | J110: -0.0005993480178 | K110: -0.007349832207 | L110: 0.0003986319285 | M110: 0.005036404519 | N110: 4.368028782e-06
A111: =IF('DF raw data'!E116="","",'DF raw data'!E116) -> -275.5 | B111: =IF('DF raw data'!F116="","",'DF raw data'!F116) -> -3.01243e-05 | C111: =IF('DF raw data'!G116="","",'DF raw data'!G116) -> 7.2377e-06 | D111: =IF('DF raw data'!H116="","",'DF raw data'!H116) -> -3.76627e-05 | F111: -3.025844351e-05 | G111: 7.269929478e-06 | H111: -3.7830412e-05 | J111: -0.0006144772396 | K111: -0.007657070827 | L111: 0.0004022668932 | M111: 0.005237537966 | N111: 4.637729248e-06
A112: =IF('DF raw data'!E117="","",'DF raw data'!E117) -> -275 | B112: =IF('DF raw data'!F117="","",'DF raw data'!F117) -> -2.5448e-05 | C112: =IF('DF raw data'!G117="","",'DF raw data'!G117) -> 2.21437e-06 | D112: =IF('DF raw data'!H117="","",'DF raw data'!H117) -> -3.01493e-05 | F112: -2.556131994e-05 | G112: 2.22423059e-06 | H112: -3.028355483e-05 | J112: -0.0006272578996 | K112: -0.007970699776 | L112: 0.0004033790085 | M112: 0.00543922747 | N112: 4.915812796e-06
A113: =IF('DF raw data'!E118="","",'DF raw data'!E118) -> -274.5 | B113: =IF('DF raw data'!F118="","",'DF raw data'!F118) -> -1.99935e-05 | C113: =IF('DF raw data'!G118="","",'DF raw data'!G118) -> 6.22816e-06 | D113: =IF('DF raw data'!H118="","",'DF raw data'!H118) -> -3.60725e-05 | F113: -2.008253106e-05 | G113: 6.255893996e-06 | H113: -3.623313084e-05 | J113: -0.0006372991651 | K113: -0.008289349359 | L113: 0.0004065069555 | M113: 0.005642480948 | N113: 5.201511862e-06
A114: =IF('DF raw data'!E119="","",'DF raw data'!E119) -> -274 | B114: =IF('DF raw data'!F119="","",'DF raw data'!F119) -> -3.78202e-05 | C114: =IF('DF raw data'!G119="","",'DF raw data'!G119) -> 3.69122e-06 | D114: =IF('DF raw data'!H119="","",'DF raw data'!H119) -> -3.64653e-05 | F114: -3.798861335e-05 | G114: 3.707657003e-06 | H114: -3.662767998e-05 | J114: -0.0006562934718 | K114: -0.008617496095 | L114: 0.000408360784 | M114: 0.00584666134 | N114: 5.500251687e-06
A115: =IF('DF raw data'!E120="","",'DF raw data'!E120) -> -273.5 | B115: =IF('DF raw data'!F120="","",'DF raw data'!F120) -> -3.05081e-05 | C115: =IF('DF raw data'!G120="","",'DF raw data'!G120) -> 5.20014e-06 | D115: =IF('DF raw data'!H120="","",'DF raw data'!H120) -> -3.90415e-05 | F115: -3.064395257e-05 | G115: 5.223296223e-06 | H115: -3.92153518e-05 | J115: -0.0006716154481 | K115: -0.008953303819 | L115: 0.0004109724321 | M115: 0.006052147556 | N115: 5.810234512e-06
A116: =IF('DF raw data'!E121="","",'DF raw data'!E121) -> -273 | B116: =IF('DF raw data'!F121="","",'DF raw data'!F121) -> -3.40445e-05 | C116: =IF('DF raw data'!G121="","",'DF raw data'!G121) -> 6.43272e-06 | D116: =IF('DF raw data'!H121="","",'DF raw data'!H121) -> -2.45561e-05 | F116: -3.419610016e-05 | G116: 6.461364902e-06 | H116: -2.466544831e-05 | J116: -0.0006887134981 | K116: -0.009297660568 | L116: 0.0004142031146 | M116: 0.006259249113 | N116: 6.133179764e-06
A117: =IF('DF raw data'!E122="","",'DF raw data'!E122) -> -272.5 | B117: =IF('DF raw data'!F122="","",'DF raw data'!F122) -> -2.83259e-05 | C117: =IF('DF raw data'!G122="","",'DF raw data'!G122) -> 1.04621e-06 | D117: =IF('DF raw data'!H122="","",'DF raw data'!H122) -> -4.21072e-05 | F117: -2.845203523e-05 | G117: 1.050868773e-06 | H117: -4.229470336e-05 | J117: -0.0007029395158 | K117: -0.009649130326 | L117: 0.0004147285489 | M117: 0.006466613388 | N117: 6.46624163e-06
A118: =IF('DF raw data'!E123="","",'DF raw data'!E123) -> -272 | B118: =IF('DF raw data'!F123="","",'DF raw data'!F123) -> -3.66726e-05 | C118: =IF('DF raw data'!G123="","",'DF raw data'!G123) -> 6.39352e-06 | D118: =IF('DF raw data'!H123="","",'DF raw data'!H123) -> -2.57953e-05 | F118: -3.683590309e-05 | G118: 6.421990345e-06 | H118: -2.591016647e-05 | J118: -0.0007213574673 | K118: -0.01000980906 | L118: 0.0004179395441 | M118: 0.00667558316 | N118: 6.813756659e-06
A119: =IF('DF raw data'!E124="","",'DF raw data'!E124) -> -271.5 | B119: =IF('DF raw data'!F124="","",'DF raw data'!F124) -> -2.43604e-05 | C119: =IF('DF raw data'!G124="","",'DF raw data'!G124) -> 1.20662e-05 | D119: =IF('DF raw data'!H124="","",'DF raw data'!H124) -> -2.60329e-05 | F119: -2.446887686e-05 | G119: 1.211993079e-05 | H119: -2.61488245e-05 | J119: -0.0007335919057 | K119: -0.01037660501 | L119: 0.0004239995095 | M119: 0.006887582914 | N119: 7.172722993e-06
A120: =IF('DF raw data'!E125="","",'DF raw data'!E125) -> -271 | B120: =IF('DF raw data'!F125="","",'DF raw data'!F125) -> -4.23807e-05 | C120: =IF('DF raw data'!G125="","",'DF raw data'!G125) -> 1.24621e-05 | D120: =IF('DF raw data'!H125="","",'DF raw data'!H125) -> -2.44067e-05 | F120: -4.256942126e-05 | G120: 1.251759373e-05 | H120: -2.451538304e-05 | J120: -0.0007548766164 | K120: -0.01075404332 | L120: 0.0004302583064 | M120: 0.007102712068 | N120: 7.550203451e-06
A121: =IF('DF raw data'!E126="","",'DF raw data'!E126) -> -270.5 | B121: =IF('DF raw data'!F126="","",'DF raw data'!F126) -> -3.19288e-05 | C121: =IF('DF raw data'!G126="","",'DF raw data'!G126) -> 7.06921e-06 | D121: =IF('DF raw data'!H126="","",'DF raw data'!H126) -> -2.36325e-05 | F121: -3.207097895e-05 | G121: 7.100689192e-06 | H121: -2.373773552e-05 | J121: -0.0007709121058 | K121: -0.01113949937 | L121: 0.000433808651 | M121: 0.007319616393 | N121: 7.941451161e-06
A122: =IF('DF raw data'!E127="","",'DF raw data'!E127) -> -270 | B122: =IF('DF raw data'!F127="","",'DF raw data'!F127) -> -3.62242e-05 | C122: =IF('DF raw data'!G127="","",'DF raw data'!G127) -> 1.46774e-05 | D122: =IF('DF raw data'!H127="","",'DF raw data'!H127) -> -2.52547e-05 | F122: -3.638550636e-05 | G122: 1.474275846e-05 | H122: -2.536715918e-05 | J122: -0.000789104859 | K122: -0.0115340518 | L122: 0.0004411800302 | M122: 0.007540206408 | N122: 8.35011431e-06
A123: =IF('DF raw data'!E128="","",'DF raw data'!E128) -> -269.5 | B123: =IF('DF raw data'!F128="","",'DF raw data'!F128) -> -7.36463e-06 | C123: =IF('DF raw data'!G128="","",'DF raw data'!G128) -> 2.772e-05 | D123: =IF('DF raw data'!H128="","",'DF raw data'!H128) -> -3.0488e-05 | F123: -7.397424697e-06 | G123: 2.784343716e-05 | H123: -3.062376306e-05 | J123: -0.0007928035714 | K123: -0.01193045359 | L123: 0.0004551017488 | M123: 0.007767757283 | N123: 8.767941862e-06
A124: =IF('DF raw data'!E129="","",'DF raw data'!E129) -> -269 | B124: =IF('DF raw data'!F129="","",'DF raw data'!F129) -> -2.13532e-05 | C124: =IF('DF raw data'!G129="","",'DF raw data'!G129) -> 2.41179e-05 | D124: =IF('DF raw data'!H129="","",'DF raw data'!H129) -> -1.61054e-05 | F124: -2.14482858e-05 | G124: 2.422529701e-05 | H124: -1.617711735e-05 | J124: -0.0008035277143 | K124: -0.01233221745 | L124: 0.0004672143973 | M124: 0.008001364481 | N124: 9.199914903e-06
A125: =IF('DF raw data'!E130="","",'DF raw data'!E130) -> -268.5 | B125: =IF('DF raw data'!F130="","",'DF raw data'!F130) -> -2.01913e-05 | C125: =IF('DF raw data'!G130="","",'DF raw data'!G130) -> 9.46663e-06 | D125: =IF('DF raw data'!H130="","",'DF raw data'!H130) -> -2.79814e-05 | F125: -2.028121186e-05 | G125: 9.508784903e-06 | H125: -2.810600117e-05 | J125: -0.0008136683202 | K125: -0.01273905161 | L125: 0.0004719687897 | M125: 0.008237348876 | N125: 9.642320239e-06
A126: =IF('DF raw data'!E131="","",'DF raw data'!E131) -> -268 | B126: =IF('DF raw data'!F131="","",'DF raw data'!F131) -> -3.39177e-05 | C126: =IF('DF raw data'!G131="","",'DF raw data'!G131) -> 1.28633e-05 | D126: =IF('DF raw data'!H131="","",'DF raw data'!H131) -> -2.23568e-05 | F126: -3.406873552e-05 | G126: 1.292058027e-05 | H126: -2.245635483e-05 | J126: -0.0008307026879 | K126: -0.01315440295 | L126: 0.0004784290799 | M126: 0.008476563416 | N126: 1.010180091e-05
A127: =IF('DF raw data'!E132="","",'DF raw data'!E132) -> -267.5 | B127: =IF('DF raw data'!F132="","",'DF raw data'!F132) -> -2.0443e-05 | C127: =IF('DF raw data'!G132="","",'DF raw data'!G132) -> 2.06101e-05 | D127: =IF('DF raw data'!H132="","",'DF raw data'!H132) -> -3.52529e-05 | F127: -2.053403268e-05 | G127: 2.070187678e-05 | H127: -3.540988116e-05 | J127: -0.0008409697043 | K127: -0.0135748878 | L127: 0.0004887800183 | M127: 0.008720953425 | N127: 1.057486888e-05
A128: =IF('DF raw data'!E133="","",'DF raw data'!E133) -> -267 | B128: =IF('DF raw data'!F133="","",'DF raw data'!F133) -> -1.83304e-05 | C128: =IF('DF raw data'!G133="","",'DF raw data'!G133) -> 1.49279e-05 | D128: =IF('DF raw data'!H133="","",'DF raw data'!H133) -> -2.97515e-05 | F128: =(1-$G$1*($B$49-$G$2))*B128 -> -1.841202527e-05 | G128: 1.499437394e-05 | H128: -2.988398343e-05 | J128: =F128*$G$3+J127 -> -0.0008501757169 | K128: =J128*$G$3+K127 -> -0.01399997566 | L128: =G128*$G$3+L127 -> 0.0004962772052 | M128: =L128*$G$3+M127 -> 0.008969092028 | N128: =(J128^2+L128^2)*$G$3+N127 -> 1.105941379e-05
A129: =IF('DF raw data'!E134="","",'DF raw data'!E134) -> -266.5 | B129: =IF('DF raw data'!F134="","",'DF raw data'!F134) -> -2.78829e-05 | C129: =IF('DF raw data'!G134="","",'DF raw data'!G134) -> 1.34637e-05 | D129: =IF('DF raw data'!H134="","",'DF raw data'!H134) -> -3.2846e-05 | F129: -2.800706255e-05 | G129: 1.352365386e-05 | H129: -3.299226324e-05 | J129: -0.0008641792482 | K129: -0.01443206528 | L129: 0.0005030390322 | M129: 0.009220611544 | N129: 1.155934081e-05
A130: =IF('DF raw data'!E135="","",'DF raw data'!E135) -> -266 | B130: =IF('DF raw data'!F135="","",'DF raw data'!F135) -> -2.84051e-05 | C130: =IF('DF raw data'!G135="","",'DF raw data'!G135) -> 1.84121e-05 | D130: =IF('DF raw data'!H135="","",'DF raw data'!H135) -> -1.88043e-05 | F130: -2.853158791e-05 | G130: 1.849408908e-05 | H130: -1.888803555e-05 | J130: -0.0008784450422 | K130: -0.01487128781 | L130: 0.0005122860767 | M130: 0.009476754582 | N130: 1.207639217e-05
A131: =IF('DF raw data'!E136="","",'DF raw data'!E136) -> -265.5 | B131: =IF('DF raw data'!F136="","",'DF raw data'!F136) -> -2.71114e-05 | C131: =IF('DF raw data'!G136="","",'DF raw data'!G136) -> 1.4446e-05 | D131: =IF('DF raw data'!H136="","",'DF raw data'!H136) -> -3.60542e-05 | F131: -2.723212706e-05 | G131: 1.451032804e-05 | H131: -3.621474935e-05 | J131: -0.0008920611057 | K131: -0.01531731836 | L131: 0.0005195412407 | M131: 0.009736525203 | N131: 1.260924023e-05
A132: =IF('DF raw data'!E137="","",'DF raw data'!E137) -> -265 | B132: =IF('DF raw data'!F137="","",'DF raw data'!F137) -> -1.80133e-05 | C132: =IF('DF raw data'!G137="","",'DF raw data'!G137) -> 2.9202e-06 | D132: =IF('DF raw data'!H137="","",'DF raw data'!H137) -> -2.41338e-05 | F132: -1.809351322e-05 | G132: 2.933203651e-06 | H132: -2.424126781e-05 | J132: -0.0009011078623 | K132: -0.01576787229 | L132: 0.0005210078426 | M132: 0.009997029124 | N132: 1.31509625e-05
A133: =IF('DF raw data'!E138="","",'DF raw data'!E138) -> -264.5 | B133: =IF('DF raw data'!F138="","",'DF raw data'!F138) -> -2.29402e-05 | C133: =IF('DF raw data'!G138="","",'DF raw data'!G138) -> 1.20186e-05 | D133: =IF('DF raw data'!H138="","",'DF raw data'!H138) -> -4.07387e-05 | F133: -2.304235271e-05 | G133: 1.207211883e-05 | H133: -4.092010943e-05 | J133: -0.0009126290387 | K133: -0.01622418681 | L133: 0.000527043902 | M133: 0.01026055107 | N133: 1.370629602e-05
A134: =IF('DF raw data'!E139="","",'DF raw data'!E139) -> -264 | B134: =IF('DF raw data'!F139="","",'DF raw data'!F139) -> -1.76372e-05 | C134: =IF('DF raw data'!G139="","",'DF raw data'!G139) -> 2.03758e-05 | D134: =IF('DF raw data'!H139="","",'DF raw data'!H139) -> -1.0755e-05 | F134: -1.771573845e-05 | G134: 2.046653344e-05 | H134: -1.080289202e-05 | J134: -0.0009214869079 | K134: -0.01668493026 | L134: 0.0005372771687 | M134: 0.01052918966 | N134: 1.427519846e-05
A135: =IF('DF raw data'!E140="","",'DF raw data'!E140) -> -263.5 | B135: =IF('DF raw data'!F140="","",'DF raw data'!F140) -> -2.22441e-05 | C135: =IF('DF raw data'!G140="","",'DF raw data'!G140) -> 1.23805e-05 | D135: =IF('DF raw data'!H140="","",'DF raw data'!H140) -> -2.66447e-05 | F135: -2.234315298e-05 | G135: 1.243563037e-05 | H135: -2.676334885e-05 | J135: -0.0009326584844 | K135: -0.01715125951 | L135: 0.0005434949839 | M135: 0.01080093715 | N135: 1.485781778e-05
A136: =IF('DF raw data'!E141="","",'DF raw data'!E141) -> -263 | B136: =IF('DF raw data'!F141="","",'DF raw data'!F141) -> -2.60323e-05 | C136: =IF('DF raw data'!G141="","",'DF raw data'!G141) -> 1.23998e-05 | D136: =IF('DF raw data'!H141="","",'DF raw data'!H141) -> -1.92194e-05 | F136: -2.614822183e-05 | G136: 1.245501631e-05 | H136: -1.930498399e-05 | J136: -0.0009457325953 | K136: -0.0176241258 | L136: 0.000549722492 | M136: 0.0110757984 | N136: 1.545612026e-05
A137: =IF('DF raw data'!E142="","",'DF raw data'!E142) -> -262.5 | B137: =IF('DF raw data'!F142="","",'DF raw data'!F142) -> -1.98031e-05 | C137: =IF('DF raw data'!G142="","",'DF raw data'!G142) -> 1.22767e-05 | D137: =IF('DF raw data'!H142="","",'DF raw data'!H142) -> -3.31624e-05 | F137: -1.98912832e-05 | G137: 1.233136815e-05 | H137: -3.331007217e-05 | J137: -0.0009556782369 | K137: -0.01810196492 | L137: 0.0005558881761 | M137: 0.01135374249 | N137: 1.606728654e-05
A138: =IF('DF raw data'!E143="","",'DF raw data'!E143) -> -262 | B138: =IF('DF raw data'!F143="","",'DF raw data'!F143) -> -2.19773e-05 | C138: =IF('DF raw data'!G143="","",'DF raw data'!G143) -> 1.65361e-05 | D138: =IF('DF raw data'!H143="","",'DF raw data'!H143) -> -4.24831e-05 | F138: -2.207516492e-05 | G138: 1.660973525e-05 | H138: -4.267227724e-05 | J138: -0.0009667158193 | K138: -0.01858532283 | L138: 0.0005641930437 | M138: 0.01163583901 | N138: 1.669371318e-05
A139: =IF('DF raw data'!E144="","",'DF raw data'!E144) -> -261.5 | B139: =IF('DF raw data'!F144="","",'DF raw data'!F144) -> -2.30765e-05 | C139: =IF('DF raw data'!G144="","",'DF raw data'!G144) -> 1.25674e-05 | D139: =IF('DF raw data'!H144="","",'DF raw data'!H144) -> -2.82397e-05 | F139: -2.317925965e-05 | G139: 1.262336263e-05 | H139: -2.836545138e-05 | J139: -0.0009783054492 | K139: -0.01907447556 | L139: 0.000570504725 | M139: 0.01192109137 | N139: 1.733499177e-05
A140: =IF('DF raw data'!E145="","",'DF raw data'!E145) -> -261 | B140: =IF('DF raw data'!F145="","",'DF raw data'!F145) -> -2.24358e-05 | C140: =IF('DF raw data'!G145="","",'DF raw data'!G145) -> 9.33617e-06 | D140: =IF('DF raw data'!H145="","",'DF raw data'!H145) -> -2.74689e-05 | F140: -2.253570662e-05 | G140: 9.377743965e-06 | H140: -2.759121901e-05 | J140: -0.0009895733025 | K140: -0.01956926221 | L140: 0.000575193597 | M140: 0.01220868817 | N140: 1.799004327e-05
A141: =IF('DF raw data'!E146="","",'DF raw data'!E146) -> -260.5 | B141: =IF('DF raw data'!F146="","",'DF raw data'!F146) -> -2.22401e-05 | C141: =IF('DF raw data'!G146="","",'DF raw data'!G146) -> 1.89191e-05 | D141: =IF('DF raw data'!H146="","",'DF raw data'!H146) -> -3.28649e-05 | F141: -2.233913517e-05 | G141: 1.900334675e-05 | H141: -3.30112474e-05 | J141: -0.00100074287 | K141: -0.02006963364 | L141: 0.0005846952704 | M141: 0.0125010358 | N141: 1.86617207e-05
A142: =IF('DF raw data'!E147="","",'DF raw data'!E147) -> -260 | B142: =IF('DF raw data'!F147="","",'DF raw data'!F147) -> -3.22475e-05 | C142: =IF('DF raw data'!G147="","",'DF raw data'!G147) -> 1.00709e-05 | D142: =IF('DF raw data'!H147="","",'DF raw data'!H147) -> -2.68994e-05 | F142: -3.239109812e-05 | G142: 1.011574572e-05 | H142: -2.701918303e-05 | J142: -0.001016938419 | K142: -0.02057810285 | L142: 0.0005897531433 | M142: 0.01279591237 | N142: 1.935270695e-05
A143: =IF('DF raw data'!E148="","",'DF raw data'!E148) -> -259.5 | B143: =IF('DF raw data'!F148="","",'DF raw data'!F148) -> -2.60306e-05 | C143: =IF('DF raw data'!G148="","",'DF raw data'!G148) -> 3.72187e-06 | D143: =IF('DF raw data'!H148="","",'DF raw data'!H148) -> -2.18327e-05 | F143: -2.614651426e-05 | G143: 3.738443487e-06 | H143: -2.192992101e-05 | J143: -0.001030011676 | K143: -0.02109310869 | L143: 0.000591622365 | M143: 0.01309172356 | N143: 2.005817749e-05
A144: =IF('DF raw data'!E149="","",'DF raw data'!E149) -> -259 | B144: =IF('DF raw data'!F149="","",'DF raw data'!F149) -> -2.3462e-05 | C144: =IF('DF raw data'!G149="","",'DF raw data'!G149) -> 9.13444e-06 | D144: =IF('DF raw data'!H149="","",'DF raw data'!H149) -> -2.70587e-05 | F144: -2.356647629e-05 | G144: 9.175115661e-06 | H144: -2.717919239e-05 | J144: -0.001041794914 | K144: -0.02161400615 | L144: 0.0005962099228 | M144: 0.01338982852 | N144: 2.077857895e-05
A145: =IF('DF raw data'!E150="","",'DF raw data'!E150) -> -258.5 | B145: =IF('DF raw data'!F150="","",'DF raw data'!F150) -> -2.39725e-05 | C145: =IF('DF raw data'!G150="","",'DF raw data'!G150) -> 1.60124e-05 | D145: =IF('DF raw data'!H150="","",'DF raw data'!H150) -> -3.09428e-05 | F145: -2.407924954e-05 | G145: 1.608370322e-05 | H145: -3.108058829e-05 | J145: -0.001053834539 | K145: -0.02214092342 | L145: 0.0006042517744 | M145: 0.01369195441 | N145: 2.151642267e-05
A146: =IF('DF raw data'!E151="","",'DF raw data'!E151) -> -258 | B146: =IF('DF raw data'!F151="","",'DF raw data'!F151) -> -3.03924e-05 | C146: =IF('DF raw data'!G151="","",'DF raw data'!G151) -> 1.75926e-05 | D146: =IF('DF raw data'!H151="","",'DF raw data'!H151) -> -1.96702e-05 | F146: -3.052773736e-05 | G146: 1.767093985e-05 | H146: -1.97577914e-05 | J146: -0.001069098408 | K146: -0.02267547262 | L146: 0.0006130872444 | M146: 0.01399849803 | N146: 2.227584636e-05
A147: =IF('DF raw data'!E152="","",'DF raw data'!E152) -> -257.5 | B147: =IF('DF raw data'!F152="","",'DF raw data'!F152) -> -2.32604e-05 | C147: =IF('DF raw data'!G152="","",'DF raw data'!G152) -> 1.90736e-05 | D147: =IF('DF raw data'!H152="","",'DF raw data'!H152) -> -4.15797e-05 | F147: -2.336397856e-05 | G147: 1.915853474e-05 | H147: -4.17648544e-05 | J147: -0.001080780397 | K147: -0.02321586282 | L147: 0.0006226665117 | M147: 0.01430983128 | N147: 2.305374629e-05
A148: =IF('DF raw data'!E153="","",'DF raw data'!E153) -> -257 | B148: =IF('DF raw data'!F153="","",'DF raw data'!F153) -> -1.63465e-05 | C148: =IF('DF raw data'!G153="","",'DF raw data'!G153) -> 1.43309e-05 | D148: =IF('DF raw data'!H153="","",'DF raw data'!H153) -> -2.34014e-05 | F148: -1.641929096e-05 | G148: 1.43947155e-05 | H148: -2.350560643e-05 | J148: -0.001088990043 | K148: -0.02376035784 | L148: 0.0006298638695 | M148: 0.01462476322 | N148: 2.384506019e-05
A149: =IF('DF raw data'!E154="","",'DF raw data'!E154) -> -256.5 | B149: =IF('DF raw data'!F154="","",'DF raw data'!F154) -> -1.71769e-05 | C149: =IF('DF raw data'!G154="","",'DF raw data'!G154) -> 9.58223e-06 | D149: =IF('DF raw data'!H154="","",'DF raw data'!H154) -> -2.85897e-05 | F149: -1.725338874e-05 | G149: 9.62489967e-06 | H149: -2.871700993e-05 | J149: -0.001097616737 | K149: -0.02430916621 | L149: 0.0006346763193 | M149: 0.01494210138 | N149: 2.464884845e-05
A150: =IF('DF raw data'!E155="","",'DF raw data'!E155) -> -256 | B150: =IF('DF raw data'!F155="","",'DF raw data'!F155) -> -2.38461e-05 | C150: =IF('DF raw data'!G155="","",'DF raw data'!G155) -> 1.13121e-05 | D150: =IF('DF raw data'!H155="","",'DF raw data'!H155) -> -2.80294e-05 | F150: -2.395228668e-05 | G150: 1.136247278e-05 | H150: -2.815421492e-05 | J150: -0.00110959288 | K150: -0.02486396265 | L150: 0.0006403575557 | M150: 0.01526228016 | N150: 2.546947553e-05
A151: =IF('DF raw data'!E156="","",'DF raw data'!E156) -> -255.5 | B151: =IF('DF raw data'!F156="","",'DF raw data'!F156) -> -2.11485e-05 | C151: =IF('DF raw data'!G156="","",'DF raw data'!G156) -> 5.57419e-06 | D151: =IF('DF raw data'!H156="","",'DF raw data'!H156) -> -3.4875e-05 | F151: -2.124267427e-05 | G151: 5.599011868e-06 | H151: -3.503029838e-05 | J151: -0.001120214217 | K151: -0.02542406976 | L151: 0.0006431570616 | M151: 0.01558385869 | N151: 2.630374098e-05
A152: =IF('DF raw data'!E157="","",'DF raw data'!E157) -> -255 | B152: =IF('DF raw data'!F157="","",'DF raw data'!F157) -> -2.55755e-05 | C152: =IF('DF raw data'!G157="","",'DF raw data'!G157) -> 6.36725e-06 | D152: =IF('DF raw data'!H157="","",'DF raw data'!H157) -> -3.12433e-05 | F152: -2.56893877e-05 | G152: 6.395603364e-06 | H152: -3.138242641e-05 | J152: -0.001133058911 | K152: -0.02599059921 | L152: 0.0006463548633 | M152: 0.01590703612 | N152: 2.715453954e-05
A153: =IF('DF raw data'!E158="","",'DF raw data'!E158) -> -254.5 | B153: =IF('DF raw data'!F158="","",'DF raw data'!F158) -> -3.17287e-05 | C153: =IF('DF raw data'!G158="","",'DF raw data'!G158) -> 2.30388e-05 | D153: =IF('DF raw data'!H158="","",'DF raw data'!H158) -> -3.58951e-05 | F153: -3.18699879e-05 | G153: 2.314139178e-05 | H153: -3.605494088e-05 | J153: -0.001148993905 | K153: -0.02656509617 | L153: 0.0006579255592 | M153: 0.0162359989 | N153: 2.803106605e-05
A154: =IF('DF raw data'!E159="","",'DF raw data'!E159) -> -254 | B154: =IF('DF raw data'!F159="","",'DF raw data'!F159) -> -1.21762e-05 | C154: =IF('DF raw data'!G159="","",'DF raw data'!G159) -> 2.24224e-05 | D154: =IF('DF raw data'!H159="","",'DF raw data'!H159) -> -2.72136e-05 | F154: -1.223042062e-05 | G154: 2.252224695e-05 | H154: -2.733478216e-05 | J154: -0.001155109116 | K154: -0.02714265072 | L154: 0.0006691866827 | M154: 0.01657059224 | N154: 2.892211e-05
A155: =IF('DF raw data'!E160="","",'DF raw data'!E160) -> -253.5 | B155: =IF('DF raw data'!F160="","",'DF raw data'!F160) -> -2.11512e-05 | C155: =IF('DF raw data'!G160="","",'DF raw data'!G160) -> 1.65949e-05 | D155: =IF('DF raw data'!H160="","",'DF raw data'!H160) -> -3.0795e-05 | F155: -2.124538629e-05 | G155: 1.666879709e-05 | H155: -3.093213013e-05 | J155: -0.001165731809 | K155: -0.02772551663 | L155: 0.0006775210812 | M155: 0.01690935278 | N155: 2.983109273e-05
A156: =IF('DF raw data'!E161="","",'DF raw data'!E161) -> -253 | B156: =IF('DF raw data'!F161="","",'DF raw data'!F161) -> -3.18601e-05 | C156: =IF('DF raw data'!G161="","",'DF raw data'!G161) -> 9.93381e-06 | D156: =IF('DF raw data'!H161="","",'DF raw data'!H161) -> -3.09262e-05 | F156: -3.200197303e-05 | G156: 9.978045256e-06 | H156: -3.106391437e-05 | J156: -0.001181732795 | K156: -0.02831638303 | L156: 0.0006825101039 | M156: 0.01725060783 | N156: 3.076224895e-05
A157: =IF('DF raw data'!E162="","",'DF raw data'!E162) -> -252.5 | B157: =IF('DF raw data'!F162="","",'DF raw data'!F162) -> -2.39778e-05 | C157: =IF('DF raw data'!G162="","",'DF raw data'!G162) -> 5.37675e-06 | D157: =IF('DF raw data'!H162="","",'DF raw data'!H162) -> -2.27607e-05 | F157: -2.408457314e-05 | G157: 5.400692668e-06 | H157: -2.28620534e-05 | J157: -0.001193775082 | K157: -0.02891327057 | L157: 0.0006852104502 | M157: 0.01759321306 | N157: 3.17095551e-05
A158: =IF('DF raw data'!E163="","",'DF raw data'!E163) -> -252 | B158: =IF('DF raw data'!F163="","",'DF raw data'!F163) -> -3.67962e-05 | C158: =IF('DF raw data'!G163="","",'DF raw data'!G163) -> 4.73239e-06 | D158: =IF('DF raw data'!H163="","",'DF raw data'!H163) -> -3.30454e-05 | F158: -3.696005348e-05 | G158: 4.753463333e-06 | H158: -3.319255117e-05 | J158: -0.001212255109 | K158: -0.02951939812 | L158: 0.0006875871819 | M158: 0.01793700665 | N158: 3.268072439e-05
A159: =IF('DF raw data'!E164="","",'DF raw data'!E164) -> -251.5 | B159: =IF('DF raw data'!F164="","",'DF raw data'!F164) -> -3.87252e-05 | C159: =IF('DF raw data'!G164="","",'DF raw data'!G164) -> 1.60031e-05 | D159: =IF('DF raw data'!H164="","",'DF raw data'!H164) -> -2.51789e-05 | F159: -3.889764332e-05 | G159: 1.60743618e-05 | H159: -2.529102164e-05 | J159: -0.00123170393 | K159: -0.03013525009 | L159: 0.0006956243628 | M159: 0.01828481883 | N159: 3.368121831e-05
A160: =IF('DF raw data'!E165="","",'DF raw data'!E165) -> -251 | B160: =IF('DF raw data'!F165="","",'DF raw data'!F165) -> -2.18494e-05 | C160: =IF('DF raw data'!G165="","",'DF raw data'!G165) -> 2.60531e-05 | D160: =IF('DF raw data'!H165="","",'DF raw data'!H165) -> -4.19982e-05 | F160: -2.194669538e-05 | G160: 2.616911445e-05 | H160: -4.218521798e-05 | J160: -0.001242677278 | K160: -0.03075658872 | L160: 0.00070870892 | M160: 0.01863917329 | N160: 3.470447588e-05
A161: =IF('DF raw data'!E166="","",'DF raw data'!E166) -> -250.5 | B161: =IF('DF raw data'!F166="","",'DF raw data'!F166) -> -3.40416e-05 | C161: =IF('DF raw data'!G166="","",'DF raw data'!G166) -> 2.84085e-05 | D161: =IF('DF raw data'!H166="","",'DF raw data'!H166) -> -2.90366e-05 | F161: -3.419318724e-05 | G161: 2.853500305e-05 | H161: -2.916589998e-05 | J161: -0.001259773872 | K161: -0.03138647566 | L161: 0.0007229764215 | M161: 0.0190006615 | N161: 3.575933844e-05
A162: =IF('DF raw data'!E167="","",'DF raw data'!E167) -> -250 | B162: =IF('DF raw data'!F167="","",'DF raw data'!F167) -> -2.64044e-05 | C162: =IF('DF raw data'!G167="","",'DF raw data'!G167) -> 2.6164e-05 | D162: =IF('DF raw data'!H167="","",'DF raw data'!H167) -> -3.87267e-05 | F162: -2.652197879e-05 | G162: 2.628050829e-05 | H162: -3.889915e-05 | J162: -0.001273034861 | K162: -0.03202299309 | L162: 0.0007361166757 | M162: 0.01936871984 | N162: 3.68405812e-05
A163: =IF('DF raw data'!E168="","",'DF raw data'!E168) -> -249.5 | B163: =IF('DF raw data'!F168="","",'DF raw data'!F168) -> -3.71794e-05 | C163: =IF('DF raw data'!G168="","",'DF raw data'!G168) -> 3.28565e-05 | D163: =IF('DF raw data'!H168="","",'DF raw data'!H168) -> -3.53791e-05 | F163: -3.734495987e-05 | G163: 3.300280999e-05 | H163: -3.553664313e-05 | J163: -0.001291707341 | K163: -0.03266884676 | L163: 0.0007526180807 | M163: 0.01974502888 | N163: 3.795805211e-05
A164: =IF('DF raw data'!E169="","",'DF raw data'!E169) -> -249 | B164: =IF('DF raw data'!F169="","",'DF raw data'!F169) -> -3.53241e-05 | C164: =IF('DF raw data'!G169="","",'DF raw data'!G169) -> 3.82858e-05 | D164: =IF('DF raw data'!H169="","",'DF raw data'!H169) -> -2.89586e-05 | F164: -3.548139822e-05 | G164: 3.845628667e-05 | H164: -2.908755265e-05 | J164: -0.00130944804 | K164: -0.03332357078 | L164: 0.000771846224 | M164: 0.02013095199 | N164: 3.911325249e-05
A165: =IF('DF raw data'!E170="","",'DF raw data'!E170) -> -248.5 | B165: =IF('DF raw data'!F170="","",'DF raw data'!F170) -> -2.89101e-05 | C165: =IF('DF raw data'!G170="","",'DF raw data'!G170) -> 2.70791e-05 | D165: =IF('DF raw data'!H170="","",'DF raw data'!H170) -> -3.09812e-05 | F165: -2.903883668e-05 | G165: 2.719968323e-05 | H165: -3.111915928e-05 | J165: -0.001323967458 | K165: -0.03398555451 | L165: 0.0007854460656 | M165: 0.02052367502 | N165: 4.029816017e-05
A166: =IF('DF raw data'!E171="","",'DF raw data'!E171) -> -248 | B166: =IF('DF raw data'!F171="","",'DF raw data'!F171) -> -3.04535e-05 | C166: =IF('DF raw data'!G171="","",'DF raw data'!G171) -> 2.93642e-05 | D166: =IF('DF raw data'!H171="","",'DF raw data'!H171) -> -2.42288e-05 | F166: -3.058910944e-05 | G166: 2.949495878e-05 | H166: -2.433669085e-05 | J166: -0.001339262013 | K166: -0.03465518552 | L166: 0.000800193545 | M166: 0.0209237718 | N166: 4.151512639e-05
A167: =IF('DF raw data'!E172="","",'DF raw data'!E172) -> -247.5 | B167: =IF('DF raw data'!F172="","",'DF raw data'!F172) -> -2.46745e-05 | C167: =IF('DF raw data'!G172="","",'DF raw data'!G172) -> 3.69373e-05 | D167: =IF('DF raw data'!H172="","",'DF raw data'!H172) -> -3.63725e-05 | F167: -2.478437555e-05 | G167: 3.71017818e-05 | H167: -3.653446674e-05 | J167: -0.001351654201 | K167: -0.03533101262 | L167: 0.0008187444359 | M167: 0.02133314401 | N167: 4.276378216e-05
A168: =IF('DF raw data'!E173="","",'DF raw data'!E173) -> -247 | B168: =IF('DF raw data'!F173="","",'DF raw data'!F173) -> -2.37782e-05 | C168: =IF('DF raw data'!G173="","",'DF raw data'!G173) -> 2.64234e-05 | D168: =IF('DF raw data'!H173="","",'DF raw data'!H173) -> -3.40782e-05 | F168: -2.388408432e-05 | G168: 2.65410634e-05 | H168: -3.422995022e-05 | J168: -0.001363596243 | K168: -0.03601281074 | L168: 0.0008320149676 | M168: 0.0217491515 | N168: 4.403960397e-05
A169: =IF('DF raw data'!E174="","",'DF raw data'!E174) -> -246.5 | B169: =IF('DF raw data'!F174="","",'DF raw data'!F174) -> -2.9042e-05 | C169: =IF('DF raw data'!G174="","",'DF raw data'!G174) -> 2.35928e-05 | D169: =IF('DF raw data'!H174="","",'DF raw data'!H174) -> -2.54823e-05 | F169: -2.917132403e-05 | G169: 2.369785874e-05 | H169: -2.559577268e-05 | J169: -0.001378181905 | K169: -0.03670190169 | L169: 0.000843863897 | M169: 0.02217108345 | N169: 4.534534979e-05
A170: =IF('DF raw data'!E175="","",'DF raw data'!E175) -> -246 | B170: =IF('DF raw data'!F175="","",'DF raw data'!F175) -> -2.51917e-05 | C170: =IF('DF raw data'!G175="","",'DF raw data'!G175) -> 3.99872e-05 | D170: =IF('DF raw data'!H175="","",'DF raw data'!H175) -> -2.98723e-05 | F170: -2.530387864e-05 | G170: 4.0165263e-05 | H170: -3.000532135e-05 | J170: -0.001390833844 | K170: -0.03739731861 | L170: 0.0008639465285 | M170: 0.02260305671 | N170: 4.668576098e-05
A171: =IF('DF raw data'!E176="","",'DF raw data'!E176) -> -245.5 | B171: =IF('DF raw data'!F176="","",'DF raw data'!F176) -> -3.36576e-05 | C171: =IF('DF raw data'!G176="","",'DF raw data'!G176) -> 3.85974e-05 | D171: =IF('DF raw data'!H176="","",'DF raw data'!H176) -> -2.77885e-05 | F171: -3.380747729e-05 | G171: 3.876927422e-05 | H171: -2.791224219e-05 | J171: -0.001407737583 | K171: -0.0381011874 | L171: 0.0008833311656 | M171: 0.02304472229 | N171: 4.806676051e-05
A172: =IF('DF raw data'!E177="","",'DF raw data'!E177) -> -245 | B172: =IF('DF raw data'!F177="","",'DF raw data'!F177) -> -1.88462e-05 | C172: =IF('DF raw data'!G177="","",'DF raw data'!G177) -> 3.27088e-05 | D172: =IF('DF raw data'!H177="","",'DF raw data'!H177) -> -2.54379e-05 | F172: -1.893012213e-05 | G172: 3.285445229e-05 | H172: -2.555117497e-05 | J172: -0.001417202644 | K172: -0.03880978873 | L172: 0.0008997583917 | M172: 0.02349460149 | N172: 4.947577476e-05
A173: =IF('DF raw data'!E178="","",'DF raw data'!E178) -> -244.5 | B173: =IF('DF raw data'!F178="","",'DF raw data'!F178) -> -2.33988e-05 | C173: =IF('DF raw data'!G178="","",'DF raw data'!G178) -> 2.33183e-05 | D173: =IF('DF raw data'!H178="","",'DF raw data'!H178) -> -2.59818e-05 | F173: -2.350299486e-05 | G173: 2.342213639e-05 | H173: -2.609749696e-05 | J173: -0.001428954141 | K173: -0.0395242658 | L173: 0.0009114694599 | M173: 0.02395033622 | N173: 5.091211801e-05
A174: =IF('DF raw data'!E179="","",'DF raw data'!E179) -> -244 | B174: =IF('DF raw data'!F179="","",'DF raw data'!F179) -> -2.00076e-05 | C174: =IF('DF raw data'!G179="","",'DF raw data'!G179) -> 2.35954e-05 | D174: =IF('DF raw data'!H179="","",'DF raw data'!H179) -> -1.44263e-05 | F174: -2.009669384e-05 | G174: 2.370047032e-05 | H174: -1.449054031e-05 | J174: -0.001439002488 | K174: -0.04024376704 | L174: 0.0009233196951 | M174: 0.02441199607 | N174: 5.237374172e-05
A175: =IF('DF raw data'!E180="","",'DF raw data'!E180) -> -243.5 | B175: =IF('DF raw data'!F180="","",'DF raw data'!F180) -> -2.04483e-05 | C175: =IF('DF raw data'!G180="","",'DF raw data'!G180) -> 2.22479e-05 | D175: =IF('DF raw data'!H180="","",'DF raw data'!H180) -> -2.70886e-05 | F175: -2.053935628e-05 | G175: 2.23469699e-05 | H175: -2.720922554e-05 | J175: -0.001449272166 | K175: -0.04096840312 | L175: 0.00093449318 | M175: 0.02487924266 | N175: 5.386057538e-05
A176: =IF('DF raw data'!E181="","",'DF raw data'!E181) -> -243 | B176: =IF('DF raw data'!F181="","",'DF raw data'!F181) -> -3.19217e-05 | C176: =IF('DF raw data'!G181="","",'DF raw data'!G181) -> 9.82989e-06 | D176: =IF('DF raw data'!H181="","",'DF raw data'!H181) -> -3.46863e-05 | F176: -3.206384733e-05 | G176: 9.8736625e-06 | H176: -3.484075809e-05 | J176: -0.00146530409 | K176: -0.04170105517 | L176: 0.0009394300113 | M176: 0.02534895766 | N176: 5.537539779e-05
A177: =IF('DF raw data'!E182="","",'DF raw data'!E182) -> -242.5 | B177: =IF('DF raw data'!F182="","",'DF raw data'!F182) -> -1.83313e-05 | C177: =IF('DF raw data'!G182="","",'DF raw data'!G182) -> 1.59162e-05 | D177: =IF('DF raw data'!H182="","",'DF raw data'!H182) -> -2.83309e-05 | F177: -1.841292928e-05 | G177: 1.598707484e-05 | H177: -2.84570575e-05 | J177: -0.001474510555 | K177: -0.04243831045 | L177: 0.0009474235487 | M177: 0.02582266944 | N177: 5.691129417e-05
A178: =IF('DF raw data'!E183="","",'DF raw data'!E183) -> -242 | B178: =IF('DF raw data'!F183="","",'DF raw data'!F183) -> -2.46771e-05 | C178: =IF('DF raw data'!G183="","",'DF raw data'!G183) -> 2.24699e-05 | D178: =IF('DF raw data'!H183="","",'DF raw data'!H183) -> -3.23183e-05 | F178: -2.478698713e-05 | G178: 2.256995846e-05 | H178: -3.246221339e-05 | J178: -0.001486904048 | K178: -0.04318176247 | L178: 0.0009587085279 | M178: 0.0263020237 | N178: 5.847629702e-05
A179: =IF('DF raw data'!E184="","",'DF raw data'!E184) -> -241.5 | B179: =IF('DF raw data'!F184="","",'DF raw data'!F184) -> -2.02478e-05 | C179: =IF('DF raw data'!G184="","",'DF raw data'!G184) -> 1.86315e-05 | D179: =IF('DF raw data'!H184="","",'DF raw data'!H184) -> -3.94583e-05 | F179: -2.033796345e-05 | G179: 1.871446607e-05 | H179: -3.963400781e-05 | J179: -0.00149707303 | K179: -0.04393029899 | L179: 0.000968065761 | M179: 0.02678605658 | N179: 6.00654865e-05
A180: =IF('DF raw data'!E185="","",'DF raw data'!E185) -> -241 | B180: =IF('DF raw data'!F185="","",'DF raw data'!F185) -> -2.2498e-05 | C180: =IF('DF raw data'!G185="","",'DF raw data'!G185) -> 2.06419e-05 | D180: =IF('DF raw data'!H185="","",'DF raw data'!H185) -> -3.06303e-05 | F180: -2.259818359e-05 | G180: 2.073381838e-05 | H180: -3.076669673e-05 | J180: -0.001508372122 | K180: -0.04468448505 | L180: 0.0009784326701 | M180: 0.02727527292 | N180: 6.168174498e-05
A181: =IF('DF raw data'!E186="","",'DF raw data'!E186) -> -240.5 | B181: =IF('DF raw data'!F186="","",'DF raw data'!F186) -> -2.07038e-05 | C181: =IF('DF raw data'!G186="","",'DF raw data'!G186) -> 1.60679e-05 | D181: =IF('DF raw data'!H186="","",'DF raw data'!H186) -> -2.86952e-05 | F181: -2.079599402e-05 | G181: 1.613945036e-05 | H181: -2.882297973e-05 | J181: -0.001518770119 | K181: -0.04544387011 | L181: 0.0009865023953 | M181: 0.02776852411 | N181: 6.33216698e-05
A182: =IF('DF raw data'!E187="","",'DF raw data'!E187) -> -240 | B182: =IF('DF raw data'!F187="","",'DF raw data'!F187) -> -1.59623e-05 | C182: =IF('DF raw data'!G187="","",'DF raw data'!G187) -> 1.88274e-05 | D182: =IF('DF raw data'!H187="","",'DF raw data'!H187) -> -2.27081e-05 | F182: -1.603338012e-05 | G182: 1.891123841e-05 | H182: -2.280921917e-05 | J182: -0.001526786809 | K182: -0.04620726351 | L182: 0.0009959580145 | M182: 0.02826650312 | N182: 6.498317497e-05
A183: =IF('DF raw data'!E188="","",'DF raw data'!E188) -> -239.5 | B183: =IF('DF raw data'!F188="","",'DF raw data'!F188) -> -2.3202e-05 | C183: =IF('DF raw data'!G188="","",'DF raw data'!G188) -> 2.21271e-05 | D183: =IF('DF raw data'!H188="","",'DF raw data'!H188) -> -3.25717e-05 | F183: -2.330531851e-05 | G183: 2.222563198e-05 | H183: -3.271674178e-05 | J183: -0.001538439468 | K183: -0.04697648325 | L183: 0.001007070831 | M183: 0.02877003854 | N183: 6.667366879e-05
A184: =IF('DF raw data'!E189="","",'DF raw data'!E189) -> -239 | B184: =IF('DF raw data'!F189="","",'DF raw data'!F189) -> -2.67286e-05 | C184: =IF('DF raw data'!G189="","",'DF raw data'!G189) -> 2.29018e-05 | D184: =IF('DF raw data'!H189="","",'DF raw data'!H189) -> -3.30537e-05 | F184: -2.684762246e-05 | G184: 2.300378172e-05 | H184: -3.320088813e-05 | J184: -0.001551863279 | K184: -0.04775241489 | L184: 0.001018572721 | M184: 0.0292793249 | N184: 6.839655381e-05
A185: =IF('DF raw data'!E190="","",'DF raw data'!E190) -> -238.5 | B185: =IF('DF raw data'!F190="","",'DF raw data'!F190) -> -3.55814e-05 | C185: =IF('DF raw data'!G190="","",'DF raw data'!G190) -> 1.94383e-05 | D185: =IF('DF raw data'!H190="","",'DF raw data'!H190) -> -2.77331e-05 | F185: -3.573984397e-05 | G185: 1.952485875e-05 | H185: -2.785659549e-05 | J185: -0.001569733201 | K185: -0.04853728149 | L185: 0.001028335151 | M185: 0.02979349247 | N185: 7.015732156e-05
A186: =IF('DF raw data'!E191="","",'DF raw data'!E191) -> -238 | B186: =IF('DF raw data'!F191="","",'DF raw data'!F191) -> -2.24921e-05 | C186: =IF('DF raw data'!G191="","",'DF raw data'!G191) -> 7.17503e-06 | D186: =IF('DF raw data'!H191="","",'DF raw data'!H191) -> -3.97701e-05 | F186: -2.259225732e-05 | G186: 7.206980409e-06 | H186: -3.994719626e-05 | J186: -0.00158102933 | K186: -0.04932779615 | L186: 0.001031938641 | M186: 0.03030946179 | N186: 7.193959711e-05
A187: =IF('DF raw data'!E192="","",'DF raw data'!E192) -> -237.5 | B187: =IF('DF raw data'!F192="","",'DF raw data'!F192) -> -2.9482e-05 | C187: =IF('DF raw data'!G192="","",'DF raw data'!G192) -> 5.72682e-06 | D187: =IF('DF raw data'!H192="","",'DF raw data'!H192) -> -3.92961e-05 | F187: -2.961328335e-05 | G187: 5.752321529e-06 | H187: -3.947108553e-05 | J187: -0.001595835972 | K187: -0.05012571414 | L187: 0.001034814802 | M187: 0.03082686919 | N187: 7.374836417e-05
A188: =IF('DF raw data'!E193="","",'DF raw data'!E193) -> -237 | B188: =IF('DF raw data'!F193="","",'DF raw data'!F193) -> -2.99984e-05 | C188: =IF('DF raw data'!G193="","",'DF raw data'!G193) -> 7.30685e-06 | D188: =IF('DF raw data'!H193="","",'DF raw data'!H193) -> -3.41283e-05 | F188: -3.013198288e-05 | G188: 7.339387403e-06 | H188: -3.428027332e-05 | J188: -0.001610901963 | K188: -0.05093116512 | L188: 0.001038484495 | M188: 0.03134611144 | N188: 7.558509176e-05
A189: =IF('DF raw data'!E194="","",'DF raw data'!E194) -> -236.5 | B189: =IF('DF raw data'!F194="","",'DF raw data'!F194) -> -2.08914e-05 | C189: =IF('DF raw data'!G194="","",'DF raw data'!G194) -> 1.54517e-05 | D189: =IF('DF raw data'!H194="","",'DF raw data'!H194) -> -3.57821e-05 | F189: -2.09844294e-05 | G189: 1.552050642e-05 | H189: -3.594143769e-05 | J189: -0.001621394178 | K189: -0.05174186221 | L189: 0.001046244749 | M189: 0.03186923382 | N189: 7.744686534e-05
A190: =IF('DF raw data'!E195="","",'DF raw data'!E195) -> -236 | B190: =IF('DF raw data'!F195="","",'DF raw data'!F195) -> -3.07649e-05 | C190: =IF('DF raw data'!G195="","",'DF raw data'!G195) -> 1.52452e-05 | D190: =IF('DF raw data'!H195="","",'DF raw data'!H195) -> -3.87238e-05 | F190: -3.09018961e-05 | G190: 1.531308688e-05 | H190: -3.889623708e-05 | J190: -0.001636845126 | K190: -0.05256028477 | L190: 0.001053901292 | M190: 0.03239618446 | N190: 7.934185029e-05
A191: =IF('DF raw data'!E196="","",'DF raw data'!E196) -> -235.5 | B191: =IF('DF raw data'!F196="","",'DF raw data'!F196) -> -2.35234e-05 | C191: =IF('DF raw data'!G196="","",'DF raw data'!G196) -> 1.04337e-05 | D191: =IF('DF raw data'!H196="","",'DF raw data'!H196) -> -3.15539e-05 | F191: -2.36281497e-05 | G191: 1.048016127e-05 | H191: -3.169440952e-05 | J191: -0.001648659201 | K191: -0.05338461437 | L191: 0.001059141373 | M191: 0.03292575515 | N191: 8.126177909e-05
A192: =IF('DF raw data'!E197="","",'DF raw data'!E197) -> -235 | B192: =IF('DF raw data'!F197="","",'DF raw data'!F197) -> -4.19912e-05 | C192: =IF('DF raw data'!G197="","",'DF raw data'!G197) -> 7.69151e-06 | D192: =IF('DF raw data'!H197="","",'DF raw data'!H197) -> -3.17473e-05 | F192: =(1-$G$1*($B$49-$G$2))*B192 -> -4.217818681e-05 | G192: 7.725760294e-06 | H192: -3.188867073e-05 | J192: =F192*$G$3+J191 -> -0.001669748294 | K192: =J192*$G$3+K191 -> -0.05421948852 | L192: =G192*$G$3+L191 -> 0.001063004253 | M192: =L192*$G$3+M191 -> 0.03345725727 | N192: =(J192^2+L192^2)*$G$3+N191 -> 8.32207978e-05
A193: =IF('DF raw data'!E198="","",'DF raw data'!E198) -> -234.5 | B193: =IF('DF raw data'!F198="","",'DF raw data'!F198) -> -4.22495e-05 | C193: =IF('DF raw data'!G198="","",'DF raw data'!G198) -> 1.16604e-05 | D193: =IF('DF raw data'!H198="","",'DF raw data'!H198) -> -2.89025e-05 | F193: -4.243763702e-05 | G193: 1.171232376e-05 | H193: -2.903120283e-05 | J193: -0.001690967113 | K193: -0.05506497207 | L193: 0.001068860415 | M193: 0.03399168748 | N193: 8.522171398e-05
A194: =IF('DF raw data'!E199="","",'DF raw data'!E199) -> -234 | B194: =IF('DF raw data'!F199="","",'DF raw data'!F199) -> -2.90393e-05 | C194: =IF('DF raw data'!G199="","",'DF raw data'!G199) -> 1.37873e-05 | D194: =IF('DF raw data'!H199="","",'DF raw data'!H199) -> -2.95479e-05 | F194: -2.9168612e-05 | G194: 1.384869485e-05 | H194: -2.96794768e-05 | J194: -0.001705551419 | K194: -0.05591774778 | L194: 0.001075784762 | M194: 0.03452957986 | N194: 8.725482323e-05
A195: =IF('DF raw data'!E200="","",'DF raw data'!E200) -> -233.5 | B195: =IF('DF raw data'!F200="","",'DF raw data'!F200) -> -2.63463e-05 | C195: =IF('DF raw data'!G200="","",'DF raw data'!G200) -> 2.16812e-06 | D195: =IF('DF raw data'!H200="","",'DF raw data'!H200) -> -2.92242e-05 | F195: -2.646362007e-05 | G195: 2.177774638e-06 | H195: -2.935433536e-05 | J195: -0.001718783229 | K195: -0.0567771394 | L195: 0.001076873649 | M195: 0.03506801669 | N195: 8.931175955e-05
A196: =IF('DF raw data'!E201="","",'DF raw data'!E201) -> -233 | B196: =IF('DF raw data'!F201="","",'DF raw data'!F201) -> -2.44213e-05 | C196: =IF('DF raw data'!G201="","",'DF raw data'!G201) -> 8.04815e-06 | D196: =IF('DF raw data'!H201="","",'DF raw data'!H201) -> -3.12899e-05 | F196: -2.453004805e-05 | G196: 8.083988412e-06 | H196: -3.142923392e-05 | J196: -0.001731048253 | K196: -0.05764266352 | L196: 0.001080915644 | M196: 0.03560847451 | N196: 9.139421289e-05
A197: =IF('DF raw data'!E202="","",'DF raw data'!E202) -> -232.5 | B197: =IF('DF raw data'!F202="","",'DF raw data'!F202) -> -3.78291e-05 | C197: =IF('DF raw data'!G202="","",'DF raw data'!G202) -> 5.81011e-06 | D197: =IF('DF raw data'!H202="","",'DF raw data'!H202) -> -2.2764e-05 | F197: -3.799755298e-05 | G197: 5.83598242e-06 | H197: -2.286536809e-05 | J197: -0.001750047029 | K197: -0.05851768704 | L197: 0.001083833635 | M197: 0.03615039133 | N197: 9.351289287e-05
A198: =IF('DF raw data'!E203="","",'DF raw data'!E203) -> -232 | B198: =IF('DF raw data'!F203="","",'DF raw data'!F203) -> -2.05017e-05 | C198: =IF('DF raw data'!G203="","",'DF raw data'!G203) -> 1.14601e-05 | D198: =IF('DF raw data'!H203="","",'DF raw data'!H203) -> -4.34537e-05 | F198: -2.059299407e-05 | G198: 1.151113183e-05 | H198: -4.364719933e-05 | J198: -0.001760343526 | K198: -0.0593978588 | L198: 0.001089589201 | M198: 0.03669518593 | N198: 9.565589985e-05
A199: =IF('DF raw data'!E204="","",'DF raw data'!E204) -> -231.5 | B199: =IF('DF raw data'!F204="","",'DF raw data'!F204) -> -2.41613e-05 | C199: =IF('DF raw data'!G204="","",'DF raw data'!G204) -> 1.55955e-05 | D199: =IF('DF raw data'!H204="","",'DF raw data'!H204) -> -3.66849e-05 | F199: -2.426889027e-05 | G199: 1.566494676e-05 | H199: -3.684825786e-05 | J199: -0.001772477971 | K199: -0.06028409779 | L199: 0.001097421674 | M199: 0.03724389676 | N199: 9.782890609e-05
A200: =IF('DF raw data'!E205="","",'DF raw data'!E205) -> -231 | B200: =IF('DF raw data'!F205="","",'DF raw data'!F205) -> -3.42276e-05 | C200: =IF('DF raw data'!G205="","",'DF raw data'!G205) -> 1.57705e-05 | D200: =IF('DF raw data'!H205="","",'DF raw data'!H205) -> -3.8692e-05 | F200: -3.43800155e-05 | G200: 1.584072604e-05 | H200: -3.886429548e-05 | J200: -0.001789667979 | K200: -0.06117893178 | L200: 0.001105342037 | M200: 0.03779656778 | N200: 0.0001000412523
A201: =IF('DF raw data'!E206="","",'DF raw data'!E206) -> -230.5 | B201: =IF('DF raw data'!F206="","",'DF raw data'!F206) -> -3.67984e-05 | C201: =IF('DF raw data'!G206="","",'DF raw data'!G206) -> 8.87295e-06 | D201: =IF('DF raw data'!H206="","",'DF raw data'!H206) -> -2.95617e-05 | F201: -3.696226328e-05 | G201: 8.912461246e-06 | H201: -2.969333825e-05 | J201: -0.001808149111 | K201: -0.06208300633 | L201: 0.001109798268 | M201: 0.03835146692 | N201: 0.00010229178
... 1061 more rows

Sheet 10 y=0
A1: =IF('DF raw data'!I1="","",'DF raw data'!I1) -> Number of header lines | B1: =IF('DF raw data'!J1="","",'DF raw data'!J1) -> 54 | C1: =IF('DF raw data'!K1="","",'DF raw data'!K1) ->  | D1: =IF('DF raw data'!L1="","",'DF raw data'!L1) ->  | F1: T_coeff | G1: -0.00073 | H1: /degC | J1: IBy total | K1: =J1262*1000 -> -9.816545136 | L1: muTm | M1: =L1262*1000 -> -8.183309924 | R1: DF ref | S1: ='10 y=-0.2'!S1 -> 1
A2: =IF('DF raw data'!I2="","",'DF raw data'!I2) -> Measured by | B2: =IF('DF raw data'!J2="","",'DF raw data'!J2) -> Danfysik | C2: =IF('DF raw data'!K2="","",'DF raw data'!K2) ->  | D2: =IF('DF raw data'!L2="","",'DF raw data'!L2) ->  | F2: Tcorr | G2: 20 | H2: degC | J2: JBy total | K2: =K1262 -> -14.34980058 | L2: muTm^2 | M2: =M1262 -> 1.494975413
A3: =IF('DF raw data'!I3="","",'DF raw data'!I3) -> Operator | B3: =IF('DF raw data'!J3="","",'DF raw data'!J3) -> PMHA | C3: =IF('DF raw data'!K3="","",'DF raw data'!K3) ->  | D3: =IF('DF raw data'!L3="","",'DF raw data'!L3) ->  | F3: Step | G3: =A63-A62 -> 0.5 | H3: mm | J3: PI total | K3: =N1262 -> 10464.88426 | L3: T^2mm^3
A4: =IF('DF raw data'!I4="","",'DF raw data'!I4) -> Data-time | B4: =IF('DF raw data'!J4="","",'DF raw data'!J4) -> 30-07-2024, 10:23:14 | C4: =IF('DF raw data'!K4="","",'DF raw data'!K4) ->  | D4: =IF('DF raw data'!L4="","",'DF raw data'!L4) -> 
A5: =IF('DF raw data'!I5="","",'DF raw data'!I5) -> Project | B5: =IF('DF raw data'!J5="","",'DF raw data'!J5) -> 504314 | C5: =IF('DF raw data'!K5="","",'DF raw data'!K5) ->  | D5: =IF('DF raw data'!L5="","",'DF raw data'!L5) -> 
A6: =IF('DF raw data'!I6="","",'DF raw data'!I6) -> Magnet type | B6: =IF('DF raw data'!J6="","",'DF raw data'!J6) -> Dipole | C6: =IF('DF raw data'!K6="","",'DF raw data'!K6) ->  | D6: =IF('DF raw data'!L6="","",'DF raw data'!L6) -> 
A7: =IF('DF raw data'!I7="","",'DF raw data'!I7) -> Magnet nr. | B7: =IF('DF raw data'!J7="","",'DF raw data'!J7) -> 2410085 | C7: =IF('DF raw data'!K7="","",'DF raw data'!K7) ->  | D7: =IF('DF raw data'!L7="","",'DF raw data'!L7) -> 
A8: =IF('DF raw data'!I8="","",'DF raw data'!I8) -> Meas. number | B8: =IF('DF raw data'!J8="","",'DF raw data'!J8) -> 154 | C8: =IF('DF raw data'!K8="","",'DF raw data'!K8) ->  | D8: =IF('DF raw data'!L8="","",'DF raw data'!L8) -> 
A9: =IF('DF raw data'!I9="","",'DF raw data'!I9) -> Add. info | B9: =IF('DF raw data'!J9="","",'DF raw data'!J9) -> Y-alignment scan 3) | C9: =IF('DF raw data'!K9="","",'DF raw data'!K9) ->  | D9: =IF('DF raw data'!L9="","",'DF raw data'!L9) -> 
A10: =IF('DF raw data'!I10="","",'DF raw data'!I10) -> Device | B10: =IF('DF raw data'!J10="","",'DF raw data'!J10) -> (HAL) HALL-PROBE | C10: =IF('DF raw data'!K10="","",'DF raw data'!K10) ->  | D10: =IF('DF raw data'!L10="","",'DF raw data'!L10) -> 
A11: =IF('DF raw data'!I11="","",'DF raw data'!I11) -> Goal | B11: =IF('DF raw data'!J11="","",'DF raw data'!J11) -> (AXI) AXis Integral (Line, EFB) | C11: =IF('DF raw data'!K11="","",'DF raw data'!K11) ->  | D11: =IF('DF raw data'!L11="","",'DF raw data'!L11) -> 
A12: =IF('DF raw data'!I12="","",'DF raw data'!I12) -> Power supply mode | B12: =IF('DF raw data'!J12="","",'DF raw data'!J12) -> (PM) Permanent Magnet (no MPS in use) | C12: =IF('DF raw data'!K12="","",'DF raw data'!K12) ->  | D12: =IF('DF raw data'!L12="","",'DF raw data'!L12) -> 
A13: =IF('DF raw data'!I13="","",'DF raw data'!I13) -> Data format | B13: =IF('DF raw data'!J13="","",'DF raw data'!J13) -> Raw data text file | C13: =IF('DF raw data'!K13="","",'DF raw data'!K13) ->  | D13: =IF('DF raw data'!L13="","",'DF raw data'!L13) -> 
A14: =IF('DF raw data'!I14="","",'DF raw data'!I14) -> Direction of the pos. x-axis | B14: =IF('DF raw data'!J14="","",'DF raw data'!J14) -> See test program | C14: =IF('DF raw data'!K14="","",'DF raw data'!K14) ->  | D14: =IF('DF raw data'!L14="","",'DF raw data'!L14) -> 
A15: =IF('DF raw data'!I15="","",'DF raw data'!I15) -> Direction of the pos. y-axis | B15: =IF('DF raw data'!J15="","",'DF raw data'!J15) -> Vertical up | C15: =IF('DF raw data'!K15="","",'DF raw data'!K15) ->  | D15: =IF('DF raw data'!L15="","",'DF raw data'!L15) -> 
A16: =IF('DF raw data'!I16="","",'DF raw data'!I16) -> Direction of the pos. z-axis | B16: =IF('DF raw data'!J16="","",'DF raw data'!J16) -> See test program | C16: =IF('DF raw data'!K16="","",'DF raw data'!K16) ->  | D16: =IF('DF raw data'!L16="","",'DF raw data'!L16) -> 
A17: =IF('DF raw data'!I17="","",'DF raw data'!I17) -> Mapper type | B17: =IF('DF raw data'!J17="","",'DF raw data'!J17) -> Precision Hall Mapper | C17: =IF('DF raw data'!K17="","",'DF raw data'!K17) ->  | D17: =IF('DF raw data'!L17="","",'DF raw data'!L17) -> 
A18: =IF('DF raw data'!I18="","",'DF raw data'!I18) -> Mapper Danfysik Reg. Number | B18: =IF('DF raw data'!J18="","",'DF raw data'!J18) -> 2033-D (mapper 1) | C18: =IF('DF raw data'!K18="","",'DF raw data'!K18) ->  | D18: =IF('DF raw data'!L18="","",'DF raw data'!L18) -> 
A19: =IF('DF raw data'!I19="","",'DF raw data'!I19) -> Measurement consept | B19: =IF('DF raw data'!J19="","",'DF raw data'!J19) -> Square line grid | C19: =IF('DF raw data'!K19="","",'DF raw data'!K19) ->  | D19: =IF('DF raw data'!L19="","",'DF raw data'!L19) -> 
A20: =IF('DF raw data'!I20="","",'DF raw data'!I20) -> Mode | B20: =IF('DF raw data'!J20="","",'DF raw data'!J20) -> On-the-fly measurement | C20: =IF('DF raw data'!K20="","",'DF raw data'!K20) ->  | D20: =IF('DF raw data'!L20="","",'DF raw data'!L20) -> 
A21: =IF('DF raw data'!I21="","",'DF raw data'!I21) ->  | B21: =IF('DF raw data'!J21="","",'DF raw data'!J21) ->  | C21: =IF('DF raw data'!K21="","",'DF raw data'!K21) ->  | D21: =IF('DF raw data'!L21="","",'DF raw data'!L21) -> 
A22: =IF('DF raw data'!I22="","",'DF raw data'!I22) -> Probe Name | B22: =IF('DF raw data'!J22="","",'DF raw data'!J22) -> ID12_By | C22: =IF('DF raw data'!K22="","",'DF raw data'!K22) ->  | D22: =IF('DF raw data'!L22="","",'DF raw data'!L22) -> 
A23: =IF('DF raw data'!I23="","",'DF raw data'!I23) -> Probe Type | B23: =IF('DF raw data'!J23="","",'DF raw data'!J23) -> DF_ID_3D_Bxyz | C23: =IF('DF raw data'!K23="","",'DF raw data'!K23) ->  | D23: =IF('DF raw data'!L23="","",'DF raw data'!L23) -> 
A24: =IF('DF raw data'!I24="","",'DF raw data'!I24) -> Probe Danfysik Reg. Number | B24: =IF('DF raw data'!J24="","",'DF raw data'!J24) -> 2277 | C24: =IF('DF raw data'!K24="","",'DF raw data'!K24) ->  | D24: =IF('DF raw data'!L24="","",'DF raw data'!L24) -> 
A25: =IF('DF raw data'!I25="","",'DF raw data'!I25) -> Probe Axis | B25: =IF('DF raw data'!J25="","",'DF raw data'!J25) -> By | C25: =IF('DF raw data'!K25="","",'DF raw data'!K25) ->  | D25: =IF('DF raw data'!L25="","",'DF raw data'!L25) -> 
A26: =IF('DF raw data'!I26="","",'DF raw data'!I26) -> Probe Current Supply | B26: =IF('DF raw data'!J26="","",'DF raw data'!J26) -> 1825-D | C26: =IF('DF raw data'!K26="","",'DF raw data'!K26) ->  | D26: =IF('DF raw data'!L26="","",'DF raw data'!L26) -> 
A27: =IF('DF raw data'!I27="","",'DF raw data'!I27) -> Probe Gain Correction | B27: =IF('DF raw data'!J27="","",'DF raw data'!J27) -> 0.99612 | C27: =IF('DF raw data'!K27="","",'DF raw data'!K27) ->  | D27: =IF('DF raw data'!L27="","",'DF raw data'!L27) -> 
A28: =IF('DF raw data'!I28="","",'DF raw data'!I28) -> Probe Offset Correction | B28: =IF('DF raw data'!J28="","",'DF raw data'!J28) -> 0.0027538 | C28: =IF('DF raw data'!K28="","",'DF raw data'!K28) ->  | D28: =IF('DF raw data'!L28="","",'DF raw data'!L28) -> 
A29: =IF('DF raw data'!I29="","",'DF raw data'!I29) -> DVM Number | B29: =IF('DF raw data'!J29="","",'DF raw data'!J29) -> 2 | C29: =IF('DF raw data'!K29="","",'DF raw data'!K29) ->  | D29: =IF('DF raw data'!L29="","",'DF raw data'!L29) -> 
A30: =IF('DF raw data'!I30="","",'DF raw data'!I30) -> DVM Type | B30: =IF('DF raw data'!J30="","",'DF raw data'!J30) -> K2701 | C30: =IF('DF raw data'!K30="","",'DF raw data'!K30) ->  | D30: =IF('DF raw data'!L30="","",'DF raw data'!L30) -> 
A31: =IF('DF raw data'!I31="","",'DF raw data'!I31) -> DVM Danfysik Reg. Number | B31: =IF('DF raw data'!J31="","",'DF raw data'!J31) -> 1743-D | C31: =IF('DF raw data'!K31="","",'DF raw data'!K31) ->  | D31: =IF('DF raw data'!L31="","",'DF raw data'!L31) -> 
A32: =IF('DF raw data'!I32="","",'DF raw data'!I32) -> Probe Name | B32: =IF('DF raw data'!J32="","",'DF raw data'!J32) -> ID12_Bx | C32: =IF('DF raw data'!K32="","",'DF raw data'!K32) ->  | D32: =IF('DF raw data'!L32="","",'DF raw data'!L32) -> 
A33: =IF('DF raw data'!I33="","",'DF raw data'!I33) -> Probe Type | B33: =IF('DF raw data'!J33="","",'DF raw data'!J33) -> DF_ID_3D_Bxyz | C33: =IF('DF raw data'!K33="","",'DF raw data'!K33) ->  | D33: =IF('DF raw data'!L33="","",'DF raw data'!L33) -> 
A34: =IF('DF raw data'!I34="","",'DF raw data'!I34) -> Probe Danfysik Reg. Number | B34: =IF('DF raw data'!J34="","",'DF raw data'!J34) -> 2277 | C34: =IF('DF raw data'!K34="","",'DF raw data'!K34) ->  | D34: =IF('DF raw data'!L34="","",'DF raw data'!L34) -> 
A35: =IF('DF raw data'!I35="","",'DF raw data'!I35) -> Probe Axis | B35: =IF('DF raw data'!J35="","",'DF raw data'!J35) -> Bx | C35: =IF('DF raw data'!K35="","",'DF raw data'!K35) ->  | D35: =IF('DF raw data'!L35="","",'DF raw data'!L35) -> 
A36: =IF('DF raw data'!I36="","",'DF raw data'!I36) -> Probe Current Supply | B36: =IF('DF raw data'!J36="","",'DF raw data'!J36) -> 1825-D | C36: =IF('DF raw data'!K36="","",'DF raw data'!K36) ->  | D36: =IF('DF raw data'!L36="","",'DF raw data'!L36) -> 
A37: =IF('DF raw data'!I37="","",'DF raw data'!I37) -> Probe Gain Correction | B37: =IF('DF raw data'!J37="","",'DF raw data'!J37) -> 1 | C37: =IF('DF raw data'!K37="","",'DF raw data'!K37) ->  | D37: =IF('DF raw data'!L37="","",'DF raw data'!L37) -> 
A38: =IF('DF raw data'!I38="","",'DF raw data'!I38) -> Probe Offset Correction | B38: =IF('DF raw data'!J38="","",'DF raw data'!J38) -> -0.17579 | C38: =IF('DF raw data'!K38="","",'DF raw data'!K38) ->  | D38: =IF('DF raw data'!L38="","",'DF raw data'!L38) -> 
A39: =IF('DF raw data'!I39="","",'DF raw data'!I39) -> DVM Number | B39: =IF('DF raw data'!J39="","",'DF raw data'!J39) -> 3 | C39: =IF('DF raw data'!K39="","",'DF raw data'!K39) ->  | D39: =IF('DF raw data'!L39="","",'DF raw data'!L39) -> 
A40: =IF('DF raw data'!I40="","",'DF raw data'!I40) -> DVM Type | B40: =IF('DF raw data'!J40="","",'DF raw data'!J40) -> K2701 | C40: =IF('DF raw data'!K40="","",'DF raw data'!K40) ->  | D40: =IF('DF raw data'!L40="","",'DF raw data'!L40) -> 
A41: =IF('DF raw data'!I41="","",'DF raw data'!I41) -> DVM Danfysik Reg. Number | B41: =IF('DF raw data'!J41="","",'DF raw data'!J41) -> 1744-D | C41: =IF('DF raw data'!K41="","",'DF raw data'!K41) ->  | D41: =IF('DF raw data'!L41="","",'DF raw data'!L41) -> 
A42: =IF('DF raw data'!I42="","",'DF raw data'!I42) -> Probe Name | B42: =IF('DF raw data'!J42="","",'DF raw data'!J42) -> ID12_Bz | C42: =IF('DF raw data'!K42="","",'DF raw data'!K42) ->  | D42: =IF('DF raw data'!L42="","",'DF raw data'!L42) -> 
A43: =IF('DF raw data'!I43="","",'DF raw data'!I43) -> Probe Type | B43: =IF('DF raw data'!J43="","",'DF raw data'!J43) -> DF_ID_3D_Bxyz | C43: =IF('DF raw data'!K43="","",'DF raw data'!K43) ->  | D43: =IF('DF raw data'!L43="","",'DF raw data'!L43) -> 
A44: =IF('DF raw data'!I44="","",'DF raw data'!I44) -> Probe Danfysik Reg. Number | B44: =IF('DF raw data'!J44="","",'DF raw data'!J44) -> 2277 | C44: =IF('DF raw data'!K44="","",'DF raw data'!K44) ->  | D44: =IF('DF raw data'!L44="","",'DF raw data'!L44) -> 
A45: =IF('DF raw data'!I45="","",'DF raw data'!I45) -> Probe Axis | B45: =IF('DF raw data'!J45="","",'DF raw data'!J45) -> Bz | C45: =IF('DF raw data'!K45="","",'DF raw data'!K45) ->  | D45: =IF('DF raw data'!L45="","",'DF raw data'!L45) -> 
A46: =IF('DF raw data'!I46="","",'DF raw data'!I46) -> Probe Current Supply | B46: =IF('DF raw data'!J46="","",'DF raw data'!J46) -> 1825-D | C46: =IF('DF raw data'!K46="","",'DF raw data'!K46) ->  | D46: =IF('DF raw data'!L46="","",'DF raw data'!L46) -> 
A47: =IF('DF raw data'!I47="","",'DF raw data'!I47) -> Probe Gain Correction | B47: =IF('DF raw data'!J47="","",'DF raw data'!J47) -> 1 | C47: =IF('DF raw data'!K47="","",'DF raw data'!K47) ->  | D47: =IF('DF raw data'!L47="","",'DF raw data'!L47) -> 
A48: =IF('DF raw data'!I53="","",'DF raw data'!I53) -> PS-Gap: | B48: =IF('DF raw data'!J53="","",'DF raw data'!J53) -> 10 | C48: =IF('DF raw data'!K53="","",'DF raw data'!K53) ->  | D48: =IF('DF raw data'!L53="","",'DF raw data'!L53) -> 
A49: =IF('DF raw data'!I54="","",'DF raw data'!I54) -> PS-Temperature: | B49: =IF('DF raw data'!J54="","",'DF raw data'!J54) -> 26.1 | C49: =IF('DF raw data'!K54="","",'DF raw data'!K54) ->  | D49: =IF('DF raw data'!L54="","",'DF raw data'!L54) -> 
A50: =IF('DF raw data'!I55="","",'DF raw data'!I55) -> PS-Encoder: | B50: =IF('DF raw data'!J55="","",'DF raw data'!J55) -> 20.0357 | C50: =IF('DF raw data'!K55="","",'DF raw data'!K55) ->  | D50: =IF('DF raw data'!L55="","",'DF raw data'!L55) -> 
A51: =IF('DF raw data'!I56="","",'DF raw data'!I56) ->  | B51: =IF('DF raw data'!J56="","",'DF raw data'!J56) ->  | C51: =IF('DF raw data'!K56="","",'DF raw data'!K56) ->  | D51: =IF('DF raw data'!L56="","",'DF raw data'!L56) -> 
A52: =IF('DF raw data'!I57="","",'DF raw data'!I57) -> Monitor-Index | B52: =IF('DF raw data'!J57="","",'DF raw data'!J57) -> [1,1,4] | C52: =IF('DF raw data'!K57="","",'DF raw data'!K57) ->  | D52: =IF('DF raw data'!L57="","",'DF raw data'!L57) -> 
A53: =IF('DF raw data'!I58="","",'DF raw data'!I58) ->  | B53: =IF('DF raw data'!J58="","",'DF raw data'!J58) ->  | C53: =IF('DF raw data'!K58="","",'DF raw data'!K58) ->  | D53: =IF('DF raw data'!L58="","",'DF raw data'!L58) -> 
A54: =IF('DF raw data'!I59="","",'DF raw data'!I59) -> Time [s] | B54: =IF('DF raw data'!J59="","",'DF raw data'!J59) -> Y [mm] | C54: =IF('DF raw data'!K59="","",'DF raw data'!K59) -> X [mm] | D54: =IF('DF raw data'!L59="","",'DF raw data'!L59) -> Nominal current [A]
A55: =IF('DF raw data'!I60="","",'DF raw data'!I60) ->  | B55: =IF('DF raw data'!J60="","",'DF raw data'!J60) ->  | C55: =IF('DF raw data'!K60="","",'DF raw data'!K60) ->  | D55: =IF('DF raw data'!L60="","",'DF raw data'!L60) -> 
A56: =IF('DF raw data'!I61="","",'DF raw data'!I61) -> 207.1 | B56: =IF('DF raw data'!J61="","",'DF raw data'!J61) -> 31.16 | C56: =IF('DF raw data'!K61="","",'DF raw data'!K61) -> 301.8 | D56: =IF('DF raw data'!L61="","",'DF raw data'!L61) -> 0
A57: =IF('DF raw data'!I62="","",'DF raw data'!I62) ->  | B57: =IF('DF raw data'!J62="","",'DF raw data'!J62) ->  | C57: =IF('DF raw data'!K62="","",'DF raw data'!K62) ->  | D57: =IF('DF raw data'!L62="","",'DF raw data'!L62) -> 
A58: =IF('DF raw data'!I63="","",'DF raw data'!I63) -> Measurement-Index | B58: =IF('DF raw data'!J63="","",'DF raw data'!J63) -> [1,1,1201,2] | C58: =IF('DF raw data'!K63="","",'DF raw data'!K63) ->  | D58: =IF('DF raw data'!L63="","",'DF raw data'!L63) -> 
A59: =IF('DF raw data'!I64="","",'DF raw data'!I64) ->  | B59: =IF('DF raw data'!J64="","",'DF raw data'!J64) ->  | C59: =IF('DF raw data'!K64="","",'DF raw data'!K64) ->  | D59: =IF('DF raw data'!L64="","",'DF raw data'!L64) -> 
A60: =IF('DF raw data'!I65="","",'DF raw data'!I65) -> Z [mm] | B60: By [T] | C60: Bx [T] | D60: Bz [T] | F60: By_corr | G60: Bx_corr | H60: Bz_corr | J60: Iy | K60: Jy | L60: Ix | M60: Jx | N60: PI
A62: =IF('DF raw data'!I67="","",'DF raw data'!I67) -> -300 | B62: =IF('DF raw data'!J67="","",'DF raw data'!J67) -> -2.91566e-05 | C62: =IF('DF raw data'!K67="","",'DF raw data'!K67) -> 2.35593e-05 | D62: =IF('DF raw data'!L67="","",'DF raw data'!L67) -> -2.92538e-05 | F62: =(1-$G$1*($B$49))*B62 -> -2.97121207e-05 | G62: =(1-$G$1*($B$49-$G$2))*C62 -> 2.366420956e-05 | H62: =(1-$G$1*($B$49-$G$2))*D62 -> -2.938406717e-05 | J62: =F62*$G$3 -> -1.485606035e-05 | K62: =J62*$G$3 -> -7.428030175e-06 | L62: =G62*$G$3 -> 1.183210478e-05 | M62: =L62*$G$3 -> 5.916052391e-06 | N62: =(J62^2+L62^2)*$G$3 -> 1.803506163e-10
A63: =IF('DF raw data'!I68="","",'DF raw data'!I68) -> -299.5 | B63: =IF('DF raw data'!J68="","",'DF raw data'!J68) -> -2.05633e-05 | C63: =IF('DF raw data'!K68="","",'DF raw data'!K68) -> 2.30377e-05 | D63: =IF('DF raw data'!L68="","",'DF raw data'!L68) -> -3.00103e-05 | F63: =(1-$G$1*($B$49-$G$2))*B63 -> -2.065486837e-05 | G63: =(1-$G$1*($B$49-$G$2))*C63 -> 2.314028688e-05 | H63: -3.014393587e-05 | J63: =F63*$G$3+J62 -> -2.518349454e-05 | K63: =J63*$G$3+K62 -> -2.001977744e-05 | L63: =G63*$G$3+L62 -> 2.340224822e-05 | M63: =L63*$G$3+M62 -> 1.76171765e-05 | N63: =(J63^2+L63^2)*$G$3+N62 -> 7.712874258e-10
A64: =IF('DF raw data'!I69="","",'DF raw data'!I69) -> -299 | B64: =IF('DF raw data'!J69="","",'DF raw data'!J69) -> -2.03062e-05 | C64: =IF('DF raw data'!K69="","",'DF raw data'!K69) -> 2.33316e-05 | D64: =IF('DF raw data'!L69="","",'DF raw data'!L69) -> -3.08743e-05 | F64: =(1-$G$1*($B$49-$G$2))*B64 -> -2.039662351e-05 | G64: 2.343549561e-05 | H64: -3.101178326e-05 | J64: =F64*$G$3+J63 -> -3.538180629e-05 | K64: =J64*$G$3+K63 -> -3.771068059e-05 | L64: =G64*$G$3+L63 -> 3.511999603e-05 | M64: =L64*$G$3+M63 -> 3.517717451e-05 | N64: =(J64^2+L64^2)*$G$3+N63 -> 2.013930595e-09
A65: =IF('DF raw data'!I70="","",'DF raw data'!I70) -> -298.5 | B65: =IF('DF raw data'!J70="","",'DF raw data'!J70) -> -3.71074e-05 | C65: =IF('DF raw data'!K70="","",'DF raw data'!K70) -> 2.85788e-05 | D65: =IF('DF raw data'!L70="","",'DF raw data'!L70) -> -3.04658e-05 | F65: -3.727263925e-05 | G65: 2.87060614e-05 | H65: -3.060146421e-05 | J65: -5.401812592e-05 | K65: -6.471974355e-05 | L65: 4.947302673e-05 | M65: 5.991368788e-05 | N65: 4.696699745e-09
A66: =IF('DF raw data'!I71="","",'DF raw data'!I71) -> -298 | B66: =IF('DF raw data'!J71="","",'DF raw data'!J71) -> -1.65234e-05 | C66: =IF('DF raw data'!K71="","",'DF raw data'!K71) -> 3.18928e-05 | D66: =IF('DF raw data'!L71="","",'DF raw data'!L71) -> -2.99442e-05 | F66: -1.65969787e-05 | G66: 3.203481864e-05 | H66: -3.007754152e-05 | J66: -6.231661527e-05 | K66: -9.587805118e-05 | L66: 6.549043605e-05 | M66: 9.26589059e-05 | N66: 8.782878621e-09
A67: =IF('DF raw data'!I72="","",'DF raw data'!I72) -> -297.5 | B67: =IF('DF raw data'!J72="","",'DF raw data'!J72) -> -2.30643e-05 | C67: =IF('DF raw data'!K72="","",'DF raw data'!K72) -> 3.89108e-05 | D67: =IF('DF raw data'!L72="","",'DF raw data'!L72) -> -2.99889e-05 | F67: -2.316700533e-05 | G67: 3.908406979e-05 | H67: -3.012244057e-05 | J67: -7.390011793e-05 | K67: -0.0001328281101 | L67: 8.503247094e-05 | M67: 0.0001351751414 | N67: 1.512875289e-08
A68: =IF('DF raw data'!I73="","",'DF raw data'!I73) -> -297 | B68: =IF('DF raw data'!J73="","",'DF raw data'!J73) -> -2.01783e-05 | C68: =IF('DF raw data'!K73="","",'DF raw data'!K73) -> 3.748e-05 | D68: =IF('DF raw data'!L73="","",'DF raw data'!L73) -> -3.03308e-05 | F68: -2.026815397e-05 | G68: 3.764689844e-05 | H68: -3.046586305e-05 | J68: -8.403419492e-05 | K68: -0.0001748452076 | L68: 0.0001038559202 | M68: 0.0001871031015 | N68: 2.405265193e-08
A69: =IF('DF raw data'!I74="","",'DF raw data'!I74) -> -296.5 | B69: =IF('DF raw data'!J74="","",'DF raw data'!J74) -> -1.51764e-05 | C69: =IF('DF raw data'!K74="","",'DF raw data'!K74) -> 2.92139e-05 | D69: =IF('DF raw data'!L74="","",'DF raw data'!L74) -> -3.08296e-05 | F69: -1.524398051e-05 | G69: 2.93439895e-05 | H69: -3.096688421e-05 | J69: -9.165618517e-05 | K69: -0.0002206733002 | L69: 0.0001185279149 | M69: 0.0002463670589 | N69: 3.527751337e-08
A70: =IF('DF raw data'!I75="","",'DF raw data'!I75) -> -296 | B70: =IF('DF raw data'!J75="","",'DF raw data'!J75) -> -2.01136e-05 | C70: =IF('DF raw data'!K75="","",'DF raw data'!K75) -> 2.65583e-05 | D70: =IF('DF raw data'!L75="","",'DF raw data'!L75) -> -3.11226e-05 | F70: -2.020316586e-05 | G70: 2.667656411e-05 | H70: -3.126118894e-05 | J70: -0.0001017577681 | K70: -0.0002715521842 | L70: 0.000131866197 | M70: 0.0003123001574 | N70: 4.914918201e-08
A71: =IF('DF raw data'!I76="","",'DF raw data'!I76) -> -295.5 | B71: =IF('DF raw data'!J76="","",'DF raw data'!J76) -> -2.56287e-05 | C71: =IF('DF raw data'!K76="","",'DF raw data'!K76) -> 2.96747e-05 | D71: =IF('DF raw data'!L76="","",'DF raw data'!L76) -> -3.08286e-05 | F71: -2.57428246e-05 | G71: 2.980684144e-05 | H71: -3.096587976e-05 | J71: -0.0001146291804 | K71: -0.0003288667744 | L71: 0.0001467696177 | M71: 0.0003856849662 | N71: 6.648976685e-08
A72: =IF('DF raw data'!I77="","",'DF raw data'!I77) -> -295 | B72: =IF('DF raw data'!J77="","",'DF raw data'!J77) -> -1.8062e-05 | C72: =IF('DF raw data'!K77="","",'DF raw data'!K77) -> 2.57393e-05 | D72: =IF('DF raw data'!L77="","",'DF raw data'!L77) -> -3.05832e-05 | F72: -1.814243009e-05 | G72: 2.58539171e-05 | H72: -3.071938699e-05 | J72: -0.0001237003954 | K72: -0.0003907169722 | L72: 0.0001596965762 | M72: 0.0004655332543 | N72: 8.689215899e-08
A73: =IF('DF raw data'!I78="","",'DF raw data'!I78) -> -294.5 | B73: =IF('DF raw data'!J78="","",'DF raw data'!J78) -> -2.13966e-05 | C73: =IF('DF raw data'!K78="","",'DF raw data'!K78) -> 3.56487e-05 | D73: =IF('DF raw data'!L78="","",'DF raw data'!L78) -> -3.06902e-05 | F73: -2.149187906e-05 | G73: 3.580744366e-05 | H73: -3.082686346e-05 | J73: -0.000134446335 | K73: -0.0004579401397 | L73: 0.0001776002981 | M73: 0.0005543334034 | N73: 1.117010004e-07
A74: =IF('DF raw data'!I79="","",'DF raw data'!I79) -> -294 | B74: =IF('DF raw data'!J79="","",'DF raw data'!J79) -> -2.01781e-05 | C74: =IF('DF raw data'!K79="","",'DF raw data'!K79) -> 4.4721e-05 | D74: =IF('DF raw data'!L79="","",'DF raw data'!L79) -> -3.06908e-05 | F74: -2.026795308e-05 | G74: 4.492014261e-05 | H74: -3.082746613e-05 | J74: -0.0001445803115 | K74: -0.0005302302954 | L74: 0.0002000603694 | M74: 0.0006543635881 | N74: 1.421648094e-07
A75: =IF('DF raw data'!I80="","",'DF raw data'!I80) -> -293.5 | B75: =IF('DF raw data'!J80="","",'DF raw data'!J80) -> -2.39617e-05 | C75: =IF('DF raw data'!K80="","",'DF raw data'!K80) -> 3.96262e-05 | D75: =IF('DF raw data'!L80="","",'DF raw data'!L80) -> -3.04771e-05 | F75: -2.406840145e-05 | G75: 3.980265547e-05 | H75: -3.061281453e-05 | J75: -0.0001566145122 | K75: -0.0006085375515 | L75: 0.0002199616971 | M75: 0.0007643444366 | N75: 1.786204362e-07
A76: =IF('DF raw data'!I81="","",'DF raw data'!I81) -> -293 | B76: =IF('DF raw data'!J81="","",'DF raw data'!J81) -> -1.57535e-05 | C76: =IF('DF raw data'!K81="","",'DF raw data'!K81) -> 2.88597e-05 | D76: =IF('DF raw data'!L81="","",'DF raw data'!L81) -> -3.0573e-05 | F76: -1.582365034e-05 | G76: 2.898821224e-05 | H76: -3.070914157e-05 | J76: -0.0001645263374 | K76: -0.0006908007202 | L76: 0.0002344558032 | M76: 0.0008815723382 | N76: 2.196396559e-07
A77: =IF('DF raw data'!I82="","",'DF raw data'!I82) -> -292.5 | B77: =IF('DF raw data'!J82="","",'DF raw data'!J82) -> -2.12683e-05 | C77: =IF('DF raw data'!K82="","",'DF raw data'!K82) -> 1.8567e-05 | D77: =IF('DF raw data'!L82="","",'DF raw data'!L82) -> -3.07448e-05 | F77: -2.136300774e-05 | G77: 1.864967885e-05 | H77: -3.088170659e-05 | J77: -0.0001752078413 | K77: -0.0007784046409 | L77: 0.0002437806427 | M77: 0.00100346266 | N77: 2.647030506e-07
A78: =IF('DF raw data'!I83="","",'DF raw data'!I83) -> -292 | B78: =IF('DF raw data'!J83="","",'DF raw data'!J83) -> -1.98574e-05 | C78: =IF('DF raw data'!K83="","",'DF raw data'!K83) -> 1.03201e-05 | D78: =IF('DF raw data'!L83="","",'DF raw data'!L83) -> -3.06131e-05 | F78: -1.9945825e-05 | G78: 1.036605541e-05 | H78: -3.074942013e-05 | J78: -0.0001851807538 | K78: -0.0008709950178 | L78: 0.0002489636704 | M78: 0.001127944495 | N78: 3.128404609e-07
A79: =IF('DF raw data'!I84="","",'DF raw data'!I84) -> -291.5 | B79: =IF('DF raw data'!J84="","",'DF raw data'!J84) -> -2.2291e-05 | C79: =IF('DF raw data'!K84="","",'DF raw data'!K84) -> 5.56362e-06 | D79: =IF('DF raw data'!L84="","",'DF raw data'!L84) -> -3.58338e-05 | F79: -2.239026182e-05 | G79: 5.5883948e-06 | H79: -3.599336791e-05 | J79: -0.0001963758847 | K79: -0.0009691829601 | L79: 0.0002517578678 | M79: 0.001253823429 | N79: 3.638132169e-07
A80: =IF('DF raw data'!I85="","",'DF raw data'!I85) -> -291 | B80: =IF('DF raw data'!J85="","",'DF raw data'!J85) -> -1.12678e-05 | C80: =IF('DF raw data'!K85="","",'DF raw data'!K85) -> 1.2514e-05 | D80: =IF('DF raw data'!L85="","",'DF raw data'!L85) -> -2.61254e-05 | F80: -1.131797551e-05 | G80: 1.256972484e-05 | H80: -2.624173641e-05 | J80: -0.0002020348724 | K80: -0.001070200396 | L80: 0.0002580427302 | M80: 0.001382844794 | N80: 4.175152871e-07
A81: =IF('DF raw data'!I86="","",'DF raw data'!I86) -> -290.5 | B81: =IF('DF raw data'!J86="","",'DF raw data'!J86) -> -2.82048e-05 | C81: =IF('DF raw data'!K86="","",'DF raw data'!K86) -> 1.68519e-05 | D81: =IF('DF raw data'!L86="","",'DF raw data'!L86) -> -1.36707e-05 | F81: -2.833039597e-05 | G81: 1.692694151e-05 | H81: -1.373157563e-05 | J81: -0.0002162000704 | K81: -0.001178300432 | L81: 0.0002665062009 | M81: 0.001516097894 | N81: 4.763992999e-07
A82: =IF('DF raw data'!I87="","",'DF raw data'!I87) -> -290 | B82: =IF('DF raw data'!J87="","",'DF raw data'!J87) -> -2.50527e-05 | C82: =IF('DF raw data'!K87="","",'DF raw data'!K87) -> 1.34791e-05 | D82: =IF('DF raw data'!L87="","",'DF raw data'!L87) -> -2.88766e-05 | F82: -2.516425967e-05 | G82: 1.353912243e-05 | H82: -2.90051875e-05 | J82: -0.0002287822003 | K82: -0.001292691532 | L82: 0.0002732757621 | M82: 0.001652735775 | N82: 5.399097686e-07
A83: =IF('DF raw data'!I88="","",'DF raw data'!I88) -> -289.5 | B83: =IF('DF raw data'!J88="","",'DF raw data'!J88) -> -2.44164e-05 | C83: =IF('DF raw data'!K88="","",'DF raw data'!K88) -> 1.7621e-05 | D83: =IF('DF raw data'!L88="","",'DF raw data'!L88) -> -2.12441e-05 | F83: -2.452512623e-05 | G83: 1.769946631e-05 | H83: -2.133869998e-05 | J83: -0.0002410447634 | K83: -0.001413213913 | L83: 0.0002821254953 | M83: 0.001793798523 | N83: 6.087584551e-07
A84: =IF('DF raw data'!I89="","",'DF raw data'!I89) -> -289 | B84: =IF('DF raw data'!J89="","",'DF raw data'!J89) -> -9.40769e-06 | C84: =IF('DF raw data'!K89="","",'DF raw data'!K89) -> 1.97625e-05 | D84: =IF('DF raw data'!L89="","",'DF raw data'!L89) -> -2.66651e-05 | F84: -9.449582444e-06 | G84: 1.985050241e-05 | H84: -2.678383969e-05 | J84: -0.0002457695546 | K84: -0.001536098691 | L84: 0.0002920507465 | M84: 0.001939823896 | N84: 6.816066113e-07
A85: =IF('DF raw data'!I90="","",'DF raw data'!I90) -> -288.5 | B85: =IF('DF raw data'!J90="","",'DF raw data'!J90) -> -1.5696e-05 | C85: =IF('DF raw data'!K90="","",'DF raw data'!K90) -> 1.30568e-05 | D85: =IF('DF raw data'!L90="","",'DF raw data'!L90) -> -2.06628e-05 | F85: -1.576589429e-05 | G85: 1.311494193e-05 | H85: -2.075481145e-05 | J85: -0.0002536525018 | K85: -0.001662924942 | L85: 0.0002986082175 | M85: 0.002089128005 | N85: 7.583598409e-07
A86: =IF('DF raw data'!I91="","",'DF raw data'!I91) -> -288 | B86: =IF('DF raw data'!J91="","",'DF raw data'!J91) -> -2.80058e-05 | C86: =IF('DF raw data'!K91="","",'DF raw data'!K91) -> 1.55547e-05 | D86: =IF('DF raw data'!L91="","",'DF raw data'!L91) -> -2.41203e-05 | F86: -2.813050983e-05 | G86: 1.562396508e-05 | H86: -2.42277077e-05 | J86: -0.0002677177567 | K86: -0.00179678382 | L86: 0.0003064202 | M86: 0.002242338105 | N86: 8.41142909e-07
A87: =IF('DF raw data'!I92="","",'DF raw data'!I92) -> -287.5 | B87: =IF('DF raw data'!J92="","",'DF raw data'!J92) -> -2.00529e-05 | C87: =IF('DF raw data'!K92="","",'DF raw data'!K92) -> 2.8004e-05 | D87: =IF('DF raw data'!L92="","",'DF raw data'!L92) -> -2.6088e-05 | F87: -2.014219556e-05 | G87: 2.812870181e-05 | H87: -2.620416986e-05 | J87: -0.0002777888544 | K87: -0.001935678247 | L87: 0.0003204845509 | M87: 0.00240258038 | N87: 9.310814066e-07
A88: =IF('DF raw data'!I93="","",'DF raw data'!I93) -> -287 | B88: =IF('DF raw data'!J93="","",'DF raw data'!J93) -> -1.73586e-05 | C88: =IF('DF raw data'!K93="","",'DF raw data'!K93) -> 2.34106e-05 | D88: =IF('DF raw data'!L93="","",'DF raw data'!L93) -> -2.76913e-05 | F88: -1.743589785e-05 | G88: 2.35148474e-05 | H88: -2.781460936e-05 | J88: -0.0002865068034 | K88: -0.002078931649 | L88: 0.0003322419746 | M88: 0.002568701368 | N88: 1.027316846e-06
A89: =IF('DF raw data'!I94="","",'DF raw data'!I94) -> -286.5 | B89: =IF('DF raw data'!J94="","",'DF raw data'!J94) -> -2.40926e-05 | C89: =IF('DF raw data'!K94="","",'DF raw data'!K94) -> 1.09806e-05 | D89: =IF('DF raw data'!L94="","",'DF raw data'!L94) -> -2.64047e-05 | F89: -2.419988435e-05 | G89: 1.102949661e-05 | H89: -2.652228013e-05 | J89: -0.0002986067455 | K89: -0.002228235022 | L89: 0.0003377567229 | M89: 0.002737579729 | N89: 1.128939642e-06
A90: =IF('DF raw data'!I95="","",'DF raw data'!I95) -> -286 | B90: =IF('DF raw data'!J95="","",'DF raw data'!J95) -> -2.0691e-05 | C90: =IF('DF raw data'!K95="","",'DF raw data'!K95) -> 2.07363e-05 | D90: =IF('DF raw data'!L95="","",'DF raw data'!L95) -> -3.08373e-05 | F90: -2.078313702e-05 | G90: 2.082863874e-05 | H90: -3.09746185e-05 | J90: -0.0003089983141 | K90: -0.002382734179 | L90: 0.0003481710423 | M90: 0.00291166525 | N90: 1.237291158e-06
A91: =IF('DF raw data'!I96="","",'DF raw data'!I96) -> -285.5 | B91: =IF('DF raw data'!J96="","",'DF raw data'!J96) -> -1.99913e-05 | C91: =IF('DF raw data'!K96="","",'DF raw data'!K96) -> 2.46242e-05 | D91: =IF('DF raw data'!L96="","",'DF raw data'!L96) -> -2.19589e-05 | F91: -2.008032126e-05 | G91: 2.473385156e-05 | H91: -2.205668298e-05 | J91: -0.0003190384747 | K91: -0.002542253416 | L91: 0.0003605379681 | M91: 0.003091934234 | N91: 1.353177746e-06
A92: =IF('DF raw data'!I97="","",'DF raw data'!I97) -> -285 | B92: =IF('DF raw data'!J97="","",'DF raw data'!J97) -> -2.83821e-05 | C92: =IF('DF raw data'!K97="","",'DF raw data'!K97) -> 2.50959e-05 | D92: =IF('DF raw data'!L97="","",'DF raw data'!L97) -> -3.70454e-05 | F92: -2.850848549e-05 | G92: 2.520765204e-05 | H92: -3.721036317e-05 | J92: -0.0003332927174 | K92: -0.002708899775 | L92: 0.0003731417941 | M92: 0.003278505131 | N92: 1.478337163e-06
A93: =IF('DF raw data'!I98="","",'DF raw data'!I98) -> -284.5 | B93: =IF('DF raw data'!J98="","",'DF raw data'!J98) -> -2.19697e-05 | C93: =IF('DF raw data'!K98="","",'DF raw data'!K98) -> 2.02711e-05 | D93: =IF('DF raw data'!L98="","",'DF raw data'!L98) -> -3.66819e-05 | F93: -2.206753107e-05 | G93: 2.036136721e-05 | H93: -3.68452445e-05 | J93: -0.000344326483 | K93: -0.002881063016 | L93: 0.0003833224777 | M93: 0.00347016637 | N93: 1.611085587e-06
A94: =IF('DF raw data'!I99="","",'DF raw data'!I99) -> -284 | B94: =IF('DF raw data'!J99="","",'DF raw data'!J99) -> -2.36997e-05 | C94: =IF('DF raw data'!K99="","",'DF raw data'!K99) -> 2.44462e-05 | D94: =IF('DF raw data'!L99="","",'DF raw data'!L99) -> -3.89458e-05 | F94: -2.380523476e-05 | G94: 2.455505893e-05 | H94: -3.911922565e-05 | J94: -0.0003562291003 | K94: -0.003059177566 | L94: 0.0003956000072 | M94: 0.003667966374 | N94: 1.752784856e-06
A95: =IF('DF raw data'!I100="","",'DF raw data'!I100) -> -283.5 | B95: =IF('DF raw data'!J100="","",'DF raw data'!J100) -> -2.93501e-05 | C95: =IF('DF raw data'!K100="","",'DF raw data'!K100) -> 2.67573e-05 | D95: =IF('DF raw data'!L100="","",'DF raw data'!L100) -> -2.74397e-05 | F95: -2.9480796e-05 | G95: 2.687645026e-05 | H95: -2.756188898e-05 | J95: -0.0003709694983 | K95: -0.003244662315 | L95: 0.0004090382323 | M95: 0.00387248549 | N95: 1.905250178e-06
A96: =IF('DF raw data'!I101="","",'DF raw data'!I101) -> -283 | B96: =IF('DF raw data'!J101="","",'DF raw data'!J101) -> -3.33878e-05 | C96: =IF('DF raw data'!K101="","",'DF raw data'!K101) -> 1.896e-05 | D96: =IF('DF raw data'!L101="","",'DF raw data'!L101) -> -3.08465e-05 | F96: -3.353647587e-05 | G96: 1.904442888e-05 | H96: -3.098385946e-05 | J96: -0.0003877377363 | K96: -0.003438531184 | L96: 0.0004185604467 | M96: 0.004081765713 | N96: 2.068016878e-06
A97: =IF('DF raw data'!I102="","",'DF raw data'!I102) -> -282.5 | B97: =IF('DF raw data'!J102="","",'DF raw data'!J102) -> -2.78053e-05 | C97: =IF('DF raw data'!K102="","",'DF raw data'!K102) -> 2.22956e-05 | D97: =IF('DF raw data'!L102="","",'DF raw data'!L102) -> -3.63985e-05 | F97: -2.7929117e-05 | G97: 2.239488231e-05 | H97: -3.656058252e-05 | J97: -0.0004017022948 | K97: -0.003639382331 | L97: 0.0004297578879 | M97: 0.004296644657 | N97: 2.241045166e-06
A98: =IF('DF raw data'!I103="","",'DF raw data'!I103) -> -282 | B98: =IF('DF raw data'!J103="","",'DF raw data'!J103) -> -3.365e-05 | C98: =IF('DF raw data'!K103="","",'DF raw data'!K103) -> 2.65207e-05 | D98: =IF('DF raw data'!L103="","",'DF raw data'!L103) -> -2.20801e-05 | F98: -3.379984345e-05 | G98: 2.663879668e-05 | H98: -2.217842269e-05 | J98: -0.0004186022165 | K98: -0.003848683439 | L98: 0.0004430772862 | M98: 0.0045181833 | N98: 2.426817814e-06
A99: =IF('DF raw data'!I104="","",'DF raw data'!I104) -> -281.5 | B99: =IF('DF raw data'!J104="","",'DF raw data'!J104) -> -2.76835e-05 | C99: =IF('DF raw data'!K104="","",'DF raw data'!K104) -> 2.88115e-05 | D99: =IF('DF raw data'!L104="","",'DF raw data'!L104) -> -2.65144e-05 | F99: -2.780677463e-05 | G99: 2.893979761e-05 | H99: -2.663246862e-05 | J99: -0.0004325056038 | K99: -0.004064936241 | L99: 0.000457547185 | M99: 0.004746956893 | N99: 2.625023076e-06
A100: =IF('DF raw data'!I105="","",'DF raw data'!I105) -> -281 | B100: =IF('DF raw data'!J105="","",'DF raw data'!J105) -> -2.20414e-05 | C100: =IF('DF raw data'!K105="","",'DF raw data'!K105) -> 2.96088e-05 | D100: =IF('DF raw data'!L105="","",'DF raw data'!L105) -> -2.52322e-05 | F100: -2.213955035e-05 | G100: 2.974064799e-05 | H100: -2.534455899e-05 | J100: -0.000443575379 | K100: -0.004286723931 | L100: 0.000472417509 | M100: 0.004983165647 | N100: 2.834991786e-06
A101: =IF('DF raw data'!I106="","",'DF raw data'!I106) -> -280.5 | B101: =IF('DF raw data'!J106="","",'DF raw data'!J106) -> -2.59526e-05 | C101: =IF('DF raw data'!K106="","",'DF raw data'!K106) -> 2.76901e-05 | D101: =IF('DF raw data'!L106="","",'DF raw data'!L106) -> -2.59407e-05 | F101: -2.606816693e-05 | G101: 2.781340402e-05 | H101: -2.605621394e-05 | J101: -0.0004566094625 | K101: -0.004515028662 | L101: 0.000486324211 | M101: 0.005226327753 | N101: 3.057493506e-06
A102: =IF('DF raw data'!I107="","",'DF raw data'!I107) -> -280 | B102: =IF('DF raw data'!J107="","",'DF raw data'!J107) -> -2.75538e-05 | C102: =IF('DF raw data'!K107="","",'DF raw data'!K107) -> 2.55056e-05 | D102: =IF('DF raw data'!L107="","",'DF raw data'!L107) -> -2.87062e-05 | F102: -2.767649707e-05 | G102: 2.561917644e-05 | H102: -2.883402871e-05 | J102: -0.000470447711 | K102: -0.004750252517 | L102: 0.0004991337993 | M102: 0.005475894653 | N102: 3.292721305e-06
A103: =IF('DF raw data'!I108="","",'DF raw data'!I108) -> -279.5 | B103: =IF('DF raw data'!J108="","",'DF raw data'!J108) -> -1.97262e-05 | C103: =IF('DF raw data'!K108="","",'DF raw data'!K108) -> 2.68793e-05 | D103: =IF('DF raw data'!L108="","",'DF raw data'!L108) -> -3.52382e-05 | F103: -1.981404077e-05 | G103: 2.699899352e-05 | H103: -3.53951157e-05 | J103: -0.0004803547314 | K103: -0.004990429883 | L103: 0.000512633296 | M103: 0.005732211301 | N103: 3.539488087e-06
A104: =IF('DF raw data'!I109="","",'DF raw data'!I109) -> -279 | B104: =IF('DF raw data'!J109="","",'DF raw data'!J109) -> -2.3843e-05 | C104: =IF('DF raw data'!K109="","",'DF raw data'!K109) -> 2.94197e-05 | D104: =IF('DF raw data'!L109="","",'DF raw data'!L109) -> -1.57355e-05 | F104: -2.394917288e-05 | G104: 2.955070592e-05 | H104: -1.580557018e-05 | J104: -0.0004923293178 | K104: -0.005236594542 | L104: 0.000527408649 | M104: 0.005995915625 | N104: 3.799762107e-06
A105: =IF('DF raw data'!I110="","",'DF raw data'!I110) -> -278.5 | B105: =IF('DF raw data'!J110="","",'DF raw data'!J110) -> -1.84634e-05 | C105: =IF('DF raw data'!K110="","",'DF raw data'!K110) -> 1.9207e-05 | D105: =IF('DF raw data'!L110="","",'DF raw data'!L110) -> -4.82146e-06 | F105: -1.854561752e-05 | G105: 1.929252877e-05 | H105: -4.842929961e-06 | J105: -0.0005016021266 | K105: -0.005487395605 | L105: 0.0005370549134 | M105: 0.006264443082 | N105: 4.069778444e-06
A106: =IF('DF raw data'!I111="","",'DF raw data'!I111) -> -278 | B106: =IF('DF raw data'!J111="","",'DF raw data'!J111) -> -2.54495e-05 | C106: =IF('DF raw data'!K111="","",'DF raw data'!K111) -> 1.91077e-05 | D106: =IF('DF raw data'!L111="","",'DF raw data'!L111) -> -1.0379e-05 | F106: -2.556282662e-05 | G106: 1.919278659e-05 | H106: -1.042521769e-05 | J106: -0.0005143835399 | K106: -0.005744587375 | L106: 0.0005466513067 | M106: 0.006537768735 | N106: 4.351487482e-06
A107: =IF('DF raw data'!I112="","",'DF raw data'!I112) -> -277.5 | B107: =IF('DF raw data'!J112="","",'DF raw data'!J112) -> -2.4799e-05 | C107: =IF('DF raw data'!K112="","",'DF raw data'!K112) -> 2.07475e-05 | D107: =IF('DF raw data'!L112="","",'DF raw data'!L112) -> -2.4556e-05 | F107: -2.490942995e-05 | G107: 2.083988862e-05 | H107: -2.466534787e-05 | J107: -0.0005268382549 | K107: -0.006008006503 | L107: 0.000557071251 | M107: 0.006816304361 | N107: 4.645430945e-06
A108: =IF('DF raw data'!I113="","",'DF raw data'!I113) -> -277 | B108: =IF('DF raw data'!J113="","",'DF raw data'!J113) -> -1.60163e-05 | C108: =IF('DF raw data'!K113="","",'DF raw data'!K113) -> 1.28303e-05 | D108: =IF('DF raw data'!L113="","",'DF raw data'!L113) -> -2.08684e-05 | F108: -1.608762058e-05 | G108: 1.288743333e-05 | H108: -2.096132699e-05 | J108: -0.0005348820652 | K108: -0.006275447535 | L108: 0.0005635149676 | M108: 0.007098061844 | N108: 4.947254916e-06
A109: =IF('DF raw data'!I114="","",'DF raw data'!I114) -> -276.5 | B109: =IF('DF raw data'!J114="","",'DF raw data'!J114) -> -3.0315e-05 | C109: =IF('DF raw data'!K114="","",'DF raw data'!K114) -> 1.07371e-05 | D109: =IF('DF raw data'!L114="","",'DF raw data'!L114) -> -2.29283e-05 | F109: -3.04499927e-05 | G109: 1.078491231e-05 | H109: -2.303039972e-05 | J109: -0.0005501070615 | K109: -0.006550501066 | L109: 0.0005689074238 | M109: 0.007382515556 | N109: 5.260391634e-06
A110: =IF('DF raw data'!I115="","",'DF raw data'!I115) -> -276 | B110: =IF('DF raw data'!J115="","",'DF raw data'!J115) -> -2.37069e-05 | C110: =IF('DF raw data'!K115="","",'DF raw data'!K115) -> 1.49329e-05 | D110: =IF('DF raw data'!L115="","",'DF raw data'!L115) -> -2.78611e-05 | F110: -2.381246683e-05 | G110: 1.49993962e-05 | H110: -2.798516548e-05 | J110: -0.0005620132949 | K110: -0.006831507713 | L110: 0.0005764071219 | M110: 0.007670719117 | N110: 5.584443691e-06
A111: =IF('DF raw data'!I116="","",'DF raw data'!I116) -> -275.5 | B111: =IF('DF raw data'!J116="","",'DF raw data'!J116) -> -1.67727e-05 | C111: =IF('DF raw data'!K116="","",'DF raw data'!K116) -> 2.29979e-05 | D111: =IF('DF raw data'!L116="","",'DF raw data'!L116) -> -4.11562e-05 | F111: -1.684738883e-05 | G111: 2.310030965e-05 | H111: -4.133946856e-05 | J111: -0.0005704369893 | K111: -0.007116726208 | L111: 0.0005879572767 | M111: 0.007964697756 | N111: 5.91998975e-06
A112: =IF('DF raw data'!I117="","",'DF raw data'!I117) -> -275 | B112: =IF('DF raw data'!J117="","",'DF raw data'!J117) -> -2.4538e-05 | C112: =IF('DF raw data'!K117="","",'DF raw data'!K117) -> 1.99395e-05 | D112: =IF('DF raw data'!L117="","",'DF raw data'!L117) -> -3.16332e-05 | F112: -2.464726771e-05 | G112: 2.002829059e-05 | H112: -3.177406264e-05 | J112: -0.0005827606232 | K112: -0.00740810652 | L112: 0.000597971422 | M112: 0.008263683467 | N112: 6.268579633e-06
A113: =IF('DF raw data'!I118="","",'DF raw data'!I118) -> -274.5 | B113: =IF('DF raw data'!J118="","",'DF raw data'!J118) -> -2.33844e-05 | C113: =IF('DF raw data'!K118="","",'DF raw data'!K118) -> 1.75836e-05 | D113: =IF('DF raw data'!L118="","",'DF raw data'!L118) -> -3.05733e-05 | F113: -2.348853073e-05 | G113: 1.766189977e-05 | H113: -3.07094429e-05 | J113: -0.0005945048886 | K113: -0.007705358964 | L113: 0.0006068023719 | M113: 0.008567084653 | N113: 6.629402223e-06
A114: =IF('DF raw data'!I119="","",'DF raw data'!I119) -> -274 | B114: =IF('DF raw data'!J119="","",'DF raw data'!J119) -> -1.66553e-05 | C114: =IF('DF raw data'!K119="","",'DF raw data'!K119) -> 2.33793e-05 | D114: =IF('DF raw data'!L119="","",'DF raw data'!L119) -> -2.43679e-05 | F114: -1.672946605e-05 | G114: 2.348340802e-05 | H114: -2.447641026e-05 | J114: -0.0006028696216 | K114: -0.008006793775 | L114: 0.0006185440759 | M114: 0.008876356691 | N114: 7.002426501e-06
A115: =IF('DF raw data'!I120="","",'DF raw data'!I120) -> -273.5 | B115: =IF('DF raw data'!J120="","",'DF raw data'!J120) -> -2.8835e-05 | C115: =IF('DF raw data'!K120="","",'DF raw data'!K120) -> 2.24796e-05 | D115: =IF('DF raw data'!L120="","",'DF raw data'!L120) -> -3.07516e-05 | F115: -2.896340226e-05 | G115: 2.257970166e-05 | H115: -3.088853687e-05 | J115: -0.0006173513227 | K115: -0.008315469436 | L115: 0.0006298339267 | M115: 0.009191273654 | N115: 7.391333216e-06
A116: =IF('DF raw data'!I121="","",'DF raw data'!I121) -> -273 | B116: =IF('DF raw data'!J121="","",'DF raw data'!J121) -> -2.5499e-05 | C116: =IF('DF raw data'!K121="","",'DF raw data'!K121) -> 1.91513e-05 | D116: =IF('DF raw data'!L121="","",'DF raw data'!L121) -> -3.30344e-05 | F116: -2.561254705e-05 | G116: 1.923658074e-05 | H116: -3.318150218e-05 | J116: -0.0006301575962 | K116: -0.008630548234 | L116: 0.0006394522171 | M116: 0.009510999762 | N116: 7.794332083e-06
A117: =IF('DF raw data'!I122="","",'DF raw data'!I122) -> -272.5 | B117: =IF('DF raw data'!J122="","",'DF raw data'!J122) -> -3.66659e-05 | C117: =IF('DF raw data'!K122="","",'DF raw data'!K122) -> 3.06993e-05 | D117: =IF('DF raw data'!L122="","",'DF raw data'!L122) -> -1.90176e-05 | F117: -3.682917325e-05 | G117: 3.083600398e-05 | H117: -1.910228537e-05 | J117: -0.0006485721829 | K117: -0.008954834326 | L117: 0.0006548702191 | M117: 0.009838434872 | N117: 8.219082523e-06
A118: =IF('DF raw data'!I123="","",'DF raw data'!I123) -> -272 | B118: =IF('DF raw data'!J123="","",'DF raw data'!J123) -> -3.39097e-05 | C118: =IF('DF raw data'!K123="","",'DF raw data'!K123) -> 2.35361e-05 | D118: =IF('DF raw data'!L123="","",'DF raw data'!L123) -> -1.7112e-05 | F118: -3.406069989e-05 | G118: 2.364090625e-05 | H118: -1.718819974e-05 | J118: -0.0006656025328 | K118: -0.009287635592 | L118: 0.0006666906722 | M118: 0.01017178021 | N118: 8.662834115e-06
A119: =IF('DF raw data'!I124="","",'DF raw data'!I124) -> -271.5 | B119: =IF('DF raw data'!J124="","",'DF raw data'!J124) -> -1.90263e-05 | C119: =IF('DF raw data'!K124="","",'DF raw data'!K124) -> 2.19514e-05 | D119: =IF('DF raw data'!L124="","",'DF raw data'!L124) -> -2.69961e-05 | F119: -1.911102411e-05 | G119: 2.204914958e-05 | H119: -2.711631363e-05 | J119: -0.0006751580449 | K119: -0.009625214615 | L119: 0.000677715247 | M119: 0.01051063783 | N119: 9.120402286e-06
A120: =IF('DF raw data'!I125="","",'DF raw data'!I125) -> -271 | B120: =IF('DF raw data'!J125="","",'DF raw data'!J125) -> -2.23726e-05 | C120: =IF('DF raw data'!K125="","",'DF raw data'!K125) -> 2.28801e-05 | D120: =IF('DF raw data'!L125="","",'DF raw data'!L125) -> -8.72738e-06 | F120: -2.247222519e-05 | G120: 2.298198509e-05 | H120: -8.766243023e-06 | J120: -0.0006863941575 | K120: -0.009968411693 | L120: 0.0006892062396 | M120: 0.01085524095 | N120: 9.593473376e-06
A121: =IF('DF raw data'!I126="","",'DF raw data'!I126) -> -270.5 | B121: =IF('DF raw data'!J126="","",'DF raw data'!J126) -> -1.97298e-05 | C121: =IF('DF raw data'!K126="","",'DF raw data'!K126) -> 2.35965e-05 | D121: =IF('DF raw data'!L126="","",'DF raw data'!L126) -> -2.96856e-05 | F121: -1.98176568e-05 | G121: 2.370157521e-05 | H121: -2.981778998e-05 | J121: -0.0006963029859 | K121: -0.01031656319 | L121: 0.0007010570272 | M121: 0.01120576946 | N121: 1.008163278e-05
A122: =IF('DF raw data'!I127="","",'DF raw data'!I127) -> -270 | B122: =IF('DF raw data'!J127="","",'DF raw data'!J127) -> -2.42843e-05 | C122: =IF('DF raw data'!K127="","",'DF raw data'!K127) -> 2.18334e-05 | D122: =IF('DF raw data'!L127="","",'DF raw data'!L127) -> -2.73162e-05 | F122: -2.439243799e-05 | G122: 2.193062413e-05 | H122: -2.743783904e-05 | J122: -0.0007084992049 | K122: -0.01067081279 | L122: 0.0007120223392 | M122: 0.01156178063 | N122: 1.058610625e-05
A123: =IF('DF raw data'!I128="","",'DF raw data'!I128) -> -269.5 | B123: =IF('DF raw data'!J128="","",'DF raw data'!J128) -> -2.00511e-05 | C123: =IF('DF raw data'!K128="","",'DF raw data'!K128) -> 2.84716e-05 | D123: =IF('DF raw data'!L128="","",'DF raw data'!L128) -> -2.89193e-05 | F123: -2.014038755e-05 | G123: 2.859838403e-05 | H123: -2.904807764e-05 | J123: -0.0007185693986 | K123: -0.01103009749 | L123: 0.0007263215312 | M123: 0.0119249414 | N123: 1.110804872e-05
A124: =IF('DF raw data'!I129="","",'DF raw data'!I129) -> -269 | B124: =IF('DF raw data'!J129="","",'DF raw data'!J129) -> -1.7881e-05 | C124: =IF('DF raw data'!K129="","",'DF raw data'!K129) -> 2.43652e-05 | D124: =IF('DF raw data'!L129="","",'DF raw data'!L129) -> -1.32775e-05 | F124: -1.796062409e-05 | G124: 2.447369824e-05 | H124: -1.333662471e-05 | J124: -0.0007275497107 | K124: -0.01139387234 | L124: 0.0007385583804 | M124: 0.01229422059 | N124: 1.164544725e-05
A125: =IF('DF raw data'!I130="","",'DF raw data'!I130) -> -268.5 | B125: =IF('DF raw data'!J130="","",'DF raw data'!J130) -> -1.67863e-05 | C125: =IF('DF raw data'!K130="","",'DF raw data'!K130) -> 1.59489e-05 | D125: =IF('DF raw data'!L130="","",'DF raw data'!L130) -> -2.01477e-05 | F125: -1.686104939e-05 | G125: 1.601992045e-05 | H125: -2.023741771e-05 | J125: -0.0007359802354 | K125: -0.01176186246 | L125: 0.0007465683406 | M125: 0.01266750476 | N125: 1.219496285e-05
A126: =IF('DF raw data'!I131="","",'DF raw data'!I131) -> -268 | B126: =IF('DF raw data'!J131="","",'DF raw data'!J131) -> -2.15277e-05 | C126: =IF('DF raw data'!K131="","",'DF raw data'!K131) -> 1.7784e-05 | D126: =IF('DF raw data'!L131="","",'DF raw data'!L131) -> -2.63201e-05 | F126: -2.162356285e-05 | G126: 1.786319215e-05 | H126: -2.643730341e-05 | J126: -0.0007467920168 | K126: -0.01213525847 | L126: 0.0007554999367 | M126: 0.01304525473 | N126: 1.275920208e-05
A127: =IF('DF raw data'!I132="","",'DF raw data'!I132) -> -267.5 | B127: =IF('DF raw data'!J132="","",'DF raw data'!J132) -> -1.29335e-05 | C127: =IF('DF raw data'!K132="","",'DF raw data'!K132) -> 2.15774e-05 | D127: =IF('DF raw data'!L132="","",'DF raw data'!L132) -> -2.84409e-05 | F127: -1.299109288e-05 | G127: 2.167348416e-05 | H127: -2.856754733e-05 | J127: -0.0007532875632 | K127: -0.01251190225 | L127: 0.0007663366787 | M127: 0.01342842307 | N127: 1.333655911e-05
A128: =IF('DF raw data'!I133="","",'DF raw data'!I133) -> -267 | B128: =IF('DF raw data'!J133="","",'DF raw data'!J133) -> -2.4035e-05 | C128: =IF('DF raw data'!K133="","",'DF raw data'!K133) -> 2.6162e-05 | D128: =IF('DF raw data'!L133="","",'DF raw data'!L133) -> -1.62051e-05 | F128: =(1-$G$1*($B$49-$G$2))*B128 -> -2.414202786e-05 | G128: 2.627849939e-05 | H128: -1.627726131e-05 | J128: =F128*$G$3+J127 -> -0.0007653585772 | K128: =J128*$G$3+K127 -> -0.01289458154 | L128: =G128*$G$3+L127 -> 0.0007794759284 | M128: =L128*$G$3+M127 -> 0.01381816103 | N128: =(J128^2+L128^2)*$G$3+N127 -> 1.393323735e-05
A129: =IF('DF raw data'!I134="","",'DF raw data'!I134) -> -266.5 | B129: =IF('DF raw data'!J134="","",'DF raw data'!J134) -> -2.06344e-05 | C129: =IF('DF raw data'!K134="","",'DF raw data'!K134) -> 2.56972e-05 | D129: =IF('DF raw data'!L134="","",'DF raw data'!L134) -> -1.95075e-05 | F129: -2.072628498e-05 | G129: 2.581162963e-05 | H129: -1.95943669e-05 | J129: -0.0007757217197 | K129: -0.0132824424 | L129: 0.0007923817433 | M129: 0.0142143519 | N129: 1.454804386e-05
A130: =IF('DF raw data'!I135="","",'DF raw data'!I135) -> -266 | B130: =IF('DF raw data'!J135="","",'DF raw data'!J135) -> -2.1528e-05 | C130: =IF('DF raw data'!K135="","",'DF raw data'!K135) -> 2.39036e-05 | D130: =IF('DF raw data'!L135="","",'DF raw data'!L135) -> -2.58859e-05 | F130: -2.162386418e-05 | G130: 2.401004273e-05 | H130: -2.600116991e-05 | J130: -0.0007865336517 | K130: -0.01367570923 | L130: 0.0008043867646 | M130: 0.01461654529 | N130: 1.518088048e-05
A131: =IF('DF raw data'!I136="","",'DF raw data'!I136) -> -265.5 | B131: =IF('DF raw data'!J136="","",'DF raw data'!J136) -> -2.4606e-05 | C131: =IF('DF raw data'!K136="","",'DF raw data'!K136) -> 2.73154e-05 | D131: =IF('DF raw data'!L136="","",'DF raw data'!L136) -> -2.59104e-05 | F131: -2.471557052e-05 | G131: 2.743703548e-05 | H131: -2.602577901e-05 | J131: -0.000798891437 | K131: -0.01407515494 | L131: 0.0008181052824 | M131: 0.01502559793 | N131: 1.583464237e-05
A132: =IF('DF raw data'!I137="","",'DF raw data'!I137) -> -265 | B132: =IF('DF raw data'!J137="","",'DF raw data'!J137) -> -2.13336e-05 | C132: =IF('DF raw data'!K137="","",'DF raw data'!K137) -> 2.2095e-05 | D132: =IF('DF raw data'!L137="","",'DF raw data'!L137) -> -2.88379e-05 | F132: -2.142859852e-05 | G132: 2.219338904e-05 | H132: -2.896631517e-05 | J132: -0.0008096057363 | K132: -0.01447995781 | L132: 0.0008292019769 | M132: 0.01544019892 | N132: 1.650616106e-05
A133: =IF('DF raw data'!I138="","",'DF raw data'!I138) -> -264.5 | B133: =IF('DF raw data'!J138="","",'DF raw data'!J138) -> -2.73021e-05 | C133: =IF('DF raw data'!K138="","",'DF raw data'!K138) -> 1.91968e-05 | D133: =IF('DF raw data'!L138="","",'DF raw data'!L138) -> -2.14234e-05 | F133: -2.742367625e-05 | G133: 1.928228335e-05 | H133: -2.15187984e-05 | J133: -0.0008233175744 | K133: -0.0148916166 | L133: 0.0008388431186 | M133: 0.01585962048 | N133: 1.719691586e-05
A134: =IF('DF raw data'!I139="","",'DF raw data'!I139) -> -264 | B134: =IF('DF raw data'!J139="","",'DF raw data'!J139) -> -2.9547e-05 | C134: =IF('DF raw data'!K139="","",'DF raw data'!K139) -> 1.88855e-05 | D134: =IF('DF raw data'!L139="","",'DF raw data'!L139) -> -2.06497e-05 | F134: -2.967857279e-05 | G134: 1.896959713e-05 | H134: -2.074165311e-05 | J134: -0.0008381568608 | K134: -0.01531069503 | L134: 0.0008483279171 | M134: 0.01628378443 | N134: 1.790799945e-05
A135: =IF('DF raw data'!I140="","",'DF raw data'!I140) -> -263.5 | B135: =IF('DF raw data'!J140="","",'DF raw data'!J140) -> -3.22393e-05 | C135: =IF('DF raw data'!K140="","",'DF raw data'!K140) -> 2.03932e-05 | D135: =IF('DF raw data'!L140="","",'DF raw data'!L140) -> -2.21178e-05 | F135: -3.23828616e-05 | G135: 2.048401092e-05 | H135: -2.221629056e-05 | J135: -0.0008543482916 | K135: -0.01573786918 | L135: 0.0008585699226 | M135: 0.0167130694 | N135: 1.864152611e-05
A136: =IF('DF raw data'!I141="","",'DF raw data'!I141) -> -263 | B136: =IF('DF raw data'!J141="","",'DF raw data'!J141) -> -3.21643e-05 | C136: =IF('DF raw data'!K141="","",'DF raw data'!K141) -> 2.00053e-05 | D136: =IF('DF raw data'!L141="","",'DF raw data'!L141) -> -3.91393e-05 | F136: -3.230752763e-05 | G136: 2.00943836e-05 | H136: -3.93135873e-05 | J136: -0.0008705020554 | K136: -0.0161731202 | L136: 0.0008686171144 | M136: 0.01714737795 | N136: 1.939766087e-05
A137: =IF('DF raw data'!I142="","",'DF raw data'!I142) -> -262.5 | B137: =IF('DF raw data'!J142="","",'DF raw data'!J142) -> -9.98581e-06 | C137: =IF('DF raw data'!K142="","",'DF raw data'!K142) -> 1.93681e-05 | D137: =IF('DF raw data'!L142="","",'DF raw data'!L142) -> -2.5365e-05 | F137: -1.003027681e-05 | G137: 1.945434615e-05 | H137: -2.547795034e-05 | J137: -0.0008755171938 | K137: -0.0166108788 | L137: 0.0008783442875 | M137: 0.0175865501 | N137: 2.016667039e-05
A138: =IF('DF raw data'!I143="","",'DF raw data'!I143) -> -262 | B138: =IF('DF raw data'!J143="","",'DF raw data'!J143) -> -9.97924e-06 | C138: =IF('DF raw data'!K143="","",'DF raw data'!K143) -> 2.45312e-05 | D138: =IF('DF raw data'!L143="","",'DF raw data'!L143) -> -3.54979e-05 | F138: -1.002367756e-05 | G138: 2.464043743e-05 | H138: -3.565597215e-05 | J138: -0.0008805290326 | K138: -0.01705114332 | L138: 0.0008906645062 | M138: 0.01803188235 | N138: 2.095097771e-05
A139: =IF('DF raw data'!I144="","",'DF raw data'!I144) -> -261.5 | B139: =IF('DF raw data'!J144="","",'DF raw data'!J144) -> -2.19073e-05 | C139: =IF('DF raw data'!K144="","",'DF raw data'!K144) -> 2.83303e-05 | D139: =IF('DF raw data'!L144="","",'DF raw data'!L144) -> -3.42448e-05 | F139: -2.200485321e-05 | G139: 2.845645483e-05 | H139: -3.439729209e-05 | J139: -0.0008915314592 | K139: -0.01749690905 | L139: 0.0009048927336 | M139: 0.01848432872 | N139: 2.175780731e-05
A140: =IF('DF raw data'!I145="","",'DF raw data'!I145) -> -261 | B140: =IF('DF raw data'!J145="","",'DF raw data'!J145) -> -2.15295e-05 | C140: =IF('DF raw data'!K145="","",'DF raw data'!K145) -> 3.03248e-05 | D140: =IF('DF raw data'!L145="","",'DF raw data'!L145) -> -2.36129e-05 | F140: -2.162537086e-05 | G140: 3.045983633e-05 | H140: -2.371804824e-05 | J140: -0.0009023441446 | K140: -0.01794808112 | L140: 0.0009201226518 | M140: 0.01894439004 | N140: 2.258823263e-05
A141: =IF('DF raw data'!I146="","",'DF raw data'!I146) -> -260.5 | B141: =IF('DF raw data'!J146="","",'DF raw data'!J146) -> -2.58263e-05 | C141: =IF('DF raw data'!K146="","",'DF raw data'!K146) -> 2.48485e-05 | D141: =IF('DF raw data'!L146="","",'DF raw data'!L146) -> -2.30562e-05 | F141: -2.594130451e-05 | G141: 2.495915037e-05 | H141: -2.315886926e-05 | J141: -0.0009153147969 | K141: -0.01840573852 | L141: 0.0009326022269 | M141: 0.01941069116 | N141: 2.344200668e-05
A142: =IF('DF raw data'!I147="","",'DF raw data'!I147) -> -260 | B142: =IF('DF raw data'!J147="","",'DF raw data'!J147) -> -2.12058e-05 | C142: =IF('DF raw data'!K147="","",'DF raw data'!K147) -> 2.21284e-05 | D142: =IF('DF raw data'!L147="","",'DF raw data'!L147) -> -2.81423e-05 | F142: -2.130022943e-05 | G142: 2.222693777e-05 | H142: -2.826761766e-05 | J142: -0.0009259649116 | K142: -0.01886872097 | L142: 0.0009437156958 | M142: 0.019882549 | N142: 2.431601184e-05
A143: =IF('DF raw data'!I148="","",'DF raw data'!I148) -> -259.5 | B143: =IF('DF raw data'!J148="","",'DF raw data'!J148) -> -2.32556e-05 | C143: =IF('DF raw data'!K148="","",'DF raw data'!K148) -> 2.45465e-05 | D143: =IF('DF raw data'!L148="","",'DF raw data'!L148) -> -3.15617e-05 | F143: -2.335915719e-05 | G143: 2.465580556e-05 | H143: -3.170224425e-05 | J143: -0.0009376444902 | K143: -0.01933754322 | L143: 0.0009560435986 | M143: 0.0203605708 | N143: 2.521261012e-05
A144: =IF('DF raw data'!I149="","",'DF raw data'!I149) -> -259 | B144: =IF('DF raw data'!J149="","",'DF raw data'!J149) -> -2.31263e-05 | C144: =IF('DF raw data'!K149="","",'DF raw data'!K149) -> 1.92602e-05 | D144: =IF('DF raw data'!L149="","",'DF raw data'!L149) -> -3.31719e-05 | F144: -2.322928141e-05 | G144: 1.934596567e-05 | H144: -3.331961447e-05 | J144: -0.0009492591309 | K144: -0.01981217278 | L144: 0.0009657165814 | M144: 0.02084342909 | N144: 2.612946083e-05
A145: =IF('DF raw data'!I150="","",'DF raw data'!I150) -> -258.5 | B145: =IF('DF raw data'!J150="","",'DF raw data'!J150) -> -9.73157e-06 | C145: =IF('DF raw data'!K150="","",'DF raw data'!K150) -> 1.98983e-05 | D145: =IF('DF raw data'!L150="","",'DF raw data'!L150) -> -2.18919e-05 | F145: -9.774904681e-06 | G145: 1.998690713e-05 | H145: -2.198938463e-05 | J145: -0.0009541465832 | K145: -0.02028924607 | L145: 0.000975710035 | M145: 0.02133128411 | N145: 2.706066371e-05
A146: =IF('DF raw data'!I151="","",'DF raw data'!I151) -> -258 | B146: =IF('DF raw data'!J151="","",'DF raw data'!J151) -> -2.46669e-05 | C146: =IF('DF raw data'!K151="","",'DF raw data'!K151) -> 2.06857e-05 | D146: =IF('DF raw data'!L151="","",'DF raw data'!L151) -> -3.06236e-05 | F146: -2.477674171e-05 | G146: 2.077781342e-05 | H146: -3.075996689e-05 | J146: -0.0009665349541 | K146: -0.02077251355 | L146: 0.0009860989417 | M146: 0.02182433358 | N146: 2.801395419e-05
A147: =IF('DF raw data'!I152="","",'DF raw data'!I152) -> -257.5 | B147: =IF('DF raw data'!J152="","",'DF raw data'!J152) -> -2.557e-05 | C147: =IF('DF raw data'!K152="","",'DF raw data'!K152) -> 2.25074e-05 | D147: =IF('DF raw data'!L152="","",'DF raw data'!L152) -> -2.24346e-05 | F147: -2.568386321e-05 | G147: 2.260762545e-05 | H147: -2.253450127e-05 | J147: -0.0009793768857 | K147: -0.02126220199 | L147: 0.0009974027544 | M147: 0.02232303496 | N147: 2.899094985e-05
A148: =IF('DF raw data'!I153="","",'DF raw data'!I153) -> -257 | B148: =IF('DF raw data'!J153="","",'DF raw data'!J153) -> -1.79336e-05 | C148: =IF('DF raw data'!K153="","",'DF raw data'!K153) -> 1.9367e-05 | D148: =IF('DF raw data'!L153="","",'DF raw data'!L153) -> -3.08403e-05 | F148: -1.801345832e-05 | G148: 1.945324125e-05 | H148: -3.097763186e-05 | J148: -0.0009883836148 | K148: -0.0217563938 | L148: 0.001007129375 | M148: 0.02282659965 | N148: 2.998655573e-05
A149: =IF('DF raw data'!I154="","",'DF raw data'!I154) -> -256.5 | B149: =IF('DF raw data'!J154="","",'DF raw data'!J154) -> -2.11346e-05 | C149: =IF('DF raw data'!K154="","",'DF raw data'!K154) -> 1.6204e-05 | D149: =IF('DF raw data'!L154="","",'DF raw data'!L154) -> -3.93058e-05 | F149: -2.122871237e-05 | G149: 1.627615641e-05 | H149: -3.948082873e-05 | J149: -0.000998997971 | K149: -0.02225589279 | L149: 0.001015267453 | M149: 0.02333423337 | N149: 3.10009382e-05
A150: =IF('DF raw data'!I155="","",'DF raw data'!I155) -> -256 | B150: =IF('DF raw data'!J155="","",'DF raw data'!J155) -> -1.63317e-05 | C150: =IF('DF raw data'!K155="","",'DF raw data'!K155) -> 4.74085e-06 | D150: =IF('DF raw data'!L155="","",'DF raw data'!L155) -> -2.92168e-05 | F150: -1.640442506e-05 | G150: 4.761961005e-06 | H150: -2.934690241e-05 | J150: -0.001007200184 | K150: -0.02275949288 | L150: 0.001017648434 | M150: 0.02384305759 | N150: 3.202596847e-05
A151: =IF('DF raw data'!I156="","",'DF raw data'!I156) -> -255.5 | B151: =IF('DF raw data'!J156="","",'DF raw data'!J156) -> -1.87616e-05 | C151: =IF('DF raw data'!K156="","",'DF raw data'!K156) -> 1.01442e-05 | D151: =IF('DF raw data'!L156="","",'DF raw data'!L156) -> -3.97576e-05 | F151: -1.88451454e-05 | G151: 1.018937212e-05 | H151: -3.993464059e-05 | J151: -0.001016622756 | K151: -0.02326780426 | L151: 0.00102274312 | M151: 0.02435442915 | N151: 3.306573113e-05
A152: =IF('DF raw data'!I157="","",'DF raw data'!I157) -> -255 | B152: =IF('DF raw data'!J157="","",'DF raw data'!J157) -> -2.46687e-05 | C152: =IF('DF raw data'!K157="","",'DF raw data'!K157) -> 1.52911e-05 | D152: =IF('DF raw data'!L157="","",'DF raw data'!L157) -> -2.78834e-05 | F152: -2.477854972e-05 | G152: 1.535919127e-05 | H152: -2.800756478e-05 | J152: -0.001029012031 | K152: -0.02378231027 | L152: 0.001030422715 | M152: 0.02486964051 | N152: 3.41260495e-05
A153: =IF('DF raw data'!I158="","",'DF raw data'!I158) -> -254.5 | B153: =IF('DF raw data'!J158="","",'DF raw data'!J158) -> -1.65856e-05 | C153: =IF('DF raw data'!K158="","",'DF raw data'!K158) -> 2.82039e-05 | D153: =IF('DF raw data'!L158="","",'DF raw data'!L158) -> -3.32201e-05 | F153: -1.665945568e-05 | G153: 2.832949197e-05 | H153: -3.336802911e-05 | J153: -0.001037341759 | K153: -0.02430098115 | L153: 0.001044587461 | M153: 0.02539193424 | N153: 3.520966994e-05
A154: =IF('DF raw data'!I159="","",'DF raw data'!I159) -> -254 | B154: =IF('DF raw data'!J159="","",'DF raw data'!J159) -> -2.60756e-05 | C154: =IF('DF raw data'!K159="","",'DF raw data'!K159) -> 1.89464e-05 | D154: =IF('DF raw data'!L159="","",'DF raw data'!L159) -> -3.41471e-05 | F154: -2.619171465e-05 | G154: 1.903076832e-05 | H154: -3.429915704e-05 | J154: -0.001050437616 | K154: -0.02482619996 | L154: 0.001054102846 | M154: 0.02591898566 | N154: 3.631694594e-05
A155: =IF('DF raw data'!I160="","",'DF raw data'!I160) -> -253.5 | B155: =IF('DF raw data'!J160="","",'DF raw data'!J160) -> -1.44034e-05 | C155: =IF('DF raw data'!K160="","",'DF raw data'!K160) -> 1.7086e-05 | D155: =IF('DF raw data'!L160="","",'DF raw data'!L160) -> -3.59714e-05 | F155: -1.446753834e-05 | G155: 1.716208396e-05 | H155: -3.613158064e-05 | J155: -0.001057671385 | K155: -0.02535503565 | L155: 0.001062683888 | M155: 0.0264503276 | N155: 3.744092884e-05
A156: =IF('DF raw data'!I161="","",'DF raw data'!I161) -> -253 | B156: =IF('DF raw data'!J161="","",'DF raw data'!J161) -> -2.78134e-05 | C156: =IF('DF raw data'!K161="","",'DF raw data'!K161) -> 2.44953e-05 | D156: =IF('DF raw data'!L161="","",'DF raw data'!L161) -> -2.4138e-05 | F156: -2.793725307e-05 | G156: 2.460437757e-05 | H156: -2.424548651e-05 | J156: -0.001071640012 | K156: -0.02589085566 | L156: 0.001074986076 | M156: 0.02698782064 | N156: 3.859293253e-05
A157: =IF('DF raw data'!I162="","",'DF raw data'!I162) -> -252.5 | B157: =IF('DF raw data'!J162="","",'DF raw data'!J162) -> -1.18463e-05 | C157: =IF('DF raw data'!K162="","",'DF raw data'!K162) -> 2.35488e-05 | D157: =IF('DF raw data'!L162="","",'DF raw data'!L162) -> -2.37536e-05 | F157: -1.189905157e-05 | G157: 2.365366281e-05 | H157: -2.385937478e-05 | J157: -0.001077589538 | K157: -0.02642965043 | L157: 0.001086812908 | M157: 0.0275312271 | N157: 3.976411329e-05
A158: =IF('DF raw data'!I163="","",'DF raw data'!I163) -> -252 | B158: =IF('DF raw data'!J163="","",'DF raw data'!J163) -> -2.9226e-05 | C158: =IF('DF raw data'!K163="","",'DF raw data'!K163) -> 2.22492e-05 | D158: =IF('DF raw data'!L163="","",'DF raw data'!L163) -> -2.12422e-05 | F158: -2.935614338e-05 | G158: 2.234827569e-05 | H158: -2.133679152e-05 | J158: -0.001092267609 | K158: -0.02697578423 | L158: 0.001097987046 | M158: 0.02808022062 | N158: 4.096342533e-05
A159: =IF('DF raw data'!I164="","",'DF raw data'!I164) -> -251.5 | B159: =IF('DF raw data'!J164="","",'DF raw data'!J164) -> -2.38949e-05 | C159: =IF('DF raw data'!K164="","",'DF raw data'!K164) -> 2.21996e-05 | D159: =IF('DF raw data'!L164="","",'DF raw data'!L164) -> -3.45168e-05 | F159: -2.400130399e-05 | G159: 2.229845482e-05 | H159: -3.467050331e-05 | J159: -0.001104268261 | K159: -0.02752791836 | L159: 0.001109136273 | M159: 0.02863478876 | N159: 4.218822116e-05
A160: =IF('DF raw data'!I165="","",'DF raw data'!I165) -> -251 | B160: =IF('DF raw data'!J165="","",'DF raw data'!J165) -> -2.67849e-05 | C160: =IF('DF raw data'!K165="","",'DF raw data'!K165) -> 1.71849e-05 | D160: =IF('DF raw data'!L165="","",'DF raw data'!L165) -> -2.80093e-05 | F160: -2.690417316e-05 | G160: 1.726142436e-05 | H160: -2.813402541e-05 | J160: -0.001117720348 | K160: -0.02808677854 | L160: 0.001117766985 | M160: 0.02919367225 | N160: 4.343757207e-05
A161: =IF('DF raw data'!I166="","",'DF raw data'!I166) -> -250.5 | B161: =IF('DF raw data'!J166="","",'DF raw data'!J166) -> -2.11387e-05 | C161: =IF('DF raw data'!K166="","",'DF raw data'!K166) -> 2.221e-05 | D161: =IF('DF raw data'!L166="","",'DF raw data'!L166) -> -3.29685e-05 | F161: -2.123283063e-05 | G161: 2.230890113e-05 | H161: -3.311530873e-05 | J161: -0.001128336763 | K161: -0.02865094692 | L161: 0.001128921436 | M161: 0.02975813297 | N161: 4.47113758e-05
A162: =IF('DF raw data'!I167="","",'DF raw data'!I167) -> -250 | B162: =IF('DF raw data'!J167="","",'DF raw data'!J167) -> -3.03176e-05 | C162: =IF('DF raw data'!K167="","",'DF raw data'!K167) -> 1.51049e-05 | D162: =IF('DF raw data'!L167="","",'DF raw data'!L167) -> -1.90659e-05 | F162: -3.045260427e-05 | G162: 1.517216212e-05 | H162: -1.915080045e-05 | J162: -0.001143563065 | K162: -0.02922272845 | L162: 0.001136507517 | M162: 0.03032638673 | N162: 4.601106871e-05
A163: =IF('DF raw data'!I168="","",'DF raw data'!I168) -> -249.5 | B163: =IF('DF raw data'!J168="","",'DF raw data'!J168) -> -1.78684e-05 | C163: =IF('DF raw data'!K168="","",'DF raw data'!K168) -> 1.61287e-05 | D163: =IF('DF raw data'!L168="","",'DF raw data'!L168) -> -3.27262e-05 | F163: -1.794796799e-05 | G163: 1.62005211e-05 | H163: -3.287192977e-05 | J163: -0.001152537049 | K163: -0.02979899698 | L163: 0.001144607777 | M163: 0.03089869061 | N163: 4.733030302e-05
A164: =IF('DF raw data'!I169="","",'DF raw data'!I169) -> -249 | B164: =IF('DF raw data'!J169="","",'DF raw data'!J169) -> -3.16651e-05 | C164: =IF('DF raw data'!K169="","",'DF raw data'!K169) -> 1.95715e-05 | D164: =IF('DF raw data'!L169="","",'DF raw data'!L169) -> -1.78383e-05 | F164: -3.180610469e-05 | G164: 1.965865189e-05 | H164: -1.791773395e-05 | J164: -0.001168440102 | K164: -0.03038321703 | L164: 0.001154437103 | M164: 0.03147590917 | N164: 4.867929166e-05
A165: =IF('DF raw data'!I170="","",'DF raw data'!I170) -> -248.5 | B165: =IF('DF raw data'!J170="","",'DF raw data'!J170) -> -1.24834e-05 | C165: =IF('DF raw data'!K170="","",'DF raw data'!K170) -> 2.45444e-05 | D165: =IF('DF raw data'!L170="","",'DF raw data'!L170) -> -3.01811e-05 | F165: -1.253898858e-05 | G165: 2.465369621e-05 | H165: -3.031549644e-05 | J165: -0.001174709596 | K165: -0.03097057183 | L165: 0.001166763951 | M165: 0.03205929114 | N165: 5.004993204e-05
A166: =IF('DF raw data'!I171="","",'DF raw data'!I171) -> -248 | B166: =IF('DF raw data'!J171="","",'DF raw data'!J171) -> -2.70431e-05 | C166: =IF('DF raw data'!K171="","",'DF raw data'!K171) -> 2.25583e-05 | D166: =IF('DF raw data'!L171="","",'DF raw data'!L171) -> -2.53693e-05 | F166: -2.716352292e-05 | G166: 2.265875211e-05 | H166: -2.548226949e-05 | J166: -0.001188291358 | K166: -0.0315647175 | L166: 0.001178093327 | M166: 0.03264833781 | N166: 5.144990216e-05
A167: =IF('DF raw data'!I172="","",'DF raw data'!I172) -> -247.5 | B167: =IF('DF raw data'!J172="","",'DF raw data'!J172) -> -2.024e-05 | C167: =IF('DF raw data'!K172="","",'DF raw data'!K172) -> 1.94454e-05 | D167: =IF('DF raw data'!L172="","",'DF raw data'!L172) -> -3.44906e-05 | F167: -2.033012872e-05 | G167: 1.953199037e-05 | H167: -3.464418664e-05 | J167: -0.001198456422 | K167: -0.03216394572 | L167: 0.001187859323 | M167: 0.03324226747 | N167: 5.287355594e-05
A168: =IF('DF raw data'!I173="","",'DF raw data'!I173) -> -247 | B168: =IF('DF raw data'!J173="","",'DF raw data'!J173) -> -2.94163e-05 | C168: =IF('DF raw data'!K173="","",'DF raw data'!K173) -> 2.0113e-05 | D168: =IF('DF raw data'!L173="","",'DF raw data'!L173) -> -2.45341e-05 | F168: -2.954729078e-05 | G168: 2.020256319e-05 | H168: -2.464335035e-05 | J168: -0.001213230067 | K168: -0.03277056075 | L168: 0.001197960604 | M168: 0.03384124777 | N168: 5.432707435e-05
A169: =IF('DF raw data'!I174="","",'DF raw data'!I174) -> -246.5 | B169: =IF('DF raw data'!J174="","",'DF raw data'!J174) -> -1.4983e-05 | C169: =IF('DF raw data'!K174="","",'DF raw data'!K174) -> 1.321e-05 | D169: =IF('DF raw data'!L174="","",'DF raw data'!L174) -> -3.22578e-05 | F169: -1.50497193e-05 | G169: 1.326882413e-05 | H169: -3.240144398e-05 | J169: -0.001220754927 | K169: -0.03338093821 | L169: 0.001204595016 | M169: 0.03444354528 | N169: 5.579772022e-05
A170: =IF('DF raw data'!I175="","",'DF raw data'!I175) -> -246 | B170: =IF('DF raw data'!J175="","",'DF raw data'!J175) -> -1.23588e-05 | C170: =IF('DF raw data'!K175="","",'DF raw data'!K175) -> 1.33183e-05 | D170: =IF('DF raw data'!L175="","",'DF raw data'!L175) -> -2.45615e-05 | F170: -1.241383374e-05 | G170: 1.337760639e-05 | H170: -2.467087236e-05 | J170: -0.001226961844 | K170: -0.03399441913 | L170: 0.00121128382 | M170: 0.03504918719 | N170: 5.728404215e-05
A171: =IF('DF raw data'!I176="","",'DF raw data'!I176) -> -245.5 | B171: =IF('DF raw data'!J176="","",'DF raw data'!J176) -> -1.13281e-05 | C171: =IF('DF raw data'!K176="","",'DF raw data'!K176) -> 2.50262e-05 | D171: =IF('DF raw data'!L176="","",'DF raw data'!L176) -> -3.19175e-05 | F171: -1.137854403e-05 | G171: 2.513764167e-05 | H171: -3.205962863e-05 | J171: -0.001232651116 | K171: -0.03461074469 | L171: 0.00122385264 | M171: 0.03566111351 | N171: 5.879266418e-05
A172: =IF('DF raw data'!I177="","",'DF raw data'!I177) -> -245 | B172: =IF('DF raw data'!J177="","",'DF raw data'!J177) -> -2.53818e-05 | C172: =IF('DF raw data'!K177="","",'DF raw data'!K177) -> 2.17094e-05 | D172: =IF('DF raw data'!L177="","",'DF raw data'!L177) -> -1.62794e-05 | F172: -2.549482516e-05 | G172: 2.180607196e-05 | H172: -1.635189217e-05 | J172: -0.001245398528 | K172: -0.03523344396 | L172: 0.001234755676 | M172: 0.03627849134 | N172: 6.033048371e-05
A173: =IF('DF raw data'!I178="","",'DF raw data'!I178) -> -244.5 | B173: =IF('DF raw data'!J178="","",'DF raw data'!J178) -> -1.9152e-05 | C173: =IF('DF raw data'!K178="","",'DF raw data'!K178) -> 1.90789e-05 | D173: =IF('DF raw data'!L178="","",'DF raw data'!L178) -> -3.1041e-05 | F173: -1.923728386e-05 | G173: 1.916385834e-05 | H173: -3.117922557e-05 | J173: -0.00125501717 | K173: -0.03586095254 | L173: 0.001244337606 | M173: 0.03690066015 | N173: 6.18922058e-05
A174: =IF('DF raw data'!I179="","",'DF raw data'!I179) -> -244 | B174: =IF('DF raw data'!J179="","",'DF raw data'!J179) -> -3.14702e-05 | C174: =IF('DF raw data'!K179="","",'DF raw data'!K179) -> 2.04058e-05 | D174: =IF('DF raw data'!L179="","",'DF raw data'!L179) -> -2.16458e-05 | F174: -3.16103368e-05 | G174: 2.049666703e-05 | H174: -2.174218875e-05 | J174: -0.001270822339 | K174: -0.03649636371 | L174: 0.001254585939 | M174: 0.03752795312 | N174: 6.348669345e-05
A175: =IF('DF raw data'!I180="","",'DF raw data'!I180) -> -243.5 | B175: =IF('DF raw data'!J180="","",'DF raw data'!J180) -> -1.9608e-05 | C175: =IF('DF raw data'!K180="","",'DF raw data'!K180) -> 2.72046e-05 | D175: =IF('DF raw data'!L180="","",'DF raw data'!L180) -> -1.98309e-05 | F175: -1.969531442e-05 | G175: 2.732574208e-05 | H175: -1.9919207e-05 | J175: -0.001280669996 | K175: -0.03713669871 | L175: 0.00126824881 | M175: 0.03816207752 | N175: 6.511097879e-05
A176: =IF('DF raw data'!I181="","",'DF raw data'!I181) -> -243 | B176: =IF('DF raw data'!J181="","",'DF raw data'!J181) -> -3.08943e-05 | C176: =IF('DF raw data'!K181="","",'DF raw data'!K181) -> 2.4389e-05 | D176: =IF('DF raw data'!L181="","",'DF raw data'!L181) -> -1.96006e-05 | F176: -3.103187232e-05 | G176: 2.449760422e-05 | H176: -1.968788147e-05 | J176: -0.001296185932 | K176: -0.03778479168 | L176: 0.001280497612 | M176: 0.03880232633 | N176: 6.677086484e-05
A177: =IF('DF raw data'!I182="","",'DF raw data'!I182) -> -242.5 | B177: =IF('DF raw data'!J182="","",'DF raw data'!J182) -> -1.62713e-05 | C177: =IF('DF raw data'!K182="","",'DF raw data'!K182) -> 1.44653e-05 | D177: =IF('DF raw data'!L182="","",'DF raw data'!L182) -> -2.32792e-05 | F177: -1.63437561e-05 | G177: 1.452971398e-05 | H177: -2.338286228e-05 | J177: -0.00130435781 | K177: -0.03843697058 | L177: 0.001287762469 | M177: 0.03944620756 | N177: 6.845070558e-05
A178: =IF('DF raw data'!I183="","",'DF raw data'!I183) -> -242 | B178: =IF('DF raw data'!J183="","",'DF raw data'!J183) -> -1.64001e-05 | C178: =IF('DF raw data'!K183="","",'DF raw data'!K183) -> 9.0722e-06 | D178: =IF('DF raw data'!L183="","",'DF raw data'!L183) -> -2.24386e-05 | F178: -1.647312965e-05 | G178: 9.112598507e-06 | H178: -2.253851909e-05 | J178: -0.001312594375 | K178: -0.03909326777 | L178: 0.001292318768 | M178: 0.04009236695 | N178: 7.014720148e-05
A179: =IF('DF raw data'!I184="","",'DF raw data'!I184) -> -241.5 | B179: =IF('DF raw data'!J184="","",'DF raw data'!J184) -> -1.11992e-05 | C179: =IF('DF raw data'!K184="","",'DF raw data'!K184) -> 2.15938e-05 | D179: =IF('DF raw data'!L184="","",'DF raw data'!L184) -> -3.2813e-05 | F179: -1.124907004e-05 | G179: 2.168995719e-05 | H179: -3.295911629e-05 | J179: -0.00131821891 | K179: -0.03975237722 | L179: 0.001303163747 | M179: 0.04074394882 | N179: 7.18651699e-05
A180: =IF('DF raw data'!I185="","",'DF raw data'!I185) -> -241 | B180: =IF('DF raw data'!J185="","",'DF raw data'!J185) -> -2.71095e-05 | C180: =IF('DF raw data'!K185="","",'DF raw data'!K185) -> 2.75574e-05 | D180: =IF('DF raw data'!L185="","",'DF raw data'!L185) -> -2.21263e-05 | F180: -2.72302186e-05 | G180: 2.76801131e-05 | H180: -2.222482841e-05 | J180: -0.001331834019 | K180: -0.04041829423 | L180: 0.001317003804 | M180: 0.04140245072 | N180: 7.361931034e-05
A181: =IF('DF raw data'!I186="","",'DF raw data'!I186) -> -240.5 | B181: =IF('DF raw data'!J186="","",'DF raw data'!J186) -> -1.42124e-05 | C181: =IF('DF raw data'!K186="","",'DF raw data'!K186) -> 3.02786e-05 | D181: =IF('DF raw data'!L186="","",'DF raw data'!L186) -> -3.4096e-05 | F181: -1.427568782e-05 | G181: 3.041343061e-05 | H181: -3.424782949e-05 | J181: -0.001338971863 | K181: -0.04108778016 | L181: 0.001332210519 | M181: 0.04206855598 | N181: 7.540312559e-05
A182: =IF('DF raw data'!I187="","",'DF raw data'!I187) -> -240 | B182: =IF('DF raw data'!J187="","",'DF raw data'!J187) -> -3.42188e-05 | C182: =IF('DF raw data'!K187="","",'DF raw data'!K187) -> 2.50461e-05 | D182: =IF('DF raw data'!L187="","",'DF raw data'!L187) -> -3.53562e-05 | F182: -3.437117632e-05 | G182: 2.515763028e-05 | H182: -3.551364116e-05 | J182: -0.001356157451 | K182: -0.04176585889 | L182: 0.001344789334 | M182: 0.04274095065 | N182: 7.722693629e-05
A183: =IF('DF raw data'!I188="","",'DF raw data'!I188) -> -239.5 | B183: =IF('DF raw data'!J188="","",'DF raw data'!J188) -> -1.84438e-05 | C183: =IF('DF raw data'!K188="","",'DF raw data'!K188) -> 2.40403e-05 | D183: =IF('DF raw data'!L188="","",'DF raw data'!L188) -> -3.51773e-05 | F183: -1.852593024e-05 | G183: 2.414735146e-05 | H183: -3.533394452e-05 | J183: -0.001365420417 | K183: -0.0424485691 | L183: 0.00135686301 | M183: 0.04341938215 | N183: 7.907966136e-05
A184: =IF('DF raw data'!I189="","",'DF raw data'!I189) -> -239 | B184: =IF('DF raw data'!J189="","",'DF raw data'!J189) -> -1.58202e-05 | C184: =IF('DF raw data'!K189="","",'DF raw data'!K189) -> 2.33001e-05 | D184: =IF('DF raw data'!L189="","",'DF raw data'!L189) -> -2.6994e-05 | F184: -1.589064735e-05 | G184: 2.340385535e-05 | H184: -2.711420428e-05 | J184: -0.00137336574 | K184: -0.04313525197 | L184: 0.001368564937 | M184: 0.04410366462 | N184: 8.095921308e-05
A185: =IF('DF raw data'!I190="","",'DF raw data'!I190) -> -238.5 | B185: =IF('DF raw data'!J190="","",'DF raw data'!J190) -> -1.46568e-05 | C185: =IF('DF raw data'!K190="","",'DF raw data'!K190) -> 2.17703e-05 | D185: =IF('DF raw data'!L190="","",'DF raw data'!L190) -> -4.06945e-05 | F185: -1.472206673e-05 | G185: 2.186724315e-05 | H185: -4.087571261e-05 | J185: -0.001380726774 | K185: -0.04382561536 | L185: 0.001379498559 | M185: 0.0447934139 | N185: 8.286392443e-05
A186: =IF('DF raw data'!I191="","",'DF raw data'!I191) -> -238 | B186: =IF('DF raw data'!J191="","",'DF raw data'!J191) -> -1.31288e-05 | C186: =IF('DF raw data'!K191="","",'DF raw data'!K191) -> 1.80193e-05 | D186: =IF('DF raw data'!L191="","",'DF raw data'!L191) -> -2.37748e-05 | F186: -1.318726255e-05 | G186: 1.809953994e-05 | H186: -2.388066918e-05 | J186: -0.001387320405 | K186: -0.04451927556 | L186: 0.001388548329 | M186: 0.04548768807 | N186: 8.479028661e-05
A187: =IF('DF raw data'!I192="","",'DF raw data'!I192) -> -237.5 | B187: =IF('DF raw data'!J192="","",'DF raw data'!J192) -> -1.4661e-05 | C187: =IF('DF raw data'!K192="","",'DF raw data'!K192) -> 1.90265e-05 | D187: =IF('DF raw data'!L192="","",'DF raw data'!L192) -> -3.42625e-05 | F187: -1.472628543e-05 | G187: 1.9111225e-05 | H187: -3.441507091e-05 | J187: -0.001394683548 | K187: -0.04521661733 | L187: 0.001398103941 | M187: 0.04618674004 | N187: 8.674020503e-05
A188: =IF('DF raw data'!I193="","",'DF raw data'!I193) -> -237 | B188: =IF('DF raw data'!J193="","",'DF raw data'!J193) -> -2.96017e-05 | C188: =IF('DF raw data'!K193="","",'DF raw data'!K193) -> 2.3092e-05 | D188: =IF('DF raw data'!L193="","",'DF raw data'!L193) -> -3.52455e-05 | F188: -2.973351637e-05 | G188: 2.319482868e-05 | H188: -3.540244821e-05 | J188: -0.001409550306 | K188: -0.04592139248 | L188: 0.001409701356 | M188: 0.04689159071 | N188: 8.872725002e-05
A189: =IF('DF raw data'!I194="","",'DF raw data'!I194) -> -236.5 | B189: =IF('DF raw data'!J194="","",'DF raw data'!J194) -> -1.47254e-05 | C189: =IF('DF raw data'!K194="","",'DF raw data'!K194) -> 2.91476e-05 | D189: =IF('DF raw data'!L194="","",'DF raw data'!L194) -> -3.39663e-05 | F189: -1.479097221e-05 | G189: 2.927739426e-05 | H189: -3.411755193e-05 | J189: -0.001416945792 | K189: -0.04662986538 | L189: 0.001424340053 | M189: 0.04760376074 | N189: 9.074549e-05
A190: =IF('DF raw data'!I195="","",'DF raw data'!I195) -> -236 | B190: =IF('DF raw data'!J195="","",'DF raw data'!J195) -> -2.17791e-05 | C190: =IF('DF raw data'!K195="","",'DF raw data'!K195) -> 3.24374e-05 | D190: =IF('DF raw data'!L195="","",'DF raw data'!L195) -> -3.43447e-05 | F190: -2.187608233e-05 | G190: 3.258184374e-05 | H190: -3.449763695e-05 | J190: -0.001427883833 | K190: -0.0473438073 | L190: 0.001440630975 | M190: 0.04832407623 | N190: 9.280262492e-05
A191: =IF('DF raw data'!I196="","",'DF raw data'!I196) -> -235.5 | B191: =IF('DF raw data'!J196="","",'DF raw data'!J196) -> -1.18365e-05 | C191: =IF('DF raw data'!K196="","",'DF raw data'!K196) -> 3.45618e-05 | D191: =IF('DF raw data'!L196="","",'DF raw data'!L196) -> -3.90156e-05 | F191: -1.188920793e-05 | G191: 3.47157037e-05 | H191: -3.918933647e-05 | J191: -0.001433828437 | K191: -0.04806072152 | L191: 0.001457988827 | M191: 0.04905307064 | N191: 9.489342262e-05
A192: =IF('DF raw data'!I197="","",'DF raw data'!I197) -> -235 | B192: =IF('DF raw data'!J197="","",'DF raw data'!J197) -> -3.38377e-05 | C192: =IF('DF raw data'!K197="","",'DF raw data'!K197) -> 2.43815e-05 | D192: =IF('DF raw data'!L197="","",'DF raw data'!L197) -> -2.97829e-05 | F192: =(1-$G$1*($B$49-$G$2))*B192 -> -3.398837928e-05 | G192: 2.449007082e-05 | H192: -2.991552325e-05 | J192: =F192*$G$3+J191 -> -0.001450822627 | K192: =J192*$G$3+K191 -> -0.04878613283 | L192: =G192*$G$3+L191 -> 0.001470233862 | M192: =L192*$G$3+M191 -> 0.04978818757 | N192: =(J192^2+L192^2)*$G$3+N191 -> 9.702665957e-05
A193: =IF('DF raw data'!I198="","",'DF raw data'!I198) -> -234.5 | B193: =IF('DF raw data'!J198="","",'DF raw data'!J198) -> -1.58257e-05 | C193: =IF('DF raw data'!K198="","",'DF raw data'!K198) -> 2.23836e-05 | D193: =IF('DF raw data'!L198="","",'DF raw data'!L198) -> -1.85959e-05 | F193: -1.589617184e-05 | G193: 2.248327417e-05 | H193: -1.867870754e-05 | J193: -0.001458770713 | K193: -0.04951551818 | L193: 0.001481475499 | M193: 0.05052892532 | N193: 9.91880504e-05
A194: =IF('DF raw data'!I199="","",'DF raw data'!I199) -> -234 | B194: =IF('DF raw data'!J199="","",'DF raw data'!J199) -> -2.82019e-05 | C194: =IF('DF raw data'!K199="","",'DF raw data'!K199) -> 3.07402e-05 | D194: =IF('DF raw data'!L199="","",'DF raw data'!L199) -> -1.83654e-05 | F194: -2.832748306e-05 | G194: 3.087708611e-05 | H194: -1.844718113e-05 | J194: -0.001472934454 | K194: -0.05025198541 | L194: 0.001496914042 | M194: 0.05127738234 | N194: 0.0001013931942
A195: =IF('DF raw data'!I200="","",'DF raw data'!I200) -> -233.5 | B195: =IF('DF raw data'!J200="","",'DF raw data'!J200) -> -1.78744e-05 | C195: =IF('DF raw data'!K200="","",'DF raw data'!K200) -> 2.8105e-05 | D195: =IF('DF raw data'!L200="","",'DF raw data'!L200) -> -2.35668e-05 | F195: -1.79539947e-05 | G195: 2.823015157e-05 | H195: -2.367174296e-05 | J195: -0.001481911451 | K195: -0.05099294114 | L195: 0.001511029118 | M195: 0.0520328969 | N195: 0.0001036328294
A196: =IF('DF raw data'!I201="","",'DF raw data'!I201) -> -233 | B196: =IF('DF raw data'!J201="","",'DF raw data'!J201) -> -2.52374e-05 | C196: =IF('DF raw data'!K201="","",'DF raw data'!K201) -> 3.41396e-05 | D196: =IF('DF raw data'!L201="","",'DF raw data'!L201) -> -4.11522e-05 | F196: -2.534978214e-05 | G196: 3.429162364e-05 | H196: -4.133545075e-05 | J196: -0.001494586342 | K196: -0.05174023431 | L196: 0.00152817493 | M196: 0.05279698437 | N196: 0.0001059173829
A197: =IF('DF raw data'!I202="","",'DF raw data'!I202) -> -232.5 | B197: =IF('DF raw data'!J202="","",'DF raw data'!J202) -> -2.10054e-05 | C197: =IF('DF raw data'!K202="","",'DF raw data'!K202) -> 3.10662e-05 | D197: =IF('DF raw data'!L202="","",'DF raw data'!L202) -> -4.09145e-05 | F197: -2.109893705e-05 | G197: 3.120453779e-05 | H197: -4.109669227e-05 | J197: -0.001505135811 | K197: -0.05249280221 | L197: 0.001543777199 | M197: 0.05356887297 | N197: 0.0001082417238
A198: =IF('DF raw data'!I203="","",'DF raw data'!I203) -> -232 | B198: =IF('DF raw data'!J203="","",'DF raw data'!J203) -> -2.26748e-05 | C198: =IF('DF raw data'!K203="","",'DF raw data'!K203) -> 2.05895e-05 | D198: =IF('DF raw data'!L203="","",'DF raw data'!L203) -> -3.75282e-05 | F198: -2.277577088e-05 | G198: 2.068118504e-05 | H198: -3.769531307e-05 | J198: -0.001516523696 | K198: -0.05325106406 | L198: 0.001554117791 | M198: 0.05434593186 | N198: 0.000110599287
A199: =IF('DF raw data'!I204="","",'DF raw data'!I204) -> -231.5 | B199: =IF('DF raw data'!J204="","",'DF raw data'!J204) -> -1.34427e-05 | C199: =IF('DF raw data'!K204="","",'DF raw data'!K204) -> 2.00534e-05 | D199: =IF('DF raw data'!L204="","",'DF raw data'!L204) -> -3.43326e-05 | F199: -1.350256034e-05 | G199: 2.014269779e-05 | H199: -3.448548307e-05 | J199: -0.001523274977 | K199: -0.05401270155 | L199: 0.00156418914 | M199: 0.05512802643 | N199: 0.0001129828141
A200: =IF('DF raw data'!I205="","",'DF raw data'!I205) -> -231 | B200: =IF('DF raw data'!J205="","",'DF raw data'!J205) -> -3.53099e-05 | C200: =IF('DF raw data'!K205="","",'DF raw data'!K205) -> 1.8249e-05 | D200: =IF('DF raw data'!L205="","",'DF raw data'!L205) -> -3.36621e-05 | F200: -3.546713498e-05 | G200: 1.83302628e-05 | H200: -3.381199733e-05 | J200: -0.001541008544 | K200: -0.05478320582 | L200: 0.001573354272 | M200: 0.05591470357 | N200: 0.0001154078896
A201: =IF('DF raw data'!I206="","",'DF raw data'!I206) -> -230.5 | B201: =IF('DF raw data'!J206="","",'DF raw data'!J206) -> -1.32511e-05 | C201: =IF('DF raw data'!K206="","",'DF raw data'!K206) -> 1.39385e-05 | D201: =IF('DF raw data'!L206="","",'DF raw data'!L206) -> -3.30046e-05 | F201: -1.331010715e-05 | G201: 1.400056814e-05 | H201: -3.315156948e-05 | J201: -0.001547663598 | K201: -0.05555703762 | L201: 0.001580354556 | M201: 0.05670488085 | N201: 0.0001178542812
... 1061 more rows

Sheet 10 y=0.1
A1: =IF('DF raw data'!M1="","",'DF raw data'!M1) -> Number of header lines | B1: =IF('DF raw data'!N1="","",'DF raw data'!N1) -> 54 | C1: =IF('DF raw data'!O1="","",'DF raw data'!O1) ->  | D1: =IF('DF raw data'!P1="","",'DF raw data'!P1) ->  | F1: T_coeff | G1: -0.00073 | H1: /degC | J1: ='10 y=-0.2'!J1 -> IBy total | K1: ='10 y=-0.2'!K1 -> -8.148435864 | L1: ='10 y=-0.2'!L1 -> muTm | R1: ='10 y=-0.2'!R1 -> DF ref | S1: ='10 y=-0.2'!S1 -> 1
A2: =IF('DF raw data'!M2="","",'DF raw data'!M2) -> Measured by | B2: =IF('DF raw data'!N2="","",'DF raw data'!N2) -> Danfysik | C2: =IF('DF raw data'!O2="","",'DF raw data'!O2) ->  | D2: =IF('DF raw data'!P2="","",'DF raw data'!P2) ->  | F2: Tcorr | G2: 20 | H2: degC | J2: JBy total | K2: =K1262 -> -14.48675416 | L2: muTm^2 | M2: =M1262 -> -0.6985337634
A3: =IF('DF raw data'!M3="","",'DF raw data'!M3) -> Operator | B3: =IF('DF raw data'!N3="","",'DF raw data'!N3) -> PMHA | C3: =IF('DF raw data'!O3="","",'DF raw data'!O3) ->  | D3: =IF('DF raw data'!P3="","",'DF raw data'!P3) ->  | F3: Step | G3: =A63-A62 -> 0.5 | H3: mm | J3: PI total | K3: =N1262 -> 10465.49085 | L3: T^2mm^3
A4: =IF('DF raw data'!M4="","",'DF raw data'!M4) -> Data-time | B4: =IF('DF raw data'!N4="","",'DF raw data'!N4) -> 30-07-2024, 10:26:41 | C4: =IF('DF raw data'!O4="","",'DF raw data'!O4) ->  | D4: =IF('DF raw data'!P4="","",'DF raw data'!P4) -> 
A5: =IF('DF raw data'!M5="","",'DF raw data'!M5) -> Project | B5: =IF('DF raw data'!N5="","",'DF raw data'!N5) -> 504314 | C5: =IF('DF raw data'!O5="","",'DF raw data'!O5) ->  | D5: =IF('DF raw data'!P5="","",'DF raw data'!P5) -> 
A6: =IF('DF raw data'!M6="","",'DF raw data'!M6) -> Magnet type | B6: =IF('DF raw data'!N6="","",'DF raw data'!N6) -> Dipole | C6: =IF('DF raw data'!O6="","",'DF raw data'!O6) ->  | D6: =IF('DF raw data'!P6="","",'DF raw data'!P6) -> 
A7: =IF('DF raw data'!M7="","",'DF raw data'!M7) -> Magnet nr. | B7: =IF('DF raw data'!N7="","",'DF raw data'!N7) -> 2410085 | C7: =IF('DF raw data'!O7="","",'DF raw data'!O7) ->  | D7: =IF('DF raw data'!P7="","",'DF raw data'!P7) -> 
A8: =IF('DF raw data'!M8="","",'DF raw data'!M8) -> Meas. number | B8: =IF('DF raw data'!N8="","",'DF raw data'!N8) -> 155 | C8: =IF('DF raw data'!O8="","",'DF raw data'!O8) ->  | D8: =IF('DF raw data'!P8="","",'DF raw data'!P8) -> 
A9: =IF('DF raw data'!M9="","",'DF raw data'!M9) -> Add. info | B9: =IF('DF raw data'!N9="","",'DF raw data'!N9) -> Y-alignment scan 4) | C9: =IF('DF raw data'!O9="","",'DF raw data'!O9) ->  | D9: =IF('DF raw data'!P9="","",'DF raw data'!P9) -> 
A10: =IF('DF raw data'!M10="","",'DF raw data'!M10) -> Device | B10: =IF('DF raw data'!N10="","",'DF raw data'!N10) -> (HAL) HALL-PROBE | C10: =IF('DF raw data'!O10="","",'DF raw data'!O10) ->  | D10: =IF('DF raw data'!P10="","",'DF raw data'!P10) -> 
A11: =IF('DF raw data'!M11="","",'DF raw data'!M11) -> Goal | B11: =IF('DF raw data'!N11="","",'DF raw data'!N11) -> (AXI) AXis Integral (Line, EFB) | C11: =IF('DF raw data'!O11="","",'DF raw data'!O11) ->  | D11: =IF('DF raw data'!P11="","",'DF raw data'!P11) -> 
A12: =IF('DF raw data'!M12="","",'DF raw data'!M12) -> Power supply mode | B12: =IF('DF raw data'!N12="","",'DF raw data'!N12) -> (PM) Permanent Magnet (no MPS in use) | C12: =IF('DF raw data'!O12="","",'DF raw data'!O12) ->  | D12: =IF('DF raw data'!P12="","",'DF raw data'!P12) -> 
A13: =IF('DF raw data'!M13="","",'DF raw data'!M13) -> Data format | B13: =IF('DF raw data'!N13="","",'DF raw data'!N13) -> Raw data text file | C13: =IF('DF raw data'!O13="","",'DF raw data'!O13) ->  | D13: =IF('DF raw data'!P13="","",'DF raw data'!P13) -> 
A14: =IF('DF raw data'!M14="","",'DF raw data'!M14) -> Direction of the pos. x-axis | B14: =IF('DF raw data'!N14="","",'DF raw data'!N14) -> See test program | C14: =IF('DF raw data'!O14="","",'DF raw data'!O14) ->  | D14: =IF('DF raw data'!P14="","",'DF raw data'!P14) -> 
A15: =IF('DF raw data'!M15="","",'DF raw data'!M15) -> Direction of the pos. y-axis | B15: =IF('DF raw data'!N15="","",'DF raw data'!N15) -> Vertical up | C15: =IF('DF raw data'!O15="","",'DF raw data'!O15) ->  | D15: =IF('DF raw data'!P15="","",'DF raw data'!P15) -> 
A16: =IF('DF raw data'!M16="","",'DF raw data'!M16) -> Direction of the pos. z-axis | B16: =IF('DF raw data'!N16="","",'DF raw data'!N16) -> See test program | C16: =IF('DF raw data'!O16="","",'DF raw data'!O16) ->  | D16: =IF('DF raw data'!P16="","",'DF raw data'!P16) -> 
A17: =IF('DF raw data'!M17="","",'DF raw data'!M17) -> Mapper type | B17: =IF('DF raw data'!N17="","",'DF raw data'!N17) -> Precision Hall Mapper | C17: =IF('DF raw data'!O17="","",'DF raw data'!O17) ->  | D17: =IF('DF raw data'!P17="","",'DF raw data'!P17) -> 
A18: =IF('DF raw data'!M18="","",'DF raw data'!M18) -> Mapper Danfysik Reg. Number | B18: =IF('DF raw data'!N18="","",'DF raw data'!N18) -> 2033-D (mapper 1) | C18: =IF('DF raw data'!O18="","",'DF raw data'!O18) ->  | D18: =IF('DF raw data'!P18="","",'DF raw data'!P18) -> 
A19: =IF('DF raw data'!M19="","",'DF raw data'!M19) -> Measurement consept | B19: =IF('DF raw data'!N19="","",'DF raw data'!N19) -> Square line grid | C19: =IF('DF raw data'!O19="","",'DF raw data'!O19) ->  | D19: =IF('DF raw data'!P19="","",'DF raw data'!P19) -> 
A20: =IF('DF raw data'!M20="","",'DF raw data'!M20) -> Mode | B20: =IF('DF raw data'!N20="","",'DF raw data'!N20) -> On-the-fly measurement | C20: =IF('DF raw data'!O20="","",'DF raw data'!O20) ->  | D20: =IF('DF raw data'!P20="","",'DF raw data'!P20) -> 
A21: =IF('DF raw data'!M21="","",'DF raw data'!M21) ->  | B21: =IF('DF raw data'!N21="","",'DF raw data'!N21) ->  | C21: =IF('DF raw data'!O21="","",'DF raw data'!O21) ->  | D21: =IF('DF raw data'!P21="","",'DF raw data'!P21) -> 
A22: =IF('DF raw data'!M22="","",'DF raw data'!M22) -> Probe Name | B22: =IF('DF raw data'!N22="","",'DF raw data'!N22) -> ID12_By | C22: =IF('DF raw data'!O22="","",'DF raw data'!O22) ->  | D22: =IF('DF raw data'!P22="","",'DF raw data'!P22) -> 
A23: =IF('DF raw data'!M23="","",'DF raw data'!M23) -> Probe Type | B23: =IF('DF raw data'!N23="","",'DF raw data'!N23) -> DF_ID_3D_Bxyz | C23: =IF('DF raw data'!O23="","",'DF raw data'!O23) ->  | D23: =IF('DF raw data'!P23="","",'DF raw data'!P23) -> 
A24: =IF('DF raw data'!M24="","",'DF raw data'!M24) -> Probe Danfysik Reg. Number | B24: =IF('DF raw data'!N24="","",'DF raw data'!N24) -> 2277 | C24: =IF('DF raw data'!O24="","",'DF raw data'!O24) ->  | D24: =IF('DF raw data'!P24="","",'DF raw data'!P24) -> 
A25: =IF('DF raw data'!M25="","",'DF raw data'!M25) -> Probe Axis | B25: =IF('DF raw data'!N25="","",'DF raw data'!N25) -> By | C25: =IF('DF raw data'!O25="","",'DF raw data'!O25) ->  | D25: =IF('DF raw data'!P25="","",'DF raw data'!P25) -> 
A26: =IF('DF raw data'!M26="","",'DF raw data'!M26) -> Probe Current Supply | B26: =IF('DF raw data'!N26="","",'DF raw data'!N26) -> 1825-D | C26: =IF('DF raw data'!O26="","",'DF raw data'!O26) ->  | D26: =IF('DF raw data'!P26="","",'DF raw data'!P26) -> 
A27: =IF('DF raw data'!M27="","",'DF raw data'!M27) -> Probe Gain Correction | B27: =IF('DF raw data'!N27="","",'DF raw data'!N27) -> 0.99612 | C27: =IF('DF raw data'!O27="","",'DF raw data'!O27) ->  | D27: =IF('DF raw data'!P27="","",'DF raw data'!P27) -> 
A28: =IF('DF raw data'!M28="","",'DF raw data'!M28) -> Probe Offset Correction | B28: =IF('DF raw data'!N28="","",'DF raw data'!N28) -> 0.0027538 | C28: =IF('DF raw data'!O28="","",'DF raw data'!O28) ->  | D28: =IF('DF raw data'!P28="","",'DF raw data'!P28) -> 
A29: =IF('DF raw data'!M29="","",'DF raw data'!M29) -> DVM Number | B29: =IF('DF raw data'!N29="","",'DF raw data'!N29) -> 2 | C29: =IF('DF raw data'!O29="","",'DF raw data'!O29) ->  | D29: =IF('DF raw data'!P29="","",'DF raw data'!P29) -> 
A30: =IF('DF raw data'!M30="","",'DF raw data'!M30) -> DVM Type | B30: =IF('DF raw data'!N30="","",'DF raw data'!N30) -> K2701 | C30: =IF('DF raw data'!O30="","",'DF raw data'!O30) ->  | D30: =IF('DF raw data'!P30="","",'DF raw data'!P30) -> 
A31: =IF('DF raw data'!M31="","",'DF raw data'!M31) -> DVM Danfysik Reg. Number | B31: =IF('DF raw data'!N31="","",'DF raw data'!N31) -> 1743-D | C31: =IF('DF raw data'!O31="","",'DF raw data'!O31) ->  | D31: =IF('DF raw data'!P31="","",'DF raw data'!P31) -> 
A32: =IF('DF raw data'!M32="","",'DF raw data'!M32) -> Probe Name | B32: =IF('DF raw data'!N32="","",'DF raw data'!N32) -> ID12_Bx | C32: =IF('DF raw data'!O32="","",'DF raw data'!O32) ->  | D32: =IF('DF raw data'!P32="","",'DF raw data'!P32) -> 
A33: =IF('DF raw data'!M33="","",'DF raw data'!M33) -> Probe Type | B33: =IF('DF raw data'!N33="","",'DF raw data'!N33) -> DF_ID_3D_Bxyz | C33: =IF('DF raw data'!O33="","",'DF raw data'!O33) ->  | D33: =IF('DF raw data'!P33="","",'DF raw data'!P33) -> 
A34: =IF('DF raw data'!M34="","",'DF raw data'!M34) -> Probe Danfysik Reg. Number | B34: =IF('DF raw data'!N34="","",'DF raw data'!N34) -> 2277 | C34: =IF('DF raw data'!O34="","",'DF raw data'!O34) ->  | D34: =IF('DF raw data'!P34="","",'DF raw data'!P34) -> 
A35: =IF('DF raw data'!M35="","",'DF raw data'!M35) -> Probe Axis | B35: =IF('DF raw data'!N35="","",'DF raw data'!N35) -> Bx | C35: =IF('DF raw data'!O35="","",'DF raw data'!O35) ->  | D35: =IF('DF raw data'!P35="","",'DF raw data'!P35) -> 
A36: =IF('DF raw data'!M36="","",'DF raw data'!M36) -> Probe Current Supply | B36: =IF('DF raw data'!N36="","",'DF raw data'!N36) -> 1825-D | C36: =IF('DF raw data'!O36="","",'DF raw data'!O36) ->  | D36: =IF('DF raw data'!P36="","",'DF raw data'!P36) -> 
A37: =IF('DF raw data'!M37="","",'DF raw data'!M37) -> Probe Gain Correction | B37: =IF('DF raw data'!N37="","",'DF raw data'!N37) -> 1 | C37: =IF('DF raw data'!O37="","",'DF raw data'!O37) ->  | D37: =IF('DF raw data'!P37="","",'DF raw data'!P37) -> 
A38: =IF('DF raw data'!M38="","",'DF raw data'!M38) -> Probe Offset Correction | B38: =IF('DF raw data'!N38="","",'DF raw data'!N38) -> -0.17579 | C38: =IF('DF raw data'!O38="","",'DF raw data'!O38) ->  | D38: =IF('DF raw data'!P38="","",'DF raw data'!P38) -> 
A39: =IF('DF raw data'!M39="","",'DF raw data'!M39) -> DVM Number | B39: =IF('DF raw data'!N39="","",'DF raw data'!N39) -> 3 | C39: =IF('DF raw data'!O39="","",'DF raw data'!O39) ->  | D39: =IF('DF raw data'!P39="","",'DF raw data'!P39) -> 
A40: =IF('DF raw data'!M40="","",'DF raw data'!M40) -> DVM Type | B40: =IF('DF raw data'!N40="","",'DF raw data'!N40) -> K2701 | C40: =IF('DF raw data'!O40="","",'DF raw data'!O40) ->  | D40: =IF('DF raw data'!P40="","",'DF raw data'!P40) -> 
A41: =IF('DF raw data'!M41="","",'DF raw data'!M41) -> DVM Danfysik Reg. Number | B41: =IF('DF raw data'!N41="","",'DF raw data'!N41) -> 1744-D | C41: =IF('DF raw data'!O41="","",'DF raw data'!O41) ->  | D41: =IF('DF raw data'!P41="","",'DF raw data'!P41) -> 
A42: =IF('DF raw data'!M42="","",'DF raw data'!M42) -> Probe Name | B42: =IF('DF raw data'!N42="","",'DF raw data'!N42) -> ID12_Bz | C42: =IF('DF raw data'!O42="","",'DF raw data'!O42) ->  | D42: =IF('DF raw data'!P42="","",'DF raw data'!P42) -> 
A43: =IF('DF raw data'!M43="","",'DF raw data'!M43) -> Probe Type | B43: =IF('DF raw data'!N43="","",'DF raw data'!N43) -> DF_ID_3D_Bxyz | C43: =IF('DF raw data'!O43="","",'DF raw data'!O43) ->  | D43: =IF('DF raw data'!P43="","",'DF raw data'!P43) -> 
A44: =IF('DF raw data'!M44="","",'DF raw data'!M44) -> Probe Danfysik Reg. Number | B44: =IF('DF raw data'!N44="","",'DF raw data'!N44) -> 2277 | C44: =IF('DF raw data'!O44="","",'DF raw data'!O44) ->  | D44: =IF('DF raw data'!P44="","",'DF raw data'!P44) -> 
A45: =IF('DF raw data'!M45="","",'DF raw data'!M45) -> Probe Axis | B45: =IF('DF raw data'!N45="","",'DF raw data'!N45) -> Bz | C45: =IF('DF raw data'!O45="","",'DF raw data'!O45) ->  | D45: =IF('DF raw data'!P45="","",'DF raw data'!P45) -> 
A46: =IF('DF raw data'!M46="","",'DF raw data'!M46) -> Probe Current Supply | B46: =IF('DF raw data'!N46="","",'DF raw data'!N46) -> 1825-D | C46: =IF('DF raw data'!O46="","",'DF raw data'!O46) ->  | D46: =IF('DF raw data'!P46="","",'DF raw data'!P46) -> 
A47: =IF('DF raw data'!M47="","",'DF raw data'!M47) -> Probe Gain Correction | B47: =IF('DF raw data'!N47="","",'DF raw data'!N47) -> 1 | C47: =IF('DF raw data'!O47="","",'DF raw data'!O47) ->  | D47: =IF('DF raw data'!P47="","",'DF raw data'!P47) -> 
A48: =IF('DF raw data'!M53="","",'DF raw data'!M53) -> PS-Gap: | B48: =IF('DF raw data'!N53="","",'DF raw data'!N53) -> 10 | C48: =IF('DF raw data'!O53="","",'DF raw data'!O53) ->  | D48: =IF('DF raw data'!P53="","",'DF raw data'!P53) -> 
A49: =IF('DF raw data'!M54="","",'DF raw data'!M54) -> PS-Temperature: | B49: =IF('DF raw data'!N54="","",'DF raw data'!N54) -> 26.1 | C49: =IF('DF raw data'!O54="","",'DF raw data'!O54) ->  | D49: =IF('DF raw data'!P54="","",'DF raw data'!P54) -> 
A50: =IF('DF raw data'!M55="","",'DF raw data'!M55) -> PS-Encoder: | B50: =IF('DF raw data'!N55="","",'DF raw data'!N55) -> 20.0357 | C50: =IF('DF raw data'!O55="","",'DF raw data'!O55) ->  | D50: =IF('DF raw data'!P55="","",'DF raw data'!P55) -> 
A51: =IF('DF raw data'!M56="","",'DF raw data'!M56) ->  | B51: =IF('DF raw data'!N56="","",'DF raw data'!N56) ->  | C51: =IF('DF raw data'!O56="","",'DF raw data'!O56) ->  | D51: =IF('DF raw data'!P56="","",'DF raw data'!P56) -> 
A52: =IF('DF raw data'!M57="","",'DF raw data'!M57) -> Monitor-Index | B52: =IF('DF raw data'!N57="","",'DF raw data'!N57) -> [1,1,4] | C52: =IF('DF raw data'!O57="","",'DF raw data'!O57) ->  | D52: =IF('DF raw data'!P57="","",'DF raw data'!P57) -> 
A53: =IF('DF raw data'!M58="","",'DF raw data'!M58) ->  | B53: =IF('DF raw data'!N58="","",'DF raw data'!N58) ->  | C53: =IF('DF raw data'!O58="","",'DF raw data'!O58) ->  | D53: =IF('DF raw data'!P58="","",'DF raw data'!P58) -> 
A54: =IF('DF raw data'!M59="","",'DF raw data'!M59) -> Time [s] | B54: =IF('DF raw data'!N59="","",'DF raw data'!N59) -> Y [mm] | C54: =IF('DF raw data'!O59="","",'DF raw data'!O59) -> X [mm] | D54: =IF('DF raw data'!P59="","",'DF raw data'!P59) -> Nominal current [A]
A55: =IF('DF raw data'!M60="","",'DF raw data'!M60) ->  | B55: =IF('DF raw data'!N60="","",'DF raw data'!N60) ->  | C55: =IF('DF raw data'!O60="","",'DF raw data'!O60) ->  | D55: =IF('DF raw data'!P60="","",'DF raw data'!P60) -> 
A56: =IF('DF raw data'!M61="","",'DF raw data'!M61) -> 206.3 | B56: =IF('DF raw data'!N61="","",'DF raw data'!N61) -> 31.26 | C56: =IF('DF raw data'!O61="","",'DF raw data'!O61) -> 301.8 | D56: =IF('DF raw data'!P61="","",'DF raw data'!P61) -> 0
A57: =IF('DF raw data'!M62="","",'DF raw data'!M62) ->  | B57: =IF('DF raw data'!N62="","",'DF raw data'!N62) ->  | C57: =IF('DF raw data'!O62="","",'DF raw data'!O62) ->  | D57: =IF('DF raw data'!P62="","",'DF raw data'!P62) -> 
A58: =IF('DF raw data'!M63="","",'DF raw data'!M63) -> Measurement-Index | B58: =IF('DF raw data'!N63="","",'DF raw data'!N63) -> [1,1,1201,2] | C58: =IF('DF raw data'!O63="","",'DF raw data'!O63) ->  | D58: =IF('DF raw data'!P63="","",'DF raw data'!P63) -> 
A59: =IF('DF raw data'!M64="","",'DF raw data'!M64) ->  | B59: =IF('DF raw data'!N64="","",'DF raw data'!N64) ->  | C59: =IF('DF raw data'!O64="","",'DF raw data'!O64) ->  | D59: =IF('DF raw data'!P64="","",'DF raw data'!P64) -> 
A60: =IF('DF raw data'!M65="","",'DF raw data'!M65) -> Z [mm] | B60: By [T] | C60: Bx [T] | D60: Bz [T] | F60: By_corr | G60: Bx_corr | H60: Bz_corr | J60: Iy | K60: Jy | L60: Ix | M60: Jx | N60: PI
A62: =IF('DF raw data'!M67="","",'DF raw data'!M67) -> -300 | B62: =IF('DF raw data'!N67="","",'DF raw data'!N67) -> -1.6009e-05 | C62: =IF('DF raw data'!O67="","",'DF raw data'!O67) -> -6.06904e-06 | D62: =IF('DF raw data'!P67="","",'DF raw data'!P67) -> -2.55961e-05 | F62: =(1-$G$1*($B$49))*B62 -> -1.631401948e-05 | G62: =(1-$G$1*($B$49-$G$2))*C62 -> -6.096065435e-06 | H62: =(1-$G$1*($B$49-$G$2))*D62 -> -2.571007943e-05 | J62: =F62*$G$3 -> -8.157009738e-06 | K62: =J62*$G$3 -> -4.078504869e-06 | L62: =G62*$G$3 -> -3.048032718e-06 | M62: =L62*$G$3 -> -1.524016359e-06 | N62: =(J62^2+L62^2)*$G$3 -> 3.791365566e-11
A63: =IF('DF raw data'!M68="","",'DF raw data'!M68) -> -299.5 | B63: =IF('DF raw data'!N68="","",'DF raw data'!N68) -> -1.61373e-05 | C63: =IF('DF raw data'!O68="","",'DF raw data'!O68) -> -7.05115e-07 | D63: =IF('DF raw data'!P68="","",'DF raw data'!P68) -> -2.55828e-05 | F63: =(1-$G$1*($B$49-$G$2))*B63 -> -1.62091594e-05 | G63: =(1-$G$1*($B$49-$G$2))*C63 -> -7.082548771e-07 | H63: -2.569672021e-05 | J63: =F63*$G$3+J62 -> -1.626158944e-05 | K63: =J63*$G$3+K62 -> -1.220929959e-05 | L63: =G63*$G$3+L62 -> -3.402160156e-06 | M63: =L63*$G$3+M62 -> -3.225096437e-06 | N63: =(J63^2+L63^2)*$G$3+N62 -> 1.75920648e-10
A64: =IF('DF raw data'!M69="","",'DF raw data'!M69) -> -299 | B64: =IF('DF raw data'!N69="","",'DF raw data'!N69) -> -1.82536e-05 | C64: =IF('DF raw data'!O69="","",'DF raw data'!O69) -> 3.30988e-06 | D64: =IF('DF raw data'!P69="","",'DF raw data'!P69) -> -2.54942e-05 | F64: =(1-$G$1*($B$49-$G$2))*B64 -> -1.833488328e-05 | G64: 3.324618896e-06 | H64: -2.560772567e-05 | J64: =F64*$G$3+J63 -> -2.542903108e-05 | K64: =J64*$G$3+K63 -> -2.492381513e-05 | L64: =G64*$G$3+L63 -> -1.739850708e-06 | M64: =L64*$G$3+M63 -> -4.095021791e-06 | N64: =(J64^2+L64^2)*$G$3+N63 -> 5.00751999e-10
A65: =IF('DF raw data'!M70="","",'DF raw data'!M70) -> -298.5 | B65: =IF('DF raw data'!N70="","",'DF raw data'!N70) -> -1.76764e-05 | C65: =IF('DF raw data'!O70="","",'DF raw data'!O70) -> -2.06819e-06 | D65: =IF('DF raw data'!P70="","",'DF raw data'!P70) -> -2.54431e-05 | F65: -1.775511301e-05 | G65: -2.07739965e-06 | H65: -2.555639812e-05 | J65: -3.430658758e-05 | K65: -4.207710892e-05 | L65: -2.778550533e-06 | M65: -5.484297058e-06 | N65: 1.093083146e-09
A66: =IF('DF raw data'!M71="","",'DF raw data'!M71) -> -298 | B66: =IF('DF raw data'!N71="","",'DF raw data'!N71) -> -1.66503e-05 | C66: =IF('DF raw data'!O71="","",'DF raw data'!O71) -> -4.45188e-06 | D66: =IF('DF raw data'!P71="","",'DF raw data'!P71) -> -2.5625e-05 | F66: -1.672444379e-05 | G66: -4.471704222e-06 | H66: -2.573910813e-05 | J66: -4.266880947e-05 | K66: -6.341151365e-05 | L66: -5.014402644e-06 | M66: -7.99149838e-06 | N66: 2.015968914e-09
A67: =IF('DF raw data'!M72="","",'DF raw data'!M72) -> -297.5 | B67: =IF('DF raw data'!N72="","",'DF raw data'!N72) -> -1.87664e-05 | C67: =IF('DF raw data'!O72="","",'DF raw data'!O72) -> 5.69168e-06 | D67: =IF('DF raw data'!P72="","",'DF raw data'!P72) -> -2.58662e-05 | F67: -1.884996678e-05 | G67: 5.717025051e-06 | H67: -2.598138219e-05 | J67: -5.209379286e-05 | K67: -8.945841009e-05 | L67: -2.155890119e-06 | M67: -9.069443439e-06 | N67: 3.375174473e-09
A68: =IF('DF raw data'!M73="","",'DF raw data'!M73) -> -297 | B68: =IF('DF raw data'!N73="","",'DF raw data'!N73) -> -2.13957e-05 | C68: =IF('DF raw data'!O73="","",'DF raw data'!O73) -> 1.28554e-05 | D68: =IF('DF raw data'!P73="","",'DF raw data'!P73) -> -2.57922e-05 | F68: -2.149097505e-05 | G68: 1.29126451e-05 | H68: -2.590705267e-05 | J68: -6.283928039e-05 | K68: -0.0001208780503 | L68: 4.300432429e-06 | M68: -6.919227224e-06 | N68: 5.358808912e-09
A69: =IF('DF raw data'!M74="","",'DF raw data'!M74) -> -296.5 | B69: =IF('DF raw data'!N74="","",'DF raw data'!N74) -> -2.37687e-05 | C69: =IF('DF raw data'!O74="","",'DF raw data'!O74) -> 7.6125e-06 | D69: =IF('DF raw data'!P74="","",'DF raw data'!P74) -> -2.55615e-05 | F69: -2.387454202e-05 | G69: 7.646398463e-06 | H69: -2.567532536e-05 | J69: -7.47765514e-05 | K69: -0.000158266326 | L69: 8.123631661e-06 | M69: -2.857411394e-06 | N69: 8.187571928e-09
A70: =IF('DF raw data'!M75="","",'DF raw data'!M75) -> -296 | B70: =IF('DF raw data'!N75="","",'DF raw data'!N75) -> -2.04337e-05 | C70: =IF('DF raw data'!O75="","",'DF raw data'!O75) -> 2.86131e-06 | D70: =IF('DF raw data'!P75="","",'DF raw data'!P75) -> -2.58061e-05 | F70: -2.052469127e-05 | G70: 2.874051413e-06 | H70: -2.592101456e-05 | J70: -8.503889703e-05 | K70: -0.0002007857745 | L70: 9.560657367e-06 | M70: 1.92291729e-06 | N70: 1.184908202e-08
A71: =IF('DF raw data'!M76="","",'DF raw data'!M76) -> -295.5 | B71: =IF('DF raw data'!N76="","",'DF raw data'!N76) -> -2.12671e-05 | C71: =IF('DF raw data'!O76="","",'DF raw data'!O76) -> 6.46718e-06 | D71: =IF('DF raw data'!P76="","",'DF raw data'!P76) -> -2.63641e-05 | F71: -2.13618024e-05 | G71: 6.495978353e-06 | H71: -2.648149934e-05 | J71: -9.571979823e-05 | K71: -0.0002486456736 | L71: 1.280864654e-05 | M71: 8.327240562e-06 | N71: 1.651225262e-08
A72: =IF('DF raw data'!M77="","",'DF raw data'!M77) -> -295 | B72: =IF('DF raw data'!N77="","",'DF raw data'!N77) -> -3.30022e-05 | C72: =IF('DF raw data'!O77="","",'DF raw data'!O77) -> 1.08741e-05 | D72: =IF('DF raw data'!P77="","",'DF raw data'!P77) -> -2.64121e-05 | F72: -3.31491588e-05 | G72: 1.092252237e-05 | H72: -2.652971308e-05 | J72: -0.0001122943776 | K72: -0.0003047928624 | L72: 1.826990773e-05 | M72: 1.746219443e-05 | N72: 2.2984161e-08
A73: =IF('DF raw data'!M78="","",'DF raw data'!M78) -> -294.5 | B73: =IF('DF raw data'!N78="","",'DF raw data'!N78) -> -2.9668e-05 | C73: =IF('DF raw data'!O78="","",'DF raw data'!O78) -> 8.34106e-06 | D73: =IF('DF raw data'!P78="","",'DF raw data'!P78) -> -2.59018e-05 | F73: -2.98001116e-05 | G73: 8.37820274e-06 | H73: -2.601714072e-05 | J73: -0.0001271944334 | K73: -0.0003683900791 | L73: 2.24590091e-05 | M73: 2.869169897e-05 | N73: 3.13255765e-08
A74: =IF('DF raw data'!M79="","",'DF raw data'!M79) -> -294 | B74: =IF('DF raw data'!N79="","",'DF raw data'!N79) -> -3.55041e-05 | C74: =IF('DF raw data'!O79="","",'DF raw data'!O79) -> 4.25916e-06 | D74: =IF('DF raw data'!P79="","",'DF raw data'!P79) -> -2.51766e-05 | F74: -3.566219976e-05 | G74: 4.278126039e-06 | H74: -2.52887114e-05 | J74: -0.0001450255333 | K74: -0.0004409028458 | L74: 2.459807212e-05 | M74: 4.099073503e-05 | N74: 4.214431173e-08
A75: =IF('DF raw data'!M80="","",'DF raw data'!M80) -> -293.5 | B75: =IF('DF raw data'!N80="","",'DF raw data'!N80) -> -3.04384e-05 | C75: =IF('DF raw data'!O80="","",'DF raw data'!O80) -> 1.2679e-05 | D75: =IF('DF raw data'!P80="","",'DF raw data'!P80) -> -2.46059e-05 | F75: -3.05739422e-05 | G75: 1.273545959e-05 | H75: -2.471547007e-05 | J75: -0.0001603125044 | K75: -0.000521059098 | L75: 3.096580191e-05 | M75: 5.647363599e-05 | N75: 5.547380171e-08
A76: =IF('DF raw data'!M81="","",'DF raw data'!M81) -> -293 | B76: =IF('DF raw data'!N81="","",'DF raw data'!N81) -> -2.84506e-05 | C76: =IF('DF raw data'!O81="","",'DF raw data'!O81) -> 1.32882e-05 | D76: =IF('DF raw data'!P81="","",'DF raw data'!P81) -> -2.45399e-05 | F76: -2.857729052e-05 | G76: 1.334737235e-05 | H76: -2.464917617e-05 | J76: -0.0001746011497 | K76: -0.0006083596728 | L76: 3.763948809e-05 | M76: 7.529338003e-05 | N76: 7.142494797e-08
A77: =IF('DF raw data'!M82="","",'DF raw data'!M82) -> -292.5 | B77: =IF('DF raw data'!N82="","",'DF raw data'!N82) -> -2.25505e-05 | C77: =IF('DF raw data'!O82="","",'DF raw data'!O82) -> 1.69984e-05 | D77: =IF('DF raw data'!P82="","",'DF raw data'!P82) -> -2.50673e-05 | F77: -2.265091738e-05 | G77: 1.707409388e-05 | H77: -2.517892469e-05 | J77: -0.0001859266084 | K77: -0.000701322977 | L77: 4.617653503e-05 | M77: 9.838164754e-05 | N77: 8.977543601e-08
A78: =IF('DF raw data'!M83="","",'DF raw data'!M83) -> -292 | B78: =IF('DF raw data'!N83="","",'DF raw data'!N83) -> -2.53719e-05 | C78: =IF('DF raw data'!O83="","",'DF raw data'!O83) -> 1.14181e-05 | D78: =IF('DF raw data'!P83="","",'DF raw data'!P83) -> -2.5234e-05 | F78: -2.548488107e-05 | G78: 1.14689448e-05 | H78: -2.5346367e-05 | J78: -0.0001986690489 | K78: -0.0008006575015 | L78: 5.191100743e-05 | M78: 0.0001243371513 | N78: 1.108575079e-07
A79: =IF('DF raw data'!M84="","",'DF raw data'!M84) -> -291.5 | B79: =IF('DF raw data'!N84="","",'DF raw data'!N84) -> -3.10807e-05 | C79: =IF('DF raw data'!O84="","",'DF raw data'!O84) -> 8.21233e-06 | D79: =IF('DF raw data'!P84="","",'DF raw data'!P84) -> -2.30114e-05 | F79: -3.121910236e-05 | G79: 8.248899505e-06 | H79: -2.311386976e-05 | J79: -0.0002142786001 | K79: -0.0009077968015 | L79: 5.603545718e-05 | M79: 0.0001523548798 | N79: 1.353851533e-07
A80: =IF('DF raw data'!M85="","",'DF raw data'!M85) -> -291 | B80: =IF('DF raw data'!N85="","",'DF raw data'!N85) -> -2.03689e-05 | C80: =IF('DF raw data'!O85="","",'DF raw data'!O85) -> 6.02584e-06 | D80: =IF('DF raw data'!P85="","",'DF raw data'!P85) -> -2.71119e-05 | F80: -2.045960271e-05 | G80: 6.052673066e-06 | H80: -2.723262929e-05 | J80: -0.0002245084014 | K80: -0.001020051002 | L80: 5.906179371e-05 | M80: 0.0001818857767 | N80: 1.623313122e-07
A81: =IF('DF raw data'!M86="","",'DF raw data'!M86) -> -290.5 | B81: =IF('DF raw data'!N86="","",'DF raw data'!N86) -> -9.59567e-06 | C81: =IF('DF raw data'!O86="","",'DF raw data'!O86) -> 6.48317e-06 | D81: =IF('DF raw data'!P86="","",'DF raw data'!P86) -> -2.67935e-05 | F81: -9.638399519e-06 | G81: 6.512039556e-06 | H81: -2.691281146e-05 | J81: -0.0002293276012 | K81: -0.001134714803 | L81: 6.231781349e-05 | M81: 0.0002130446834 | N81: 1.905686415e-07
A82: =IF('DF raw data'!M87="","",'DF raw data'!M87) -> -290 | B82: =IF('DF raw data'!N87="","",'DF raw data'!N87) -> -2.08192e-05 | C82: =IF('DF raw data'!O87="","",'DF raw data'!O87) -> 6.96193e-06 | D82: =IF('DF raw data'!P87="","",'DF raw data'!P87) -> -2.4718e-05 | F82: -2.09119079e-05 | G82: 6.992931474e-06 | H82: -2.482806925e-05 | J82: -0.0002397835551 | K82: -0.00125460658 | L82: 6.581427923e-05 | M82: 0.0002459518231 | N82: 2.214824778e-07
A83: =IF('DF raw data'!M88="","",'DF raw data'!M88) -> -289.5 | B83: =IF('DF raw data'!N88="","",'DF raw data'!N88) -> -1.31231e-05 | C83: =IF('DF raw data'!O88="","",'DF raw data'!O88) -> 8.63296e-06 | D83: =IF('DF raw data'!P88="","",'DF raw data'!P88) -> -2.62078e-05 | F83: -1.318153716e-05 | G83: 8.671402571e-06 | H83: -2.632450333e-05 | J83: -0.0002463743237 | K83: -0.001377793742 | L83: 7.014998051e-05 | M83: 0.0002810268133 | N83: 2.542931414e-07
A84: =IF('DF raw data'!M89="","",'DF raw data'!M89) -> -289 | B84: =IF('DF raw data'!N89="","",'DF raw data'!N89) -> -2.67823e-05 | C84: =IF('DF raw data'!O89="","",'DF raw data'!O89) -> 1.23151e-05 | D84: =IF('DF raw data'!P89="","",'DF raw data'!P89) -> -2.58111e-05 | F84: -2.690156158e-05 | G84: 1.236993914e-05 | H84: -2.592603683e-05 | J84: -0.0002598251045 | K84: -0.001507706294 | L84: 7.633495008e-05 | M84: 0.0003191942884 | N84: 2.909611962e-07
A85: =IF('DF raw data'!M90="","",'DF raw data'!M90) -> -288.5 | B85: =IF('DF raw data'!N90="","",'DF raw data'!N90) -> -2.22216e-05 | C85: =IF('DF raw data'!O90="","",'DF raw data'!O90) -> 1.9295e-05 | D85: =IF('DF raw data'!P90="","",'DF raw data'!P90) -> -3.75532e-05 | F85: -2.232055278e-05 | G85: 1.938092064e-05 | H85: -3.77204244e-05 | J85: -0.0002709853809 | K85: -0.001643198985 | L85: 8.60254104e-05 | M85: 0.0003622069936 | N85: 3.313779201e-07
A86: =IF('DF raw data'!M91="","",'DF raw data'!M91) -> -288 | B86: =IF('DF raw data'!N91="","",'DF raw data'!N91) -> -3.00565e-05 | C86: =IF('DF raw data'!O91="","",'DF raw data'!O91) -> 1.35457e-05 | D86: =IF('DF raw data'!P91="","",'DF raw data'!P91) -> -2.01902e-05 | F86: -3.019034159e-05 | G86: 1.3606019e-05 | H86: -2.028010696e-05 | J86: -0.0002860805517 | K86: -0.001786239261 | L86: 9.28284199e-05 | M86: 0.0004086212035 | N86: 3.766075189e-07
A87: =IF('DF raw data'!M92="","",'DF raw data'!M92) -> -287.5 | B87: =IF('DF raw data'!N92="","",'DF raw data'!N92) -> -2.08808e-05 | C87: =IF('DF raw data'!O92="","",'DF raw data'!O92) -> 7.19878e-06 | D87: =IF('DF raw data'!P92="","",'DF raw data'!P92) -> -2.88245e-05 | F87: -2.09737822e-05 | G87: 7.230836167e-06 | H87: -2.89528555e-05 | J87: -0.0002965674428 | K87: -0.001934522982 | L87: 9.644383798e-05 | M87: 0.0004568431225 | N87: 4.252343499e-07
A88: =IF('DF raw data'!M93="","",'DF raw data'!M93) -> -287 | B88: =IF('DF raw data'!N93="","",'DF raw data'!N93) -> -3.34513e-05 | C88: =IF('DF raw data'!O93="","",'DF raw data'!O93) -> 6.98374e-06 | D88: =IF('DF raw data'!P93="","",'DF raw data'!P93) -> -2.63805e-05 | F88: -3.360025864e-05 | G88: 7.014838594e-06 | H88: -2.649797237e-05 | J88: -0.0003133675721 | K88: -0.002091206768 | L88: 9.995125728e-05 | M88: 0.0005068187511 | N88: 4.793290945e-07
A89: =IF('DF raw data'!M94="","",'DF raw data'!M94) -> -286.5 | B89: =IF('DF raw data'!N94="","",'DF raw data'!N94) -> -1.95408e-05 | C89: =IF('DF raw data'!O94="","",'DF raw data'!O94) -> 1.20588e-05 | D89: =IF('DF raw data'!P94="","",'DF raw data'!P94) -> -1.83612e-05 | F89: -1.962781518e-05 | G89: 1.211249784e-05 | H89: -1.844296242e-05 | J89: -0.0003231814797 | K89: -0.002252797508 | L89: 0.0001060075062 | M89: 0.0005598225042 | N89: 5.371710246e-07
A90: =IF('DF raw data'!M95="","",'DF raw data'!M95) -> -286 | B90: =IF('DF raw data'!N95="","",'DF raw data'!N95) -> -2.99938e-05 | C90: =IF('DF raw data'!O95="","",'DF raw data'!O95) -> 5.77174e-06 | D90: =IF('DF raw data'!P95="","",'DF raw data'!P95) -> -1.82487e-05 | F90: -3.012736239e-05 | G90: 5.797441558e-06 | H90: -1.832996146e-05 | J90: -0.0003382451609 | K90: -0.002421920089 | L90: 0.000108906227 | M90: 0.0006142756177 | N90: 6.003062021e-07
A91: =IF('DF raw data'!M96="","",'DF raw data'!M96) -> -285.5 | B91: =IF('DF raw data'!N96="","",'DF raw data'!N96) -> -2.21623e-05 | C91: =IF('DF raw data'!O96="","",'DF raw data'!O96) -> 4.80836e-06 | D91: =IF('DF raw data'!P96="","",'DF raw data'!P96) -> -3.0399e-05 | F91: -2.226098872e-05 | G91: 4.829771627e-06 | H91: -3.053436675e-05 | J91: -0.0003493756553 | K91: -0.002596607916 | L91: 0.0001113211128 | M91: 0.0006699361741 | N91: 6.675340715e-07
A92: =IF('DF raw data'!M97="","",'DF raw data'!M97) -> -285 | B92: =IF('DF raw data'!N97="","",'DF raw data'!N97) -> -2.63313e-05 | C92: =IF('DF raw data'!O97="","",'DF raw data'!O97) -> 2.80234e-08 | D92: =IF('DF raw data'!P97="","",'DF raw data'!P97) -> -2.92874e-05 | F92: -2.644855328e-05 | G92: 2.81481882e-08 | H92: -2.941781679e-05 | J92: -0.0003625999319 | K92: -0.002777907882 | L92: 0.0001113351869 | M92: 0.0007256037676 | N92: 7.394711887e-07
A93: =IF('DF raw data'!M98="","",'DF raw data'!M98) -> -284.5 | B93: =IF('DF raw data'!N98="","",'DF raw data'!N98) -> -2.45407e-05 | C93: =IF('DF raw data'!O98="","",'DF raw data'!O98) -> 4.73332e-06 | D93: =IF('DF raw data'!P98="","",'DF raw data'!P98) -> -2.16585e-05 | F93: -2.464997974e-05 | G93: 4.754397474e-06 | H93: -2.17549453e-05 | J93: -0.0003749249218 | K93: -0.002965370343 | L93: 0.0001137123856 | M93: 0.0007824599604 | N93: 8.162207905e-07
A94: =IF('DF raw data'!M99="","",'DF raw data'!M99) -> -284 | B94: =IF('DF raw data'!N99="","",'DF raw data'!N99) -> -1.99272e-05 | C94: =IF('DF raw data'!O99="","",'DF raw data'!O99) -> 6.0221e-06 | D94: =IF('DF raw data'!P99="","",'DF raw data'!P99) -> -1.58119e-05 | F94: -2.001593582e-05 | G94: 6.048916411e-06 | H94: -1.588231039e-05 | J94: -0.0003849328897 | K94: -0.003157836788 | L94: 0.0001167368438 | M94: 0.0008408283823 | N94: 8.971212006e-07
A95: =IF('DF raw data'!M100="","",'DF raw data'!M100) -> -283.5 | B95: =IF('DF raw data'!N100="","",'DF raw data'!N100) -> -1.90195e-05 | C95: =IF('DF raw data'!O100="","",'DF raw data'!O100) -> -9.09155e-07 | D95: =IF('DF raw data'!P100="","",'DF raw data'!P100) -> -3.11039e-05 | F95: -1.910419383e-05 | G95: -9.132034672e-07 | H95: -3.124240567e-05 | J95: -0.0003944849866 | K95: -0.003355079281 | L95: 0.0001162802421 | M95: 0.0008989685033 | N95: 9.816909503e-07
A96: =IF('DF raw data'!M101="","",'DF raw data'!M101) -> -283 | B96: =IF('DF raw data'!N101="","",'DF raw data'!N101) -> -2.49801e-05 | C96: =IF('DF raw data'!O101="","",'DF raw data'!O101) -> 2.10245e-06 | D96: =IF('DF raw data'!P101="","",'DF raw data'!P101) -> -3.61442e-05 | F96: -2.509133639e-05 | G96: 2.11181221e-06 | H96: -3.630515012e-05 | J96: -0.0004070306548 | K96: -0.003558594609 | L96: 0.0001173361482 | M96: 0.0009576365774 | N96: 1.071411813e-06
A97: =IF('DF raw data'!M102="","",'DF raw data'!M102) -> -282.5 | B97: =IF('DF raw data'!N102="","",'DF raw data'!N102) -> -3.03045e-05 | C97: =IF('DF raw data'!O102="","",'DF raw data'!O102) -> 7.55942e-06 | D97: =IF('DF raw data'!P102="","",'DF raw data'!P102) -> -3.33078e-05 | F97: -3.043944594e-05 | G97: 7.593082097e-06 | H97: -3.345611963e-05 | J97: -0.0004222503778 | K97: -0.003769719797 | L97: 0.0001211326892 | M97: 0.001018202922 | N97: 1.167896068e-06
A98: =IF('DF raw data'!M103="","",'DF raw data'!M103) -> -282 | B98: =IF('DF raw data'!N103="","",'DF raw data'!N103) -> -2.36369e-05 | C98: =IF('DF raw data'!O103="","",'DF raw data'!O103) -> -2.03211e-06 | D98: =IF('DF raw data'!P103="","",'DF raw data'!P103) -> -3.10213e-05 | F98: -2.374215512e-05 | G98: -2.041158986e-06 | H98: -3.115943785e-05 | J98: -0.0004341214553 | K98: -0.003986780525 | L98: 0.0001201121098 | M98: 0.001078258977 | N98: 1.269340247e-06
A99: =IF('DF raw data'!M104="","",'DF raw data'!M104) -> -281.5 | B99: =IF('DF raw data'!N104="","",'DF raw data'!N104) -> -2.24867e-05 | C99: =IF('DF raw data'!O104="","",'DF raw data'!O104) -> 1.93457e-06 | D99: =IF('DF raw data'!P104="","",'DF raw data'!P104) -> -2.43342e-05 | F99: -2.258683328e-05 | G99: 1.94318464e-06 | H99: -2.444256019e-05 | J99: -0.000445414872 | K99: -0.004209487961 | L99: 0.0001210837021 | M99: 0.001138800828 | N99: 1.375868082e-06
A100: =IF('DF raw data'!M105="","",'DF raw data'!M105) -> -281 | B100: =IF('DF raw data'!N105="","",'DF raw data'!N105) -> -3.15922e-05 | C100: =IF('DF raw data'!O105="","",'DF raw data'!O105) -> 4.96626e-06 | D100: =IF('DF raw data'!P105="","",'DF raw data'!P105) -> -2.53289e-05 | F100: -3.173288007e-05 | G100: 4.988374756e-06 | H100: -2.544168959e-05 | J100: -0.000461281312 | K100: -0.004440128617 | L100: 0.0001235778895 | M100: 0.001200589773 | N100: 1.489894054e-06
A101: =IF('DF raw data'!M106="","",'DF raw data'!M106) -> -280.5 | B101: =IF('DF raw data'!N106="","",'DF raw data'!N106) -> -1.87619e-05 | C101: =IF('DF raw data'!O106="","",'DF raw data'!O106) -> 8.51179e-06 | D101: =IF('DF raw data'!P106="","",'DF raw data'!P106) -> -3.28932e-05 | F101: -1.884544674e-05 | G101: 8.549693001e-06 | H101: -3.303967342e-05 | J101: -0.0004707040354 | K101: -0.004675480635 | L101: 0.000127852736 | M101: 0.001264516141 | N101: 1.608848359e-06
A102: =IF('DF raw data'!M107="","",'DF raw data'!M107) -> -280 | B102: =IF('DF raw data'!N107="","",'DF raw data'!N107) -> -2.79913e-05 | C102: =IF('DF raw data'!O107="","",'DF raw data'!O107) -> 9.83503e-06 | D102: =IF('DF raw data'!P107="","",'DF raw data'!P107) -> -4.0545e-05 | F102: -2.811594526e-05 | G102: 9.878825389e-06 | H102: -4.072554689e-05 | J102: -0.000484762008 | K102: -0.004917861639 | L102: 0.0001327921486 | M102: 0.001330912215 | N102: 1.735162339e-06
A103: =IF('DF raw data'!M108="","",'DF raw data'!M108) -> -279.5 | B103: =IF('DF raw data'!N108="","",'DF raw data'!N108) -> -3.56291e-05 | C103: =IF('DF raw data'!O108="","",'DF raw data'!O108) -> 6.80929e-06 | D103: =IF('DF raw data'!P108="","",'DF raw data'!P108) -> -3.01842e-05 | F103: -3.578775638e-05 | G103: 6.839611768e-06 | H103: -3.031861024e-05 | J103: -0.0005026558862 | K103: -0.005169189582 | L103: 0.0001362119545 | M103: 0.001399018192 | N103: 1.870770657e-06
A104: =IF('DF raw data'!M109="","",'DF raw data'!M109) -> -279 | B104: =IF('DF raw data'!N109="","",'DF raw data'!N109) -> -2.27468e-05 | C104: =IF('DF raw data'!O109="","",'DF raw data'!O109) -> 6.80806e-06 | D104: =IF('DF raw data'!P109="","",'DF raw data'!P109) -> -1.88135e-05 | F104: -2.28480915e-05 | G104: 6.838376291e-06 | H104: -1.889727652e-05 | J104: -0.0005140799319 | K104: -0.005426229548 | L104: 0.0001396311427 | M104: 0.001468833764 | N104: 2.012658173e-06
A105: =IF('DF raw data'!M110="","",'DF raw data'!M110) -> -278.5 | B105: =IF('DF raw data'!N110="","",'DF raw data'!N110) -> -3.08873e-05 | C105: =IF('DF raw data'!O110="","",'DF raw data'!O110) -> 1.0786e-05 | D105: =IF('DF raw data'!P110="","",'DF raw data'!P110) -> -2.48543e-05 | F105: -3.102484115e-05 | G105: 1.083403006e-05 | H105: -2.49649762e-05 | J105: -0.0005295923525 | K105: -0.005691025724 | L105: 0.0001450481577 | M105: 0.001541357842 | N105: 2.163411687e-06
A106: =IF('DF raw data'!M111="","",'DF raw data'!M111) -> -278 | B106: =IF('DF raw data'!N111="","",'DF raw data'!N111) -> -2.03086e-05 | C106: =IF('DF raw data'!O111="","",'DF raw data'!O111) -> 1.31158e-05 | D106: =IF('DF raw data'!P111="","",'DF raw data'!P111) -> -2.10457e-05 | F106: -2.03990342e-05 | G106: 1.317420466e-05 | H106: -2.11394165e-05 | J106: -0.0005397918696 | K106: -0.005960921659 | L106: 0.00015163526 | M106: 0.001617175472 | N106: 2.320595945e-06
A107: =IF('DF raw data'!M112="","",'DF raw data'!M112) -> -277.5 | B107: =IF('DF raw data'!N112="","",'DF raw data'!N112) -> -2.53739e-05 | C107: =IF('DF raw data'!O112="","",'DF raw data'!O112) -> 5.36561e-06 | D107: =IF('DF raw data'!P112="","",'DF raw data'!P112) -> -2.22745e-05 | F107: -2.548688998e-05 | G107: 5.389503061e-06 | H107: -2.237368835e-05 | J107: -0.0005525353146 | K107: -0.006237189316 | L107: 0.0001543300116 | M107: 0.001694340478 | N107: 2.485152458e-06
A108: =IF('DF raw data'!M113="","",'DF raw data'!M113) -> -277 | B108: =IF('DF raw data'!N113="","",'DF raw data'!N113) -> -1.36383e-05 | C108: =IF('DF raw data'!O113="","",'DF raw data'!O113) -> 8.93275e-06 | D108: =IF('DF raw data'!P113="","",'DF raw data'!P113) -> -2.29108e-05 | F108: -1.369903135e-05 | G108: 8.972527536e-06 | H108: -2.301282179e-05 | J108: -0.0005593848303 | K108: -0.006516881731 | L108: 0.0001588162753 | M108: 0.001773748616 | N108: 2.654219457e-06
A109: =IF('DF raw data'!M114="","",'DF raw data'!M114) -> -276.5 | B109: =IF('DF raw data'!N114="","",'DF raw data'!N114) -> -1.54193e-05 | C109: =IF('DF raw data'!O114="","",'DF raw data'!O114) -> 8.59951e-06 | D109: =IF('DF raw data'!P114="","",'DF raw data'!P114) -> -4.52903e-05 | F109: -1.548796214e-05 | G109: 8.637803618e-06 | H109: -4.549197771e-05 | J109: -0.0005671288113 | K109: -0.006800446137 | L109: 0.0001631351771 | M109: 0.001855316205 | N109: 2.828343544e-06
A110: =IF('DF raw data'!M115="","",'DF raw data'!M115) -> -276 | B110: =IF('DF raw data'!N115="","",'DF raw data'!N115) -> -2.29377e-05 | C110: =IF('DF raw data'!O115="","",'DF raw data'!O115) -> 5.82815e-06 | D110: =IF('DF raw data'!P115="","",'DF raw data'!P115) -> -2.13688e-05 | F110: -2.303984158e-05 | G110: 5.854102752e-06 | H110: -2.146395527e-05 | J110: -0.0005786487321 | K110: -0.007089770503 | L110: 0.0001660622285 | M110: 0.001938347319 | N110: 3.009549053e-06
A111: =IF('DF raw data'!M116="","",'DF raw data'!M116) -> -275.5 | B111: =IF('DF raw data'!N116="","",'DF raw data'!N116) -> -2.35743e-05 | C111: =IF('DF raw data'!O116="","",'DF raw data'!O116) -> -3.00649e-06 | D111: =IF('DF raw data'!P116="","",'DF raw data'!P116) -> -2.85945e-05 | F111: -2.367927636e-05 | G111: -3.0198779e-06 | H111: -2.872183131e-05 | J111: -0.0005904883703 | K111: -0.007385014688 | L111: 0.0001645522896 | M111: 0.002020623464 | N111: 3.197426039e-06
A112: =IF('DF raw data'!M117="","",'DF raw data'!M117) -> -275 | B112: =IF('DF raw data'!N117="","",'DF raw data'!N117) -> -1.57542e-05 | C112: =IF('DF raw data'!O117="","",'DF raw data'!O117) -> -3.44882e-06 | D112: =IF('DF raw data'!P117="","",'DF raw data'!P117) -> -2.30169e-05 | F112: -1.582435345e-05 | G112: -3.464177595e-06 | H112: -2.311939426e-05 | J112: -0.000598400547 | K112: -0.007684214962 | L112: 0.0001628202008 | M112: 0.002102033564 | N112: 3.389722855e-06
A113: =IF('DF raw data'!M118="","",'DF raw data'!M118) -> -274.5 | B113: =IF('DF raw data'!N118="","",'DF raw data'!N118) -> -2.77989e-05 | C113: =IF('DF raw data'!O118="","",'DF raw data'!O118) -> 2.8093e-07 | D113: =IF('DF raw data'!P118="","",'DF raw data'!P118) -> -4.03472e-05 | F113: -2.79226885e-05 | G113: 2.821809813e-07 | H113: -4.052686608e-05 | J113: -0.0006123618913 | K113: -0.007990395907 | L113: 0.0001629612913 | M113: 0.00218351421 | N113: 3.59049459e-06
A114: =IF('DF raw data'!M119="","",'DF raw data'!M119) -> -274 | B114: =IF('DF raw data'!N119="","",'DF raw data'!N119) -> -3.15307e-05 | C114: =IF('DF raw data'!O119="","",'DF raw data'!O119) -> 2.0764e-06 | D114: =IF('DF raw data'!P119="","",'DF raw data'!P119) -> -2.16041e-05 | F114: -3.167110621e-05 | G114: 2.085646209e-06 | H114: -2.170030306e-05 | J114: -0.0006281974444 | K114: -0.00830449463 | L114: 0.0001640041144 | M114: 0.002265516267 | N114: 3.801259279e-06
A115: =IF('DF raw data'!M120="","",'DF raw data'!M120) -> -273.5 | B115: =IF('DF raw data'!N120="","",'DF raw data'!N120) -> -1.70948e-05 | C115: =IF('DF raw data'!O120="","",'DF raw data'!O120) -> 7.15563e-07 | D115: =IF('DF raw data'!P120="","",'DF raw data'!P120) -> -3.26712e-05 | F115: -1.717092314e-05 | G115: 7.18749402e-07 | H115: -3.281668485e-05 | J115: -0.000636782906 | K115: -0.008622886083 | L115: 0.0001643634891 | M115: 0.002347698011 | N115: 4.017513192e-06
A116: =IF('DF raw data'!M121="","",'DF raw data'!M121) -> -273 | B116: =IF('DF raw data'!N121="","",'DF raw data'!N121) -> -1.97906e-05 | C116: =IF('DF raw data'!O121="","",'DF raw data'!O121) -> 3.12968e-06 | D116: =IF('DF raw data'!P121="","",'DF raw data'!P121) -> -2.87258e-05 | F116: -1.987872754e-05 | G116: 3.143616465e-06 | H116: -2.885371599e-05 | J116: -0.0006467222697 | K116: -0.008946247217 | L116: 0.0001659352973 | M116: 0.00243066566 | N116: 4.2404053e-06
A117: =IF('DF raw data'!M122="","",'DF raw data'!M122) -> -272.5 | B117: =IF('DF raw data'!N122="","",'DF raw data'!N122) -> -2.13299e-05 | C117: =IF('DF raw data'!O122="","",'DF raw data'!O122) -> 2.70596e-07 | D117: =IF('DF raw data'!P122="","",'DF raw data'!P122) -> -2.83217e-05 | F117: -2.142488204e-05 | G117: 2.71800964e-07 | H117: -2.844781653e-05 | J117: -0.0006574347108 | K117: -0.009274964573 | L117: 0.0001660711978 | M117: 0.002513701259 | N117: 4.470305321e-06
A118: =IF('DF raw data'!M123="","",'DF raw data'!M123) -> -272 | B118: =IF('DF raw data'!N123="","",'DF raw data'!N123) -> -2.50465e-05 | C118: =IF('DF raw data'!O123="","",'DF raw data'!O123) -> -6.0668e-06 | D118: =IF('DF raw data'!P123="","",'DF raw data'!P123) -> -3.28564e-05 | F118: -2.515803206e-05 | G118: -6.09381546e-06 | H118: -3.300270955e-05 | J118: -0.0006700137268 | K118: -0.009609971436 | L118: 0.0001630242901 | M118: 0.002595213404 | N118: 4.708052978e-06
A119: =IF('DF raw data'!M124="","",'DF raw data'!M124) -> -271.5 | B119: =IF('DF raw data'!N124="","",'DF raw data'!N124) -> -1.42755e-05 | C119: =IF('DF raw data'!O124="","",'DF raw data'!O124) -> -1.07706e-05 | D119: =IF('DF raw data'!P124="","",'DF raw data'!P124) -> -2.91116e-05 | F119: -1.43390688e-05 | G119: -1.081856148e-05 | H119: -2.924123395e-05 | J119: -0.0006771832612 | K119: -0.009948563067 | L119: 0.0001576150093 | M119: 0.002674020909 | N119: 4.949762808e-06
A120: =IF('DF raw data'!M125="","",'DF raw data'!M125) -> -271 | B120: =IF('DF raw data'!N125="","",'DF raw data'!N125) -> -2.41575e-05 | C120: =IF('DF raw data'!O125="","",'DF raw data'!O125) -> -2.18007e-06 | D120: =IF('DF raw data'!P125="","",'DF raw data'!P125) -> -1.94036e-05 | F120: -2.426507335e-05 | G120: -2.189777852e-06 | H120: -1.949000423e-05 | J120: -0.0006893157979 | K120: -0.01029322097 | L120: 0.0001565201204 | M120: 0.002752280969 | N120: 5.199590217e-06
A121: =IF('DF raw data'!M126="","",'DF raw data'!M126) -> -270.5 | B121: =IF('DF raw data'!N126="","",'DF raw data'!N126) -> -1.42096e-05 | C121: =IF('DF raw data'!O126="","",'DF raw data'!O126) -> 5.88946e-06 | D121: =IF('DF raw data'!P126="","",'DF raw data'!P126) -> -3.17082e-05 | F121: -1.427287535e-05 | G121: 5.915685765e-06 | H121: -3.184939661e-05 | J121: -0.0006964522355 | K121: -0.01064144708 | L121: 0.0001594779633 | M121: 0.00283201995 | N121: 5.454829685e-06
A122: =IF('DF raw data'!M127="","",'DF raw data'!M127) -> -270 | B122: =IF('DF raw data'!N127="","",'DF raw data'!N127) -> -1.27335e-05 | C122: =IF('DF raw data'!O127="","",'DF raw data'!O127) -> 1.10416e-06 | D122: =IF('DF raw data'!P127="","",'DF raw data'!P127) -> -3.37369e-05 | F122: -1.279020228e-05 | G122: 1.109076824e-06 | H122: -3.388713042e-05 | J122: -0.0007028473367 | K122: -0.01099287075 | L122: 0.0001600325017 | M122: 0.002912036201 | N122: 5.714632075e-06
A123: =IF('DF raw data'!M128="","",'DF raw data'!M128) -> -269.5 | B123: =IF('DF raw data'!N128="","",'DF raw data'!N128) -> -1.35742e-05 | C123: =IF('DF raw data'!O128="","",'DF raw data'!O128) -> -2.70379e-06 | D123: =IF('DF raw data'!P128="","",'DF raw data'!P128) -> -2.25892e-05 | F123: -1.363464591e-05 | G123: -2.715829977e-06 | H123: -2.268978971e-05 | J123: -0.0007096646596 | K123: -0.01134770308 | L123: 0.0001586745867 | M123: 0.002991373495 | N123: 5.979032852e-06
A124: =IF('DF raw data'!M129="","",'DF raw data'!M129) -> -269 | B124: =IF('DF raw data'!N129="","",'DF raw data'!N129) -> -2.63851e-05 | C124: =IF('DF raw data'!O129="","",'DF raw data'!O129) -> 2.8031e-06 | D124: =IF('DF raw data'!P129="","",'DF raw data'!P129) -> -4.51154e-05 | F124: -2.650259285e-05 | G124: 2.815582204e-06 | H124: -4.531629888e-05 | J124: -0.0007229159561 | K124: -0.01170916106 | L124: 0.0001600823778 | M124: 0.003071414683 | N124: 6.253149776e-06
A125: =IF('DF raw data'!M130="","",'DF raw data'!M130) -> -268.5 | B125: =IF('DF raw data'!N130="","",'DF raw data'!N130) -> -1.1072e-05 | C125: =IF('DF raw data'!O130="","",'DF raw data'!O130) -> 8.79683e-06 | D125: =IF('DF raw data'!P130="","",'DF raw data'!P130) -> -2.44426e-05 | F125: -1.112130362e-05 | G125: 8.836002284e-06 | H125: -2.45514429e-05 | J125: -0.0007284766079 | K125: -0.01207339936 | L125: 0.0001645003789 | M125: 0.003153664873 | N125: 6.532019047e-06
A126: =IF('DF raw data'!M131="","",'DF raw data'!M131) -> -268 | B126: =IF('DF raw data'!N131="","",'DF raw data'!N131) -> -2.73524e-05 | C126: =IF('DF raw data'!O131="","",'DF raw data'!O131) -> -4.04e-06 | D126: =IF('DF raw data'!P131="","",'DF raw data'!P131) -> -3.6935e-05 | F126: -2.747420024e-05 | G126: -4.05799012e-06 | H126: -3.709947156e-05 | J126: -0.000742213708 | K126: -0.01244450622 | L126: 0.0001624713839 | M126: 0.003234900565 | N126: 6.820658117e-06
A127: =IF('DF raw data'!M132="","",'DF raw data'!M132) -> -267.5 | B127: =IF('DF raw data'!N132="","",'DF raw data'!N132) -> -2.61385e-05 | C127: =IF('DF raw data'!O132="","",'DF raw data'!O132) -> 4.03677e-06 | D127: =IF('DF raw data'!P132="","",'DF raw data'!P132) -> -2.9867e-05 | F127: -2.625489474e-05 | G127: 4.054745737e-06 | H127: -2.999999775e-05 | J127: -0.0007553411554 | K127: -0.0128221768 | L127: 0.0001644987567 | M127: 0.003317149943 | N127: 7.119458168e-06
A128: =IF('DF raw data'!M133="","",'DF raw data'!M133) -> -267 | B128: =IF('DF raw data'!N133="","",'DF raw data'!N133) -> -2.22307e-05 | C128: =IF('DF raw data'!O133="","",'DF raw data'!O133) -> 7.27913e-06 | D128: =IF('DF raw data'!P133="","",'DF raw data'!P133) -> -2.36954e-05 | F128: =(1-$G$1*($B$49-$G$2))*B128 -> -2.232969331e-05 | G128: 7.311543966e-06 | H128: -2.380091562e-05 | J128: =F128*$G$3+J127 -> -0.000766506002 | K128: =J128*$G$3+K127 -> -0.0132054298 | L128: =G128*$G$3+L127 -> 0.0001681545287 | M128: =L128*$G$3+M127 -> 0.003401227208 | N128: =(J128^2+L128^2)*$G$3+N127 -> 7.427361866e-06
A129: =IF('DF raw data'!M134="","",'DF raw data'!M134) -> -266.5 | B129: =IF('DF raw data'!N134="","",'DF raw data'!N134) -> -3.5629e-05 | C129: =IF('DF raw data'!O134="","",'DF raw data'!O134) -> 9.5158e-06 | D129: =IF('DF raw data'!P134="","",'DF raw data'!P134) -> -3.05351e-05 | F129: -3.578765594e-05 | G129: 9.558173857e-06 | H129: -3.06710728e-05 | J129: -0.00078439983 | K129: -0.01359762971 | L129: 0.0001729336157 | M129: 0.003487694015 | N129: 7.74995643e-06
A130: =IF('DF raw data'!M135="","",'DF raw data'!M135) -> -266 | B130: =IF('DF raw data'!N135="","",'DF raw data'!N135) -> -2.13946e-05 | C130: =IF('DF raw data'!O135="","",'DF raw data'!O135) -> 2.15191e-06 | D130: =IF('DF raw data'!P135="","",'DF raw data'!P135) -> -2.76308e-05 | F130: -2.148987015e-05 | G130: 2.161492455e-06 | H130: -2.775383995e-05 | J130: -0.0007951447651 | K130: -0.01399520209 | L130: 0.0001740143619 | M130: 0.003574701196 | N130: 8.081224528e-06
A131: =IF('DF raw data'!M136="","",'DF raw data'!M136) -> -265.5 | B131: =IF('DF raw data'!N136="","",'DF raw data'!N136) -> -2.85743e-05 | C131: =IF('DF raw data'!O136="","",'DF raw data'!O136) -> -1.07802e-06 | D131: =IF('DF raw data'!P136="","",'DF raw data'!P136) -> -3.18692e-05 | F131: -2.870154136e-05 | G131: -1.082820423e-06 | H131: -3.201111355e-05 | J131: -0.0008094955357 | K131: -0.01439994986 | L131: 0.0001734729517 | M131: 0.003661437672 | N131: 8.423912472e-06
A132: =IF('DF raw data'!M137="","",'DF raw data'!M137) -> -265 | B132: =IF('DF raw data'!N137="","",'DF raw data'!N137) -> -2.23618e-05 | C132: =IF('DF raw data'!O137="","",'DF raw data'!O137) -> 1.83055e-07 | D132: =IF('DF raw data'!P137="","",'DF raw data'!P137) -> -1.93365e-05 | F132: -2.24613771e-05 | G132: 1.838701439e-07 | H132: -1.942260543e-05 | J132: -0.0008207262243 | K132: -0.01481031297 | L132: 0.0001735648867 | M132: 0.003748220116 | N132: 8.775770624e-06
A133: =IF('DF raw data'!M138="","",'DF raw data'!M138) -> -264.5 | B133: =IF('DF raw data'!N138="","",'DF raw data'!N138) -> -3.00512e-05 | C133: =IF('DF raw data'!O138="","",'DF raw data'!O138) -> -2.1197e-06 | D133: =IF('DF raw data'!P138="","",'DF raw data'!P138) -> -2.8514e-05 | F133: -3.018501799e-05 | G133: -2.129139024e-06 | H133: -2.864097284e-05 | J133: -0.0008358187333 | K133: -0.01522822234 | L133: 0.0001725003172 | M133: 0.003834470274 | N133: 9.139945281e-06
A134: =IF('DF raw data'!M139="","",'DF raw data'!M139) -> -264 | B134: =IF('DF raw data'!N139="","",'DF raw data'!N139) -> -2.97327e-05 | C134: =IF('DF raw data'!O139="","",'DF raw data'!O139) -> 7.97923e-06 | D134: =IF('DF raw data'!P139="","",'DF raw data'!P139) -> -2.54611e-05 | F134: -2.986509971e-05 | G134: 8.014761511e-06 | H134: -2.557447828e-05 | J134: -0.0008507512831 | K134: -0.01565359798 | L134: 0.000176507698 | M134: 0.003922724123 | N134: 9.517411638e-06
A135: =IF('DF raw data'!M140="","",'DF raw data'!M140) -> -263.5 | B135: =IF('DF raw data'!N140="","",'DF raw data'!N140) -> -3.28731e-05 | C135: =IF('DF raw data'!O140="","",'DF raw data'!O140) -> 1.09287e-05 | D135: =IF('DF raw data'!P140="","",'DF raw data'!P140) -> -2.79948e-05 | F135: -3.301948391e-05 | G135: 1.09773655e-05 | H135: -2.811946084e-05 | J135: -0.0008672610251 | K135: -0.01608722849 | L135: 0.0001819963807 | M135: 0.004013722314 | N135: 9.910043822e-06
A136: =IF('DF raw data'!M141="","",'DF raw data'!M141) -> -263 | B136: =IF('DF raw data'!N141="","",'DF raw data'!N141) -> -2.28085e-05 | C136: =IF('DF raw data'!O141="","",'DF raw data'!O141) -> 2.48881e-06 | D136: =IF('DF raw data'!P141="","",'DF raw data'!P141) -> -2.29316e-05 | F136: -2.291006625e-05 | G136: 2.499892671e-06 | H136: -2.303371441e-05 | J136: -0.0008787160582 | K136: -0.01652658652 | L136: 0.0001832463271 | M136: 0.004105345477 | N136: 1.031290439e-05
A137: =IF('DF raw data'!M142="","",'DF raw data'!M142) -> -262.5 | B137: =IF('DF raw data'!N142="","",'DF raw data'!N142) -> -2.82551e-05 | C137: =IF('DF raw data'!O142="","",'DF raw data'!O142) -> 6.81099e-06 | D137: =IF('DF raw data'!P142="","",'DF raw data'!P142) -> -2.93809e-05 | F137: -2.838091996e-05 | G137: 6.841319338e-06 | H137: -2.951173315e-05 | J137: -0.0008929065182 | K137: -0.01697303978 | L137: 0.0001866669867 | M137: 0.00419867897 | N137: 1.072896769e-05
A138: =IF('DF raw data'!M143="","",'DF raw data'!M143) -> -262 | B138: =IF('DF raw data'!N143="","",'DF raw data'!N143) -> -2.40237e-05 | C138: =IF('DF raw data'!O143="","",'DF raw data'!O143) -> -5.03541e-07 | D138: =IF('DF raw data'!P143="","",'DF raw data'!P143) -> -2.80641e-05 | F138: -2.413067754e-05 | G138: -5.057832681e-07 | H138: -2.818906944e-05 | J138: -0.000904971857 | K138: -0.01742552571 | L138: 0.0001864140951 | M138: 0.004291886018 | N138: 1.115582983e-05
A139: =IF('DF raw data'!M144="","",'DF raw data'!M144) -> -261.5 | B139: =IF('DF raw data'!N144="","",'DF raw data'!N144) -> -2.3892e-05 | C139: =IF('DF raw data'!O144="","",'DF raw data'!O144) -> 1.8876e-06 | D139: =IF('DF raw data'!P144="","",'DF raw data'!P144) -> -3.33024e-05 | F139: -2.399839108e-05 | G139: 1.896005483e-06 | H139: -3.345069559e-05 | J139: -0.0009169710525 | K139: -0.01788401124 | L139: 0.0001873620979 | M139: 0.004385567067 | N139: 1.159380006e-05
A140: =IF('DF raw data'!M145="","",'DF raw data'!M145) -> -261 | B140: =IF('DF raw data'!N145="","",'DF raw data'!N145) -> -3.48594e-05 | C140: =IF('DF raw data'!O145="","",'DF raw data'!O145) -> -2.39564e-06 | D140: =IF('DF raw data'!P145="","",'DF raw data'!P145) -> -3.07452e-05 | F140: -3.501462891e-05 | G140: -2.406307785e-06 | H140: -3.088210838e-05 | J140: -0.000934478367 | K140: -0.01835125042 | L140: 0.000186158944 | M140: 0.004478646539 | N140: 1.204775255e-05
A141: =IF('DF raw data'!M146="","",'DF raw data'!M146) -> -260.5 | B141: =IF('DF raw data'!N146="","",'DF raw data'!N146) -> -3.16497e-05 | C141: =IF('DF raw data'!O146="","",'DF raw data'!O146) -> -2.03455e-06 | D141: =IF('DF raw data'!P146="","",'DF raw data'!P146) -> -3.59073e-05 | F141: -3.179063611e-05 | G141: -2.043609851e-06 | H141: -3.606719521e-05 | J141: -0.000950373685 | K141: -0.01882643726 | L141: 0.000185137139 | M141: 0.004571215108 | N141: 1.25164955e-05
A142: =IF('DF raw data'!M147="","",'DF raw data'!M147) -> -260 | B142: =IF('DF raw data'!N147="","",'DF raw data'!N147) -> -1.67093e-05 | C142: =IF('DF raw data'!O147="","",'DF raw data'!O147) -> -4.38563e-06 | D142: =IF('DF raw data'!P147="","",'DF raw data'!P147) -> -3.37682e-05 | F142: -1.678370651e-05 | G142: -4.40515921e-06 | H142: -3.391856979e-05 | J142: -0.0009587655383 | K142: -0.01930582003 | L142: 0.0001829345594 | M142: 0.004662682388 | N142: 1.299284371e-05
